Workbook

Sheet Start
A1: P16 | D1: =IF(ISNA(VLOOKUP($E$1,$A$100:$B$601,2,0)),0,VLOOKUP($E$1,$A$100:$B$601,2,0)) -> 7016 | E1: =+DFES!E1 -> 7016 | O1: TYPE | P1: =IF(ISNA(VLOOKUP($E$1,DFES!$A$10:$J$500,3,0)),0,VLOOKUP($E$1,DFES!$A$10:$J$500,3,0)) -> LEA
O2: Growth | P2: =IF(ISNA(VLOOKUP($E$1,DFES!$A$10:$J$500,4,0)),0,VLOOKUP($E$1,DFES!$A$10:$J$500,4,0)) -> 0
O3: PUPLED | P3: =IF(ISNA(VLOOKUP($E$1,DFES!$A$10:$J$500,5,0)),0,VLOOKUP($E$1,DFES!$A$10:$J$500,5,0)) -> LEA
O4: AD | P4: =IF(ISNA(VLOOKUP($E$1,DFES!$A$10:$J$500,6,0)),0,VLOOKUP($E$1,DFES!$A$10:$J$500,6,0)) -> 0
O5: MFGCAP | P5: =IF(ISNA(VLOOKUP($E$1,DFES!$A$10:$J$500,7,0)),0,VLOOKUP($E$1,DFES!$A$10:$J$500,7,0)) -> 0
O6: RB | P6: =IF(ISNA(VLOOKUP($E$1,DFES!$A$10:$J$500,8,0)),0,VLOOKUP($E$1,DFES!$A$10:$J$500,8,0)) -> N
O7: EY | P7: =IF(ISNA(VLOOKUP($E$1,DFES!$A$10:$J$500,9,0)),0,VLOOKUP($E$1,DFES!$A$10:$J$500,9,0)) -> N
O8: POST16 | P8: =IF(ISNA(VLOOKUP($E$1,DFES!$A$10:$J$500,10,0)),0,VLOOKUP($E$1,DFES!$A$10:$J$500,10,0)) -> N
B9: 2022/23 Section 251 Special Schools Budget Statement and Memorandum | O9: CHECK | P9: =IF(AND(P1="ACAD",P3="ACAD",P6="N",P7="N"),"YES","NO") -> NO
O10: SECTOR | P10: =IF(ISNA(VLOOKUP($E$1,DFES!$A$10:$K$500,11,0)),0,VLOOKUP($E$1,DFES!$A$10:$K$500,11,0)) -> SP
B11: Please Left Click on the Macro Button below to continue.
B12: If the aforementioned does not function, please refer to the Macro Guidance from this link: | M12: MACROGUIDANCE
B13: Should the Protected View message be visible on the Toolbar, click on Enable Editing.
A100: 1000 | B100: 1000 | I100: Nrsy | J100: N
A101: 1001 | B101: 1001 | I101: J | J101: P
A102: 1002 | B102: 1002 | I102: I | J102: P
A103: 1006 | B103: 1006 | I103: JI | J103: P
A104: 1008 | B104: 1008 | I104: Sec (16+) | J104: SEC
A105: 1009 | B105: 1009 | I105: Sec | J105: SEC
A106: 1010 | B106: 1010 | I106: Spcl | J106: SPEC
A107: 1012 | B107: 1012
A108: 1014 | B108: 1014
A109: 1015 | B109: 1015
A110: 1016 | B110: 1016
A111: 1017 | B111: 1017
A112: 1018 | B112: 1018
A113: 1019 | B113: 1019
A114: 1020 | B114: 1020
A115: 1021 | B115: 1021
A116: 1022 | B116: 1022
A117: 1023 | B117: 1023
A118: 1024 | B118: 1024
A119: 1025 | B119: 1025
A120: 1026 | B120: 1026
A121: 1027 | B121: 1027
A122: 1028 | B122: 1028
A123: 1038 | B123: 1038
A124: 1048 | B124: 1048
A125: 1049 | B125: 1049
A126: 1100 | B126: 1100
A127: 1802 | B127: 1802
A128: 2003 | B128: 2003
A129: 2004 | B129: 2004
A130: 2005 | B130: 2005
A131: 2008 | B131: 2008
A132: 2010 | B132: 2010
A133: 2011 | B133: 2011
A134: 2014 | B134: 2014
A135: 2015 | B135: 2015
A136: 2016 | B136: 2016
A137: 2017 | B137: 2017
A138: 2018 | B138: 2018
A139: 2019 | B139: 2019
A140: 2020 | B140: 2020
A141: 2021 | B141: 2021
A142: 2024 | B142: 2024
A143: 2025 | B143: 2025
A144: 2026 | B144: 2026
A145: 2030 | B145: 2030
A146: 2032 | B146: 2032
A147: 2036 | B147: 2036
A148: 2037 | B148: 2037
A149: 2038 | B149: 2038
A150: 2039 | B150: 2039
A151: 2040 | B151: 2040
A152: 2041 | B152: 2041
A153: 2047 | B153: 2047
A154: 2048 | B154: 2048
A155: 2052 | B155: 2052
A156: 2053 | B156: 2053
A157: 2054 | B157: 2054
A158: 2055 | B158: 2055
A159: 2056 | B159: 2056
A160: 2057 | B160: 2057
A161: 2058 | B161: 2058
A162: 2059 | B162: 2059
A163: 2060 | B163: 2060
A164: 2061 | B164: 2061
A165: 2062 | B165: 2062
A166: 2063 | B166: 2063
A167: 2064 | B167: 2064
A168: 2065 | B168: 2065
A169: 2067 | B169: 2067
A170: 2068 | B170: 2068
A171: 2070 | B171: 2070
A172: 2071 | B172: 2071
A173: 2072 | B173: 2072
A174: 2073 | B174: 2073
A175: 2075 | B175: 2075
A176: 2078 | B176: 2078
A177: 2079 | B177: 2079
A178: 2080 | B178: 2080
A179: 2081 | B179: 2081
A180: 2082 | B180: 2082
A181: 2085 | B181: 2085
A182: 2086 | B182: 2086
A183: 2087 | B183: 2087
A184: 2091 | B184: 2091
A185: 2092 | B185: 2092
A186: 2093 | B186: 2093
A187: 2096 | B187: 2096
A188: 2097 | B188: 2097
A189: 2098 | B189: 2098
A190: 2099 | B190: 2099
A191: 2100 | B191: 2100
A192: 2102 | B192: 2102
A193: 2103 | B193: 2103
A194: 2104 | B194: 2104
A195: 2105 | B195: 2105
A196: 2107 | B196: 2107
A197: 2108 | B197: 2108
A198: 2109 | B198: 2109
A199: 2110 | B199: 2110
A200: 2111 | B200: 2111
A201: 2115 | B201: 2115
A202: 2117 | B202: 2117
A203: 2118 | B203: 2118
A204: 2119 | B204: 2119
A205: 2120 | B205: 2120
A206: 2121 | B206: 2121
A207: 2122 | B207: 2122
A208: 2126 | B208: 2126
A209: 2127 | B209: 2127
A210: 2128 | B210: 2128
A211: 2129 | B211: 2129
A212: 2132 | B212: 2132
A213: 2133 | B213: 2133
A214: 2136 | B214: 2136
A215: 2138 | B215: 2138
A216: 2140 | B216: 2140
A217: 2141 | B217: 2141
A218: 2142 | B218: 2142
A219: 2144 | B219: 2144
A220: 2145 | B220: 2145
A221: 2146 | B221: 2146
A222: 2149 | B222: 2149
A223: 2150 | B223: 2150
A224: 2152 | B224: 2152
A225: 2153 | B225: 2153
A226: 2154 | B226: 2154
A227: 2156 | B227: 2156
A228: 2157 | B228: 2157
A229: 2158 | B229: 2158
A230: 2159 | B230: 2159
A231: 2160 | B231: 2160
A232: 2161 | B232: 2161
A233: 2162 | B233: 2162
A234: 2165 | B234: 2165
A235: 2167 | B235: 2167
A236: 2168 | B236: 2168
A237: 2169 | B237: 2169
A238: 2170 | B238: 2170
A239: 2171 | B239: 2171
A240: 2174 | B240: 2174
A241: 2175 | B241: 2175
A242: 2176 | B242: 2176
A243: 2178 | B243: 2178
A244: 2179 | B244: 2179
A245: 2180 | B245: 2180
A246: 2181 | B246: 2181
A247: 2182 | B247: 2182
A248: 2183 | B248: 2183
A249: 2184 | B249: 2184
A250: 2185 | B250: 2185
A251: 2186 | B251: 2186
A252: 2187 | B252: 2187
A253: 2188 | B253: 2188
A254: 2189 | B254: 2189
A255: 2190 | B255: 2190
A256: 2191 | B256: 2191
A257: 2192 | B257: 2192
A258: 2194 | B258: 2194
A259: 2195 | B259: 2195
A260: 2196 | B260: 2196
A261: 2198 | B261: 2198
A262: 2199 | B262: 2199
A263: 2201 | B263: 2201
A264: 2202 | B264: 2202
A265: 2204 | B265: 2204
A266: 2205 | B266: 2205
A267: 2225 | B267: 2225
A268: 2226 | B268: 2226
A269: 2227 | B269: 2227
A270: 2231 | B270: 2231
A271: 2236 | B271: 2236
A272: 2238 | B272: 2238
A273: 2239 | B273: 2239
A274: 2241 | B274: 2241
A275: 2245 | B275: 2245
A276: 2246 | B276: 2246
A277: 2249 | B277: 2249
A278: 2251 | B278: 2251
A279: 2254 | B279: 2254
A280: 2263 | B280: 2263
A281: 2273 | B281: 2273
A282: 2276 | B282: 2276
A283: 2278 | B283: 2278
A284: 2283 | B284: 2283
A285: 2284 | B285: 2284
A286: 2288 | B286: 2288
... 264 more rows

Sheet Contents (hidden)
A5: S251 School Budget Share Notification 2021/22
A8: Contents Page
B11: Page | D11: Content | F11: Description
B13: 1 | D13: S251 Budget Statement | F13: Summary of School Budget Allocations for 2020/21, comprise of:
F15:  Dedicated Schools Grant (DSG) including breakdown by formula factors (includes variation in pupil numbers (Growth) where applicable)
F17:  Indicative Early Years Funding (where applicable)
F19:  Post 16 Grant (where applicable)
F21:  Resource Base Funding (where applicable)
F23:  Indicative Resource Base "Top up" Funding (where applicable)
F25:  Devolved Formula Capital Allocations
F27: - Notional SEN Amount contained within DSG allocations, shown by factor
B29: Memorandum Items - For Information
B31: 2 | D31: Growth | F31: Breakdown of variation in pupil numbers (Growth) funding
B33: 3 | D33: Pupil Led Elements | F33: Breakdown of pupil led fair funding formula factors - includes Minimum Funding Per Pupil (MFPP)
B35: 4 | D35: De-Delegations | F35: Breakdown of Schools Forum approved de-delegations
B37: 5 | D37: MFG | F37: Determination of Minimum Funding Guarantee (MFG) where applicable
B39: 6 | D39: Resource Base | F39: Breakdown of delegated Resource Base Funding and indicative "Top Up" funding (where applicable)
B41: 7 | D41: Early Years | F41: Breakdown of Indicative Early Years Funding - where applicable - includes
F43:  A tool for schools to forecast 2020/21 funding
B45: 8 | D45: Post 16 | F45: Breakdown of Post 16 Grant - where applicable

Sheet Process Notes (hidden)
A1: Process Notes
A3: Special School budget: 22-23:
B4: SENAR file normally contains both pre-16 and post16 places, so total pre16+totalPost16=SENAR total, ask Dan to double check the numbers;
B5: both pre16 and Post 16 places are funded at £10k each for place funding; academies get place funding directly from DFE, LA only pays top ups.
B6: Topups are only for BCC commissioned places, so wont' equal total pre16+Post16.
B7: Banding rate and banded number, Specific factor (environmental factor), TP (Transitional Protection) factor.
B8: Note topup for James Brindley is slightly different, need to add HomeTuition which is in a column far right.
B9: HomeTuition/Northfield/Parkway for James Brindley hospital school, residential number and rate... all come from SENAR.
B11: TPG & TPEG is £660/place, £100/place for social levy
B12: Specific factor (environmental factor) and TP rate applies to both Pre16 & Post 16.
B14: Resi rate had 6% topup in 22-23 as per school forum paper
A16: Resource based: 22-23:
B17: Element 1: £4k
B18: Element 2: £6k
B19: only fund commissioned numbers:
B20: if commissioned number = or < Oct census pupil on roll number, then the places get £6k each as they'll get £4k from APT;
B21: If commissioned number is higher than pupil on roll, the extra place (vacant commissioned place) is funded at £10k/place (as the extra places don't have the £4k in APT).
B22: Check: Nursery commissioned places are funded at £10k each as they are not in APT ( no £4k);
B23: Oct census, April number, Sept number, TPPupil funding all come from SENAR; No MFPP in 22-23, BCC policy change
A26: Sense check the file, compare with last year, identify reason for variation to help ascertain whether calculation is correct.

Sheet Outstanding Issues (hidden)
A1: Outstanding Issues
A3: 1 | B3: Other Local Authority information from Dan
A4: 2 | B4: To be confirmed - from Dan

Sheet Budget Statement (hidden)
A1: Birmingham City Council
A2: Children & Families Directorate
A3: S251 Special Schools Budget Statment Notification 2022/23
A5: ="School:"&" "&DFES!$F$1 -> School: Baskerville
A6: ="DfE No.:"&" "&DFES!$E$1 -> DfE No.: 7016
A9: Section A - School Budget Summary
A11: Total Place Funding (Based on Commissioned Places) | J11: =+J35 -> 1620000
A12: See Section B Below
A13: Total Teachers Pay Grant and Teachers Pension Employers Contribution Grant | J13: =+J36 -> 123120
A14: See Section B Below
A15: Total Birmingham Pupils Indicative "Top Up" Funding | J15: =+J68+J77+J80 -> 3330040.515
A16: See Sections C and D Below
A17: Indicative Exceptional Special Needs "Top Up" Funding
A19: Indicative Other Local Authority Pupils "Top Up" Income | J19: School to invoice OLA
A21: Indicative Pupil Premium - (The DfE will not confirm actual allocations until autumn) | J21: TBC
A23: Devolved Capital Allocation | J23: TBC
A28: Section B - Delegated Funding Analysis
D31: 2022/23 Financial Year | J31: Total Core Funding 2022/23
D32: Pre 16 | E32: Post 16 (16-19) | F32: Total | G32: Bursary Funding
D33: 2022-04-01 | E33: 2022-04-01 | F33: 2022-04-01 | G33: Apr - Jul | H33: Aug - Mar
A34: 2022/23 Commissioned Place Numbers | D34: =VLOOKUP(DFES!$E$1,'DATA SPECIAL'!$A$4:$BP$31,'DATA SPECIAL'!C$33,0) -> 100 | E34: =VLOOKUP(DFES!$E$1,'DATA SPECIAL'!$A$4:$BP$31,'DATA SPECIAL'!D$33,0) -> 62 | F34: =SUM(D34:E34) -> 162
A35: 2022/23 Place Funding | D35: =VLOOKUP(DFES!$E$1,'DATA SPECIAL'!$A$4:$BP$31,'DATA SPECIAL'!E$33,0) -> 1000000 | E35: =VLOOKUP(DFES!$E$1,'DATA SPECIAL'!$A$4:$BP$31,'DATA SPECIAL'!F$33,0) -> 620000 | F35: =SUM(D35:E35) -> 1620000 | G35: =VLOOKUP(DFES!$E$1,'DATA SPECIAL'!$A$4:$BP$31,'DATA SPECIAL'!G$33,0) -> 0 | H35: =VLOOKUP(DFES!$E$1,'DATA SPECIAL'!$A$4:$BP$31,'DATA SPECIAL'!H$33,0) -> 0 | J35: =SUM(F35:H35) -> 1620000
A36: 2022/23 TPG/ TPECG/ NI Social Levy | D36: =D34*760 -> 76000 | E36: =E34*760 -> 47120 | F36: =SUM(D36:E36) -> 123120 | J36: =SUM(F36:H36) -> 123120
A41: Section C - Devolved Funding Analysis
A43: Pupil Assessment Analysis
C44: Numbers of Pupils
B45: Category: | C45: A | D45: B | E45: C | F45: D | G45: E | H45: Pupils | I45: Pupils
B46: Need: | C46: Speech, Language & Communication - ASC | D46: Cognition & Learning | E46: Behaviour, Emotional & Social | F46: Sensory | G46: Physical | H46: Northfield/ Parkway/ Home Tuition | I46: Residential
B47: Band 1 | C47: =VLOOKUP(DFES!$E$1,'DATA SPECIAL'!$A$4:$BP$31,'DATA SPECIAL'!J$33,0) -> 0 | D47: =VLOOKUP(DFES!$E$1,'DATA SPECIAL'!$A$4:$BP$31,'DATA SPECIAL'!N$33,0) -> 0 | E47: =VLOOKUP(DFES!$E$1,'DATA SPECIAL'!$A$4:$BP$31,'DATA SPECIAL'!R$33,0) -> 0 | F47: =VLOOKUP(DFES!$E$1,'DATA SPECIAL'!$A$4:$BP$31,'DATA SPECIAL'!V$33,0) -> 0 | G47: =VLOOKUP(DFES!$E$1,'DATA SPECIAL'!$A$4:$BP$31,'DATA SPECIAL'!Z$33,0) -> 0
B48: Band 2 | C48: =VLOOKUP(DFES!$E$1,'DATA SPECIAL'!$A$4:$BP$31,'DATA SPECIAL'!K$33,0) -> 0 | D48: =VLOOKUP(DFES!$E$1,'DATA SPECIAL'!$A$4:$BP$31,'DATA SPECIAL'!O$33,0) -> 0 | E48: =VLOOKUP(DFES!$E$1,'DATA SPECIAL'!$A$4:$BP$31,'DATA SPECIAL'!S$33,0) -> 0 | F48: =VLOOKUP(DFES!$E$1,'DATA SPECIAL'!$A$4:$BP$31,'DATA SPECIAL'!W$33,0) -> 0 | G48: =VLOOKUP(DFES!$E$1,'DATA SPECIAL'!$A$4:$BP$31,'DATA SPECIAL'!AA$33,0) -> 0
B49: Band 3 | C49: =VLOOKUP(DFES!$E$1,'DATA SPECIAL'!$A$4:$BP$31,'DATA SPECIAL'!L$33,0) -> 65 | D49: =VLOOKUP(DFES!$E$1,'DATA SPECIAL'!$A$4:$BP$31,'DATA SPECIAL'!P$33,0) -> 0 | E49: =VLOOKUP(DFES!$E$1,'DATA SPECIAL'!$A$4:$BP$31,'DATA SPECIAL'!T$33,0) -> 2 | F49: =VLOOKUP(DFES!$E$1,'DATA SPECIAL'!$A$4:$BP$31,'DATA SPECIAL'!X$33,0) -> 0 | G49: =VLOOKUP(DFES!$E$1,'DATA SPECIAL'!$A$4:$BP$31,'DATA SPECIAL'!AB$33,0) -> 0
B50: Band 4 | C50: =VLOOKUP(DFES!$E$1,'DATA SPECIAL'!$A$4:$BP$31,'DATA SPECIAL'!M$33,0) -> 89 | D50: =VLOOKUP(DFES!$E$1,'DATA SPECIAL'!$A$4:$BP$31,'DATA SPECIAL'!Q$33,0) -> 0 | E50: =VLOOKUP(DFES!$E$1,'DATA SPECIAL'!$A$4:$BP$31,'DATA SPECIAL'!U$33,0) -> 1 | F50: =VLOOKUP(DFES!$E$1,'DATA SPECIAL'!$A$4:$BP$31,'DATA SPECIAL'!Y$33,0) -> 0 | G50: =VLOOKUP(DFES!$E$1,'DATA SPECIAL'!$A$4:$BP$31,'DATA SPECIAL'!AC$33,0) -> 0
B51: North'd/Parkwy | H51: =VLOOKUP(DFES!$E$1,'DATA SPECIAL'!$A$4:$BP$31,'DATA SPECIAL'!AD$33,0) -> 0
B52: Home Tuition | H52: =VLOOKUP(DFES!$E$1,'DATA SPECIAL'!$A$4:$BP$31,'DATA SPECIAL'!BO$33,0) -> 0
B53: Residential | I53: =VLOOKUP(DFES!$E$1,'DATA SPECIAL'!$A$4:$BP$31,'DATA SPECIAL'!AF$33,0) -> 18
A55: Indicative Devolved Top Up Funding 2022/23
C57: Indicative Top Up Funding
B58: Category: | C58: A | D58: B | E58: C | F58: D | G58: E | H58: Funding | I58: Funding
B59: Need: | C59: Speech, Language & Communication - ASC | D59: Cognition & Learning | E59: Behaviour, Emotional & Social | F59: Sensory | G59: Physical | H59: Northfield/ Parkway/ Home Tuition | I59: Residential | J59: Total Devolved Funding 2022/23
B60: Band 1 | C60: =VLOOKUP(DFES!$E$1,'DATA SPECIAL'!$A$4:$BP$31,'DATA SPECIAL'!AG$33,0) -> 0 | D60: =VLOOKUP(DFES!$E$1,'DATA SPECIAL'!$A$4:$BP$31,'DATA SPECIAL'!AK$33,0) -> 0 | E60: =VLOOKUP(DFES!$E$1,'DATA SPECIAL'!$A$4:$BP$31,'DATA SPECIAL'!AO$33,0) -> 0 | F60: =VLOOKUP(DFES!$E$1,'DATA SPECIAL'!$A$4:$BP$31,'DATA SPECIAL'!AS$33,0) -> 0 | G60: =VLOOKUP(DFES!$E$1,'DATA SPECIAL'!$A$4:$BP$31,'DATA SPECIAL'!AW$33,0) -> 0
B61: Band 2 | C61: =VLOOKUP(DFES!$E$1,'DATA SPECIAL'!$A$4:$BP$31,'DATA SPECIAL'!AH$33,0) -> 0 | D61: =VLOOKUP(DFES!$E$1,'DATA SPECIAL'!$A$4:$BP$31,'DATA SPECIAL'!AL$33,0) -> 0 | E61: =VLOOKUP(DFES!$E$1,'DATA SPECIAL'!$A$4:$BP$31,'DATA SPECIAL'!AP$33,0) -> 0 | F61: =VLOOKUP(DFES!$E$1,'DATA SPECIAL'!$A$4:$BP$31,'DATA SPECIAL'!AT$33,0) -> 0 | G61: =VLOOKUP(DFES!$E$1,'DATA SPECIAL'!$A$4:$BP$31,'DATA SPECIAL'!AX$33,0) -> 0
B62: Band 3 | C62: =VLOOKUP(DFES!$E$1,'DATA SPECIAL'!$A$4:$BP$31,'DATA SPECIAL'!AI$33,0) -> 467688.1821 | D62: =VLOOKUP(DFES!$E$1,'DATA SPECIAL'!$A$4:$BP$31,'DATA SPECIAL'!AM$33,0) -> 0 | E62: =VLOOKUP(DFES!$E$1,'DATA SPECIAL'!$A$4:$BP$31,'DATA SPECIAL'!AQ$33,0) -> 14390.4056 | F62: =VLOOKUP(DFES!$E$1,'DATA SPECIAL'!$A$4:$BP$31,'DATA SPECIAL'!AU$33,0) -> 0 | G62: =VLOOKUP(DFES!$E$1,'DATA SPECIAL'!$A$4:$BP$31,'DATA SPECIAL'!AY$33,0) -> 0
B63: Band 4 | C63: =VLOOKUP(DFES!$E$1,'DATA SPECIAL'!$A$4:$BP$31,'DATA SPECIAL'!AJ$33,0) -> 1152671.489 | D63: =VLOOKUP(DFES!$E$1,'DATA SPECIAL'!$A$4:$BP$31,'DATA SPECIAL'!AN$33,0) -> 0 | E63: =VLOOKUP(DFES!$E$1,'DATA SPECIAL'!$A$4:$BP$31,'DATA SPECIAL'!AR$33,0) -> 12951.36504 | F63: =VLOOKUP(DFES!$E$1,'DATA SPECIAL'!$A$4:$BP$31,'DATA SPECIAL'!AV$33,0) -> 0 | G63: =VLOOKUP(DFES!$E$1,'DATA SPECIAL'!$A$4:$BP$31,'DATA SPECIAL'!AZ$33,0) -> 0
B64: North'd/Parkwy | H64: =VLOOKUP(DFES!$E$1,'DATA SPECIAL'!$A$4:$BP$31,'DATA SPECIAL'!BA$33,0) -> 0
B65: Home Tuition | H65: =VLOOKUP(DFES!$E$1,'DATA SPECIAL'!$A$4:$BP$31,'DATA SPECIAL'!BP$33,0) -> 0
B66: Residential | I66: =VLOOKUP(DFES!$E$1,'DATA SPECIAL'!$A$4:$BP$31,'DATA SPECIAL'!BB$33,0) -> 863141.1198
B67: Additional Place paid as Top Up | J67: =VLOOKUP(DFES!$E$1,'DATA SPECIAL'!$A$4:$BR$31,'DATA SPECIAL'!BR$33,0) -> 0
J68: =SUM(C60:J67) -> 2510842.561
A69: Funding includes, banded assessment, school environmental factor, residential funding and transitional protection - It does not include any ESN Allocations
A70: Further analysis of funding rates is detailed in Section D
A74: Section D - Banded Assessment Funding Rates
A76: Environmental Factor
C77: School Specific Funding Factor is | G77: =VLOOKUP(DFES!$E$1,'DATA SPECIAL'!$A$4:$BP$31,'DATA SPECIAL'!BH$33,0) -> 2665.821358 | J77: =SUM(C47:G50)*G77 -> 418533.9532
B78: This amount is allocated to every pupil
A79: Transitional Protection
C80: Per Pupil Transitional Protection | G80: =VLOOKUP(DFES!$E$1,'DATA SPECIAL'!$A$4:$BP$31,'DATA SPECIAL'!BK$33,0) -> 2552 | J80: =SUM(C47:G50)*G80 -> 400664
B81: This amount is allocated to every pupil within the band
A83: Banded Assessment Funding Rates
C84: Banded Assessment Pupil Funding Rate
B85: Category: | C85: A | D85: B | E85: C | F85: D | G85: E
B86: Need: | C86: Speech, Language & Communication - ASC | D86: Cognition & Learning | E86: Behaviour, Emotional & Social | F86: Sensory | G86: Physical
B87: Band 1 | C87: 0 | D87: 0 | E87: 0 | F87: 0 | G87: 0
B88: Band 2 | C88: 2158.56084 | D88: 719.5202802 | E88: 2158.56084 | F88: 2158.56084 | G88: 2518.320981
B89: Band 3 | C89: 7195.202802 | D89: 3597.601401 | E89: 7195.202802 | F89: 7195.202802 | G89: 7914.723082
B90: Band 4 | C90: 12951.36504 | D90: 11512.32448 | E90: 12951.36504 | F90: 12951.36504 | G90: 13670.88532
A92: Total Banded Assessment Funding Rates for | D92: =+DFES!F1 -> Baskerville
A93: (Includes School Specific Factor)
C94: Total Banded Assessment Pupil Funding Rate
B95: Category: | C95: A | D95: B | E95: C | F95: D | G95: E
B96: Need: | C96: Speech, Language & Communication - ASC | D96: Cognition & Learning | E96: Behaviour, Emotional & Social | F96: Sensory | G96: Physical
B97: Band 1 | C97: =+C87+$G$77+$G$80 -> 5217.821358 | D97: 5217.821358 | E97: 5217.821358 | F97: 5217.821358 | G97: 5217.821358
B98: Band 2 | C98: 7376.382199 | D98: 5937.341638 | E98: 7376.382199 | F98: 7376.382199 | G98: 7736.142339
B99: Band 3 | C99: 12413.02416 | D99: 8815.422759 | E99: 12413.02416 | F99: 12413.02416 | G99: 13132.54444
B100: Band 4 | C100: 18169.1864 | D100: 16730.14584 | E100: 18169.1864 | F100: 18169.1864 | G100: 18888.70668
A103: Residential Funding Rate | C103: =IF(DFES!$E$1=7037,"Skilts residential funding April to July 2019 only","") ->  | G103: =IF(DFES!$E$1=7037,(VLOOKUP(DFES!$E$1,'DATA SPECIAL'!$A$4:$BP$31,'DATA SPECIAL'!BI$33,0)/4*12),VLOOKUP(DFES!$E$1,'DATA SPECIAL'!$A$4:$BP$31,'DATA SPECIAL'!BI$33,0)) -> 47952.28443 | H103: Full year rate

Sheet DATA SPECIAL (hidden)
A1: DfE | B1: School | J1: =MATCH(J$3,'SP Number per band'!$D$7:$AA$7,0)+1 -> 2 | K1: =MATCH(K$3,'SP Number per band'!$D$7:$AA$7,0)+1 -> 3 | L1: =MATCH(L$3,'SP Number per band'!$D$7:$AA$7,0)+1 -> 4 | M1: =MATCH(M$3,'SP Number per band'!$D$7:$AA$7,0)+1 -> 5 | N1: =MATCH(N$3,'SP Number per band'!$D$7:$AA$7,0)+1 -> 6 | O1: =MATCH(O$3,'SP Number per band'!$D$7:$AA$7,0)+1 -> 7 | P1: =MATCH(P$3,'SP Number per band'!$D$7:$AA$7,0)+1 -> 8 | Q1: =MATCH(Q$3,'SP Number per band'!$D$7:$AA$7,0)+1 -> 9 | R1: =MATCH(R$3,'SP Number per band'!$D$7:$AA$7,0)+1 -> 10 | S1: =MATCH(S$3,'SP Number per band'!$D$7:$AA$7,0)+1 -> 11 | T1: =MATCH(T$3,'SP Number per band'!$D$7:$AA$7,0)+1 -> 12 | U1: =MATCH(U$3,'SP Number per band'!$D$7:$AA$7,0)+1 -> 13 | V1: =MATCH(V$3,'SP Number per band'!$D$7:$AA$7,0)+1 -> 14 | W1: =MATCH(W$3,'SP Number per band'!$D$7:$AA$7,0)+1 -> 15 | X1: =MATCH(X$3,'SP Number per band'!$D$7:$AA$7,0)+1 -> 16 | Y1: =MATCH(Y$3,'SP Number per band'!$D$7:$AA$7,0)+1 -> 17 | Z1: =MATCH(Z$3,'SP Number per band'!$D$7:$AA$7,0)+1 -> 18 | AA1: =MATCH(AA$3,'SP Number per band'!$D$7:$AA$7,0)+1 -> 19 | AB1: =MATCH(AB$3,'SP Number per band'!$D$7:$AA$7,0)+1 -> 20 | AC1: =MATCH(AC$3,'SP Number per band'!$D$7:$AA$7,0)+1 -> 21 | AD1: =MATCH(AD$3,'SP Number per band'!$D$7:$AA$7,0)+1 -> 22 | AE1: =MATCH(AE$3,'SP Number per band'!$D$7:$AA$7,0)+1 -> 23 | AG1: FundA1 | AH1: FundA2 | AI1: FundA3 | AJ1: FundA4 | AK1: FundB1 | AL1: FundB2 | AM1: FundB3 | AN1: FundB4 | AO1: FundC1 | AP1: FundC2 | AQ1: FundC3 | AR1: FundC4 | AS1: FundD1 | AT1: FundD2 | AU1: FundD3 | AV1: FundD4 | AW1: FundE1 | AX1: FundE2 | AY1: FundE3 | AZ1: FundE4 | BA1: FundNP | BB1: FundResi | BC1: SCSpecFac £ | BD1: TPTot £ | BE1: TotalDevolved | BF1: Total Placefunding+Topup | BI1: 6% Uplift
C2: yellow based on April 22 commissioned number as academies, rest are based on funded number | J2: =VLOOKUP(J$3,'SP 2022-23 Banding, SSF and Tp'!$C:$D,2,FALSE) -> 0 | K2: =VLOOKUP(K$3,'SP 2022-23 Banding, SSF and Tp'!$C:$D,2,FALSE) -> 2158.56084 | L2: =VLOOKUP(L$3,'SP 2022-23 Banding, SSF and Tp'!$C:$D,2,FALSE) -> 7195.202802 | M2: =VLOOKUP(M$3,'SP 2022-23 Banding, SSF and Tp'!$C:$D,2,FALSE) -> 12951.36504 | N2: =VLOOKUP(N$3,'SP 2022-23 Banding, SSF and Tp'!$C:$D,2,FALSE) -> 0 | O2: =VLOOKUP(O$3,'SP 2022-23 Banding, SSF and Tp'!$C:$D,2,FALSE) -> 719.5202802 | P2: =VLOOKUP(P$3,'SP 2022-23 Banding, SSF and Tp'!$C:$D,2,FALSE) -> 3597.601401 | Q2: =VLOOKUP(Q$3,'SP 2022-23 Banding, SSF and Tp'!$C:$D,2,FALSE) -> 11512.32448 | R2: =VLOOKUP(R$3,'SP 2022-23 Banding, SSF and Tp'!$C:$D,2,FALSE) -> 0 | S2: =VLOOKUP(S$3,'SP 2022-23 Banding, SSF and Tp'!$C:$D,2,FALSE) -> 2158.56084 | T2: =VLOOKUP(T$3,'SP 2022-23 Banding, SSF and Tp'!$C:$D,2,FALSE) -> 7195.202802 | U2: =VLOOKUP(U$3,'SP 2022-23 Banding, SSF and Tp'!$C:$D,2,FALSE) -> 12951.36504 | V2: =VLOOKUP(V$3,'SP 2022-23 Banding, SSF and Tp'!$C:$D,2,FALSE) -> 0 | W2: =VLOOKUP(W$3,'SP 2022-23 Banding, SSF and Tp'!$C:$D,2,FALSE) -> 2158.56084 | X2: =VLOOKUP(X$3,'SP 2022-23 Banding, SSF and Tp'!$C:$D,2,FALSE) -> 7195.202802 | Y2: =VLOOKUP(Y$3,'SP 2022-23 Banding, SSF and Tp'!$C:$D,2,FALSE) -> 12951.36504 | Z2: =VLOOKUP(Z$3,'SP 2022-23 Banding, SSF and Tp'!$C:$D,2,FALSE) -> 0 | AA2: =VLOOKUP(AA$3,'SP 2022-23 Banding, SSF and Tp'!$C:$D,2,FALSE) -> 2518.320981 | AB2: =VLOOKUP(AB$3,'SP 2022-23 Banding, SSF and Tp'!$C:$D,2,FALSE) -> 7914.723082 | AC2: =VLOOKUP(AC$3,'SP 2022-23 Banding, SSF and Tp'!$C:$D,2,FALSE) -> 13670.88532 | AD2: =VLOOKUP(AD$3,'SP 2022-23 Banding, SSF and Tp'!$C:$D,2,FALSE) -> 1007.052941 | BI2: See SF Minutes
A3: DfE | B3: School | C3: AprPlacePre16 | D3: AprPlacepost16 | E3: AprFundPre16 | F3: AprFundpost16 | G3: BurFundApr | H3: BurFundSept | I3: TotdelFund | J3: A1 | K3: A2 | L3: A3 | M3: A4 | N3: B1 | O3: B2 | P3: B3 | Q3: B4 | R3: C1 | S3: C2 | T3: C3 | U3: C4 | V3: D1 | W3: D2 | X3: D3 | Y3: D4 | Z3: E1 | AA3: E2 | AB3: E3 | AC3: E4 | AD3: Northfield | AE3: Home Tuition-Home | AF3: Residential | AG3: FundA1 | AH3: FundA2 | AI3: FundA3 | AJ3: FundA4 | AK3: FundB1 | AL3: FundB2 | AM3: FundB3 | AN3: FundB4 | AO3: FundC1 | AP3: FundC2 | AQ3: FundC3 | AR3: FundC4 | AS3: FundD1 | AT3: FundD2 | AU3: FundD3 | AV3: FundD4 | AW3: FundE1 | AX3: FundE2 | AY3: FundE3 | AZ3: FundE4 | BA3: FundNP | BB3: FundResi | BC3: SCSpecFac £ | BD3: TPTot £ | BE3: TotalDevolved | BF3: Total Placefunding+Topup | BG3: CHECK movement from last year | BH3: SCSpecFac | BI3: ResiRate | BJ3: TPTot | BK3: TPPupil | BL3: OLAInc | BM3: PPAlloc | BN3: DevCap | BO3: PupilsHT | BP3: FundHT | BQ3: EYPP | BR3: Additional Place | BS3: Total | BV3: total check | BW3: total budget check | BX3: topup check | BZ3: Pupil Number | CF3: DfE | CG3: 2021-22 Top-Up | CH3: 2022-23 Top-Up | CI3: Variance | CM3: 2021-22 | CN3: 2022-23
A4: 7006 | B4: Hamilton School | C4: 120 | D4: 0 | E4: =(C4*10000) -> 1200000 | F4: =D4*10000 -> 0 | I4: =SUM(E4:H4) -> 1200000 | J4: =VLOOKUP($A4,'SP Number per band'!$C:$AA,'DATA SPECIAL'!J$1,FALSE) -> 0 | K4: =VLOOKUP($A4,'SP Number per band'!$C:$AA,'DATA SPECIAL'!K$1,FALSE) -> 0 | L4: =VLOOKUP($A4,'SP Number per band'!$C:$AA,'DATA SPECIAL'!L$1,FALSE) -> 25 | M4: =VLOOKUP($A4,'SP Number per band'!$C:$AA,'DATA SPECIAL'!M$1,FALSE) -> 87 | N4: =VLOOKUP($A4,'SP Number per band'!$C:$AA,'DATA SPECIAL'!N$1,FALSE) -> 0 | O4: =VLOOKUP($A4,'SP Number per band'!$C:$AA,'DATA SPECIAL'!O$1,FALSE) -> 0 | P4: =VLOOKUP($A4,'SP Number per band'!$C:$AA,'DATA SPECIAL'!P$1,FALSE) -> 0 | Q4: =VLOOKUP($A4,'SP Number per band'!$C:$AA,'DATA SPECIAL'!Q$1,FALSE) -> 0 | R4: =VLOOKUP($A4,'SP Number per band'!$C:$AA,'DATA SPECIAL'!R$1,FALSE) -> 0 | S4: =VLOOKUP($A4,'SP Number per band'!$C:$AA,'DATA SPECIAL'!S$1,FALSE) -> 0 | T4: =VLOOKUP($A4,'SP Number per band'!$C:$AA,'DATA SPECIAL'!T$1,FALSE) -> 0 | U4: =VLOOKUP($A4,'SP Number per band'!$C:$AA,'DATA SPECIAL'!U$1,FALSE) -> 0 | V4: =VLOOKUP($A4,'SP Number per band'!$C:$AA,'DATA SPECIAL'!V$1,FALSE) -> 0 | W4: =VLOOKUP($A4,'SP Number per band'!$C:$AA,'DATA SPECIAL'!W$1,FALSE) -> 0 | X4: =VLOOKUP($A4,'SP Number per band'!$C:$AA,'DATA SPECIAL'!X$1,FALSE) -> 0 | Y4: =VLOOKUP($A4,'SP Number per band'!$C:$AA,'DATA SPECIAL'!Y$1,FALSE) -> 0 | Z4: =VLOOKUP($A4,'SP Number per band'!$C:$AA,'DATA SPECIAL'!Z$1,FALSE) -> 0 | AA4: =VLOOKUP($A4,'SP Number per band'!$C:$AA,'DATA SPECIAL'!AA$1,FALSE) -> 0 | AB4: =VLOOKUP($A4,'SP Number per band'!$C:$AA,'DATA SPECIAL'!AB$1,FALSE) -> 0 | AC4: =VLOOKUP($A4,'SP Number per band'!$C:$AA,'DATA SPECIAL'!AC$1,FALSE) -> 0 | AD4: =VLOOKUP($A4,'SP Number per band'!$C:$AA,'DATA SPECIAL'!AD$1,FALSE)+VLOOKUP($A4,'SP Number per band'!$C:$AA,'DATA SPECIAL'!AD$1+2,FALSE) -> 0 | AE4: =SUMIF('SP Number per band'!$C$8:$C$35,'DATA SPECIAL'!$A4,'SP Number per band'!$Y$8:$Y$35) -> 0 | AF4: =_xlfn.XLOOKUP($A4,[2]PupilData!$A:$A,[2]PupilData!AA:AA,0,FALSE) -> 0 | AG4: =J4*J$2 -> 0 | AH4: =K4*K$2 -> 0 | AI4: =L4*L$2 -> 179880.07 | AJ4: =M4*M$2 -> 1126768.759 | AK4: =N4*N$2 -> 0 | AL4: =O4*O$2 -> 0 | AM4: =P4*P$2 -> 0 | AN4: =Q4*Q$2 -> 0 | AO4: =R4*R$2 -> 0 | AP4: =S4*S$2 -> 0 | AQ4: =T4*T$2 -> 0 | AR4: =U4*U$2 -> 0 | AS4: =V4*V$2 -> 0 | AT4: =W4*W$2 -> 0 | AU4: =X4*X$2 -> 0 | AV4: =Y4*Y$2 -> 0 | AW4: =Z4*Z$2 -> 0 | AX4: =AA4*AA$2 -> 0 | AY4: =AB4*AB$2 -> 0 | AZ4: =AC4*AC$2 -> 0 | BA4: =AD4*AD$2 -> 0 | BB4: =BI4*AF4 -> 0 | BC4: =_xlfn.XLOOKUP($A4,'SP 2022-23 Banding, SSF and Tp'!$A$36:$A$63,'SP 2022-23 Banding, SSF and Tp'!$C$36:$C$63,FALSE)*(C4+D4) -> 141287.2841 | BD4: =BK4*(C4+D4) -> 0 | BE4: =SUM(AG4:BD4) -> 1447936.113 | BF4: =+BE4+I4 -> 2647936.113 | BG4: =+BE4-_xlfn.XLOOKUP(A4,[2]Total!$A:$A,[2]Total!$AA:$AA,FALSE) -> 63016.62522 | BH4: =_xlfn.XLOOKUP($A4,'SP 2022-23 Banding, SSF and Tp'!$A$36:$A$63,'SP 2022-23 Banding, SSF and Tp'!$C$36:$C$63,FALSE) -> 1177.394035 | BI4: =_xlfn.XLOOKUP($A4,'SP 2022-23 Banding, SSF and Tp'!$A$36:$A$63,'SP 2022-23 Banding, SSF and Tp'!$F$36:$F$63,FALSE) -> 0 | BJ4: =BD4 -> 0 | BK4: =_xlfn.XLOOKUP($A4,'SP 2022-23 Banding, SSF and Tp'!$A$36:$A$63,'SP 2022-23 Banding, SSF and Tp'!$D$36:$D$63,FALSE) -> 0 | BO4: =_xlfn.XLOOKUP($A4,[2]PupilData!$A:$A,[2]PupilData!$AA:$AA,FALSE)+_xlfn.XLOOKUP($A4,[2]PupilData!$A:$A,[2]PupilData!$AB:$AB,FALSE) -> 0 | BP4: =_xlfn.XLOOKUP($A4,[2]AssesTU!$A:$A,[2]AssesTU!$AA:$AA,FALSE)+_xlfn.XLOOKUP($A4,[2]AssesTU!$A:$A,[2]AssesTU!$AB:$AB,FALSE) -> 0 | BS4: =BE4+BH4+BI4+BJ4+BO4+BP4 -> 1449113.507 | BT4: 7006 | BU4: TRUE | BV4: 42664.28306 | BW4: 40000 | BX4: 2664.283062 | BZ4: =SUM(J4:AE4) -> 112 | CA4: =_xlfn.XLOOKUP(A4,'SP Number per band'!$C$8:$C$35,'SP Number per band'!$AB$8:$AB$35,FALSE) -> 112 | CB4: =CA4-BZ4 -> 0 | CC4: 7006 | CD4: y | CF4: 7006 | CG4: 1384919.488 | CH4: =_xlfn.XLOOKUP(CF4,A:A,BE:BE,FALSE) -> 1447936.113 | CI4: =CG4-CH4 -> -63016.62522 | CK4: 7006 | CL4: Hamilton School | CM4: 1384919.488 | CN4: =_xlfn.XLOOKUP(CK4,$A$4:$A$31,$BE$4:$BE$31,FALSE) -> 1447936.113 | CO4: =CN4-CM4 -> 63016.62522 | CP4: =CO4/CM4 -> 0.0455020135
A5: 7009 | B5: Victoria School | C5: 190 | D5: 38 | E5: 1900000 | F5: 380000 | I5: =SUM(E5:H5) -> 2280000 | J5: =VLOOKUP($A5,'SP Number per band'!$C:$AA,'DATA SPECIAL'!J$1,FALSE) -> 0 | K5: =VLOOKUP($A5,'SP Number per band'!$C:$AA,'DATA SPECIAL'!K$1,FALSE) -> 0 | L5: =VLOOKUP($A5,'SP Number per band'!$C:$AA,'DATA SPECIAL'!L$1,FALSE) -> 2 | M5: =VLOOKUP($A5,'SP Number per band'!$C:$AA,'DATA SPECIAL'!M$1,FALSE) -> 1 | N5: =VLOOKUP($A5,'SP Number per band'!$C:$AA,'DATA SPECIAL'!N$1,FALSE) -> 0 | O5: =VLOOKUP($A5,'SP Number per band'!$C:$AA,'DATA SPECIAL'!O$1,FALSE) -> 5 | P5: =VLOOKUP($A5,'SP Number per band'!$C:$AA,'DATA SPECIAL'!P$1,FALSE) -> 43 | Q5: =VLOOKUP($A5,'SP Number per band'!$C:$AA,'DATA SPECIAL'!Q$1,FALSE) -> 21 | R5: =VLOOKUP($A5,'SP Number per band'!$C:$AA,'DATA SPECIAL'!R$1,FALSE) -> 0 | S5: =VLOOKUP($A5,'SP Number per band'!$C:$AA,'DATA SPECIAL'!S$1,FALSE) -> 0 | T5: =VLOOKUP($A5,'SP Number per band'!$C:$AA,'DATA SPECIAL'!T$1,FALSE) -> 0 | U5: =VLOOKUP($A5,'SP Number per band'!$C:$AA,'DATA SPECIAL'!U$1,FALSE) -> 1 | V5: =VLOOKUP($A5,'SP Number per band'!$C:$AA,'DATA SPECIAL'!V$1,FALSE) -> 0 | W5: =VLOOKUP($A5,'SP Number per band'!$C:$AA,'DATA SPECIAL'!W$1,FALSE) -> 0 | X5: =VLOOKUP($A5,'SP Number per band'!$C:$AA,'DATA SPECIAL'!X$1,FALSE) -> 2 | Y5: =VLOOKUP($A5,'SP Number per band'!$C:$AA,'DATA SPECIAL'!Y$1,FALSE) -> 6 | Z5: =VLOOKUP($A5,'SP Number per band'!$C:$AA,'DATA SPECIAL'!Z$1,FALSE) -> 0 | AA5: =VLOOKUP($A5,'SP Number per band'!$C:$AA,'DATA SPECIAL'!AA$1,FALSE) -> 7 | AB5: =VLOOKUP($A5,'SP Number per band'!$C:$AA,'DATA SPECIAL'!AB$1,FALSE) -> 56 | AC5: =VLOOKUP($A5,'SP Number per band'!$C:$AA,'DATA SPECIAL'!AC$1,FALSE) -> 67 | AD5: =VLOOKUP($A5,'SP Number per band'!$C:$AA,'DATA SPECIAL'!AD$1,FALSE)+VLOOKUP($A5,'SP Number per band'!$C:$AA,'DATA SPECIAL'!AD$1+2,FALSE) -> 0 | AE5: =SUMIF('SP Number per band'!$C$8:$C$35,'DATA SPECIAL'!$A5,'SP Number per band'!$Y$8:$Y$35) -> 0 | AF5: =_xlfn.XLOOKUP($A5,[2]PupilData!$A:$A,[2]PupilData!AA:AA,0,FALSE) -> 0 | AG5: 0 | AH5: 0 | AI5: 14390.4056 | AJ5: 12951.36504 | AK5: 0 | AL5: 3597.601401 | AM5: 154696.8602 | AN5: 241758.8141 | AO5: 0 | AP5: 0 | AQ5: 0 | AR5: 12951.36504 | AS5: 0 | AT5: 0 | AU5: 14390.4056 | AV5: 77708.19026 | AW5: 0 | AX5: 17628.24686 | AY5: 443224.4926 | AZ5: 915949.3166 | BA5: 0 | BB5: 0 | BC5: =_xlfn.XLOOKUP($A5,'SP 2022-23 Banding, SSF and Tp'!$A$36:$A$63,'SP 2022-23 Banding, SSF and Tp'!$C$36:$C$63,FALSE)*(C5+D5) -> 940573.1763 | BD5: =BK5*(C5+D5) -> 33516 | BE5: 2883336.24 | BF5: 5163336.24 | BG5: =+BE5-_xlfn.XLOOKUP(A5,[2]Total!$A:$A,[2]Total!$AA:$AA,FALSE) -> 261989.1946 | BH5: =_xlfn.XLOOKUP($A5,'SP 2022-23 Banding, SSF and Tp'!$A$36:$A$63,'SP 2022-23 Banding, SSF and Tp'!$C$36:$C$63,FALSE) -> 4125.320949 | BI5: =_xlfn.XLOOKUP($A5,'SP 2022-23 Banding, SSF and Tp'!$A$36:$A$63,'SP 2022-23 Banding, SSF and Tp'!$F$36:$F$63,FALSE) -> 0 | BJ5: =BD5 -> 33516 | BK5: =_xlfn.XLOOKUP($A5,'SP 2022-23 Banding, SSF and Tp'!$A$36:$A$63,'SP 2022-23 Banding, SSF and Tp'!$D$36:$D$63,FALSE) -> 147 | BO5: =_xlfn.XLOOKUP($A5,[2]PupilData!$A:$A,[2]PupilData!$AA:$AA,FALSE)+_xlfn.XLOOKUP($A5,[2]PupilData!$A:$A,[2]PupilData!$AB:$AB,FALSE) -> 0 | BP5: =_xlfn.XLOOKUP($A5,[2]AssesTU!$A:$A,[2]AssesTU!$AA:$AA,FALSE)+_xlfn.XLOOKUP($A5,[2]AssesTU!$A:$A,[2]AssesTU!$AB:$AB,FALSE) -> 0 | BS5: =BE5+BH5+BI5+BJ5+BO5+BP5 -> 2920977.561 | BT5: 7009 | BU5: TRUE | BV5: -90149.73739 | BW5: 10000 | BX5: -100149.7374 | BZ5: 211 | CA5: =_xlfn.XLOOKUP(A5,'SP Number per band'!$C$8:$C$35,'SP Number per band'!$AB$8:$AB$35,FALSE) -> 211 | CB5: =CA5-BZ5 -> 0 | CC5: 7009 | CD5: y | CF5: 7009 | CG5: 2621347.045 | CH5: 2883336.24 | CI5: =CG5-CH5 -> -261989.1946 | CK5: 7009 | CL5: Victoria School | CM5: 2621347.045 | CN5: 2883336.24 | CO5: =CN5-CM5 -> 261989.1946 | CP5: =CO5/CM5 -> 0.0999444904
A6: 7012 | B6: Longwill School for the Deaf | C6: 65 | D6: 0 | E6: 650000 | F6: 0 | I6: 650000 | J6: =VLOOKUP($A6,'SP Number per band'!$C:$AA,'DATA SPECIAL'!J$1,FALSE) -> 0 | K6: =VLOOKUP($A6,'SP Number per band'!$C:$AA,'DATA SPECIAL'!K$1,FALSE) -> 0 | L6: =VLOOKUP($A6,'SP Number per band'!$C:$AA,'DATA SPECIAL'!L$1,FALSE) -> 0 | M6: =VLOOKUP($A6,'SP Number per band'!$C:$AA,'DATA SPECIAL'!M$1,FALSE) -> 0 | N6: =VLOOKUP($A6,'SP Number per band'!$C:$AA,'DATA SPECIAL'!N$1,FALSE) -> 0 | O6: =VLOOKUP($A6,'SP Number per band'!$C:$AA,'DATA SPECIAL'!O$1,FALSE) -> 0 | P6: =VLOOKUP($A6,'SP Number per band'!$C:$AA,'DATA SPECIAL'!P$1,FALSE) -> 0 | Q6: =VLOOKUP($A6,'SP Number per band'!$C:$AA,'DATA SPECIAL'!Q$1,FALSE) -> 0 | R6: =VLOOKUP($A6,'SP Number per band'!$C:$AA,'DATA SPECIAL'!R$1,FALSE) -> 0 | S6: =VLOOKUP($A6,'SP Number per band'!$C:$AA,'DATA SPECIAL'!S$1,FALSE) -> 0 | T6: =VLOOKUP($A6,'SP Number per band'!$C:$AA,'DATA SPECIAL'!T$1,FALSE) -> 0 | U6: =VLOOKUP($A6,'SP Number per band'!$C:$AA,'DATA SPECIAL'!U$1,FALSE) -> 0 | V6: =VLOOKUP($A6,'SP Number per band'!$C:$AA,'DATA SPECIAL'!V$1,FALSE) -> 0 | W6: =VLOOKUP($A6,'SP Number per band'!$C:$AA,'DATA SPECIAL'!W$1,FALSE) -> 0 | X6: =VLOOKUP($A6,'SP Number per band'!$C:$AA,'DATA SPECIAL'!X$1,FALSE) -> 35 | Y6: =VLOOKUP($A6,'SP Number per band'!$C:$AA,'DATA SPECIAL'!Y$1,FALSE) -> 11 | Z6: =VLOOKUP($A6,'SP Number per band'!$C:$AA,'DATA SPECIAL'!Z$1,FALSE) -> 0 | AA6: =VLOOKUP($A6,'SP Number per band'!$C:$AA,'DATA SPECIAL'!AA$1,FALSE) -> 0 | AB6: =VLOOKUP($A6,'SP Number per band'!$C:$AA,'DATA SPECIAL'!AB$1,FALSE) -> 0 | AC6: =VLOOKUP($A6,'SP Number per band'!$C:$AA,'DATA SPECIAL'!AC$1,FALSE) -> 1 | AD6: =VLOOKUP($A6,'SP Number per band'!$C:$AA,'DATA SPECIAL'!AD$1,FALSE)+VLOOKUP($A6,'SP Number per band'!$C:$AA,'DATA SPECIAL'!AD$1+2,FALSE) -> 0 | AE6: =SUMIF('SP Number per band'!$C$8:$C$35,'DATA SPECIAL'!$A6,'SP Number per band'!$Y$8:$Y$35) -> 0 | AF6: =_xlfn.XLOOKUP($A6,[2]PupilData!$A:$A,[2]PupilData!AA:AA,0,FALSE) -> 0 | AG6: 0 | AH6: 0 | AI6: 0 | AJ6: 0 | AK6: 0 | AL6: 0 | AM6: 0 | AN6: 0 | AO6: 0 | AP6: 0 | AQ6: 0 | AR6: 0 | AS6: 0 | AT6: 0 | AU6: 251832.0981 | AV6: 142465.0155 | AW6: 0 | AX6: 0 | AY6: 0 | AZ6: 13670.88532 | BA6: 0 | BB6: 0 | BC6: =_xlfn.XLOOKUP($A6,'SP 2022-23 Banding, SSF and Tp'!$A$36:$A$63,'SP 2022-23 Banding, SSF and Tp'!$C$36:$C$63,FALSE)*(C6+D6) -> 358058.6081 | BD6: 0 | BE6: 766026.6069 | BF6: 1416026.607 | BG6: =+BE6-_xlfn.XLOOKUP(A6,[2]Total!$A:$A,[2]Total!$AA:$AA,FALSE) -> 267456.0863 | BH6: =_xlfn.XLOOKUP($A6,'SP 2022-23 Banding, SSF and Tp'!$A$36:$A$63,'SP 2022-23 Banding, SSF and Tp'!$C$36:$C$63,FALSE) -> 5508.59397 | BI6: =_xlfn.XLOOKUP($A6,'SP 2022-23 Banding, SSF and Tp'!$A$36:$A$63,'SP 2022-23 Banding, SSF and Tp'!$F$36:$F$63,FALSE) -> 0 | BJ6: 0 | BK6: =_xlfn.XLOOKUP($A6,'SP 2022-23 Banding, SSF and Tp'!$A$36:$A$63,'SP 2022-23 Banding, SSF and Tp'!$D$36:$D$63,FALSE) -> 0 | BO6: =_xlfn.XLOOKUP($A6,[2]PupilData!$A:$A,[2]PupilData!$AA:$AA,FALSE)+_xlfn.XLOOKUP($A6,[2]PupilData!$A:$A,[2]PupilData!$AB:$AB,FALSE) -> 0 | BP6: =_xlfn.XLOOKUP($A6,[2]AssesTU!$A:$A,[2]AssesTU!$AA:$AA,FALSE)+_xlfn.XLOOKUP($A6,[2]AssesTU!$A:$A,[2]AssesTU!$AB:$AB,FALSE) -> 0 | BS6: 771535.2009 | BT6: 7012 | BU6: TRUE | BV6: 96345.65902 | BW6: 80000 | BX6: 16345.65902 | BZ6: 47 | CA6: =_xlfn.XLOOKUP(A6,'SP Number per band'!$C$8:$C$35,'SP Number per band'!$AB$8:$AB$35,FALSE) -> 47 | CB6: 0 | CC6: 7012 | CD6: y | CF6: 7012 | CG6: 498570.5206 | CH6: 766026.6069 | CI6: -267456.0863 | CK6: 7012 | CL6: Longwill School for the Deaf | CM6: 498570.5206 | CN6: 766026.6069 | CO6: 267456.0863 | CP6: 0.5364458492
A7: 7013 | B7: Calthorpe School | C7: 377 | D7: 53 | E7: 3770000 | F7: 530000 | I7: 4300000 | J7: =VLOOKUP($A7,'SP Number per band'!$C:$AA,'DATA SPECIAL'!J$1,FALSE) -> 0 | K7: =VLOOKUP($A7,'SP Number per band'!$C:$AA,'DATA SPECIAL'!K$1,FALSE) -> 0 | L7: =VLOOKUP($A7,'SP Number per band'!$C:$AA,'DATA SPECIAL'!L$1,FALSE) -> 88 | M7: =VLOOKUP($A7,'SP Number per band'!$C:$AA,'DATA SPECIAL'!M$1,FALSE) -> 128 | N7: =VLOOKUP($A7,'SP Number per band'!$C:$AA,'DATA SPECIAL'!N$1,FALSE) -> 0 | O7: =VLOOKUP($A7,'SP Number per band'!$C:$AA,'DATA SPECIAL'!O$1,FALSE) -> 0 | P7: =VLOOKUP($A7,'SP Number per band'!$C:$AA,'DATA SPECIAL'!P$1,FALSE) -> 74 | Q7: =VLOOKUP($A7,'SP Number per band'!$C:$AA,'DATA SPECIAL'!Q$1,FALSE) -> 47 | R7: =VLOOKUP($A7,'SP Number per band'!$C:$AA,'DATA SPECIAL'!R$1,FALSE) -> 0 | S7: =VLOOKUP($A7,'SP Number per band'!$C:$AA,'DATA SPECIAL'!S$1,FALSE) -> 0 | T7: =VLOOKUP($A7,'SP Number per band'!$C:$AA,'DATA SPECIAL'!T$1,FALSE) -> 3 | U7: =VLOOKUP($A7,'SP Number per band'!$C:$AA,'DATA SPECIAL'!U$1,FALSE) -> 12 | V7: =VLOOKUP($A7,'SP Number per band'!$C:$AA,'DATA SPECIAL'!V$1,FALSE) -> 0 | W7: =VLOOKUP($A7,'SP Number per band'!$C:$AA,'DATA SPECIAL'!W$1,FALSE) -> 0 | X7: =VLOOKUP($A7,'SP Number per band'!$C:$AA,'DATA SPECIAL'!X$1,FALSE) -> 1 | Y7: =VLOOKUP($A7,'SP Number per band'!$C:$AA,'DATA SPECIAL'!Y$1,FALSE) -> 8 | Z7: =VLOOKUP($A7,'SP Number per band'!$C:$AA,'DATA SPECIAL'!Z$1,FALSE) -> 0 | AA7: =VLOOKUP($A7,'SP Number per band'!$C:$AA,'DATA SPECIAL'!AA$1,FALSE) -> 0 | AB7: =VLOOKUP($A7,'SP Number per band'!$C:$AA,'DATA SPECIAL'!AB$1,FALSE) -> 7 | AC7: =VLOOKUP($A7,'SP Number per band'!$C:$AA,'DATA SPECIAL'!AC$1,FALSE) -> 56 | AD7: =VLOOKUP($A7,'SP Number per band'!$C:$AA,'DATA SPECIAL'!AD$1,FALSE)+VLOOKUP($A7,'SP Number per band'!$C:$AA,'DATA SPECIAL'!AD$1+2,FALSE) -> 0 | AE7: =SUMIF('SP Number per band'!$C$8:$C$35,'DATA SPECIAL'!$A7,'SP Number per band'!$Y$8:$Y$35) -> 0 | AF7: =_xlfn.XLOOKUP($A7,[2]PupilData!$A:$A,[2]PupilData!AA:AA,0,FALSE) -> 0 | AG7: 0 | AH7: 0 | AI7: 633177.8465 | AJ7: 1657774.725 | AK7: 0 | AL7: 0 | AM7: 266222.5037 | AN7: 541079.2507 | AO7: 0 | AP7: 0 | AQ7: 21585.6084 | AR7: 155416.3805 | AS7: 0 | AT7: 0 | AU7: 7195.202802 | AV7: 103610.9203 | AW7: 0 | AX7: 0 | AY7: 55403.06157 | AZ7: 765569.5781 | BA7: 0 | BB7: 0 | BC7: =_xlfn.XLOOKUP($A7,'SP 2022-23 Banding, SSF and Tp'!$A$36:$A$63,'SP 2022-23 Banding, SSF and Tp'!$C$36:$C$63,FALSE)*(C7+D7) -> 1001647.059 | BD7: 3010 | BE7: 5211692.137 | BF7: 9511692.137 | BG7: =+BE7-_xlfn.XLOOKUP(A7,[2]Total!$A:$A,[2]Total!$AA:$AA,FALSE) -> 572395.5707 | BH7: =_xlfn.XLOOKUP($A7,'SP 2022-23 Banding, SSF and Tp'!$A$36:$A$63,'SP 2022-23 Banding, SSF and Tp'!$C$36:$C$63,FALSE) -> 2329.411765 | BI7: =_xlfn.XLOOKUP($A7,'SP 2022-23 Banding, SSF and Tp'!$A$36:$A$63,'SP 2022-23 Banding, SSF and Tp'!$F$36:$F$63,FALSE) -> 0 | BJ7: 3010 | BK7: =_xlfn.XLOOKUP($A7,'SP 2022-23 Banding, SSF and Tp'!$A$36:$A$63,'SP 2022-23 Banding, SSF and Tp'!$D$36:$D$63,FALSE) -> 7 | BO7: =_xlfn.XLOOKUP($A7,[2]PupilData!$A:$A,[2]PupilData!$AA:$AA,FALSE)+_xlfn.XLOOKUP($A7,[2]PupilData!$A:$A,[2]PupilData!$AB:$AB,FALSE) -> 0 | BP7: =_xlfn.XLOOKUP($A7,[2]AssesTU!$A:$A,[2]AssesTU!$AA:$AA,FALSE)+_xlfn.XLOOKUP($A7,[2]AssesTU!$A:$A,[2]AssesTU!$AB:$AB,FALSE) -> 0 | BS7: 5217031.549 | BT7: 7013 | BU7: TRUE | BV7: -92684.68447 | BW7: -30000 | BX7: -62684.68447 | BZ7: 424 | CA7: =_xlfn.XLOOKUP(A7,'SP Number per band'!$C$8:$C$35,'SP Number per band'!$AB$8:$AB$35,FALSE) -> 424 | CB7: 0 | CC7: 7013 | CD7: y | CF7: 7013 | CG7: 4639296.566 | CH7: 5211692.137 | CI7: -572395.5707 | CK7: 7013 | CL7: Calthorpe School | CM7: 4639296.566 | CN7: 5211692.137 | CO7: 572395.5707 | CP7: 0.123379819
A8: 7014 | B8: Uffculme School | C8: 226 | D8: 25 | E8: 2260000 | F8: 250000 | I8: 2510000 | J8: =VLOOKUP($A8,'SP Number per band'!$C:$AA,'DATA SPECIAL'!J$1,FALSE) -> 0 | K8: =VLOOKUP($A8,'SP Number per band'!$C:$AA,'DATA SPECIAL'!K$1,FALSE) -> 1 | L8: =VLOOKUP($A8,'SP Number per band'!$C:$AA,'DATA SPECIAL'!L$1,FALSE) -> 119 | M8: =VLOOKUP($A8,'SP Number per band'!$C:$AA,'DATA SPECIAL'!M$1,FALSE) -> 120 | N8: =VLOOKUP($A8,'SP Number per band'!$C:$AA,'DATA SPECIAL'!N$1,FALSE) -> 0 | O8: =VLOOKUP($A8,'SP Number per band'!$C:$AA,'DATA SPECIAL'!O$1,FALSE) -> 0 | P8: =VLOOKUP($A8,'SP Number per band'!$C:$AA,'DATA SPECIAL'!P$1,FALSE) -> 1 | Q8: =VLOOKUP($A8,'SP Number per band'!$C:$AA,'DATA SPECIAL'!Q$1,FALSE) -> 0 | R8: =VLOOKUP($A8,'SP Number per band'!$C:$AA,'DATA SPECIAL'!R$1,FALSE) -> 0 | S8: =VLOOKUP($A8,'SP Number per band'!$C:$AA,'DATA SPECIAL'!S$1,FALSE) -> 0 | T8: =VLOOKUP($A8,'SP Number per band'!$C:$AA,'DATA SPECIAL'!T$1,FALSE) -> 0 | U8: =VLOOKUP($A8,'SP Number per band'!$C:$AA,'DATA SPECIAL'!U$1,FALSE) -> 0 | V8: =VLOOKUP($A8,'SP Number per band'!$C:$AA,'DATA SPECIAL'!V$1,FALSE) -> 0 | W8: =VLOOKUP($A8,'SP Number per band'!$C:$AA,'DATA SPECIAL'!W$1,FALSE) -> 0 | X8: =VLOOKUP($A8,'SP Number per band'!$C:$AA,'DATA SPECIAL'!X$1,FALSE) -> 0 | Y8: =VLOOKUP($A8,'SP Number per band'!$C:$AA,'DATA SPECIAL'!Y$1,FALSE) -> 0 | Z8: =VLOOKUP($A8,'SP Number per band'!$C:$AA,'DATA SPECIAL'!Z$1,FALSE) -> 0 | AA8: =VLOOKUP($A8,'SP Number per band'!$C:$AA,'DATA SPECIAL'!AA$1,FALSE) -> 0 | AB8: =VLOOKUP($A8,'SP Number per band'!$C:$AA,'DATA SPECIAL'!AB$1,FALSE) -> 0 | AC8: =VLOOKUP($A8,'SP Number per band'!$C:$AA,'DATA SPECIAL'!AC$1,FALSE) -> 0 | AD8: =VLOOKUP($A8,'SP Number per band'!$C:$AA,'DATA SPECIAL'!AD$1,FALSE)+VLOOKUP($A8,'SP Number per band'!$C:$AA,'DATA SPECIAL'!AD$1+2,FALSE) -> 0 | AE8: =SUMIF('SP Number per band'!$C$8:$C$35,'DATA SPECIAL'!$A8,'SP Number per band'!$Y$8:$Y$35) -> 0 | AF8: =_xlfn.XLOOKUP($A8,[2]PupilData!$A:$A,[2]PupilData!AA:AA,0,FALSE) -> 0 | AG8: 0 | AH8: 2158.56084 | AI8: 856229.1334 | AJ8: 1554163.805 | AK8: 0 | AL8: 0 | AM8: 3597.601401 | AN8: 0 | AO8: 0 | AP8: 0 | AQ8: 0 | AR8: 0 | AS8: 0 | AT8: 0 | AU8: 0 | AV8: 0 | AW8: 0 | AX8: 0 | AY8: 0 | AZ8: 0 | BA8: 0 | BB8: 0 | BC8: =_xlfn.XLOOKUP($A8,'SP 2022-23 Banding, SSF and Tp'!$A$36:$A$63,'SP 2022-23 Banding, SSF and Tp'!$C$36:$C$63,FALSE)*(C8+D8) -> 507947.6962 | BD8: 57981 | BE8: 2982077.797 | BF8: 5492077.797 | BG8: =+BE8-_xlfn.XLOOKUP(A8,[2]Total!$A:$A,[2]Total!$AA:$AA,FALSE) -> 332229.735 | BH8: =_xlfn.XLOOKUP($A8,'SP 2022-23 Banding, SSF and Tp'!$A$36:$A$63,'SP 2022-23 Banding, SSF and Tp'!$C$36:$C$63,FALSE) -> 2023.696001 | BI8: =_xlfn.XLOOKUP($A8,'SP 2022-23 Banding, SSF and Tp'!$A$36:$A$63,'SP 2022-23 Banding, SSF and Tp'!$F$36:$F$63,FALSE) -> 0 | BJ8: 57981 | BK8: =_xlfn.XLOOKUP($A8,'SP 2022-23 Banding, SSF and Tp'!$A$36:$A$63,'SP 2022-23 Banding, SSF and Tp'!$D$36:$D$63,FALSE) -> 231 | BO8: =_xlfn.XLOOKUP($A8,[2]PupilData!$A:$A,[2]PupilData!$AA:$AA,FALSE)+_xlfn.XLOOKUP($A8,[2]PupilData!$A:$A,[2]PupilData!$AB:$AB,FALSE) -> 0 | BP8: =_xlfn.XLOOKUP($A8,[2]AssesTU!$A:$A,[2]AssesTU!$AA:$AA,FALSE)+_xlfn.XLOOKUP($A8,[2]AssesTU!$A:$A,[2]AssesTU!$AB:$AB,FALSE) -> 0 | BS8: 3042082.493 | BT8: 7014 | BU8: TRUE | BV8: -369503.3707 | BW8: -160000 | BX8: -209503.3707 | BZ8: 241 | CA8: =_xlfn.XLOOKUP(A8,'SP Number per band'!$C$8:$C$35,'SP Number per band'!$AB$8:$AB$35,FALSE) -> 241 | CB8: 0 | CC8: 7014 | CD8: y | CF8: 7014 | CG8: 2649848.062 | CH8: 2982077.797 | CI8: -332229.735 | CK8: 7014 | CL8: Uffculme School | CM8: 2649848.062 | CN8: 2982077.797 | CO8: 332229.735 | CP8: 0.1253768998
A9: 7016 | B9: Baskerville | C9: 100 | D9: 62 | E9: 1000000 | F9: 620000 | I9: 1620000 | J9: =VLOOKUP($A9,'SP Number per band'!$C:$AA,'DATA SPECIAL'!J$1,FALSE) -> 0 | K9: =VLOOKUP($A9,'SP Number per band'!$C:$AA,'DATA SPECIAL'!K$1,FALSE) -> 0 | L9: =VLOOKUP($A9,'SP Number per band'!$C:$AA,'DATA SPECIAL'!L$1,FALSE) -> 65 | M9: =VLOOKUP($A9,'SP Number per band'!$C:$AA,'DATA SPECIAL'!M$1,FALSE) -> 89 | N9: =VLOOKUP($A9,'SP Number per band'!$C:$AA,'DATA SPECIAL'!N$1,FALSE) -> 0 | O9: =VLOOKUP($A9,'SP Number per band'!$C:$AA,'DATA SPECIAL'!O$1,FALSE) -> 0 | P9: =VLOOKUP($A9,'SP Number per band'!$C:$AA,'DATA SPECIAL'!P$1,FALSE) -> 0 | Q9: =VLOOKUP($A9,'SP Number per band'!$C:$AA,'DATA SPECIAL'!Q$1,FALSE) -> 0 | R9: =VLOOKUP($A9,'SP Number per band'!$C:$AA,'DATA SPECIAL'!R$1,FALSE) -> 0 | S9: =VLOOKUP($A9,'SP Number per band'!$C:$AA,'DATA SPECIAL'!S$1,FALSE) -> 0 | T9: =VLOOKUP($A9,'SP Number per band'!$C:$AA,'DATA SPECIAL'!T$1,FALSE) -> 2 | U9: =VLOOKUP($A9,'SP Number per band'!$C:$AA,'DATA SPECIAL'!U$1,FALSE) -> 1 | V9: =VLOOKUP($A9,'SP Number per band'!$C:$AA,'DATA SPECIAL'!V$1,FALSE) -> 0 | W9: =VLOOKUP($A9,'SP Number per band'!$C:$AA,'DATA SPECIAL'!W$1,FALSE) -> 0 | X9: =VLOOKUP($A9,'SP Number per band'!$C:$AA,'DATA SPECIAL'!X$1,FALSE) -> 0 | Y9: =VLOOKUP($A9,'SP Number per band'!$C:$AA,'DATA SPECIAL'!Y$1,FALSE) -> 0 | Z9: =VLOOKUP($A9,'SP Number per band'!$C:$AA,'DATA SPECIAL'!Z$1,FALSE) -> 0 | AA9: =VLOOKUP($A9,'SP Number per band'!$C:$AA,'DATA SPECIAL'!AA$1,FALSE) -> 0 | AB9: =VLOOKUP($A9,'SP Number per band'!$C:$AA,'DATA SPECIAL'!AB$1,FALSE) -> 0 | AC9: =VLOOKUP($A9,'SP Number per band'!$C:$AA,'DATA SPECIAL'!AC$1,FALSE) -> 0 | AD9: =VLOOKUP($A9,'SP Number per band'!$C:$AA,'DATA SPECIAL'!AD$1,FALSE)+VLOOKUP($A9,'SP Number per band'!$C:$AA,'DATA SPECIAL'!AD$1+2,FALSE) -> 0 | AE9: =SUMIF('SP Number per band'!$C$8:$C$35,'DATA SPECIAL'!$A9,'SP Number per band'!$Y$8:$Y$35) -> 0 | AF9: 18 | AG9: 0 | AH9: 0 | AI9: 467688.1821 | AJ9: 1152671.489 | AK9: 0 | AL9: 0 | AM9: 0 | AN9: 0 | AO9: 0 | AP9: 0 | AQ9: 14390.4056 | AR9: 12951.36504 | AS9: 0 | AT9: 0 | AU9: 0 | AV9: 0 | AW9: 0 | AX9: 0 | AY9: 0 | AZ9: 0 | BA9: 0 | BB9: 863141.1198 | BC9: =_xlfn.XLOOKUP($A9,'SP 2022-23 Banding, SSF and Tp'!$A$36:$A$63,'SP 2022-23 Banding, SSF and Tp'!$C$36:$C$63,FALSE)*(C9+D9) -> 431863.06 | BD9: 413424 | BE9: 3356129.621 | BF9: 4976129.621 | BG9: =+BE9-_xlfn.XLOOKUP(A9,[2]Total!$A:$A,[2]Total!$AA:$AA,FALSE) -> 274569.9141 | BH9: =_xlfn.XLOOKUP($A9,'SP 2022-23 Banding, SSF and Tp'!$A$36:$A$63,'SP 2022-23 Banding, SSF and Tp'!$C$36:$C$63,FALSE) -> 2665.821358 | BI9: =_xlfn.XLOOKUP($A9,'SP 2022-23 Banding, SSF and Tp'!$A$36:$A$63,'SP 2022-23 Banding, SSF and Tp'!$F$36:$F$63,FALSE) -> 47952.28443 | BJ9: 413424 | BK9: =_xlfn.XLOOKUP($A9,'SP 2022-23 Banding, SSF and Tp'!$A$36:$A$63,'SP 2022-23 Banding, SSF and Tp'!$D$36:$D$63,FALSE) -> 2552 | BO9: =_xlfn.XLOOKUP($A9,[2]PupilData!$A:$A,[2]PupilData!$AA:$AA,FALSE)+_xlfn.XLOOKUP($A9,[2]PupilData!$A:$A,[2]PupilData!$AB:$AB,FALSE) -> 0 | BP9: =_xlfn.XLOOKUP($A9,[2]AssesTU!$A:$A,[2]AssesTU!$AA:$AA,FALSE)+_xlfn.XLOOKUP($A9,[2]AssesTU!$A:$A,[2]AssesTU!$AB:$AB,FALSE) -> 0 | BS9: 3820171.727 | BT9: 7016 | BU9: TRUE | BV9: -390643.7142 | BW9: -160000 | BX9: -230643.7142 | BZ9: 157 | CA9: =_xlfn.XLOOKUP(A9,'SP Number per band'!$C$8:$C$35,'SP Number per band'!$AB$8:$AB$35,FALSE) -> 157 | CB9: 0 | CC9: 7016 | CD9: y | CF9: 7016 | CG9: 3081559.707 | CH9: 3356129.621 | CI9: -274569.9141 | CK9: 7016 | CL9: Baskerville | CM9: 3081559.707 | CN9: 3356129.621 | CO9: 274569.9141 | CP9: 0.08910095543
A10: 7000 | B10: HALLMOOR Spcl | C10: 206 | D10: 56 | E10: 2060000 | F10: 560000 | I10: 2620000 | J10: =VLOOKUP($A10,'SP Number per band'!$C:$AA,'DATA SPECIAL'!J$1,FALSE) -> 0 | K10: =VLOOKUP($A10,'SP Number per band'!$C:$AA,'DATA SPECIAL'!K$1,FALSE) -> 18 | L10: =VLOOKUP($A10,'SP Number per band'!$C:$AA,'DATA SPECIAL'!L$1,FALSE) -> 49 | M10: =VLOOKUP($A10,'SP Number per band'!$C:$AA,'DATA SPECIAL'!M$1,FALSE) -> 27 | N10: =VLOOKUP($A10,'SP Number per band'!$C:$AA,'DATA SPECIAL'!N$1,FALSE) -> 0 | O10: =VLOOKUP($A10,'SP Number per band'!$C:$AA,'DATA SPECIAL'!O$1,FALSE) -> 63 | P10: =VLOOKUP($A10,'SP Number per band'!$C:$AA,'DATA SPECIAL'!P$1,FALSE) -> 84 | Q10: =VLOOKUP($A10,'SP Number per band'!$C:$AA,'DATA SPECIAL'!Q$1,FALSE) -> 5 | R10: =VLOOKUP($A10,'SP Number per band'!$C:$AA,'DATA SPECIAL'!R$1,FALSE) -> 0 | S10: =VLOOKUP($A10,'SP Number per band'!$C:$AA,'DATA SPECIAL'!S$1,FALSE) -> 1 | T10: =VLOOKUP($A10,'SP Number per band'!$C:$AA,'DATA SPECIAL'!T$1,FALSE) -> 3 | U10: =VLOOKUP($A10,'SP Number per band'!$C:$AA,'DATA SPECIAL'!U$1,FALSE) -> 2 | V10: =VLOOKUP($A10,'SP Number per band'!$C:$AA,'DATA SPECIAL'!V$1,FALSE) -> 0 | W10: =VLOOKUP($A10,'SP Number per band'!$C:$AA,'DATA SPECIAL'!W$1,FALSE) -> 0 | X10: =VLOOKUP($A10,'SP Number per band'!$C:$AA,'DATA SPECIAL'!X$1,FALSE) -> 1 | Y10: =VLOOKUP($A10,'SP Number per band'!$C:$AA,'DATA SPECIAL'!Y$1,FALSE) -> 1 | Z10: =VLOOKUP($A10,'SP Number per band'!$C:$AA,'DATA SPECIAL'!Z$1,FALSE) -> 0 | AA10: =VLOOKUP($A10,'SP Number per band'!$C:$AA,'DATA SPECIAL'!AA$1,FALSE) -> 2 | AB10: =VLOOKUP($A10,'SP Number per band'!$C:$AA,'DATA SPECIAL'!AB$1,FALSE) -> 3 | AC10: =VLOOKUP($A10,'SP Number per band'!$C:$AA,'DATA SPECIAL'!AC$1,FALSE) -> 0 | AD10: =VLOOKUP($A10,'SP Number per band'!$C:$AA,'DATA SPECIAL'!AD$1,FALSE)+VLOOKUP($A10,'SP Number per band'!$C:$AA,'DATA SPECIAL'!AD$1+2,FALSE) -> 0 | AE10: =SUMIF('SP Number per band'!$C$8:$C$35,'DATA SPECIAL'!$A10,'SP Number per band'!$Y$8:$Y$35) -> 0 | AF10: =_xlfn.XLOOKUP($A10,[2]PupilData!$A:$A,[2]PupilData!AA:AA,0,FALSE) -> 0 | AG10: 0 | AH10: 38854.09513 | AI10: 352564.9373 | AJ10: 349686.8562 | AK10: 0 | AL10: 45329.77765 | AM10: 302198.5177 | AN10: 57561.62241 | AO10: 0 | AP10: 2158.56084 | AQ10: 21585.6084 | AR10: 25902.73009 | AS10: 0 | AT10: 0 | AU10: 7195.202802 | AV10: 12951.36504 | AW10: 0 | AX10: 5036.641961 | AY10: 23744.16925 | AZ10: 0 | BA10: 0 | BB10: 0 | BC10: =_xlfn.XLOOKUP($A10,'SP 2022-23 Banding, SSF and Tp'!$A$36:$A$63,'SP 2022-23 Banding, SSF and Tp'!$C$36:$C$63,FALSE)*(C10+D10) -> 421710.314 | BD10: 17554 | BE10: 1684034.399 | BF10: 4304034.399 | BG10: =+BE10-_xlfn.XLOOKUP(A10,[2]Total!$A:$A,[2]Total!$AA:$AA,FALSE) -> 152224.4472 | BH10: =_xlfn.XLOOKUP($A10,'SP 2022-23 Banding, SSF and Tp'!$A$36:$A$63,'SP 2022-23 Banding, SSF and Tp'!$C$36:$C$63,FALSE) -> 1609.581351 | BI10: =_xlfn.XLOOKUP($A10,'SP 2022-23 Banding, SSF and Tp'!$A$36:$A$63,'SP 2022-23 Banding, SSF and Tp'!$F$36:$F$63,FALSE) -> 0 | BJ10: 17554 | BK10: =_xlfn.XLOOKUP($A10,'SP 2022-23 Banding, SSF and Tp'!$A$36:$A$63,'SP 2022-23 Banding, SSF and Tp'!$D$36:$D$63,FALSE) -> 67 | BO10: =_xlfn.XLOOKUP($A10,[2]PupilData!$A:$A,[2]PupilData!$AA:$AA,FALSE)+_xlfn.XLOOKUP($A10,[2]PupilData!$A:$A,[2]PupilData!$AB:$AB,FALSE) -> 0 | BP10: =_xlfn.XLOOKUP($A10,[2]AssesTU!$A:$A,[2]AssesTU!$AA:$AA,FALSE)+_xlfn.XLOOKUP($A10,[2]AssesTU!$A:$A,[2]AssesTU!$AB:$AB,FALSE) -> 0 | BS10: 1703197.98 | BT10: 7000 | BU10: TRUE | BV10: -190036.4391 | BW10: 0 | BX10: -190036.4391 | BZ10: 259 | CA10: =_xlfn.XLOOKUP(A10,'SP Number per band'!$C$8:$C$35,'SP Number per band'!$AB$8:$AB$35,FALSE) -> 259 | CB10: 0 | CC10: 7000 | CD10: y | CF10: 7000 | CG10: 1531809.951 | CH10: 1684034.399 | CI10: -152224.4472 | CK10: 7026 | CL10: Hunters Hill Technology College | CO10: 0
A11: 7030 | B11: Braidwood School | C11: 52 | D11: 19 | E11: 520000 | F11: 190000 | I11: 710000 | J11: =VLOOKUP($A11,'SP Number per band'!$C:$AA,'DATA SPECIAL'!J$1,FALSE) -> 0 | K11: =VLOOKUP($A11,'SP Number per band'!$C:$AA,'DATA SPECIAL'!K$1,FALSE) -> 0 | L11: =VLOOKUP($A11,'SP Number per band'!$C:$AA,'DATA SPECIAL'!L$1,FALSE) -> 0 | M11: =VLOOKUP($A11,'SP Number per band'!$C:$AA,'DATA SPECIAL'!M$1,FALSE) -> 0 | N11: =VLOOKUP($A11,'SP Number per band'!$C:$AA,'DATA SPECIAL'!N$1,FALSE) -> 0 | O11: =VLOOKUP($A11,'SP Number per band'!$C:$AA,'DATA SPECIAL'!O$1,FALSE) -> 0 | P11: =VLOOKUP($A11,'SP Number per band'!$C:$AA,'DATA SPECIAL'!P$1,FALSE) -> 0 | Q11: =VLOOKUP($A11,'SP Number per band'!$C:$AA,'DATA SPECIAL'!Q$1,FALSE) -> 0 | R11: =VLOOKUP($A11,'SP Number per band'!$C:$AA,'DATA SPECIAL'!R$1,FALSE) -> 0 | S11: =VLOOKUP($A11,'SP Number per band'!$C:$AA,'DATA SPECIAL'!S$1,FALSE) -> 0 | T11: =VLOOKUP($A11,'SP Number per band'!$C:$AA,'DATA SPECIAL'!T$1,FALSE) -> 0 | U11: =VLOOKUP($A11,'SP Number per band'!$C:$AA,'DATA SPECIAL'!U$1,FALSE) -> 0 | V11: =VLOOKUP($A11,'SP Number per band'!$C:$AA,'DATA SPECIAL'!V$1,FALSE) -> 0 | W11: =VLOOKUP($A11,'SP Number per band'!$C:$AA,'DATA SPECIAL'!W$1,FALSE) -> 1 | X11: =VLOOKUP($A11,'SP Number per band'!$C:$AA,'DATA SPECIAL'!X$1,FALSE) -> 18 | Y11: =VLOOKUP($A11,'SP Number per band'!$C:$AA,'DATA SPECIAL'!Y$1,FALSE) -> 14 | Z11: =VLOOKUP($A11,'SP Number per band'!$C:$AA,'DATA SPECIAL'!Z$1,FALSE) -> 0 | AA11: =VLOOKUP($A11,'SP Number per band'!$C:$AA,'DATA SPECIAL'!AA$1,FALSE) -> 0 | AB11: =VLOOKUP($A11,'SP Number per band'!$C:$AA,'DATA SPECIAL'!AB$1,FALSE) -> 0 | AC11: =VLOOKUP($A11,'SP Number per band'!$C:$AA,'DATA SPECIAL'!AC$1,FALSE) -> 0 | AD11: =VLOOKUP($A11,'SP Number per band'!$C:$AA,'DATA SPECIAL'!AD$1,FALSE)+VLOOKUP($A11,'SP Number per band'!$C:$AA,'DATA SPECIAL'!AD$1+2,FALSE) -> 0 | AE11: =SUMIF('SP Number per band'!$C$8:$C$35,'DATA SPECIAL'!$A11,'SP Number per band'!$Y$8:$Y$35) -> 0 | AF11: =_xlfn.XLOOKUP($A11,[2]PupilData!$A:$A,[2]PupilData!AA:AA,0,FALSE) -> 0 | AG11: 0 | AH11: 0 | AI11: 0 | AJ11: 0 | AK11: 0 | AL11: 0 | AM11: 0 | AN11: 0 | AO11: 0 | AP11: 0 | AQ11: 0 | AR11: 0 | AS11: 0 | AT11: 2158.56084 | AU11: 129513.6504 | AV11: 181319.1106 | AW11: 0 | AX11: 0 | AY11: 0 | AZ11: 0 | BA11: 0 | BB11: 0 | BC11: =_xlfn.XLOOKUP($A11,'SP 2022-23 Banding, SSF and Tp'!$A$36:$A$63,'SP 2022-23 Banding, SSF and Tp'!$C$36:$C$63,FALSE)*(C11+D11) -> 542419.7143 | BD11: 0 | BE11: 855411.0362 | BF11: 1565411.036 | BG11: =+BE11-_xlfn.XLOOKUP(A11,[2]Total!$A:$A,[2]Total!$AA:$AA,FALSE) -> 243642.288 | BH11: =_xlfn.XLOOKUP($A11,'SP 2022-23 Banding, SSF and Tp'!$A$36:$A$63,'SP 2022-23 Banding, SSF and Tp'!$C$36:$C$63,FALSE) -> 7639.714286 | BI11: =_xlfn.XLOOKUP($A11,'SP 2022-23 Banding, SSF and Tp'!$A$36:$A$63,'SP 2022-23 Banding, SSF and Tp'!$F$36:$F$63,FALSE) -> 0 | BJ11: 0 | BK11: =_xlfn.XLOOKUP($A11,'SP 2022-23 Banding, SSF and Tp'!$A$36:$A$63,'SP 2022-23 Banding, SSF and Tp'!$D$36:$D$63,FALSE) -> 0 | BO11: =_xlfn.XLOOKUP($A11,[2]PupilData!$A:$A,[2]PupilData!$AA:$AA,FALSE)+_xlfn.XLOOKUP($A11,[2]PupilData!$A:$A,[2]PupilData!$AB:$AB,FALSE) -> 0 | BP11: =_xlfn.XLOOKUP($A11,[2]AssesTU!$A:$A,[2]AssesTU!$AA:$AA,FALSE)+_xlfn.XLOOKUP($A11,[2]AssesTU!$A:$A,[2]AssesTU!$AB:$AB,FALSE) -> 0 | BS11: 863050.7504 | BT11: 7030 | BU11: TRUE | BV11: -148815.1103 | BW11: -120000 | BX11: -28815.11028 | BZ11: 33 | CA11: =_xlfn.XLOOKUP(A11,'SP Number per band'!$C$8:$C$35,'SP Number per band'!$AB$8:$AB$35,FALSE) -> 33 | CB11: 0 | CC11: 7030 | CD11: y | CF11: 7030 | CG11: 611768.7482 | CH11: 855411.0362 | CI11: -243642.288 | CK11: 7000 | CL11: Hallmoor School | CM11: 1531809.951 | CN11: =_xlfn.XLOOKUP(CK11,$A$4:$A$31,$BE$4:$BE$31,FALSE) -> 1684034.399 | CO11: 152224.4472 | CP11: 0.09937554399
A12: 7031 | B12: Wilson Stuart Sch-Sports & AL College | C12: 191 | D12: 51 | E12: 1910000 | F12: 510000 | I12: 2420000 | J12: =VLOOKUP($A12,'SP Number per band'!$C:$AA,'DATA SPECIAL'!J$1,FALSE) -> 0 | K12: =VLOOKUP($A12,'SP Number per band'!$C:$AA,'DATA SPECIAL'!K$1,FALSE) -> 0 | L12: =VLOOKUP($A12,'SP Number per band'!$C:$AA,'DATA SPECIAL'!L$1,FALSE) -> 1 | M12: =VLOOKUP($A12,'SP Number per band'!$C:$AA,'DATA SPECIAL'!M$1,FALSE) -> 2 | N12: =VLOOKUP($A12,'SP Number per band'!$C:$AA,'DATA SPECIAL'!N$1,FALSE) -> 0 | O12: =VLOOKUP($A12,'SP Number per band'!$C:$AA,'DATA SPECIAL'!O$1,FALSE) -> 6 | P12: =VLOOKUP($A12,'SP Number per band'!$C:$AA,'DATA SPECIAL'!P$1,FALSE) -> 29 | Q12: =VLOOKUP($A12,'SP Number per band'!$C:$AA,'DATA SPECIAL'!Q$1,FALSE) -> 11 | R12: =VLOOKUP($A12,'SP Number per band'!$C:$AA,'DATA SPECIAL'!R$1,FALSE) -> 0 | S12: =VLOOKUP($A12,'SP Number per band'!$C:$AA,'DATA SPECIAL'!S$1,FALSE) -> 0 | T12: =VLOOKUP($A12,'SP Number per band'!$C:$AA,'DATA SPECIAL'!T$1,FALSE) -> 3 | U12: =VLOOKUP($A12,'SP Number per band'!$C:$AA,'DATA SPECIAL'!U$1,FALSE) -> 0 | V12: =VLOOKUP($A12,'SP Number per band'!$C:$AA,'DATA SPECIAL'!V$1,FALSE) -> 0 | W12: =VLOOKUP($A12,'SP Number per band'!$C:$AA,'DATA SPECIAL'!W$1,FALSE) -> 1 | X12: =VLOOKUP($A12,'SP Number per band'!$C:$AA,'DATA SPECIAL'!X$1,FALSE) -> 2 | Y12: =VLOOKUP($A12,'SP Number per band'!$C:$AA,'DATA SPECIAL'!Y$1,FALSE) -> 0 | Z12: =VLOOKUP($A12,'SP Number per band'!$C:$AA,'DATA SPECIAL'!Z$1,FALSE) -> 0 | AA12: =VLOOKUP($A12,'SP Number per band'!$C:$AA,'DATA SPECIAL'!AA$1,FALSE) -> 30 | AB12: =VLOOKUP($A12,'SP Number per band'!$C:$AA,'DATA SPECIAL'!AB$1,FALSE) -> 42 | AC12: =VLOOKUP($A12,'SP Number per band'!$C:$AA,'DATA SPECIAL'!AC$1,FALSE) -> 96 | AD12: =VLOOKUP($A12,'SP Number per band'!$C:$AA,'DATA SPECIAL'!AD$1,FALSE)+VLOOKUP($A12,'SP Number per band'!$C:$AA,'DATA SPECIAL'!AD$1+2,FALSE) -> 0 | AE12: =SUMIF('SP Number per band'!$C$8:$C$35,'DATA SPECIAL'!$A12,'SP Number per band'!$Y$8:$Y$35) -> 0 | AF12: =_xlfn.XLOOKUP($A12,[2]PupilData!$A:$A,[2]PupilData!AA:AA,0,FALSE) -> 0 | AG12: 0 | AH12: 0 | AI12: 7195.202802 | AJ12: 25902.73009 | AK12: 0 | AL12: 4317.121681 | AM12: 104330.4406 | AN12: 126635.5693 | AO12: 0 | AP12: 0 | AQ12: 21585.6084 | AR12: 0 | AS12: 0 | AT12: 2158.56084 | AU12: 14390.4056 | AV12: 0 | AW12: 0 | AX12: 75549.62942 | AY12: 332418.3694 | AZ12: 1312404.991 | BA12: 0 | BB12: 0 | BC12: =_xlfn.XLOOKUP($A12,'SP 2022-23 Banding, SSF and Tp'!$A$36:$A$63,'SP 2022-23 Banding, SSF and Tp'!$C$36:$C$63,FALSE)*(C12+D12) -> 359106.5113 | BD12: 78892 | BE12: 2464887.141 | BF12: 4884887.141 | BG12: =+BE12-_xlfn.XLOOKUP(A12,[2]Total!$A:$A,[2]Total!$AA:$AA,FALSE) -> 193638.4269 | BH12: =_xlfn.XLOOKUP($A12,'SP 2022-23 Banding, SSF and Tp'!$A$36:$A$63,'SP 2022-23 Banding, SSF and Tp'!$C$36:$C$63,FALSE) -> 1483.911204 | BI12: =_xlfn.XLOOKUP($A12,'SP 2022-23 Banding, SSF and Tp'!$A$36:$A$63,'SP 2022-23 Banding, SSF and Tp'!$F$36:$F$63,FALSE) -> 0 | BJ12: 78892 | BK12: =_xlfn.XLOOKUP($A12,'SP 2022-23 Banding, SSF and Tp'!$A$36:$A$63,'SP 2022-23 Banding, SSF and Tp'!$D$36:$D$63,FALSE) -> 326 | BO12: =_xlfn.XLOOKUP($A12,[2]PupilData!$A:$A,[2]PupilData!$AA:$AA,FALSE)+_xlfn.XLOOKUP($A12,[2]PupilData!$A:$A,[2]PupilData!$AB:$AB,FALSE) -> 0 | BP12: =_xlfn.XLOOKUP($A12,[2]AssesTU!$A:$A,[2]AssesTU!$AA:$AA,FALSE)+_xlfn.XLOOKUP($A12,[2]AssesTU!$A:$A,[2]AssesTU!$AB:$AB,FALSE) -> 0 | BS12: 2545263.052 | BT12: 7031 | BU12: TRUE | BV12: 50059.07121 | BW12: 40000 | BX12: 10059.07121 | BZ12: 223 | CA12: =_xlfn.XLOOKUP(A12,'SP Number per band'!$C$8:$C$35,'SP Number per band'!$AB$8:$AB$35,FALSE) -> 223 | CB12: 0 | CC12: 7031 | CD12: y | CF12: 7031 | CG12: 2271248.714 | CH12: 2464887.141 | CI12: -193638.4269 | CK12: 7030 | CL12: Braidwood School | CM12: 611768.7482 | CN12: 855411.0362 | CO12: 243642.288 | CP12: 0.3982588007
A13: 7033 | B13: Selly Oak Trust School (S) | C13: 272 | D13: 110 | E13: 2720000 | F13: 1100000 | I13: 3820000 | J13: =VLOOKUP($A13,'SP Number per band'!$C:$AA,'DATA SPECIAL'!J$1,FALSE) -> 0 | K13: =VLOOKUP($A13,'SP Number per band'!$C:$AA,'DATA SPECIAL'!K$1,FALSE) -> 62 | L13: =VLOOKUP($A13,'SP Number per band'!$C:$AA,'DATA SPECIAL'!L$1,FALSE) -> 73 | M13: =VLOOKUP($A13,'SP Number per band'!$C:$AA,'DATA SPECIAL'!M$1,FALSE) -> 5 | N13: =VLOOKUP($A13,'SP Number per band'!$C:$AA,'DATA SPECIAL'!N$1,FALSE) -> 0 | O13: =VLOOKUP($A13,'SP Number per band'!$C:$AA,'DATA SPECIAL'!O$1,FALSE) -> 64 | P13: =VLOOKUP($A13,'SP Number per band'!$C:$AA,'DATA SPECIAL'!P$1,FALSE) -> 108 | Q13: =VLOOKUP($A13,'SP Number per band'!$C:$AA,'DATA SPECIAL'!Q$1,FALSE) -> 4 | R13: =VLOOKUP($A13,'SP Number per band'!$C:$AA,'DATA SPECIAL'!R$1,FALSE) -> 0 | S13: =VLOOKUP($A13,'SP Number per band'!$C:$AA,'DATA SPECIAL'!S$1,FALSE) -> 9 | T13: =VLOOKUP($A13,'SP Number per band'!$C:$AA,'DATA SPECIAL'!T$1,FALSE) -> 29 | U13: =VLOOKUP($A13,'SP Number per band'!$C:$AA,'DATA SPECIAL'!U$1,FALSE) -> 19 | V13: =VLOOKUP($A13,'SP Number per band'!$C:$AA,'DATA SPECIAL'!V$1,FALSE) -> 0 | W13: =VLOOKUP($A13,'SP Number per band'!$C:$AA,'DATA SPECIAL'!W$1,FALSE) -> 2 | X13: =VLOOKUP($A13,'SP Number per band'!$C:$AA,'DATA SPECIAL'!X$1,FALSE) -> 0 | Y13: =VLOOKUP($A13,'SP Number per band'!$C:$AA,'DATA SPECIAL'!Y$1,FALSE) -> 0 | Z13: =VLOOKUP($A13,'SP Number per band'!$C:$AA,'DATA SPECIAL'!Z$1,FALSE) -> 0 | AA13: =VLOOKUP($A13,'SP Number per band'!$C:$AA,'DATA SPECIAL'!AA$1,FALSE) -> 3 | AB13: =VLOOKUP($A13,'SP Number per band'!$C:$AA,'DATA SPECIAL'!AB$1,FALSE) -> 1 | AC13: =VLOOKUP($A13,'SP Number per band'!$C:$AA,'DATA SPECIAL'!AC$1,FALSE) -> 0 | AD13: =VLOOKUP($A13,'SP Number per band'!$C:$AA,'DATA SPECIAL'!AD$1,FALSE)+VLOOKUP($A13,'SP Number per band'!$C:$AA,'DATA SPECIAL'!AD$1+2,FALSE) -> 0 | AE13: =SUMIF('SP Number per band'!$C$8:$C$35,'DATA SPECIAL'!$A13,'SP Number per band'!$Y$8:$Y$35) -> 0 | AF13: =_xlfn.XLOOKUP($A13,[2]PupilData!$A:$A,[2]PupilData!AA:AA,0,FALSE) -> 0 | AG13: 0 | AH13: 133830.7721 | AI13: 525249.8045 | AJ13: 64756.82521 | AK13: 0 | AL13: 46049.29793 | AM13: 388540.9513 | AN13: 46049.29793 | AO13: 0 | AP13: 19427.04756 | AQ13: 208660.8812 | AR13: 246075.9358 | AS13: 0 | AT13: 4317.121681 | AU13: 0 | AV13: 0 | AW13: 0 | AX13: 7554.962942 | AY13: 7914.723082 | AZ13: 0 | BA13: 0 | BB13: 0 | BC13: =_xlfn.XLOOKUP($A13,'SP 2022-23 Banding, SSF and Tp'!$A$36:$A$63,'SP 2022-23 Banding, SSF and Tp'!$C$36:$C$63,FALSE)*(C13+D13) -> 0 | BD13: 0 | BE13: 1698427.621 | BF13: 5518427.621 | BG13: =+BE13-_xlfn.XLOOKUP(A13,[2]Total!$A:$A,[2]Total!$AA:$AA,FALSE) -> 151119.6226 | BH13: =_xlfn.XLOOKUP($A13,'SP 2022-23 Banding, SSF and Tp'!$A$36:$A$63,'SP 2022-23 Banding, SSF and Tp'!$C$36:$C$63,FALSE) -> 0 | BI13: =_xlfn.XLOOKUP($A13,'SP 2022-23 Banding, SSF and Tp'!$A$36:$A$63,'SP 2022-23 Banding, SSF and Tp'!$F$36:$F$63,FALSE) -> 0 | BJ13: 0 | BK13: =_xlfn.XLOOKUP($A13,'SP 2022-23 Banding, SSF and Tp'!$A$36:$A$63,'SP 2022-23 Banding, SSF and Tp'!$D$36:$D$63,FALSE) -> 0 | BO13: =_xlfn.XLOOKUP($A13,[2]PupilData!$A:$A,[2]PupilData!$AA:$AA,FALSE)+_xlfn.XLOOKUP($A13,[2]PupilData!$A:$A,[2]PupilData!$AB:$AB,FALSE) -> 0 | BP13: =_xlfn.XLOOKUP($A13,[2]AssesTU!$A:$A,[2]AssesTU!$AA:$AA,FALSE)+_xlfn.XLOOKUP($A13,[2]AssesTU!$A:$A,[2]AssesTU!$AB:$AB,FALSE) -> 0 | BS13: 1698427.621 | BT13: 7033 | BU13: TRUE | BV13: -62700.03713 | BW13: -100000 | BX13: 37299.96287 | BZ13: 379 | CA13: =_xlfn.XLOOKUP(A13,'SP Number per band'!$C$8:$C$35,'SP Number per band'!$AB$8:$AB$35,FALSE) -> 379 | CB13: 0 | CC13: 7033 | CD13: y | CF13: 7033 | CG13: 1547307.999 | CH13: 1698427.621 | CI13: -151119.6226 | CK13: 7031 | CL13: Wilson Stuart Sch-Sports & AL College | CM13: 2271248.714 | CN13: 2464887.141 | CO13: 193638.4269 | CP13: 0.08525637271
A14: 7034 | B14: Priestley Smith School | C14: 73 | D14: 16 | E14: 730000 | F14: 160000 | I14: 890000 | J14: =VLOOKUP($A14,'SP Number per band'!$C:$AA,'DATA SPECIAL'!J$1,FALSE) -> 0 | K14: =VLOOKUP($A14,'SP Number per band'!$C:$AA,'DATA SPECIAL'!K$1,FALSE) -> 2 | L14: =VLOOKUP($A14,'SP Number per band'!$C:$AA,'DATA SPECIAL'!L$1,FALSE) -> 1 | M14: =VLOOKUP($A14,'SP Number per band'!$C:$AA,'DATA SPECIAL'!M$1,FALSE) -> 1 | N14: =VLOOKUP($A14,'SP Number per band'!$C:$AA,'DATA SPECIAL'!N$1,FALSE) -> 0 | O14: =VLOOKUP($A14,'SP Number per band'!$C:$AA,'DATA SPECIAL'!O$1,FALSE) -> 3 | P14: =VLOOKUP($A14,'SP Number per band'!$C:$AA,'DATA SPECIAL'!P$1,FALSE) -> 1 | Q14: =VLOOKUP($A14,'SP Number per band'!$C:$AA,'DATA SPECIAL'!Q$1,FALSE) -> 0 | R14: =VLOOKUP($A14,'SP Number per band'!$C:$AA,'DATA SPECIAL'!R$1,FALSE) -> 0 | S14: =VLOOKUP($A14,'SP Number per band'!$C:$AA,'DATA SPECIAL'!S$1,FALSE) -> 0 | T14: =VLOOKUP($A14,'SP Number per band'!$C:$AA,'DATA SPECIAL'!T$1,FALSE) -> 0 | U14: =VLOOKUP($A14,'SP Number per band'!$C:$AA,'DATA SPECIAL'!U$1,FALSE) -> 0 | V14: =VLOOKUP($A14,'SP Number per band'!$C:$AA,'DATA SPECIAL'!V$1,FALSE) -> 0 | W14: =VLOOKUP($A14,'SP Number per band'!$C:$AA,'DATA SPECIAL'!W$1,FALSE) -> 16 | X14: =VLOOKUP($A14,'SP Number per band'!$C:$AA,'DATA SPECIAL'!X$1,FALSE) -> 30 | Y14: =VLOOKUP($A14,'SP Number per band'!$C:$AA,'DATA SPECIAL'!Y$1,FALSE) -> 9 | Z14: =VLOOKUP($A14,'SP Number per band'!$C:$AA,'DATA SPECIAL'!Z$1,FALSE) -> 0 | AA14: =VLOOKUP($A14,'SP Number per band'!$C:$AA,'DATA SPECIAL'!AA$1,FALSE) -> 0 | AB14: =VLOOKUP($A14,'SP Number per band'!$C:$AA,'DATA SPECIAL'!AB$1,FALSE) -> 2 | AC14: =VLOOKUP($A14,'SP Number per band'!$C:$AA,'DATA SPECIAL'!AC$1,FALSE) -> 1 | AD14: =VLOOKUP($A14,'SP Number per band'!$C:$AA,'DATA SPECIAL'!AD$1,FALSE)+VLOOKUP($A14,'SP Number per band'!$C:$AA,'DATA SPECIAL'!AD$1+2,FALSE) -> 0 | AE14: =SUMIF('SP Number per band'!$C$8:$C$35,'DATA SPECIAL'!$A14,'SP Number per band'!$Y$8:$Y$35) -> 0 | AF14: =_xlfn.XLOOKUP($A14,[2]PupilData!$A:$A,[2]PupilData!AA:AA,0,FALSE) -> 0 | AG14: 0 | AH14: 4317.121681 | AI14: 7195.202802 | AJ14: 12951.36504 | AK14: 0 | AL14: 2158.56084 | AM14: 3597.601401 | AN14: 0 | AO14: 0 | AP14: 0 | AQ14: 0 | AR14: 0 | AS14: 0 | AT14: 34536.97345 | AU14: 215856.084 | AV14: 116562.2854 | AW14: 0 | AX14: 0 | AY14: 15829.44616 | AZ14: 13670.88532 | BA14: 0 | BB14: 0 | BC14: =_xlfn.XLOOKUP($A14,'SP 2022-23 Banding, SSF and Tp'!$A$36:$A$63,'SP 2022-23 Banding, SSF and Tp'!$C$36:$C$63,FALSE)*(C14+D14) -> 725712.0657 | BD14: 0 | BE14: 1152387.592 | BF14: 2042387.592 | BG14: =+BE14-_xlfn.XLOOKUP(A14,[2]Total!$A:$A,[2]Total!$AA:$AA,FALSE) -> 246447.4437 | BH14: =_xlfn.XLOOKUP($A14,'SP 2022-23 Banding, SSF and Tp'!$A$36:$A$63,'SP 2022-23 Banding, SSF and Tp'!$C$36:$C$63,FALSE) -> 8154.068154 | BI14: =_xlfn.XLOOKUP($A14,'SP 2022-23 Banding, SSF and Tp'!$A$36:$A$63,'SP 2022-23 Banding, SSF and Tp'!$F$36:$F$63,FALSE) -> 0 | BJ14: 0 | BK14: =_xlfn.XLOOKUP($A14,'SP 2022-23 Banding, SSF and Tp'!$A$36:$A$63,'SP 2022-23 Banding, SSF and Tp'!$D$36:$D$63,FALSE) -> 0 | BO14: =_xlfn.XLOOKUP($A14,[2]PupilData!$A:$A,[2]PupilData!$AA:$AA,FALSE)+_xlfn.XLOOKUP($A14,[2]PupilData!$A:$A,[2]PupilData!$AB:$AB,FALSE) -> 0 | BP14: =_xlfn.XLOOKUP($A14,[2]AssesTU!$A:$A,[2]AssesTU!$AA:$AA,FALSE)+_xlfn.XLOOKUP($A14,[2]AssesTU!$A:$A,[2]AssesTU!$AB:$AB,FALSE) -> 0 | BS14: 1160541.66 | BT14: 7034 | BU14: TRUE | BV14: -29056.20158 | BW14: -40000 | BX14: 10943.79842 | BZ14: 66 | CA14: =_xlfn.XLOOKUP(A14,'SP Number per band'!$C$8:$C$35,'SP Number per band'!$AB$8:$AB$35,FALSE) -> 66 | CB14: 0 | CC14: 7034 | CD14: y | CF14: 7034 | CG14: 905940.1481 | CH14: 1152387.592 | CI14: -246447.4437 | CK14: 7033 | CL14: Selly Oak Trust School (S) | CM14: 1547307.999 | CN14: 1698427.621 | CO14: 151119.6226 | CP14: 0.09766615486
A15: 7035 | B15: Dame Ellen Pinsent School | C15: 149 | D15: 0 | E15: 1490000 | F15: 0 | I15: 1490000 | J15: =VLOOKUP($A15,'SP Number per band'!$C:$AA,'DATA SPECIAL'!J$1,FALSE) -> 0 | K15: =VLOOKUP($A15,'SP Number per band'!$C:$AA,'DATA SPECIAL'!K$1,FALSE) -> 4 | L15: =VLOOKUP($A15,'SP Number per band'!$C:$AA,'DATA SPECIAL'!L$1,FALSE) -> 59 | M15: =VLOOKUP($A15,'SP Number per band'!$C:$AA,'DATA SPECIAL'!M$1,FALSE) -> 9 | N15: =VLOOKUP($A15,'SP Number per band'!$C:$AA,'DATA SPECIAL'!N$1,FALSE) -> 0 | O15: =VLOOKUP($A15,'SP Number per band'!$C:$AA,'DATA SPECIAL'!O$1,FALSE) -> 1 | P15: =VLOOKUP($A15,'SP Number per band'!$C:$AA,'DATA SPECIAL'!P$1,FALSE) -> 65 | Q15: =VLOOKUP($A15,'SP Number per band'!$C:$AA,'DATA SPECIAL'!Q$1,FALSE) -> 2 | R15: =VLOOKUP($A15,'SP Number per band'!$C:$AA,'DATA SPECIAL'!R$1,FALSE) -> 0 | S15: =VLOOKUP($A15,'SP Number per band'!$C:$AA,'DATA SPECIAL'!S$1,FALSE) -> 0 | T15: =VLOOKUP($A15,'SP Number per band'!$C:$AA,'DATA SPECIAL'!T$1,FALSE) -> 4 | U15: =VLOOKUP($A15,'SP Number per band'!$C:$AA,'DATA SPECIAL'!U$1,FALSE) -> 0 | V15: =VLOOKUP($A15,'SP Number per band'!$C:$AA,'DATA SPECIAL'!V$1,FALSE) -> 0 | W15: =VLOOKUP($A15,'SP Number per band'!$C:$AA,'DATA SPECIAL'!W$1,FALSE) -> 0 | X15: =VLOOKUP($A15,'SP Number per band'!$C:$AA,'DATA SPECIAL'!X$1,FALSE) -> 0 | Y15: =VLOOKUP($A15,'SP Number per band'!$C:$AA,'DATA SPECIAL'!Y$1,FALSE) -> 0 | Z15: =VLOOKUP($A15,'SP Number per band'!$C:$AA,'DATA SPECIAL'!Z$1,FALSE) -> 0 | AA15: =VLOOKUP($A15,'SP Number per band'!$C:$AA,'DATA SPECIAL'!AA$1,FALSE) -> 0 | AB15: =VLOOKUP($A15,'SP Number per band'!$C:$AA,'DATA SPECIAL'!AB$1,FALSE) -> 0 | AC15: =VLOOKUP($A15,'SP Number per band'!$C:$AA,'DATA SPECIAL'!AC$1,FALSE) -> 0 | AD15: =VLOOKUP($A15,'SP Number per band'!$C:$AA,'DATA SPECIAL'!AD$1,FALSE)+VLOOKUP($A15,'SP Number per band'!$C:$AA,'DATA SPECIAL'!AD$1+2,FALSE) -> 0 | AE15: =SUMIF('SP Number per band'!$C$8:$C$35,'DATA SPECIAL'!$A15,'SP Number per band'!$Y$8:$Y$35) -> 0 | AF15: =_xlfn.XLOOKUP($A15,[2]PupilData!$A:$A,[2]PupilData!AA:AA,0,FALSE) -> 0 | AG15: 0 | AH15: 8634.243362 | AI15: 424516.9653 | AJ15: 116562.2854 | AK15: 0 | AL15: 719.5202802 | AM15: 233844.0911 | AN15: 23024.64897 | AO15: 0 | AP15: 0 | AQ15: 28780.81121 | AR15: 0 | AS15: 0 | AT15: 0 | AU15: 0 | AV15: 0 | AW15: 0 | AX15: 0 | AY15: 0 | AZ15: 0 | BA15: 0 | BB15: 0 | BC15: =_xlfn.XLOOKUP($A15,'SP 2022-23 Banding, SSF and Tp'!$A$36:$A$63,'SP 2022-23 Banding, SSF and Tp'!$C$36:$C$63,FALSE)*(C15+D15) -> 102335.1648 | BD15: 85824 | BE15: 1024241.73 | BF15: 2514241.73 | BG15: =+BE15-_xlfn.XLOOKUP(A15,[2]Total!$A:$A,[2]Total!$AA:$AA,FALSE) -> 127374.2988 | BH15: =_xlfn.XLOOKUP($A15,'SP 2022-23 Banding, SSF and Tp'!$A$36:$A$63,'SP 2022-23 Banding, SSF and Tp'!$C$36:$C$63,FALSE) -> 686.8131868 | BI15: =_xlfn.XLOOKUP($A15,'SP 2022-23 Banding, SSF and Tp'!$A$36:$A$63,'SP 2022-23 Banding, SSF and Tp'!$F$36:$F$63,FALSE) -> 0 | BJ15: 85824 | BK15: =_xlfn.XLOOKUP($A15,'SP 2022-23 Banding, SSF and Tp'!$A$36:$A$63,'SP 2022-23 Banding, SSF and Tp'!$D$36:$D$63,FALSE) -> 576 | BO15: =_xlfn.XLOOKUP($A15,[2]PupilData!$A:$A,[2]PupilData!$AA:$AA,FALSE)+_xlfn.XLOOKUP($A15,[2]PupilData!$A:$A,[2]PupilData!$AB:$AB,FALSE) -> 0 | BP15: =_xlfn.XLOOKUP($A15,[2]AssesTU!$A:$A,[2]AssesTU!$AA:$AA,FALSE)+_xlfn.XLOOKUP($A15,[2]AssesTU!$A:$A,[2]AssesTU!$AB:$AB,FALSE) -> 0 | BS15: 1110752.544 | BT15: 7035 | BU15: TRUE | BV15: -101022.7569 | BW15: -20000 | BX15: -81022.75691 | BZ15: 144 | CA15: =_xlfn.XLOOKUP(A15,'SP Number per band'!$C$8:$C$35,'SP Number per band'!$AB$8:$AB$35,FALSE) -> 144 | CB15: 0 | CC15: 7035 | CD15: y | CF15: 7035 | CG15: 896867.4316 | CH15: 1024241.73 | CI15: -127374.2988 | CK15: 7034 | CL15: Priestley Smith School | CM15: 905940.1481 | CN15: 1152387.592 | CO15: 246447.4437 | CP15: 0.2720350172
A16: 7036 | B16: Queensbury School (S) | C16: 160 | D16: 85 | E16: 1600000 | F16: 850000 | I16: 2450000 | J16: =VLOOKUP($A16,'SP Number per band'!$C:$AA,'DATA SPECIAL'!J$1,FALSE) -> 0 | K16: =VLOOKUP($A16,'SP Number per band'!$C:$AA,'DATA SPECIAL'!K$1,FALSE) -> 21 | L16: =VLOOKUP($A16,'SP Number per band'!$C:$AA,'DATA SPECIAL'!L$1,FALSE) -> 39 | M16: =VLOOKUP($A16,'SP Number per band'!$C:$AA,'DATA SPECIAL'!M$1,FALSE) -> 3 | N16: =VLOOKUP($A16,'SP Number per band'!$C:$AA,'DATA SPECIAL'!N$1,FALSE) -> 0 | O16: =VLOOKUP($A16,'SP Number per band'!$C:$AA,'DATA SPECIAL'!O$1,FALSE) -> 48 | P16: =VLOOKUP($A16,'SP Number per band'!$C:$AA,'DATA SPECIAL'!P$1,FALSE) -> 83 | Q16: =VLOOKUP($A16,'SP Number per band'!$C:$AA,'DATA SPECIAL'!Q$1,FALSE) -> 4 | R16: =VLOOKUP($A16,'SP Number per band'!$C:$AA,'DATA SPECIAL'!R$1,FALSE) -> 0 | S16: =VLOOKUP($A16,'SP Number per band'!$C:$AA,'DATA SPECIAL'!S$1,FALSE) -> 3 | T16: =VLOOKUP($A16,'SP Number per band'!$C:$AA,'DATA SPECIAL'!T$1,FALSE) -> 27 | U16: =VLOOKUP($A16,'SP Number per band'!$C:$AA,'DATA SPECIAL'!U$1,FALSE) -> 13 | V16: =VLOOKUP($A16,'SP Number per band'!$C:$AA,'DATA SPECIAL'!V$1,FALSE) -> 0 | W16: =VLOOKUP($A16,'SP Number per band'!$C:$AA,'DATA SPECIAL'!W$1,FALSE) -> 0 | X16: =VLOOKUP($A16,'SP Number per band'!$C:$AA,'DATA SPECIAL'!X$1,FALSE) -> 0 | Y16: =VLOOKUP($A16,'SP Number per band'!$C:$AA,'DATA SPECIAL'!Y$1,FALSE) -> 0 | Z16: =VLOOKUP($A16,'SP Number per band'!$C:$AA,'DATA SPECIAL'!Z$1,FALSE) -> 0 | AA16: =VLOOKUP($A16,'SP Number per band'!$C:$AA,'DATA SPECIAL'!AA$1,FALSE) -> 0 | AB16: =VLOOKUP($A16,'SP Number per band'!$C:$AA,'DATA SPECIAL'!AB$1,FALSE) -> 0 | AC16: =VLOOKUP($A16,'SP Number per band'!$C:$AA,'DATA SPECIAL'!AC$1,FALSE) -> 0 | AD16: =VLOOKUP($A16,'SP Number per band'!$C:$AA,'DATA SPECIAL'!AD$1,FALSE)+VLOOKUP($A16,'SP Number per band'!$C:$AA,'DATA SPECIAL'!AD$1+2,FALSE) -> 0 | AE16: =SUMIF('SP Number per band'!$C$8:$C$35,'DATA SPECIAL'!$A16,'SP Number per band'!$Y$8:$Y$35) -> 0 | AF16: =_xlfn.XLOOKUP($A16,[2]PupilData!$A:$A,[2]PupilData!AA:AA,0,FALSE) -> 0 | AG16: 0 | AH16: 45329.77765 | AI16: 280612.9093 | AJ16: 38854.09513 | AK16: 0 | AL16: 34536.97345 | AM16: 298600.9163 | AN16: 46049.29793 | AO16: 0 | AP16: 6475.682521 | AQ16: 194270.4756 | AR16: 168367.7456 | AS16: 0 | AT16: 0 | AU16: 0 | AV16: 0 | AW16: 0 | AX16: 0 | AY16: 0 | AZ16: 0 | BA16: 0 | BB16: 0 | BC16: =_xlfn.XLOOKUP($A16,'SP 2022-23 Banding, SSF and Tp'!$A$36:$A$63,'SP 2022-23 Banding, SSF and Tp'!$C$36:$C$63,FALSE)*(C16+D16) -> 67028.40728 | BD16: 3185 | BE16: 1183311.281 | BF16: 3633311.281 | BG16: =+BE16-_xlfn.XLOOKUP(A16,[2]Total!$A:$A,[2]Total!$AA:$AA,FALSE) -> 191113.9438 | BH16: =_xlfn.XLOOKUP($A16,'SP 2022-23 Banding, SSF and Tp'!$A$36:$A$63,'SP 2022-23 Banding, SSF and Tp'!$C$36:$C$63,FALSE) -> 273.5853358 | BI16: =_xlfn.XLOOKUP($A16,'SP 2022-23 Banding, SSF and Tp'!$A$36:$A$63,'SP 2022-23 Banding, SSF and Tp'!$F$36:$F$63,FALSE) -> 0 | BJ16: 3185 | BK16: =_xlfn.XLOOKUP($A16,'SP 2022-23 Banding, SSF and Tp'!$A$36:$A$63,'SP 2022-23 Banding, SSF and Tp'!$D$36:$D$63,FALSE) -> 13 | BO16: =_xlfn.XLOOKUP($A16,[2]PupilData!$A:$A,[2]PupilData!$AA:$AA,FALSE)+_xlfn.XLOOKUP($A16,[2]PupilData!$A:$A,[2]PupilData!$AB:$AB,FALSE) -> 0 | BP16: =_xlfn.XLOOKUP($A16,[2]AssesTU!$A:$A,[2]AssesTU!$AA:$AA,FALSE)+_xlfn.XLOOKUP($A16,[2]AssesTU!$A:$A,[2]AssesTU!$AB:$AB,FALSE) -> 0 | BS16: 1186769.866 | BT16: 7036 | BU16: TRUE | BV16: -71854.48326 | BW16: 40000 | BX16: -111854.4833 | BZ16: 241 | CA16: =_xlfn.XLOOKUP(A16,'SP Number per band'!$C$8:$C$35,'SP Number per band'!$AB$8:$AB$35,FALSE) -> 241 | CB16: 0 | CC16: 7036 | CD16: y | CF16: 7036 | CG16: 992197.3369 | CH16: 1183311.281 | CI16: -191113.9438 | CK16: 7035 | CL16: Dame Ellen Pinsent School | CM16: 896867.4316 | CN16: 1024241.73 | CO16: 127374.2988 | CP16: 0.1420213225
A17: 7005 | B17: Lea Hall | C17: 90 | D17: 0 | E17: 900000 | F17: 0 | I17: 900000 | J17: =VLOOKUP($A17,'SP Number per band'!$C:$AA,'DATA SPECIAL'!J$1,FALSE) -> 0 | K17: =VLOOKUP($A17,'SP Number per band'!$C:$AA,'DATA SPECIAL'!K$1,FALSE) -> 0 | L17: =VLOOKUP($A17,'SP Number per band'!$C:$AA,'DATA SPECIAL'!L$1,FALSE) -> 4 | M17: =VLOOKUP($A17,'SP Number per band'!$C:$AA,'DATA SPECIAL'!M$1,FALSE) -> 1 | N17: =VLOOKUP($A17,'SP Number per band'!$C:$AA,'DATA SPECIAL'!N$1,FALSE) -> 0 | O17: =VLOOKUP($A17,'SP Number per band'!$C:$AA,'DATA SPECIAL'!O$1,FALSE) -> 0 | P17: =VLOOKUP($A17,'SP Number per band'!$C:$AA,'DATA SPECIAL'!P$1,FALSE) -> 0 | Q17: =VLOOKUP($A17,'SP Number per band'!$C:$AA,'DATA SPECIAL'!Q$1,FALSE) -> 0 | R17: =VLOOKUP($A17,'SP Number per band'!$C:$AA,'DATA SPECIAL'!R$1,FALSE) -> 0 | S17: =VLOOKUP($A17,'SP Number per band'!$C:$AA,'DATA SPECIAL'!S$1,FALSE) -> 0 | T17: =VLOOKUP($A17,'SP Number per band'!$C:$AA,'DATA SPECIAL'!T$1,FALSE) -> 29 | U17: =VLOOKUP($A17,'SP Number per band'!$C:$AA,'DATA SPECIAL'!U$1,FALSE) -> 29 | V17: =VLOOKUP($A17,'SP Number per band'!$C:$AA,'DATA SPECIAL'!V$1,FALSE) -> 0 | W17: =VLOOKUP($A17,'SP Number per band'!$C:$AA,'DATA SPECIAL'!W$1,FALSE) -> 0 | X17: =VLOOKUP($A17,'SP Number per band'!$C:$AA,'DATA SPECIAL'!X$1,FALSE) -> 0 | Y17: =VLOOKUP($A17,'SP Number per band'!$C:$AA,'DATA SPECIAL'!Y$1,FALSE) -> 0 | Z17: =VLOOKUP($A17,'SP Number per band'!$C:$AA,'DATA SPECIAL'!Z$1,FALSE) -> 0 | AA17: =VLOOKUP($A17,'SP Number per band'!$C:$AA,'DATA SPECIAL'!AA$1,FALSE) -> 0 | AB17: =VLOOKUP($A17,'SP Number per band'!$C:$AA,'DATA SPECIAL'!AB$1,FALSE) -> 0 | AC17: =VLOOKUP($A17,'SP Number per band'!$C:$AA,'DATA SPECIAL'!AC$1,FALSE) -> 0 | AD17: =VLOOKUP($A17,'SP Number per band'!$C:$AA,'DATA SPECIAL'!AD$1,FALSE)+VLOOKUP($A17,'SP Number per band'!$C:$AA,'DATA SPECIAL'!AD$1+2,FALSE) -> 0 | AE17: =SUMIF('SP Number per band'!$C$8:$C$35,'DATA SPECIAL'!$A17,'SP Number per band'!$Y$8:$Y$35) -> 0 | AF17: =_xlfn.XLOOKUP($A17,[2]PupilData!$A:$A,[2]PupilData!AA:AA,0,FALSE) -> 0 | AG17: 0 | AH17: 0 | AI17: 28780.81121 | AJ17: 12951.36504 | AK17: 0 | AL17: 0 | AM17: 0 | AN17: 0 | AO17: 0 | AP17: 0 | AQ17: 208660.8812 | AR17: 375589.5862 | AS17: 0 | AT17: 0 | AU17: 0 | AV17: 0 | AW17: 0 | AX17: 0 | AY17: 0 | AZ17: 0 | BA17: 0 | BB17: 0 | BC17: =_xlfn.XLOOKUP($A17,'SP 2022-23 Banding, SSF and Tp'!$A$36:$A$63,'SP 2022-23 Banding, SSF and Tp'!$C$36:$C$63,FALSE)*(C17+D17) -> 231799.4505 | BD17: 0 | BE17: 857782.0943 | BF17: 1757782.094 | BG17: =+BE17-_xlfn.XLOOKUP(A17,[2]Total!$A:$A,[2]Total!$AA:$AA,FALSE) -> 857782.0943 | BH17: =_xlfn.XLOOKUP($A17,'SP 2022-23 Banding, SSF and Tp'!$A$36:$A$63,'SP 2022-23 Banding, SSF and Tp'!$C$36:$C$63,FALSE) -> 2575.549451 | BI17: =_xlfn.XLOOKUP($A17,'SP 2022-23 Banding, SSF and Tp'!$A$36:$A$63,'SP 2022-23 Banding, SSF and Tp'!$F$36:$F$63,FALSE) -> 0 | BJ17: 0 | BK17: =_xlfn.XLOOKUP($A17,'SP 2022-23 Banding, SSF and Tp'!$A$36:$A$63,'SP 2022-23 Banding, SSF and Tp'!$D$36:$D$63,FALSE) -> 0 | BO17: =_xlfn.XLOOKUP($A17,[2]PupilData!$A:$A,[2]PupilData!$AA:$AA,FALSE)+_xlfn.XLOOKUP($A17,[2]PupilData!$A:$A,[2]PupilData!$AB:$AB,FALSE) -> 0 | BP17: =_xlfn.XLOOKUP($A17,[2]AssesTU!$A:$A,[2]AssesTU!$AA:$AA,FALSE)+_xlfn.XLOOKUP($A17,[2]AssesTU!$A:$A,[2]AssesTU!$AB:$AB,FALSE) -> 0 | BS17: 860357.6437 | BT17: 7037 | BU17: TRUE | BV17: -125292.8121 | BW17: -80000 | BX17: -45292.81206 | BZ17: 63 | CA17: =_xlfn.XLOOKUP(A17,'SP Number per band'!$C$8:$C$35,'SP Number per band'!$AB$8:$AB$35,FALSE) -> 63 | CB17: 0 | CC17: 7037 | CD17: y | CF17: 7037 | CG17: 729590.7055 | CH17: FALSE | CI17: 729590.7055 | CK17: 7036 | CL17: Queensbury School (S) | CM17: 992197.3369 | CN17: 1183311.281 | CO17: 191113.9438 | CP17: 0.1926168683
A18: 7038 | B18: Brays School (S) | C18: 100 | D18: 0 | E18: 1000000 | F18: 0 | I18: 1000000 | J18: =VLOOKUP($A18,'SP Number per band'!$C:$AA,'DATA SPECIAL'!J$1,FALSE) -> 0 | K18: =VLOOKUP($A18,'SP Number per band'!$C:$AA,'DATA SPECIAL'!K$1,FALSE) -> 0 | L18: =VLOOKUP($A18,'SP Number per band'!$C:$AA,'DATA SPECIAL'!L$1,FALSE) -> 3 | M18: =VLOOKUP($A18,'SP Number per band'!$C:$AA,'DATA SPECIAL'!M$1,FALSE) -> 2 | N18: =VLOOKUP($A18,'SP Number per band'!$C:$AA,'DATA SPECIAL'!N$1,FALSE) -> 0 | O18: =VLOOKUP($A18,'SP Number per band'!$C:$AA,'DATA SPECIAL'!O$1,FALSE) -> 0 | P18: =VLOOKUP($A18,'SP Number per band'!$C:$AA,'DATA SPECIAL'!P$1,FALSE) -> 18 | Q18: =VLOOKUP($A18,'SP Number per band'!$C:$AA,'DATA SPECIAL'!Q$1,FALSE) -> 10 | R18: =VLOOKUP($A18,'SP Number per band'!$C:$AA,'DATA SPECIAL'!R$1,FALSE) -> 0 | S18: =VLOOKUP($A18,'SP Number per band'!$C:$AA,'DATA SPECIAL'!S$1,FALSE) -> 0 | T18: =VLOOKUP($A18,'SP Number per band'!$C:$AA,'DATA SPECIAL'!T$1,FALSE) -> 0 | U18: =VLOOKUP($A18,'SP Number per band'!$C:$AA,'DATA SPECIAL'!U$1,FALSE) -> 1 | V18: =VLOOKUP($A18,'SP Number per band'!$C:$AA,'DATA SPECIAL'!V$1,FALSE) -> 0 | W18: =VLOOKUP($A18,'SP Number per band'!$C:$AA,'DATA SPECIAL'!W$1,FALSE) -> 0 | X18: =VLOOKUP($A18,'SP Number per band'!$C:$AA,'DATA SPECIAL'!X$1,FALSE) -> 1 | Y18: =VLOOKUP($A18,'SP Number per band'!$C:$AA,'DATA SPECIAL'!Y$1,FALSE) -> 4 | Z18: =VLOOKUP($A18,'SP Number per band'!$C:$AA,'DATA SPECIAL'!Z$1,FALSE) -> 0 | AA18: =VLOOKUP($A18,'SP Number per band'!$C:$AA,'DATA SPECIAL'!AA$1,FALSE) -> 0 | AB18: =VLOOKUP($A18,'SP Number per band'!$C:$AA,'DATA SPECIAL'!AB$1,FALSE) -> 17 | AC18: =VLOOKUP($A18,'SP Number per band'!$C:$AA,'DATA SPECIAL'!AC$1,FALSE) -> 27 | AD18: =VLOOKUP($A18,'SP Number per band'!$C:$AA,'DATA SPECIAL'!AD$1,FALSE)+VLOOKUP($A18,'SP Number per band'!$C:$AA,'DATA SPECIAL'!AD$1+2,FALSE) -> 0 | AE18: =SUMIF('SP Number per band'!$C$8:$C$35,'DATA SPECIAL'!$A18,'SP Number per band'!$Y$8:$Y$35) -> 0 | AF18: =_xlfn.XLOOKUP($A18,[2]PupilData!$A:$A,[2]PupilData!AA:AA,0,FALSE) -> 0 | AG18: 0 | AH18: 0 | AI18: 21585.6084 | AJ18: 25902.73009 | AK18: 0 | AL18: 0 | AM18: 64756.82521 | AN18: 115123.2448 | AO18: 0 | AP18: 0 | AQ18: 0 | AR18: 12951.36504 | AS18: 0 | AT18: 0 | AU18: 7195.202802 | AV18: 51805.46017 | AW18: 0 | AX18: 0 | AY18: 134550.2924 | AZ18: 369113.9037 | BA18: 0 | BB18: 0 | BC18: =_xlfn.XLOOKUP($A18,'SP 2022-23 Banding, SSF and Tp'!$A$36:$A$63,'SP 2022-23 Banding, SSF and Tp'!$C$36:$C$63,FALSE)*(C18+D18) -> 46200 | BD18: 74800 | BE18: 923984.6327 | BF18: 1923984.633 | BG18: =+BE18-_xlfn.XLOOKUP(A18,[2]Total!$A:$A,[2]Total!$AA:$AA,FALSE) -> -1470449.352 | BH18: =_xlfn.XLOOKUP($A18,'SP 2022-23 Banding, SSF and Tp'!$A$36:$A$63,'SP 2022-23 Banding, SSF and Tp'!$C$36:$C$63,FALSE) -> 462 | BI18: =_xlfn.XLOOKUP($A18,'SP 2022-23 Banding, SSF and Tp'!$A$36:$A$63,'SP 2022-23 Banding, SSF and Tp'!$F$36:$F$63,FALSE) -> 0 | BJ18: 74800 | BK18: =_xlfn.XLOOKUP($A18,'SP 2022-23 Banding, SSF and Tp'!$A$36:$A$63,'SP 2022-23 Banding, SSF and Tp'!$D$36:$D$63,FALSE) -> 748 | BO18: =_xlfn.XLOOKUP($A18,[2]PupilData!$A:$A,[2]PupilData!$AA:$AA,FALSE)+_xlfn.XLOOKUP($A18,[2]PupilData!$A:$A,[2]PupilData!$AB:$AB,FALSE) -> 0 | BP18: =_xlfn.XLOOKUP($A18,[2]AssesTU!$A:$A,[2]AssesTU!$AA:$AA,FALSE)+_xlfn.XLOOKUP($A18,[2]AssesTU!$A:$A,[2]AssesTU!$AB:$AB,FALSE) -> 0 | BS18: 999246.6327 | BT18: 7038 | BU18: TRUE | BV18: 55740.43116 | BW18: 80000 | BX18: -24259.56884 | BZ18: 83 | CA18: =_xlfn.XLOOKUP(A18,'SP Number per band'!$C$8:$C$35,'SP Number per band'!$AB$8:$AB$35,FALSE) -> 83 | CB18: 0 | CC18: 7038 | CD18: y | CF18: 7038 | CG18: 2394433.985 | CH18: 923984.6327 | CI18: 1470449.352 | CK18: 7005 | CL18: Skilts (Residential) School | CM18: 729590.7055 | CN18: 857782.0943 | CO18: 128191.3888 | CP18: 0.175703155
A19: 2207 | B19: Leycroft Academy | C19: 170 | D19: 0 | E19: 1700000 | F19: 0 | I19: =SUM(E19:H19) -> 1700000 | J19: =VLOOKUP($A19,'SP Number per band'!$C:$AA,'DATA SPECIAL'!J$1,FALSE) -> 0 | K19: =VLOOKUP($A19,'SP Number per band'!$C:$AA,'DATA SPECIAL'!K$1,FALSE) -> 0 | L19: =VLOOKUP($A19,'SP Number per band'!$C:$AA,'DATA SPECIAL'!L$1,FALSE) -> 79 | M19: =VLOOKUP($A19,'SP Number per band'!$C:$AA,'DATA SPECIAL'!M$1,FALSE) -> 90 | N19: =VLOOKUP($A19,'SP Number per band'!$C:$AA,'DATA SPECIAL'!N$1,FALSE) -> 0 | O19: =VLOOKUP($A19,'SP Number per band'!$C:$AA,'DATA SPECIAL'!O$1,FALSE) -> 0 | P19: =VLOOKUP($A19,'SP Number per band'!$C:$AA,'DATA SPECIAL'!P$1,FALSE) -> 0 | Q19: =VLOOKUP($A19,'SP Number per band'!$C:$AA,'DATA SPECIAL'!Q$1,FALSE) -> 0 | R19: =VLOOKUP($A19,'SP Number per band'!$C:$AA,'DATA SPECIAL'!R$1,FALSE) -> 0 | S19: =VLOOKUP($A19,'SP Number per band'!$C:$AA,'DATA SPECIAL'!S$1,FALSE) -> 0 | T19: =VLOOKUP($A19,'SP Number per band'!$C:$AA,'DATA SPECIAL'!T$1,FALSE) -> 0 | U19: =VLOOKUP($A19,'SP Number per band'!$C:$AA,'DATA SPECIAL'!U$1,FALSE) -> 0 | V19: =VLOOKUP($A19,'SP Number per band'!$C:$AA,'DATA SPECIAL'!V$1,FALSE) -> 0 | W19: =VLOOKUP($A19,'SP Number per band'!$C:$AA,'DATA SPECIAL'!W$1,FALSE) -> 0 | X19: =VLOOKUP($A19,'SP Number per band'!$C:$AA,'DATA SPECIAL'!X$1,FALSE) -> 0 | Y19: =VLOOKUP($A19,'SP Number per band'!$C:$AA,'DATA SPECIAL'!Y$1,FALSE) -> 0 | Z19: =VLOOKUP($A19,'SP Number per band'!$C:$AA,'DATA SPECIAL'!Z$1,FALSE) -> 0 | AA19: =VLOOKUP($A19,'SP Number per band'!$C:$AA,'DATA SPECIAL'!AA$1,FALSE) -> 0 | AB19: =VLOOKUP($A19,'SP Number per band'!$C:$AA,'DATA SPECIAL'!AB$1,FALSE) -> 0 | AC19: =VLOOKUP($A19,'SP Number per band'!$C:$AA,'DATA SPECIAL'!AC$1,FALSE) -> 0 | AD19: =VLOOKUP($A19,'SP Number per band'!$C:$AA,'DATA SPECIAL'!AD$1,FALSE)+VLOOKUP($A19,'SP Number per band'!$C:$AA,'DATA SPECIAL'!AD$1+2,FALSE) -> 0 | AE19: =SUMIF('SP Number per band'!$C$8:$C$35,'DATA SPECIAL'!$A19,'SP Number per band'!$Y$8:$Y$35) -> 0 | AF19: =_xlfn.XLOOKUP($A19,[2]PupilData!$A:$A,[2]PupilData!AA:AA,0,FALSE) -> 0 | AG19: 0 | AH19: 0 | AI19: 568421.0213 | AJ19: 1165622.854 | AK19: 0 | AL19: 0 | AM19: 0 | AN19: 0 | AO19: 0 | AP19: 0 | AQ19: 0 | AR19: 0 | AS19: 0 | AT19: 0 | AU19: 0 | AV19: 0 | AW19: 0 | AX19: 0 | AY19: 0 | AZ19: 0 | BA19: 0 | BB19: 0 | BC19: =_xlfn.XLOOKUP($A19,'SP 2022-23 Banding, SSF and Tp'!$A$36:$A$63,'SP 2022-23 Banding, SSF and Tp'!$C$36:$C$63,FALSE)*(C19+D19) -> 78540 | BD19: 127160 | BE19: 1939743.875 | BF19: 3639743.875 | BG19: =+BE19-_xlfn.XLOOKUP(A19,[2]Total!$A:$A,[2]Total!$AA:$AA,FALSE) -> 1939743.875 | BH19: =_xlfn.XLOOKUP($A19,'SP 2022-23 Banding, SSF and Tp'!$A$36:$A$63,'SP 2022-23 Banding, SSF and Tp'!$C$36:$C$63,FALSE) -> 462 | BI19: =_xlfn.XLOOKUP($A19,'SP 2022-23 Banding, SSF and Tp'!$A$36:$A$63,'SP 2022-23 Banding, SSF and Tp'!$F$36:$F$63,FALSE) -> 0 | BJ19: 127160 | BK19: =_xlfn.XLOOKUP($A19,'SP 2022-23 Banding, SSF and Tp'!$A$36:$A$63,'SP 2022-23 Banding, SSF and Tp'!$D$36:$D$63,FALSE) -> 748 | BO19: =_xlfn.XLOOKUP($A19,[2]PupilData!$A:$A,[2]PupilData!$AA:$AA,FALSE)+_xlfn.XLOOKUP($A19,[2]PupilData!$A:$A,[2]PupilData!$AB:$AB,FALSE) -> 0 | BP19: =_xlfn.XLOOKUP($A19,[2]AssesTU!$A:$A,[2]AssesTU!$AA:$AA,FALSE)+_xlfn.XLOOKUP($A19,[2]AssesTU!$A:$A,[2]AssesTU!$AB:$AB,FALSE) -> 0 | BS19: 2067365.875 | BT19: 7040 | BU19: TRUE | BV19: -274055.8369 | BW19: -10000 | BX19: -264055.8369 | BZ19: 169 | CA19: =_xlfn.XLOOKUP(A19,'SP Number per band'!$C$8:$C$35,'SP Number per band'!$AB$8:$AB$35,FALSE) -> 169 | CB19: 0 | CC19: 7040 | CD19: y | CF19: 7040 | CG19: 3162392.226 | CH19: FALSE | CI19: 3162392.226 | CK19: 7038 | CL19: Brays School (S) | CM19: 2394433.985 | CN19: 923984.6327 | CO19: -1470449.352 | CP19: -0.6141114608
A20: 7004 | B20: Mayfield School | C20: 254 | D20: 56 | E20: 2540000 | F20: 560000 | I20: 3100000 | J20: =VLOOKUP($A20,'SP Number per band'!$C:$AA,'DATA SPECIAL'!J$1,FALSE) -> 0 | K20: =VLOOKUP($A20,'SP Number per band'!$C:$AA,'DATA SPECIAL'!K$1,FALSE) -> 6 | L20: =VLOOKUP($A20,'SP Number per band'!$C:$AA,'DATA SPECIAL'!L$1,FALSE) -> 42 | M20: =VLOOKUP($A20,'SP Number per band'!$C:$AA,'DATA SPECIAL'!M$1,FALSE) -> 96 | N20: =VLOOKUP($A20,'SP Number per band'!$C:$AA,'DATA SPECIAL'!N$1,FALSE) -> 0 | O20: =VLOOKUP($A20,'SP Number per band'!$C:$AA,'DATA SPECIAL'!O$1,FALSE) -> 15 | P20: =VLOOKUP($A20,'SP Number per band'!$C:$AA,'DATA SPECIAL'!P$1,FALSE) -> 55 | Q20: =VLOOKUP($A20,'SP Number per band'!$C:$AA,'DATA SPECIAL'!Q$1,FALSE) -> 47 | R20: =VLOOKUP($A20,'SP Number per band'!$C:$AA,'DATA SPECIAL'!R$1,FALSE) -> 0 | S20: =VLOOKUP($A20,'SP Number per band'!$C:$AA,'DATA SPECIAL'!S$1,FALSE) -> 0 | T20: =VLOOKUP($A20,'SP Number per band'!$C:$AA,'DATA SPECIAL'!T$1,FALSE) -> 0 | U20: =VLOOKUP($A20,'SP Number per band'!$C:$AA,'DATA SPECIAL'!U$1,FALSE) -> 1 | V20: =VLOOKUP($A20,'SP Number per band'!$C:$AA,'DATA SPECIAL'!V$1,FALSE) -> 0 | W20: =VLOOKUP($A20,'SP Number per band'!$C:$AA,'DATA SPECIAL'!W$1,FALSE) -> 0 | X20: =VLOOKUP($A20,'SP Number per band'!$C:$AA,'DATA SPECIAL'!X$1,FALSE) -> 0 | Y20: =VLOOKUP($A20,'SP Number per band'!$C:$AA,'DATA SPECIAL'!Y$1,FALSE) -> 3 | Z20: =VLOOKUP($A20,'SP Number per band'!$C:$AA,'DATA SPECIAL'!Z$1,FALSE) -> 0 | AA20: =VLOOKUP($A20,'SP Number per band'!$C:$AA,'DATA SPECIAL'!AA$1,FALSE) -> 0 | AB20: =VLOOKUP($A20,'SP Number per band'!$C:$AA,'DATA SPECIAL'!AB$1,FALSE) -> 2 | AC20: =VLOOKUP($A20,'SP Number per band'!$C:$AA,'DATA SPECIAL'!AC$1,FALSE) -> 26 | AD20: =VLOOKUP($A20,'SP Number per band'!$C:$AA,'DATA SPECIAL'!AD$1,FALSE)+VLOOKUP($A20,'SP Number per band'!$C:$AA,'DATA SPECIAL'!AD$1+2,FALSE) -> 0 | AE20: =SUMIF('SP Number per band'!$C$8:$C$35,'DATA SPECIAL'!$A20,'SP Number per band'!$Y$8:$Y$35) -> 0 | AF20: =_xlfn.XLOOKUP($A20,[2]PupilData!$A:$A,[2]PupilData!AA:AA,0,FALSE) -> 0 | AG20: 0 | AH20: 12951.36504 | AI20: 302198.5177 | AJ20: 1243331.044 | AK20: 0 | AL20: 10792.8042 | AM20: 197868.077 | AN20: 541079.2507 | AO20: 0 | AP20: 0 | AQ20: 0 | AR20: 12951.36504 | AS20: 0 | AT20: 0 | AU20: 0 | AV20: 38854.09513 | AW20: 0 | AX20: 0 | AY20: 15829.44616 | AZ20: 355443.0184 | BA20: 0 | BB20: 0 | BC20: =_xlfn.XLOOKUP($A20,'SP 2022-23 Banding, SSF and Tp'!$A$36:$A$63,'SP 2022-23 Banding, SSF and Tp'!$C$36:$C$63,FALSE)*(C20+D20) -> 637951.4683 | BD20: 41540 | BE20: 3410790.452 | BF20: 6510790.452 | BG20: =+BE20-_xlfn.XLOOKUP(A20,[2]Total!$A:$A,[2]Total!$AA:$AA,FALSE) -> 3410790.452 | BH20: =_xlfn.XLOOKUP($A20,'SP 2022-23 Banding, SSF and Tp'!$A$36:$A$63,'SP 2022-23 Banding, SSF and Tp'!$C$36:$C$63,FALSE) -> 2057.907962 | BI20: =_xlfn.XLOOKUP($A20,'SP 2022-23 Banding, SSF and Tp'!$A$36:$A$63,'SP 2022-23 Banding, SSF and Tp'!$F$36:$F$63,FALSE) -> 0 | BJ20: 41540 | BK20: =_xlfn.XLOOKUP($A20,'SP 2022-23 Banding, SSF and Tp'!$A$36:$A$63,'SP 2022-23 Banding, SSF and Tp'!$D$36:$D$63,FALSE) -> 134 | BO20: =_xlfn.XLOOKUP($A20,[2]PupilData!$A:$A,[2]PupilData!$AA:$AA,FALSE)+_xlfn.XLOOKUP($A20,[2]PupilData!$A:$A,[2]PupilData!$AB:$AB,FALSE) -> 0 | BP20: =_xlfn.XLOOKUP($A20,[2]AssesTU!$A:$A,[2]AssesTU!$AA:$AA,FALSE)+_xlfn.XLOOKUP($A20,[2]AssesTU!$A:$A,[2]AssesTU!$AB:$AB,FALSE) -> 0 | BS20: 3454388.36 | BT20: 7040 | BU20: TRUE | BV20: -274055.8369 | BW20: -10000 | BX20: -264055.8369 | BZ20: 293 | CA20: =_xlfn.XLOOKUP(A20,'SP Number per band'!$C$8:$C$35,'SP Number per band'!$AB$8:$AB$35,FALSE) -> 293 | CB20: 0 | CC20: 7040 | CD20: y | CF20: 7045 | CG20: 1756623.523 | CH20: 2096379.201 | CI20: -339755.6786 | CK20: 7004 | CL20: Mayfield School | CM20: 3162392.226 | CN20: 3410790.452 | CO20: 248398.2259 | CP20: 0.07854757036
A21: 7045 | B21: The Pines Special School | C21: 242 | D21: 0 | E21: 2420000 | F21: 0 | I21: 2420000 | J21: =VLOOKUP($A21,'SP Number per band'!$C:$AA,'DATA SPECIAL'!J$1,FALSE) -> 0 | K21: =VLOOKUP($A21,'SP Number per band'!$C:$AA,'DATA SPECIAL'!K$1,FALSE) -> 1 | L21: =VLOOKUP($A21,'SP Number per band'!$C:$AA,'DATA SPECIAL'!L$1,FALSE) -> 179 | M21: =VLOOKUP($A21,'SP Number per band'!$C:$AA,'DATA SPECIAL'!M$1,FALSE) -> 50 | N21: =VLOOKUP($A21,'SP Number per band'!$C:$AA,'DATA SPECIAL'!N$1,FALSE) -> 0 | O21: =VLOOKUP($A21,'SP Number per band'!$C:$AA,'DATA SPECIAL'!O$1,FALSE) -> 1 | P21: =VLOOKUP($A21,'SP Number per band'!$C:$AA,'DATA SPECIAL'!P$1,FALSE) -> 0 | Q21: =VLOOKUP($A21,'SP Number per band'!$C:$AA,'DATA SPECIAL'!Q$1,FALSE) -> 0 | R21: =VLOOKUP($A21,'SP Number per band'!$C:$AA,'DATA SPECIAL'!R$1,FALSE) -> 0 | S21: =VLOOKUP($A21,'SP Number per band'!$C:$AA,'DATA SPECIAL'!S$1,FALSE) -> 0 | T21: =VLOOKUP($A21,'SP Number per band'!$C:$AA,'DATA SPECIAL'!T$1,FALSE) -> 0 | U21: =VLOOKUP($A21,'SP Number per band'!$C:$AA,'DATA SPECIAL'!U$1,FALSE) -> 0 | V21: =VLOOKUP($A21,'SP Number per band'!$C:$AA,'DATA SPECIAL'!V$1,FALSE) -> 0 | W21: =VLOOKUP($A21,'SP Number per band'!$C:$AA,'DATA SPECIAL'!W$1,FALSE) -> 0 | X21: =VLOOKUP($A21,'SP Number per band'!$C:$AA,'DATA SPECIAL'!X$1,FALSE) -> 0 | Y21: =VLOOKUP($A21,'SP Number per band'!$C:$AA,'DATA SPECIAL'!Y$1,FALSE) -> 0 | Z21: =VLOOKUP($A21,'SP Number per band'!$C:$AA,'DATA SPECIAL'!Z$1,FALSE) -> 0 | AA21: =VLOOKUP($A21,'SP Number per band'!$C:$AA,'DATA SPECIAL'!AA$1,FALSE) -> 0 | AB21: =VLOOKUP($A21,'SP Number per band'!$C:$AA,'DATA SPECIAL'!AB$1,FALSE) -> 0 | AC21: =VLOOKUP($A21,'SP Number per band'!$C:$AA,'DATA SPECIAL'!AC$1,FALSE) -> 0 | AD21: =VLOOKUP($A21,'SP Number per band'!$C:$AA,'DATA SPECIAL'!AD$1,FALSE)+VLOOKUP($A21,'SP Number per band'!$C:$AA,'DATA SPECIAL'!AD$1+2,FALSE) -> 0 | AE21: =SUMIF('SP Number per band'!$C$8:$C$35,'DATA SPECIAL'!$A21,'SP Number per band'!$Y$8:$Y$35) -> 0 | AF21: =_xlfn.XLOOKUP($A21,[2]PupilData!$A:$A,[2]PupilData!AA:AA,0,FALSE) -> 0 | AG21: 0 | AH21: 2158.56084 | AI21: 1287941.301 | AJ21: 647568.2521 | AK21: 0 | AL21: 719.5202802 | AM21: 0 | AN21: 0 | AO21: 0 | AP21: 0 | AQ21: 0 | AR21: 0 | AS21: 0 | AT21: 0 | AU21: 0 | AV21: 0 | AW21: 0 | AX21: 0 | AY21: 0 | AZ21: 0 | BA21: 0 | BB21: 0 | BC21: =_xlfn.XLOOKUP($A21,'SP 2022-23 Banding, SSF and Tp'!$A$36:$A$63,'SP 2022-23 Banding, SSF and Tp'!$C$36:$C$63,FALSE)*(C21+D21) -> 138147.5667 | BD21: 19844 | BE21: 2096379.201 | BF21: 4516379.201 | BG21: =+BE21-_xlfn.XLOOKUP(A21,[2]Total!$A:$A,[2]Total!$AA:$AA,FALSE) -> 339755.6786 | BH21: =_xlfn.XLOOKUP($A21,'SP 2022-23 Banding, SSF and Tp'!$A$36:$A$63,'SP 2022-23 Banding, SSF and Tp'!$C$36:$C$63,FALSE) -> 570.8577137 | BI21: =_xlfn.XLOOKUP($A21,'SP 2022-23 Banding, SSF and Tp'!$A$36:$A$63,'SP 2022-23 Banding, SSF and Tp'!$F$36:$F$63,FALSE) -> 0 | BJ21: 19844 | BK21: =_xlfn.XLOOKUP($A21,'SP 2022-23 Banding, SSF and Tp'!$A$36:$A$63,'SP 2022-23 Banding, SSF and Tp'!$D$36:$D$63,FALSE) -> 82 | BO21: =_xlfn.XLOOKUP($A21,[2]PupilData!$A:$A,[2]PupilData!$AA:$AA,FALSE)+_xlfn.XLOOKUP($A21,[2]PupilData!$A:$A,[2]PupilData!$AB:$AB,FALSE) -> 0 | BP21: =_xlfn.XLOOKUP($A21,[2]AssesTU!$A:$A,[2]AssesTU!$AA:$AA,FALSE)+_xlfn.XLOOKUP($A21,[2]AssesTU!$A:$A,[2]AssesTU!$AB:$AB,FALSE) -> 0 | BS21: 2116794.059 | BT21: 7045 | BU21: TRUE | BV21: -407546.0056 | BW21: -200000 | BX21: -207546.0056 | BZ21: 231 | CA21: =_xlfn.XLOOKUP(A21,'SP Number per band'!$C$8:$C$35,'SP Number per band'!$AB$8:$AB$35,FALSE) -> 231 | CB21: 0 | CC21: 7045 | CD21: y | CF21: 7047 | CG21: 1422491.381 | CH21: 1569015.329 | CI21: -146523.9476 | CK21: 7045 | CL21: The Pines Special School | CM21: 1756623.523 | CN21: 2096379.201 | CO21: 339755.6786 | CP21: 0.1934140549
A22: 7047 | B22: Springfield House School | C22: 82 | D22: 0 | E22: 820000 | F22: 0 | I22: 820000 | J22: =VLOOKUP($A22,'SP Number per band'!$C:$AA,'DATA SPECIAL'!J$1,FALSE) -> 0 | K22: =VLOOKUP($A22,'SP Number per band'!$C:$AA,'DATA SPECIAL'!K$1,FALSE) -> 0 | L22: =VLOOKUP($A22,'SP Number per band'!$C:$AA,'DATA SPECIAL'!L$1,FALSE) -> 3 | M22: =VLOOKUP($A22,'SP Number per band'!$C:$AA,'DATA SPECIAL'!M$1,FALSE) -> 2 | N22: =VLOOKUP($A22,'SP Number per band'!$C:$AA,'DATA SPECIAL'!N$1,FALSE) -> 0 | O22: =VLOOKUP($A22,'SP Number per band'!$C:$AA,'DATA SPECIAL'!O$1,FALSE) -> 0 | P22: =VLOOKUP($A22,'SP Number per band'!$C:$AA,'DATA SPECIAL'!P$1,FALSE) -> 0 | Q22: =VLOOKUP($A22,'SP Number per band'!$C:$AA,'DATA SPECIAL'!Q$1,FALSE) -> 0 | R22: =VLOOKUP($A22,'SP Number per band'!$C:$AA,'DATA SPECIAL'!R$1,FALSE) -> 0 | S22: =VLOOKUP($A22,'SP Number per band'!$C:$AA,'DATA SPECIAL'!S$1,FALSE) -> 0 | T22: =VLOOKUP($A22,'SP Number per band'!$C:$AA,'DATA SPECIAL'!T$1,FALSE) -> 9 | U22: =VLOOKUP($A22,'SP Number per band'!$C:$AA,'DATA SPECIAL'!U$1,FALSE) -> 57 | V22: =VLOOKUP($A22,'SP Number per band'!$C:$AA,'DATA SPECIAL'!V$1,FALSE) -> 0 | W22: =VLOOKUP($A22,'SP Number per band'!$C:$AA,'DATA SPECIAL'!W$1,FALSE) -> 0 | X22: =VLOOKUP($A22,'SP Number per band'!$C:$AA,'DATA SPECIAL'!X$1,FALSE) -> 0 | Y22: =VLOOKUP($A22,'SP Number per band'!$C:$AA,'DATA SPECIAL'!Y$1,FALSE) -> 0 | Z22: =VLOOKUP($A22,'SP Number per band'!$C:$AA,'DATA SPECIAL'!Z$1,FALSE) -> 0 | AA22: =VLOOKUP($A22,'SP Number per band'!$C:$AA,'DATA SPECIAL'!AA$1,FALSE) -> 0 | AB22: =VLOOKUP($A22,'SP Number per band'!$C:$AA,'DATA SPECIAL'!AB$1,FALSE) -> 0 | AC22: =VLOOKUP($A22,'SP Number per band'!$C:$AA,'DATA SPECIAL'!AC$1,FALSE) -> 0 | AD22: =VLOOKUP($A22,'SP Number per band'!$C:$AA,'DATA SPECIAL'!AD$1,FALSE)+VLOOKUP($A22,'SP Number per band'!$C:$AA,'DATA SPECIAL'!AD$1+2,FALSE) -> 0 | AE22: =SUMIF('SP Number per band'!$C$8:$C$35,'DATA SPECIAL'!$A22,'SP Number per band'!$Y$8:$Y$35) -> 0 | AF22: 12 | AG22: 0 | AH22: 0 | AI22: 21585.6084 | AJ22: 25902.73009 | AK22: 0 | AL22: 0 | AM22: 0 | AN22: 0 | AO22: 0 | AP22: 0 | AQ22: 64756.82521 | AR22: 738227.8074 | AS22: 0 | AT22: 0 | AU22: 0 | AV22: 0 | AW22: 0 | AX22: 0 | AY22: 0 | AZ22: 0 | BA22: 0 | BB22: 502409.2153 | BC22: =_xlfn.XLOOKUP($A22,'SP 2022-23 Banding, SSF and Tp'!$A$36:$A$63,'SP 2022-23 Banding, SSF and Tp'!$C$36:$C$63,FALSE)*(C22+D22) -> 216133.1422 | BD22: 0 | BE22: 1569015.329 | BF22: 2389015.329 | BG22: =+BE22-_xlfn.XLOOKUP(A22,[2]Total!$A:$A,[2]Total!$AA:$AA,FALSE) -> 146523.9476 | BH22: =_xlfn.XLOOKUP($A22,'SP 2022-23 Banding, SSF and Tp'!$A$36:$A$63,'SP 2022-23 Banding, SSF and Tp'!$C$36:$C$63,FALSE) -> 2635.770027 | BI22: =_xlfn.XLOOKUP($A22,'SP 2022-23 Banding, SSF and Tp'!$A$36:$A$63,'SP 2022-23 Banding, SSF and Tp'!$F$36:$F$63,FALSE) -> 41867.43461 | BJ22: 0 | BK22: =_xlfn.XLOOKUP($A22,'SP 2022-23 Banding, SSF and Tp'!$A$36:$A$63,'SP 2022-23 Banding, SSF and Tp'!$D$36:$D$63,FALSE) -> 0 | BO22: =_xlfn.XLOOKUP($A22,[2]PupilData!$A:$A,[2]PupilData!$AA:$AA,FALSE)+_xlfn.XLOOKUP($A22,[2]PupilData!$A:$A,[2]PupilData!$AB:$AB,FALSE) -> 0 | BP22: =_xlfn.XLOOKUP($A22,[2]AssesTU!$A:$A,[2]AssesTU!$AA:$AA,FALSE)+_xlfn.XLOOKUP($A22,[2]AssesTU!$A:$A,[2]AssesTU!$AB:$AB,FALSE) -> 0 | BS22: 1613518.533 | BT22: 7047 | BU22: TRUE | BV22: 169721.8863 | BW22: 90000 | BX22: 79721.88626 | BZ22: 71 | CA22: =_xlfn.XLOOKUP(A22,'SP Number per band'!$C$8:$C$35,'SP Number per band'!$AB$8:$AB$35,FALSE) -> 71 | CB22: 0 | CC22: 7047 | CD22: y | CF22: 7049 | CG22: 926763.5623 | CH22: 1128662.916 | CI22: -201899.3533 | CK22: 7047 | CL22: Springfield House School | CM22: 1422491.381 | CN22: 1569015.329 | CO22: 146523.9476 | CP22: 0.1030051567
A23: 7049 | B23: The Bridge School | C23: 90 | D23: 0 | E23: 900000 | F23: 0 | I23: 900000 | J23: =VLOOKUP($A23,'SP Number per band'!$C:$AA,'DATA SPECIAL'!J$1,FALSE) -> 0 | K23: =VLOOKUP($A23,'SP Number per band'!$C:$AA,'DATA SPECIAL'!K$1,FALSE) -> 0 | L23: =VLOOKUP($A23,'SP Number per band'!$C:$AA,'DATA SPECIAL'!L$1,FALSE) -> 13 | M23: =VLOOKUP($A23,'SP Number per band'!$C:$AA,'DATA SPECIAL'!M$1,FALSE) -> 20 | N23: =VLOOKUP($A23,'SP Number per band'!$C:$AA,'DATA SPECIAL'!N$1,FALSE) -> 0 | O23: =VLOOKUP($A23,'SP Number per band'!$C:$AA,'DATA SPECIAL'!O$1,FALSE) -> 0 | P23: =VLOOKUP($A23,'SP Number per band'!$C:$AA,'DATA SPECIAL'!P$1,FALSE) -> 26 | Q23: =VLOOKUP($A23,'SP Number per band'!$C:$AA,'DATA SPECIAL'!Q$1,FALSE) -> 10 | R23: =VLOOKUP($A23,'SP Number per band'!$C:$AA,'DATA SPECIAL'!R$1,FALSE) -> 0 | S23: =VLOOKUP($A23,'SP Number per band'!$C:$AA,'DATA SPECIAL'!S$1,FALSE) -> 0 | T23: =VLOOKUP($A23,'SP Number per band'!$C:$AA,'DATA SPECIAL'!T$1,FALSE) -> 1 | U23: =VLOOKUP($A23,'SP Number per band'!$C:$AA,'DATA SPECIAL'!U$1,FALSE) -> 0 | V23: =VLOOKUP($A23,'SP Number per band'!$C:$AA,'DATA SPECIAL'!V$1,FALSE) -> 0 | W23: =VLOOKUP($A23,'SP Number per band'!$C:$AA,'DATA SPECIAL'!W$1,FALSE) -> 0 | X23: =VLOOKUP($A23,'SP Number per band'!$C:$AA,'DATA SPECIAL'!X$1,FALSE) -> 1 | Y23: =VLOOKUP($A23,'SP Number per band'!$C:$AA,'DATA SPECIAL'!Y$1,FALSE) -> 2 | Z23: =VLOOKUP($A23,'SP Number per band'!$C:$AA,'DATA SPECIAL'!Z$1,FALSE) -> 0 | AA23: =VLOOKUP($A23,'SP Number per band'!$C:$AA,'DATA SPECIAL'!AA$1,FALSE) -> 1 | AB23: =VLOOKUP($A23,'SP Number per band'!$C:$AA,'DATA SPECIAL'!AB$1,FALSE) -> 9 | AC23: =VLOOKUP($A23,'SP Number per band'!$C:$AA,'DATA SPECIAL'!AC$1,FALSE) -> 9 | AD23: =VLOOKUP($A23,'SP Number per band'!$C:$AA,'DATA SPECIAL'!AD$1,FALSE)+VLOOKUP($A23,'SP Number per band'!$C:$AA,'DATA SPECIAL'!AD$1+2,FALSE) -> 0 | AE23: =SUMIF('SP Number per band'!$C$8:$C$35,'DATA SPECIAL'!$A23,'SP Number per band'!$Y$8:$Y$35) -> 0 | AF23: =_xlfn.XLOOKUP($A23,[2]PupilData!$A:$A,[2]PupilData!AA:AA,0,FALSE) -> 0 | AG23: 0 | AH23: 0 | AI23: 93537.63642 | AJ23: 259027.3009 | AK23: 0 | AL23: 0 | AM23: 93537.63642 | AN23: 115123.2448 | AO23: 0 | AP23: 0 | AQ23: 7195.202802 | AR23: 0 | AS23: 0 | AT23: 0 | AU23: 7195.202802 | AV23: 25902.73009 | AW23: 0 | AX23: 2518.320981 | AY23: 71232.50774 | AZ23: 123037.9679 | BA23: 0 | BB23: 0 | BC23: =_xlfn.XLOOKUP($A23,'SP 2022-23 Banding, SSF and Tp'!$A$36:$A$63,'SP 2022-23 Banding, SSF and Tp'!$C$36:$C$63,FALSE)*(C23+D23) -> 264835.1648 | BD23: 65520 | BE23: 1128662.916 | BF23: 2028662.916 | BG23: =+BE23-_xlfn.XLOOKUP(A23,[2]Total!$A:$A,[2]Total!$AA:$AA,FALSE) -> 201899.3533 | BH23: =_xlfn.XLOOKUP($A23,'SP 2022-23 Banding, SSF and Tp'!$A$36:$A$63,'SP 2022-23 Banding, SSF and Tp'!$C$36:$C$63,FALSE) -> 2942.612943 | BI23: =_xlfn.XLOOKUP($A23,'SP 2022-23 Banding, SSF and Tp'!$A$36:$A$63,'SP 2022-23 Banding, SSF and Tp'!$F$36:$F$63,FALSE) -> 0 | BJ23: 65520 | BK23: =_xlfn.XLOOKUP($A23,'SP 2022-23 Banding, SSF and Tp'!$A$36:$A$63,'SP 2022-23 Banding, SSF and Tp'!$D$36:$D$63,FALSE) -> 728 | BO23: =_xlfn.XLOOKUP($A23,[2]PupilData!$A:$A,[2]PupilData!$AA:$AA,FALSE)+_xlfn.XLOOKUP($A23,[2]PupilData!$A:$A,[2]PupilData!$AB:$AB,FALSE) -> 0 | BP23: =_xlfn.XLOOKUP($A23,[2]AssesTU!$A:$A,[2]AssesTU!$AA:$AA,FALSE)+_xlfn.XLOOKUP($A23,[2]AssesTU!$A:$A,[2]AssesTU!$AB:$AB,FALSE) -> 0 | BS23: 1197125.529 | BT23: 7049 | BU23: TRUE | BV23: 42928.93473 | BW23: 20000 | BX23: 22928.93473 | BZ23: 92 | CA23: =_xlfn.XLOOKUP(A23,'SP Number per band'!$C$8:$C$35,'SP Number per band'!$AB$8:$AB$35,FALSE) -> 92 | CB23: 0 | CC23: 7049 | CD23: y | CF23: 7050 | CG23: 1304503.025 | CH23: 1356630.911 | CI23: -52127.88573 | CK23: 7049 | CL23: The Bridge School | CM23: 926763.5623 | CN23: 1128662.916 | CO23: 201899.3533 | CP23: 0.2178542204
A24: 7050 | B24: Fox Hollies School | C24: 69 | D24: 39 | E24: 690000 | F24: 390000 | I24: 1080000 | J24: =VLOOKUP($A24,'SP Number per band'!$C:$AA,'DATA SPECIAL'!J$1,FALSE) -> 0 | K24: =VLOOKUP($A24,'SP Number per band'!$C:$AA,'DATA SPECIAL'!K$1,FALSE) -> 4 | L24: =VLOOKUP($A24,'SP Number per band'!$C:$AA,'DATA SPECIAL'!L$1,FALSE) -> 16 | M24: =VLOOKUP($A24,'SP Number per band'!$C:$AA,'DATA SPECIAL'!M$1,FALSE) -> 22 | N24: =VLOOKUP($A24,'SP Number per band'!$C:$AA,'DATA SPECIAL'!N$1,FALSE) -> 0 | O24: =VLOOKUP($A24,'SP Number per band'!$C:$AA,'DATA SPECIAL'!O$1,FALSE) -> 9 | P24: =VLOOKUP($A24,'SP Number per band'!$C:$AA,'DATA SPECIAL'!P$1,FALSE) -> 34 | Q24: =VLOOKUP($A24,'SP Number per band'!$C:$AA,'DATA SPECIAL'!Q$1,FALSE) -> 17 | R24: =VLOOKUP($A24,'SP Number per band'!$C:$AA,'DATA SPECIAL'!R$1,FALSE) -> 0 | S24: =VLOOKUP($A24,'SP Number per band'!$C:$AA,'DATA SPECIAL'!S$1,FALSE) -> 0 | T24: =VLOOKUP($A24,'SP Number per band'!$C:$AA,'DATA SPECIAL'!T$1,FALSE) -> 0 | U24: =VLOOKUP($A24,'SP Number per band'!$C:$AA,'DATA SPECIAL'!U$1,FALSE) -> 1 | V24: =VLOOKUP($A24,'SP Number per band'!$C:$AA,'DATA SPECIAL'!V$1,FALSE) -> 0 | W24: =VLOOKUP($A24,'SP Number per band'!$C:$AA,'DATA SPECIAL'!W$1,FALSE) -> 0 | X24: =VLOOKUP($A24,'SP Number per band'!$C:$AA,'DATA SPECIAL'!X$1,FALSE) -> 0 | Y24: =VLOOKUP($A24,'SP Number per band'!$C:$AA,'DATA SPECIAL'!Y$1,FALSE) -> 0 | Z24: =VLOOKUP($A24,'SP Number per band'!$C:$AA,'DATA SPECIAL'!Z$1,FALSE) -> 0 | AA24: =VLOOKUP($A24,'SP Number per band'!$C:$AA,'DATA SPECIAL'!AA$1,FALSE) -> 0 | AB24: =VLOOKUP($A24,'SP Number per band'!$C:$AA,'DATA SPECIAL'!AB$1,FALSE) -> 1 | AC24: =VLOOKUP($A24,'SP Number per band'!$C:$AA,'DATA SPECIAL'!AC$1,FALSE) -> 1 | AD24: =VLOOKUP($A24,'SP Number per band'!$C:$AA,'DATA SPECIAL'!AD$1,FALSE)+VLOOKUP($A24,'SP Number per band'!$C:$AA,'DATA SPECIAL'!AD$1+2,FALSE) -> 0 | AE24: =SUMIF('SP Number per band'!$C$8:$C$35,'DATA SPECIAL'!$A24,'SP Number per band'!$Y$8:$Y$35) -> 0 | AF24: =_xlfn.XLOOKUP($A24,[2]PupilData!$A:$A,[2]PupilData!AA:AA,0,FALSE) -> 0 | AG24: 0 | AH24: 8634.243362 | AI24: 115123.2448 | AJ24: 284930.0309 | AK24: 0 | AL24: 6475.682521 | AM24: 122318.4476 | AN24: 195709.5162 | AO24: 0 | AP24: 0 | AQ24: 0 | AR24: 12951.36504 | AS24: 0 | AT24: 0 | AU24: 0 | AV24: 0 | AW24: 0 | AX24: 0 | AY24: 7914.723082 | AZ24: 13670.88532 | BA24: 0 | BB24: 0 | BC24: =_xlfn.XLOOKUP($A24,'SP 2022-23 Banding, SSF and Tp'!$A$36:$A$63,'SP 2022-23 Banding, SSF and Tp'!$C$36:$C$63,FALSE)*(C24+D24) -> 418586.7717 | BD24: 170316 | BE24: 1356630.911 | BF24: 2436630.911 | BG24: =+BE24-_xlfn.XLOOKUP(A24,[2]Total!$A:$A,[2]Total!$AA:$AA,FALSE) -> 52127.88573 | BH24: =_xlfn.XLOOKUP($A24,'SP 2022-23 Banding, SSF and Tp'!$A$36:$A$63,'SP 2022-23 Banding, SSF and Tp'!$C$36:$C$63,FALSE) -> 3875.803442 | BI24: =_xlfn.XLOOKUP($A24,'SP 2022-23 Banding, SSF and Tp'!$A$36:$A$63,'SP 2022-23 Banding, SSF and Tp'!$F$36:$F$63,FALSE) -> 0 | BJ24: 170316 | BK24: =_xlfn.XLOOKUP($A24,'SP 2022-23 Banding, SSF and Tp'!$A$36:$A$63,'SP 2022-23 Banding, SSF and Tp'!$D$36:$D$63,FALSE) -> 1577 | BO24: =_xlfn.XLOOKUP($A24,[2]PupilData!$A:$A,[2]PupilData!$AA:$AA,FALSE)+_xlfn.XLOOKUP($A24,[2]PupilData!$A:$A,[2]PupilData!$AB:$AB,FALSE) -> 0 | BP24: =_xlfn.XLOOKUP($A24,[2]AssesTU!$A:$A,[2]AssesTU!$AA:$AA,FALSE)+_xlfn.XLOOKUP($A24,[2]AssesTU!$A:$A,[2]AssesTU!$AB:$AB,FALSE) -> 0 | BS24: 1530822.714 | BT24: 7050 | BU24: TRUE | BV24: -173050.5315 | BW24: -60000 | BX24: -113050.5315 | BZ24: 105 | CA24: =_xlfn.XLOOKUP(A24,'SP Number per band'!$C$8:$C$35,'SP Number per band'!$AB$8:$AB$35,FALSE) -> 105 | CB24: 0 | CC24: 7050 | CD24: y | CF24: 7051 | CG24: 851388.412 | CH24: 1116410.917 | CI24: -265022.5047 | CK24: 7050 | CL24: Fox Hollies School | CM24: 1304503.025 | CN24: 1356630.911 | CO24: 52127.88573 | CP24: 0.03995995773
A25: 7051 | B25: Cherry Oak | C25: 112 | D25: 0 | E25: 1120000 | F25: 0 | I25: 1120000 | J25: =VLOOKUP($A25,'SP Number per band'!$C:$AA,'DATA SPECIAL'!J$1,FALSE) -> 0 | K25: =VLOOKUP($A25,'SP Number per band'!$C:$AA,'DATA SPECIAL'!K$1,FALSE) -> 1 | L25: =VLOOKUP($A25,'SP Number per band'!$C:$AA,'DATA SPECIAL'!L$1,FALSE) -> 36 | M25: =VLOOKUP($A25,'SP Number per band'!$C:$AA,'DATA SPECIAL'!M$1,FALSE) -> 32 | N25: =VLOOKUP($A25,'SP Number per band'!$C:$AA,'DATA SPECIAL'!N$1,FALSE) -> 0 | O25: =VLOOKUP($A25,'SP Number per band'!$C:$AA,'DATA SPECIAL'!O$1,FALSE) -> 1 | P25: =VLOOKUP($A25,'SP Number per band'!$C:$AA,'DATA SPECIAL'!P$1,FALSE) -> 19 | Q25: =VLOOKUP($A25,'SP Number per band'!$C:$AA,'DATA SPECIAL'!Q$1,FALSE) -> 20 | R25: =VLOOKUP($A25,'SP Number per band'!$C:$AA,'DATA SPECIAL'!R$1,FALSE) -> 0 | S25: =VLOOKUP($A25,'SP Number per band'!$C:$AA,'DATA SPECIAL'!S$1,FALSE) -> 0 | T25: =VLOOKUP($A25,'SP Number per band'!$C:$AA,'DATA SPECIAL'!T$1,FALSE) -> 1 | U25: =VLOOKUP($A25,'SP Number per band'!$C:$AA,'DATA SPECIAL'!U$1,FALSE) -> 0 | V25: =VLOOKUP($A25,'SP Number per band'!$C:$AA,'DATA SPECIAL'!V$1,FALSE) -> 0 | W25: =VLOOKUP($A25,'SP Number per band'!$C:$AA,'DATA SPECIAL'!W$1,FALSE) -> 0 | X25: =VLOOKUP($A25,'SP Number per band'!$C:$AA,'DATA SPECIAL'!X$1,FALSE) -> 0 | Y25: =VLOOKUP($A25,'SP Number per band'!$C:$AA,'DATA SPECIAL'!Y$1,FALSE) -> 0 | Z25: =VLOOKUP($A25,'SP Number per band'!$C:$AA,'DATA SPECIAL'!Z$1,FALSE) -> 0 | AA25: =VLOOKUP($A25,'SP Number per band'!$C:$AA,'DATA SPECIAL'!AA$1,FALSE) -> 0 | AB25: =VLOOKUP($A25,'SP Number per band'!$C:$AA,'DATA SPECIAL'!AB$1,FALSE) -> 0 | AC25: =VLOOKUP($A25,'SP Number per band'!$C:$AA,'DATA SPECIAL'!AC$1,FALSE) -> 0 | AD25: =VLOOKUP($A25,'SP Number per band'!$C:$AA,'DATA SPECIAL'!AD$1,FALSE)+VLOOKUP($A25,'SP Number per band'!$C:$AA,'DATA SPECIAL'!AD$1+2,FALSE) -> 0 | AE25: =SUMIF('SP Number per band'!$C$8:$C$35,'DATA SPECIAL'!$A25,'SP Number per band'!$Y$8:$Y$35) -> 0 | AF25: =_xlfn.XLOOKUP($A25,[2]PupilData!$A:$A,[2]PupilData!AA:AA,0,FALSE) -> 0 | AG25: 0 | AH25: 2158.56084 | AI25: 259027.3009 | AJ25: 414443.6814 | AK25: 0 | AL25: 719.5202802 | AM25: 68354.42662 | AN25: 230246.4897 | AO25: 0 | AP25: 0 | AQ25: 7195.202802 | AR25: 0 | AS25: 0 | AT25: 0 | AU25: 0 | AV25: 0 | AW25: 0 | AX25: 0 | AY25: 0 | AZ25: 0 | BA25: 0 | BB25: 0 | BC25: =_xlfn.XLOOKUP($A25,'SP 2022-23 Banding, SSF and Tp'!$A$36:$A$63,'SP 2022-23 Banding, SSF and Tp'!$C$36:$C$63,FALSE)*(C25+D25) -> 134265.7343 | BD25: 0 | BE25: 1116410.917 | BF25: 2236410.917 | BG25: =+BE25-_xlfn.XLOOKUP(A25,[2]Total!$A:$A,[2]Total!$AA:$AA,FALSE) -> 265022.5047 | BH25: =_xlfn.XLOOKUP($A25,'SP 2022-23 Banding, SSF and Tp'!$A$36:$A$63,'SP 2022-23 Banding, SSF and Tp'!$C$36:$C$63,FALSE) -> 1198.801199 | BI25: =_xlfn.XLOOKUP($A25,'SP 2022-23 Banding, SSF and Tp'!$A$36:$A$63,'SP 2022-23 Banding, SSF and Tp'!$F$36:$F$63,FALSE) -> 0 | BJ25: 0 | BK25: =_xlfn.XLOOKUP($A25,'SP 2022-23 Banding, SSF and Tp'!$A$36:$A$63,'SP 2022-23 Banding, SSF and Tp'!$D$36:$D$63,FALSE) -> 0 | BO25: =_xlfn.XLOOKUP($A25,[2]PupilData!$A:$A,[2]PupilData!$AA:$AA,FALSE)+_xlfn.XLOOKUP($A25,[2]PupilData!$A:$A,[2]PupilData!$AB:$AB,FALSE) -> 0 | BP25: =_xlfn.XLOOKUP($A25,[2]AssesTU!$A:$A,[2]AssesTU!$AA:$AA,FALSE)+_xlfn.XLOOKUP($A25,[2]AssesTU!$A:$A,[2]AssesTU!$AB:$AB,FALSE) -> 0 | BS25: 1117609.718 | BT25: 7051 | BU25: TRUE | BV25: -22655.34454 | BW25: -10000 | BX25: -12655.34454 | BZ25: 110 | CA25: =_xlfn.XLOOKUP(A25,'SP Number per band'!$C$8:$C$35,'SP Number per band'!$AB$8:$AB$35,FALSE) -> 110 | CB25: 0 | CC25: 7051 | CD25: y | CF25: 7052 | CG25: 982968.9237 | CH25: 1078237.144 | CI25: -95268.2202 | CK25: 7051 | CL25: Cherry Oak | CM25: 851388.412 | CN25: 1116410.917 | CO25: 265022.5047 | CP25: 0.3112827247
A26: 7052 | B26: Beaufort School | C26: 85 | D26: 0 | E26: 850000 | F26: 0 | I26: 850000 | J26: =VLOOKUP($A26,'SP Number per band'!$C:$AA,'DATA SPECIAL'!J$1,FALSE) -> 0 | K26: =VLOOKUP($A26,'SP Number per band'!$C:$AA,'DATA SPECIAL'!K$1,FALSE) -> 1 | L26: =VLOOKUP($A26,'SP Number per band'!$C:$AA,'DATA SPECIAL'!L$1,FALSE) -> 23 | M26: =VLOOKUP($A26,'SP Number per band'!$C:$AA,'DATA SPECIAL'!M$1,FALSE) -> 19 | N26: =VLOOKUP($A26,'SP Number per band'!$C:$AA,'DATA SPECIAL'!N$1,FALSE) -> 0 | O26: =VLOOKUP($A26,'SP Number per band'!$C:$AA,'DATA SPECIAL'!O$1,FALSE) -> 0 | P26: =VLOOKUP($A26,'SP Number per band'!$C:$AA,'DATA SPECIAL'!P$1,FALSE) -> 18 | Q26: =VLOOKUP($A26,'SP Number per band'!$C:$AA,'DATA SPECIAL'!Q$1,FALSE) -> 10 | R26: =VLOOKUP($A26,'SP Number per band'!$C:$AA,'DATA SPECIAL'!R$1,FALSE) -> 0 | S26: =VLOOKUP($A26,'SP Number per band'!$C:$AA,'DATA SPECIAL'!S$1,FALSE) -> 1 | T26: =VLOOKUP($A26,'SP Number per band'!$C:$AA,'DATA SPECIAL'!T$1,FALSE) -> 0 | U26: =VLOOKUP($A26,'SP Number per band'!$C:$AA,'DATA SPECIAL'!U$1,FALSE) -> 0 | V26: =VLOOKUP($A26,'SP Number per band'!$C:$AA,'DATA SPECIAL'!V$1,FALSE) -> 0 | W26: =VLOOKUP($A26,'SP Number per band'!$C:$AA,'DATA SPECIAL'!W$1,FALSE) -> 0 | X26: =VLOOKUP($A26,'SP Number per band'!$C:$AA,'DATA SPECIAL'!X$1,FALSE) -> 1 | Y26: =VLOOKUP($A26,'SP Number per band'!$C:$AA,'DATA SPECIAL'!Y$1,FALSE) -> 0 | Z26: =VLOOKUP($A26,'SP Number per band'!$C:$AA,'DATA SPECIAL'!Z$1,FALSE) -> 0 | AA26: =VLOOKUP($A26,'SP Number per band'!$C:$AA,'DATA SPECIAL'!AA$1,FALSE) -> 0 | AB26: =VLOOKUP($A26,'SP Number per band'!$C:$AA,'DATA SPECIAL'!AB$1,FALSE) -> 2 | AC26: =VLOOKUP($A26,'SP Number per band'!$C:$AA,'DATA SPECIAL'!AC$1,FALSE) -> 9 | AD26: =VLOOKUP($A26,'SP Number per band'!$C:$AA,'DATA SPECIAL'!AD$1,FALSE)+VLOOKUP($A26,'SP Number per band'!$C:$AA,'DATA SPECIAL'!AD$1+2,FALSE) -> 0 | AE26: =SUMIF('SP Number per band'!$C$8:$C$35,'DATA SPECIAL'!$A26,'SP Number per band'!$Y$8:$Y$35) -> 0 | AF26: =_xlfn.XLOOKUP($A26,[2]PupilData!$A:$A,[2]PupilData!AA:AA,0,FALSE) -> 0 | AG26: 0 | AH26: 2158.56084 | AI26: 165489.6644 | AJ26: 246075.9358 | AK26: 0 | AL26: 0 | AM26: 64756.82521 | AN26: 115123.2448 | AO26: 0 | AP26: 2158.56084 | AQ26: 0 | AR26: 0 | AS26: 0 | AT26: 0 | AU26: 7195.202802 | AV26: 0 | AW26: 0 | AX26: 0 | AY26: 15829.44616 | AZ26: 123037.9679 | BA26: 0 | BB26: 0 | BC26: =_xlfn.XLOOKUP($A26,'SP 2022-23 Banding, SSF and Tp'!$A$36:$A$63,'SP 2022-23 Banding, SSF and Tp'!$C$36:$C$63,FALSE)*(C26+D26) -> 271216.7351 | BD26: 65195 | BE26: 1078237.144 | BF26: 1928237.144 | BG26: =+BE26-_xlfn.XLOOKUP(A26,[2]Total!$A:$A,[2]Total!$AA:$AA,FALSE) -> 95268.2202 | BH26: =_xlfn.XLOOKUP($A26,'SP 2022-23 Banding, SSF and Tp'!$A$36:$A$63,'SP 2022-23 Banding, SSF and Tp'!$C$36:$C$63,FALSE) -> 3190.785118 | BI26: =_xlfn.XLOOKUP($A26,'SP 2022-23 Banding, SSF and Tp'!$A$36:$A$63,'SP 2022-23 Banding, SSF and Tp'!$F$36:$F$63,FALSE) -> 0 | BJ26: 65195 | BK26: =_xlfn.XLOOKUP($A26,'SP 2022-23 Banding, SSF and Tp'!$A$36:$A$63,'SP 2022-23 Banding, SSF and Tp'!$D$36:$D$63,FALSE) -> 767 | BO26: =_xlfn.XLOOKUP($A26,[2]PupilData!$A:$A,[2]PupilData!$AA:$AA,FALSE)+_xlfn.XLOOKUP($A26,[2]PupilData!$A:$A,[2]PupilData!$AB:$AB,FALSE) -> 0 | BP26: =_xlfn.XLOOKUP($A26,[2]AssesTU!$A:$A,[2]AssesTU!$AA:$AA,FALSE)+_xlfn.XLOOKUP($A26,[2]AssesTU!$A:$A,[2]AssesTU!$AB:$AB,FALSE) -> 0 | BS26: 1146622.929 | BT26: 7052 | BU26: TRUE | BV26: -71790.2392 | BW26: 10000 | BX26: -81790.2392 | BZ26: 84 | CA26: =_xlfn.XLOOKUP(A26,'SP Number per band'!$C$8:$C$35,'SP Number per band'!$AB$8:$AB$35,FALSE) -> 84 | CB26: 0 | CC26: 7052 | CD26: y | CF26: 7053 | CG26: 1087758.39 | CH26: 1530534.539 | CI26: -442776.1494 | CK26: 7052 | CL26: Beaufort School | CM26: 982968.9237 | CN26: 1078237.144 | CO26: 95268.2202 | CP26: 0.09691885257
A27: 7053 | B27: Oscott Manor School | C27: 116 | D27: 31 | E27: 1160000 | F27: 310000 | I27: 1470000 | J27: =VLOOKUP($A27,'SP Number per band'!$C:$AA,'DATA SPECIAL'!J$1,FALSE) -> 1 | K27: =VLOOKUP($A27,'SP Number per band'!$C:$AA,'DATA SPECIAL'!K$1,FALSE) -> 14 | L27: =VLOOKUP($A27,'SP Number per band'!$C:$AA,'DATA SPECIAL'!L$1,FALSE) -> 70 | M27: =VLOOKUP($A27,'SP Number per band'!$C:$AA,'DATA SPECIAL'!M$1,FALSE) -> 41 | N27: =VLOOKUP($A27,'SP Number per band'!$C:$AA,'DATA SPECIAL'!N$1,FALSE) -> 0 | O27: =VLOOKUP($A27,'SP Number per band'!$C:$AA,'DATA SPECIAL'!O$1,FALSE) -> 3 | P27: =VLOOKUP($A27,'SP Number per band'!$C:$AA,'DATA SPECIAL'!P$1,FALSE) -> 5 | Q27: =VLOOKUP($A27,'SP Number per band'!$C:$AA,'DATA SPECIAL'!Q$1,FALSE) -> 0 | R27: =VLOOKUP($A27,'SP Number per band'!$C:$AA,'DATA SPECIAL'!R$1,FALSE) -> 0 | S27: =VLOOKUP($A27,'SP Number per band'!$C:$AA,'DATA SPECIAL'!S$1,FALSE) -> 0 | T27: =VLOOKUP($A27,'SP Number per band'!$C:$AA,'DATA SPECIAL'!T$1,FALSE) -> 2 | U27: =VLOOKUP($A27,'SP Number per band'!$C:$AA,'DATA SPECIAL'!U$1,FALSE) -> 7 | V27: =VLOOKUP($A27,'SP Number per band'!$C:$AA,'DATA SPECIAL'!V$1,FALSE) -> 0 | W27: =VLOOKUP($A27,'SP Number per band'!$C:$AA,'DATA SPECIAL'!W$1,FALSE) -> 0 | X27: =VLOOKUP($A27,'SP Number per band'!$C:$AA,'DATA SPECIAL'!X$1,FALSE) -> 0 | Y27: =VLOOKUP($A27,'SP Number per band'!$C:$AA,'DATA SPECIAL'!Y$1,FALSE) -> 0 | Z27: =VLOOKUP($A27,'SP Number per band'!$C:$AA,'DATA SPECIAL'!Z$1,FALSE) -> 0 | AA27: =VLOOKUP($A27,'SP Number per band'!$C:$AA,'DATA SPECIAL'!AA$1,FALSE) -> 0 | AB27: =VLOOKUP($A27,'SP Number per band'!$C:$AA,'DATA SPECIAL'!AB$1,FALSE) -> 0 | AC27: =VLOOKUP($A27,'SP Number per band'!$C:$AA,'DATA SPECIAL'!AC$1,FALSE) -> 0 | AD27: =VLOOKUP($A27,'SP Number per band'!$C:$AA,'DATA SPECIAL'!AD$1,FALSE)+VLOOKUP($A27,'SP Number per band'!$C:$AA,'DATA SPECIAL'!AD$1+2,FALSE) -> 0 | AE27: =SUMIF('SP Number per band'!$C$8:$C$35,'DATA SPECIAL'!$A27,'SP Number per band'!$Y$8:$Y$35) -> 0 | AF27: =_xlfn.XLOOKUP($A27,[2]PupilData!$A:$A,[2]PupilData!AA:AA,0,FALSE) -> 0 | AG27: 0 | AH27: 30219.85177 | AI27: 503664.1961 | AJ27: 531005.9668 | AK27: 0 | AL27: 2158.56084 | AM27: 17988.007 | AN27: 0 | AO27: 0 | AP27: 0 | AQ27: 14390.4056 | AR27: 90659.5553 | AS27: 0 | AT27: 0 | AU27: 0 | AV27: 0 | AW27: 0 | AX27: 0 | AY27: 0 | AZ27: 0 | BA27: 0 | BB27: 0 | BC27: =_xlfn.XLOOKUP($A27,'SP 2022-23 Banding, SSF and Tp'!$A$36:$A$63,'SP 2022-23 Banding, SSF and Tp'!$C$36:$C$63,FALSE)*(C27+D27) -> 340447.9957 | BD27: 0 | BE27: 1530534.539 | BF27: 3000534.539 | BG27: =+BE27-_xlfn.XLOOKUP(A27,[2]Total!$A:$A,[2]Total!$AA:$AA,FALSE) -> 442776.1494 | BH27: =_xlfn.XLOOKUP($A27,'SP 2022-23 Banding, SSF and Tp'!$A$36:$A$63,'SP 2022-23 Banding, SSF and Tp'!$C$36:$C$63,FALSE) -> 2315.97276 | BI27: =_xlfn.XLOOKUP($A27,'SP 2022-23 Banding, SSF and Tp'!$A$36:$A$63,'SP 2022-23 Banding, SSF and Tp'!$F$36:$F$63,FALSE) -> 0 | BJ27: 0 | BK27: =_xlfn.XLOOKUP($A27,'SP 2022-23 Banding, SSF and Tp'!$A$36:$A$63,'SP 2022-23 Banding, SSF and Tp'!$D$36:$D$63,FALSE) -> 0 | BO27: =_xlfn.XLOOKUP($A27,[2]PupilData!$A:$A,[2]PupilData!$AA:$AA,FALSE)+_xlfn.XLOOKUP($A27,[2]PupilData!$A:$A,[2]PupilData!$AB:$AB,FALSE) -> 0 | BP27: =_xlfn.XLOOKUP($A27,[2]AssesTU!$A:$A,[2]AssesTU!$AA:$AA,FALSE)+_xlfn.XLOOKUP($A27,[2]AssesTU!$A:$A,[2]AssesTU!$AB:$AB,FALSE) -> 0 | BS27: 1532850.512 | BT27: 7053 | BU27: TRUE | BV27: 20648.19373 | BW27: 0 | BX27: 20648.19373 | BZ27: 143 | CA27: =_xlfn.XLOOKUP(A27,'SP Number per band'!$C$8:$C$35,'SP Number per band'!$AB$8:$AB$35,FALSE) -> 143 | CB27: 0 | CC27: 7053 | CD27: y | CF27: 7060 | CG27: 716277.8985 | CH27: 917352.6383 | CI27: -201074.7398 | CK27: 7053 | CL27: Oscott Manor School | CM27: 1087758.39 | CN27: 1530534.539 | CO27: 442776.1494 | CP27: 0.4070537664
A28: 7060 | B28: Langley School | C28: 104 | D28: 0 | E28: 1040000 | F28: 0 | I28: 1040000 | J28: =VLOOKUP($A28,'SP Number per band'!$C:$AA,'DATA SPECIAL'!J$1,FALSE) -> 0 | K28: =VLOOKUP($A28,'SP Number per band'!$C:$AA,'DATA SPECIAL'!K$1,FALSE) -> 3 | L28: =VLOOKUP($A28,'SP Number per band'!$C:$AA,'DATA SPECIAL'!L$1,FALSE) -> 51 | M28: =VLOOKUP($A28,'SP Number per band'!$C:$AA,'DATA SPECIAL'!M$1,FALSE) -> 11 | N28: =VLOOKUP($A28,'SP Number per band'!$C:$AA,'DATA SPECIAL'!N$1,FALSE) -> 0 | O28: =VLOOKUP($A28,'SP Number per band'!$C:$AA,'DATA SPECIAL'!O$1,FALSE) -> 1 | P28: =VLOOKUP($A28,'SP Number per band'!$C:$AA,'DATA SPECIAL'!P$1,FALSE) -> 29 | Q28: =VLOOKUP($A28,'SP Number per band'!$C:$AA,'DATA SPECIAL'!Q$1,FALSE) -> 3 | R28: =VLOOKUP($A28,'SP Number per band'!$C:$AA,'DATA SPECIAL'!R$1,FALSE) -> 0 | S28: =VLOOKUP($A28,'SP Number per band'!$C:$AA,'DATA SPECIAL'!S$1,FALSE) -> 0 | T28: =VLOOKUP($A28,'SP Number per band'!$C:$AA,'DATA SPECIAL'!T$1,FALSE) -> 0 | U28: =VLOOKUP($A28,'SP Number per band'!$C:$AA,'DATA SPECIAL'!U$1,FALSE) -> 1 | V28: =VLOOKUP($A28,'SP Number per band'!$C:$AA,'DATA SPECIAL'!V$1,FALSE) -> 0 | W28: =VLOOKUP($A28,'SP Number per band'!$C:$AA,'DATA SPECIAL'!W$1,FALSE) -> 0 | X28: =VLOOKUP($A28,'SP Number per band'!$C:$AA,'DATA SPECIAL'!X$1,FALSE) -> 1 | Y28: =VLOOKUP($A28,'SP Number per band'!$C:$AA,'DATA SPECIAL'!Y$1,FALSE) -> 1 | Z28: =VLOOKUP($A28,'SP Number per band'!$C:$AA,'DATA SPECIAL'!Z$1,FALSE) -> 0 | AA28: =VLOOKUP($A28,'SP Number per band'!$C:$AA,'DATA SPECIAL'!AA$1,FALSE) -> 0 | AB28: =VLOOKUP($A28,'SP Number per band'!$C:$AA,'DATA SPECIAL'!AB$1,FALSE) -> 1 | AC28: =VLOOKUP($A28,'SP Number per band'!$C:$AA,'DATA SPECIAL'!AC$1,FALSE) -> 0 | AD28: =VLOOKUP($A28,'SP Number per band'!$C:$AA,'DATA SPECIAL'!AD$1,FALSE)+VLOOKUP($A28,'SP Number per band'!$C:$AA,'DATA SPECIAL'!AD$1+2,FALSE) -> 0 | AE28: =SUMIF('SP Number per band'!$C$8:$C$35,'DATA SPECIAL'!$A28,'SP Number per band'!$Y$8:$Y$35) -> 0 | AF28: =_xlfn.XLOOKUP($A28,[2]PupilData!$A:$A,[2]PupilData!AA:AA,0,FALSE) -> 0 | AG28: 0 | AH28: 6475.682521 | AI28: 366955.3429 | AJ28: 142465.0155 | AK28: 0 | AL28: 719.5202802 | AM28: 104330.4406 | AN28: 34536.97345 | AO28: 0 | AP28: 0 | AQ28: 0 | AR28: 12951.36504 | AS28: 0 | AT28: 0 | AU28: 7195.202802 | AV28: 12951.36504 | AW28: 0 | AX28: 0 | AY28: 7914.723082 | AZ28: 0 | BA28: 0 | BB28: 0 | BC28: =_xlfn.XLOOKUP($A28,'SP 2022-23 Banding, SSF and Tp'!$A$36:$A$63,'SP 2022-23 Banding, SSF and Tp'!$C$36:$C$63,FALSE)*(C28+D28) -> 135785.0071 | BD28: 85072 | BE28: 917352.6383 | BF28: 1957352.638 | BG28: =+BE28-_xlfn.XLOOKUP(A28,[2]Total!$A:$A,[2]Total!$AA:$AA,FALSE) -> 201074.7398 | BH28: =_xlfn.XLOOKUP($A28,'SP 2022-23 Banding, SSF and Tp'!$A$36:$A$63,'SP 2022-23 Banding, SSF and Tp'!$C$36:$C$63,FALSE) -> 1305.625068 | BI28: =_xlfn.XLOOKUP($A28,'SP 2022-23 Banding, SSF and Tp'!$A$36:$A$63,'SP 2022-23 Banding, SSF and Tp'!$F$36:$F$63,FALSE) -> 0 | BJ28: 85072 | BK28: =_xlfn.XLOOKUP($A28,'SP 2022-23 Banding, SSF and Tp'!$A$36:$A$63,'SP 2022-23 Banding, SSF and Tp'!$D$36:$D$63,FALSE) -> 818 | BO28: =_xlfn.XLOOKUP($A28,[2]PupilData!$A:$A,[2]PupilData!$AA:$AA,FALSE)+_xlfn.XLOOKUP($A28,[2]PupilData!$A:$A,[2]PupilData!$AB:$AB,FALSE) -> 0 | BP28: =_xlfn.XLOOKUP($A28,[2]AssesTU!$A:$A,[2]AssesTU!$AA:$AA,FALSE)+_xlfn.XLOOKUP($A28,[2]AssesTU!$A:$A,[2]AssesTU!$AB:$AB,FALSE) -> 0 | BS28: 1003730.263 | BT28: 7060 | BU28: TRUE | BV28: 99755.17275 | BW28: 70000 | BX28: 29755.17275 | BZ28: 102 | CA28: =_xlfn.XLOOKUP(A28,'SP Number per band'!$C$8:$C$35,'SP Number per band'!$AB$8:$AB$35,FALSE) -> 102 | CB28: 0 | CC28: 7060 | CD28: y | CF28: 7062 | CG28: 2095446.103 | CH28: 2196445.86 | CI28: -100999.7563 | CK28: 7060 | CL28: Langley School | CM28: 716277.8985 | CN28: 917352.6383 | CO28: 201074.7398 | CP28: 0.2807216867
A29: 7062 | B29: Lindsworth School | C29: 129 | D29: 0 | E29: 1290000 | F29: 0 | I29: 1290000 | J29: =VLOOKUP($A29,'SP Number per band'!$C:$AA,'DATA SPECIAL'!J$1,FALSE) -> 0 | K29: =VLOOKUP($A29,'SP Number per band'!$C:$AA,'DATA SPECIAL'!K$1,FALSE) -> 0 | L29: =VLOOKUP($A29,'SP Number per band'!$C:$AA,'DATA SPECIAL'!L$1,FALSE) -> 0 | M29: =VLOOKUP($A29,'SP Number per band'!$C:$AA,'DATA SPECIAL'!M$1,FALSE) -> 0 | N29: =VLOOKUP($A29,'SP Number per band'!$C:$AA,'DATA SPECIAL'!N$1,FALSE) -> 0 | O29: =VLOOKUP($A29,'SP Number per band'!$C:$AA,'DATA SPECIAL'!O$1,FALSE) -> 0 | P29: =VLOOKUP($A29,'SP Number per band'!$C:$AA,'DATA SPECIAL'!P$1,FALSE) -> 0 | Q29: =VLOOKUP($A29,'SP Number per band'!$C:$AA,'DATA SPECIAL'!Q$1,FALSE) -> 0 | R29: =VLOOKUP($A29,'SP Number per band'!$C:$AA,'DATA SPECIAL'!R$1,FALSE) -> 0 | S29: =VLOOKUP($A29,'SP Number per band'!$C:$AA,'DATA SPECIAL'!S$1,FALSE) -> 0 | T29: =VLOOKUP($A29,'SP Number per band'!$C:$AA,'DATA SPECIAL'!T$1,FALSE) -> 77 | U29: =VLOOKUP($A29,'SP Number per band'!$C:$AA,'DATA SPECIAL'!U$1,FALSE) -> 40 | V29: =VLOOKUP($A29,'SP Number per band'!$C:$AA,'DATA SPECIAL'!V$1,FALSE) -> 0 | W29: =VLOOKUP($A29,'SP Number per band'!$C:$AA,'DATA SPECIAL'!W$1,FALSE) -> 0 | X29: =VLOOKUP($A29,'SP Number per band'!$C:$AA,'DATA SPECIAL'!X$1,FALSE) -> 0 | Y29: =VLOOKUP($A29,'SP Number per band'!$C:$AA,'DATA SPECIAL'!Y$1,FALSE) -> 0 | Z29: =VLOOKUP($A29,'SP Number per band'!$C:$AA,'DATA SPECIAL'!Z$1,FALSE) -> 0 | AA29: =VLOOKUP($A29,'SP Number per band'!$C:$AA,'DATA SPECIAL'!AA$1,FALSE) -> 0 | AB29: =VLOOKUP($A29,'SP Number per band'!$C:$AA,'DATA SPECIAL'!AB$1,FALSE) -> 0 | AC29: =VLOOKUP($A29,'SP Number per band'!$C:$AA,'DATA SPECIAL'!AC$1,FALSE) -> 0 | AD29: =VLOOKUP($A29,'SP Number per band'!$C:$AA,'DATA SPECIAL'!AD$1,FALSE)+VLOOKUP($A29,'SP Number per band'!$C:$AA,'DATA SPECIAL'!AD$1+2,FALSE) -> 0 | AE29: =SUMIF('SP Number per band'!$C$8:$C$35,'DATA SPECIAL'!$A29,'SP Number per band'!$Y$8:$Y$35) -> 0 | AF29: 12 | AG29: 0 | AH29: 0 | AI29: 0 | AJ29: 0 | AK29: 0 | AL29: 0 | AM29: 0 | AN29: 0 | AO29: 0 | AP29: 0 | AQ29: 554030.6157 | AR29: 518054.6017 | AS29: 0 | AT29: 0 | AU29: 0 | AV29: 0 | AW29: 0 | AX29: 0 | AY29: 0 | AZ29: 0 | BA29: 0 | BB29: 428686.4197 | BC29: =_xlfn.XLOOKUP($A29,'SP 2022-23 Banding, SSF and Tp'!$A$36:$A$63,'SP 2022-23 Banding, SSF and Tp'!$C$36:$C$63,FALSE)*(C29+D29) -> 334345.2226 | BD29: 361329 | BE29: 2196445.86 | BF29: 3486445.86 | BG29: =+BE29-_xlfn.XLOOKUP(A29,[2]Total!$A:$A,[2]Total!$AA:$AA,FALSE) -> 100999.7563 | BH29: =_xlfn.XLOOKUP($A29,'SP 2022-23 Banding, SSF and Tp'!$A$36:$A$63,'SP 2022-23 Banding, SSF and Tp'!$C$36:$C$63,FALSE) -> 2591.823431 | BI29: =_xlfn.XLOOKUP($A29,'SP 2022-23 Banding, SSF and Tp'!$A$36:$A$63,'SP 2022-23 Banding, SSF and Tp'!$F$36:$F$63,FALSE) -> 35723.86831 | BJ29: 361329 | BK29: =_xlfn.XLOOKUP($A29,'SP 2022-23 Banding, SSF and Tp'!$A$36:$A$63,'SP 2022-23 Banding, SSF and Tp'!$D$36:$D$63,FALSE) -> 2801 | BO29: =_xlfn.XLOOKUP($A29,[2]PupilData!$A:$A,[2]PupilData!$AA:$AA,FALSE)+_xlfn.XLOOKUP($A29,[2]PupilData!$A:$A,[2]PupilData!$AB:$AB,FALSE) -> 0 | BP29: =_xlfn.XLOOKUP($A29,[2]AssesTU!$A:$A,[2]AssesTU!$AA:$AA,FALSE)+_xlfn.XLOOKUP($A29,[2]AssesTU!$A:$A,[2]AssesTU!$AB:$AB,FALSE) -> 0 | BS29: 2596090.551 | BT29: 7062 | BU29: TRUE | BV29: -42669.88508 | BW29: -30000 | BX29: -12669.88508 | BZ29: 117 | CA29: =_xlfn.XLOOKUP(A29,'SP Number per band'!$C$8:$C$35,'SP Number per band'!$AB$8:$AB$35,FALSE) -> 117 | CB29: 0 | CC29: 7062 | CD29: y | CF29: 7063 | CG29: 1105761.107 | CH29: 1387367.567 | CI29: -281606.4596 | CK29: 7062 | CL29: Lindsworth School | CM29: 2095446.103 | CN29: 2196445.86 | CO29: 100999.7563 | CP29: 0.04819964406
A30: 7063 | B30: James Brindley School Media Arts College | C30: 81 | D30: 0 | E30: 810000 | F30: 0 | I30: =SUM(E30:H30) -> 810000 | J30: =SUMIF('SP Number per band'!$C$8:$C$35,'DATA SPECIAL'!$A30,'SP Number per band'!D8:D35) -> 0 | K30: =SUMIF('SP Number per band'!$C$8:$C$35,'DATA SPECIAL'!$A30,'SP Number per band'!E8:E35) -> 18 | L30: =SUMIF('SP Number per band'!$C$8:$C$35,'DATA SPECIAL'!$A30,'SP Number per band'!F8:F35) -> 45 | M30: =SUMIF('SP Number per band'!$C$8:$C$35,'DATA SPECIAL'!$A30,'SP Number per band'!G8:G35) -> 11 | N30: =SUMIF('SP Number per band'!$C$8:$C$35,'DATA SPECIAL'!$A30,'SP Number per band'!H8:H35) -> 0 | O30: =SUMIF('SP Number per band'!$C$8:$C$35,'DATA SPECIAL'!$A30,'SP Number per band'!I8:I35) -> 0 | P30: =SUMIF('SP Number per band'!$C$8:$C$35,'DATA SPECIAL'!$A30,'SP Number per band'!J8:J35) -> 0 | Q30: =SUMIF('SP Number per band'!$C$8:$C$35,'DATA SPECIAL'!$A30,'SP Number per band'!K8:K35) -> 0 | R30: =SUMIF('SP Number per band'!$C$8:$C$35,'DATA SPECIAL'!$A30,'SP Number per band'!L8:L35) -> 0 | S30: =SUMIF('SP Number per band'!$C$8:$C$35,'DATA SPECIAL'!$A30,'SP Number per band'!M8:M35) -> 1 | T30: =SUMIF('SP Number per band'!$C$8:$C$35,'DATA SPECIAL'!$A30,'SP Number per band'!N8:N35) -> 25 | U30: =SUMIF('SP Number per band'!$C$8:$C$35,'DATA SPECIAL'!$A30,'SP Number per band'!O8:O35) -> 17 | V30: =SUMIF('SP Number per band'!$C$8:$C$35,'DATA SPECIAL'!$A30,'SP Number per band'!P8:P35) -> 0 | W30: =SUMIF('SP Number per band'!$C$8:$C$35,'DATA SPECIAL'!$A30,'SP Number per band'!Q8:Q35) -> 0 | X30: =SUMIF('SP Number per band'!$C$8:$C$35,'DATA SPECIAL'!$A30,'SP Number per band'!R8:R35) -> 0 | Y30: =SUMIF('SP Number per band'!$C$8:$C$35,'DATA SPECIAL'!$A30,'SP Number per band'!S8:S35) -> 0 | Z30: =SUMIF('SP Number per band'!$C$8:$C$35,'DATA SPECIAL'!$A30,'SP Number per band'!T8:T35) -> 0 | AA30: =SUMIF('SP Number per band'!$C$8:$C$35,'DATA SPECIAL'!$A30,'SP Number per band'!U8:U35) -> 0 | AB30: =SUMIF('SP Number per band'!$C$8:$C$35,'DATA SPECIAL'!$A30,'SP Number per band'!V8:V35) -> 0 | AC30: =SUMIF('SP Number per band'!$C$8:$C$35,'DATA SPECIAL'!$A30,'SP Number per band'!W8:W35) -> 0 | AD30: =VLOOKUP($A30,'SP Number per band'!$C:$AA,'DATA SPECIAL'!AD$1,FALSE)+VLOOKUP($A30,'SP Number per band'!$C:$AA,'DATA SPECIAL'!AD$1+2,FALSE) -> 89 | AE30: =SUMIF('SP Number per band'!$C$8:$C$35,'DATA SPECIAL'!$A30,'SP Number per band'!$Y$8:$Y$35) -> 20 | AF30: 0 | AG30: 0 | AH30: 38854.09513 | AI30: 323784.1261 | AJ30: 142465.0155 | AK30: 0 | AL30: 0 | AM30: 0 | AN30: 0 | AO30: 0 | AP30: 2158.56084 | AQ30: 179880.07 | AR30: 220173.2057 | AS30: 0 | AT30: 0 | AU30: 0 | AV30: 0 | AW30: 0 | AX30: 0 | AY30: 0 | AZ30: 0 | BA30: 89627.71171 | BB30: 0 | BC30: =_xlfn.XLOOKUP($A30,'SP 2022-23 Banding, SSF and Tp'!$A$36:$A$63,'SP 2022-23 Banding, SSF and Tp'!$C$36:$C$63,FALSE)*(C30+D30) -> 185744.9903 | BD30: 190917 | BE30: =SUM(AG30:BD30)+BP30 -> 1387367.567 | BF30: 2197367.567 | BG30: =+BE30-1105761.1 -> 281606.4667 | BH30: =_xlfn.XLOOKUP($A30,'SP 2022-23 Banding, SSF and Tp'!$A$36:$A$63,'SP 2022-23 Banding, SSF and Tp'!$C$36:$C$63,FALSE) -> 2293.148028 | BI30: =_xlfn.XLOOKUP($A30,'SP 2022-23 Banding, SSF and Tp'!$A$36:$A$63,'SP 2022-23 Banding, SSF and Tp'!$F$36:$F$63,FALSE) -> 0 | BJ30: 190917 | BK30: =_xlfn.XLOOKUP($A30,'SP 2022-23 Banding, SSF and Tp'!$A$36:$A$63,'SP 2022-23 Banding, SSF and Tp'!$D$36:$D$63,FALSE) -> 2357 | BO30: 20 | BP30: =BO30*'SP 2022-23 Banding, SSF and Tp'!D28 -> 13762.79142 | BS30: 1594360.506 | BT30: 7063 | BU30: TRUE | BV30: 80282.4772 | BW30: 100000 | BX30: -19717.5228 | BZ30: 226 | CA30: =SUMIF('SP Number per band'!$C$8:$C$35,'DATA SPECIAL'!A30,'SP Number per band'!$AB$8:$AB$35) -> 226 | CB30: 0 | CC30: 7063 | CD30: y | CF30: 1100 | CI30: 0 | CK30: 7063 | CL30: James Brindley School - Dovedale Unit | CN30: 1387367.567
A31: 1100 | B31: City of Birmingham | CD31: n | CG31: =SUM(CG4:CG30) -> 42169080.96 | CH31: =SUM(CH4:CH30) -> 42010920.97
A32: Total | J32: =SUM(J4:J31) -> 1 | K32: =SUM(K4:K31) -> 156 | L32: 1085 | M32: 869 | N32: 0 | O32: 220 | P32: 692 | Q32: 211 | R32: 0 | S32: 15 | T32: 215 | U32: 202 | V32: 0 | W32: 20 | X32: 93 | Y32: 59 | Z32: 0 | AA32: 43 | AB32: 143 | AC32: 293 | AD32: 89 | AE32: =SUM(AE4:AE31) -> 20 | AF32: 42 | AG32: =SUM(AG4:AG31) -> 0 | AH32: 336735.4911 | AI32: 7806795.04 | AJ32: 11254736.22 | AK32: 0 | AL32: 158294.4616 | AM32: 2489540.169 | AN32: 2429100.466 | AO32: 0 | AP32: 32378.41261 | AQ32: 1546968.602 | AR32: 2616175.739 | AS32: 0 | AT32: 43171.21681 | AU32: 669153.8606 | AV32: 764130.5375 | AW32: 0 | AX32: 108287.8022 | AY32: 1131805.401 | AZ32: 4005569.4 | BA32: 89627.71171 | BB32: 1794236.755 | BC32: 9033688.31 | BD32: 1895079 | BE32: 48219237.39 | BF32: 93679237.39 | BG32: 9942139.368 | BH32: 66156.56874 | BI32: 125543.5873 | BJ32: 1895079 | BK32: 14679 | BL32: =SUM(BL4:BL31) -> 0 | BM32: =SUM(BM4:BM31) -> 0 | BN32: =SUM(BN4:BN31) -> 0 | BO32: =SUM(BO4:BO31) -> 20 | BP32: =SUM(BP4:BP31) -> 13762.79142 | BQ32: =SUM(BQ4:BQ31) -> 0 | BR32: =SUM(BR4:BR31) -> 0 | BS32: =SUM(BS4:BS31) -> 50319799.34 | BT32: =SUM(BT4:BT31) -> 189956 | BU32: =SUM(BU4:BU31) -> 0 | BV32: =SUM(BV4:BV31) -> -2279436.918 | BW32: =SUM(BW4:BW31) -> -450000 | BX32: =SUM(BX4:BX31) -> -1829436.918 | BY32: =SUM(BY4:BY31) -> 0 | BZ32: =SUM(BZ4:BZ31) -> 4426 | CA32: 4426 | CF32: DfE | CG32: TotalDevolved
A33: 1 | B33: 2 | C33: 3 | D33: 4 | E33: 5 | F33: 6 | G33: 7 | H33: 8 | I33: 9 | J33: 10 | K33: 11 | L33: 12 | M33: 13 | N33: 14 | O33: 15 | P33: 16 | Q33: 17 | R33: 18 | S33: 19 | T33: 20 | U33: 21 | V33: 22 | W33: 23 | X33: 24 | Y33: 25 | Z33: 26 | AA33: 27 | AB33: 28 | AC33: 29 | AD33: 30 | AE33: 31 | AF33: 32 | AG33: 33 | AH33: 34 | AI33: 35 | AJ33: 36 | AK33: 37 | AL33: 38 | AM33: 39 | AN33: 40 | AO33: 41 | AP33: 42 | AQ33: 43 | AR33: 44 | AS33: 45 | AT33: 46 | AU33: 47 | AV33: 48 | AW33: 49 | AX33: 50 | AY33: 51 | AZ33: 52 | BA33: 53 | BB33: 54 | BC33: 55 | BD33: 56 | BE33: 57 | BF33: 58 | BG33: 59 | BH33: 60 | BI33: 61 | BJ33: 62 | BK33: 63 | BL33: 64 | BM33: 65 | BN33: 66 | BO33: 67 | BP33: 68 | BQ33: 69 | BR33: 70 | CF33: TRUE | CG33: TRUE
A35: DfE | B35: School | C35: AprPlacePre16 | D35: AprPlacepost16 | E35: AprFundPre16 | F35: AprFundpost16 | G35: BurFundApr | H35: BurFundSept | I35: TotdelFund | J35: PupilsA1 | K35: PupilsA2 | L35: PupilsA3 | M35: PupilsA4 | N35: PupilsB1 | O35: PupilsB2 | P35: PupilsB3 | Q35: PupilsB4 | R35: PupilsC1 | S35: PupilsC2 | T35: PupilsC3 | U35: PupilsC4 | V35: PupilsD1 | W35: PupilsD2 | X35: PupilsD3 | Y35: PupilsD4 | Z35: PupilsE1 | AA35: PupilsE2 | AB35: PupilsE3 | AC35: PupilsE4 | AD35: PupilsNP | AF35: PupilsResi | AG35: FundA1 | AH35: FundA2 | AI35: FundA3 | AJ35: FundA4 | AK35: FundB1 | AL35: FundB2 | AM35: FundB3 | AN35: FundB4 | AO35: FundC1 | AP35: FundC2 | AQ35: FundC3 | AR35: FundC4 | AS35: FundD1 | AT35: FundD2 | AU35: FundD3 | AV35: FundD4 | AW35: FundE1 | AX35: FundE2 | AY35: FundE3 | AZ35: FundE4 | BA35: FundNP | BB35: FundResi | BE35: TotalDevolved | BG35: CHECK | BH35: SCSpecFac | BI35: ResiRate | BJ35: TPTot | BK35: TPPupil | BL35: OLAInc | BM35: PPAlloc | BN35: DevCap | BO35: PupilsHT | BP35: FundHT | BR35: A1 | BS35: A2 | BT35: A3 | BU35: A4 | BV35: B1 | BW35: B2 | BX35: B3 | BY35: B4 | BZ35: C1 | CA35: C2 | CB35: C3 | CC35: C4 | CD35: D1 | CE35: D2 | CH35: E1 | CI35: E2 | CJ35: E3 | CK35: E4
A36: TRUE | B36: TRUE | C36: TRUE | D36: TRUE | E36: TRUE | F36: TRUE | G36: TRUE | H36: TRUE | I36: TRUE | J36: TRUE | K36: TRUE | L36: TRUE | M36: TRUE | N36: TRUE | O36: TRUE | P36: TRUE | Q36: TRUE | R36: TRUE | S36: TRUE | T36: TRUE | U36: TRUE | V36: TRUE | W36: TRUE | X36: TRUE | Y36: TRUE | Z36: TRUE | AA36: TRUE | AB36: TRUE | AC36: TRUE | AD36: TRUE | AF36: TRUE | AG36: TRUE | AH36: TRUE | AI36: TRUE | AJ36: TRUE | AK36: TRUE | AL36: TRUE | AM36: TRUE | AN36: TRUE | AO36: TRUE | AP36: TRUE | AQ36: TRUE | AR36: TRUE | AS36: TRUE | AT36: TRUE | AU36: TRUE | AV36: TRUE | AW36: TRUE | AX36: TRUE | AY36: TRUE | AZ36: TRUE | BA36: TRUE | BB36: TRUE | BE36: TRUE | BF36: TRUE | BG36: TRUE | BH36: TRUE | BI36: TRUE | BJ36: TRUE | BK36: TRUE | BL36: TRUE | BM36: TRUE | BN36: TRUE | BO36: TRUE | BP36: TRUE
J38: 1 | K38: 156 | L38: 1085 | M38: 869 | N38: 0 | O38: 220 | P38: 692 | Q38: 211 | R38: 0 | S38: 15 | T38: 215 | U38: 202 | V38: 0 | W38: 20 | X38: 93 | Y38: 59 | Z38: 0 | AA38: 43 | AB38: 143 | AC38: 293 | BP38: =BO30*'SP 2022-23 Banding, SSF and Tp'!D28 -> 13762.79142 | CG38: H/T
J39: =J32-J38 -> 0 | K39: =K32-K38 -> 0 | L39: 0 | M39: 0 | N39: 0 | O39: 0 | P39: 0 | Q39: 0 | R39: 0 | S39: 0 | T39: 0 | U39: 0 | V39: 0 | W39: 0 | X39: 0 | Y39: 0 | Z39: 0 | AA39: 0 | AB39: 0 | AC39: 0
AG41: A1 | AH41: A2 | AI41: A3 | AJ41: A4 | AK41: B1 | AL41: B2 | AM41: B3 | AN41: B4 | AO41: C1 | AP41: C2 | AQ41: C3 | AR41: C4 | AS41: D1 | AT41: D2 | AU41: D3 | AV41: D4 | AW41: E1 | AX41: E2 | AY41: E3 | AZ41: E4 | BA41: NF/PW | BB41: H/T | BE41: H/T
AJ46: Highlighted in yellow need to ve adjusted for Residential | AR46: Highlighted in yellow need to ve adjusted for Residential

Sheet SP 2022-23 Banding, SSF and Tp (hidden)
A1: \\SVCEDCLR07\CYPF_Childrens_Finance$\Technical Office\Fair Funding & School Support\Fair Funding\A1 Formula\22_23 Actual\Formula\Special & RB\22-23 SourceFinal\Speical School Budget -Banding 22-23, TP and SSF-Dan4May2022.xlsx
A2: Source: Dan 4th May file 2022-23 SENAR
A4: 22/23 Rates
C5: Band | D5: Rate
B6: Speech Language & Communication and ASC | C6: A1 | D6: 0
C7: A2 | D7: 2158.56084
C8: A3 | D8: 7195.202802
C9: A4 | D9: 12951.36504
B10: Cognition & Learning | C10: B1 | D10: 0
C11: B2 | D11: 719.5202802
C12: B3 | D12: 3597.601401
C13: B4 | D13: 11512.32448
B14: Behaviour, Emotional & Social | C14: C1 | D14: 0
C15: C2 | D15: 2158.56084
C16: C3 | D16: 7195.202802
C17: C4 | D17: 12951.36504
B18: Sensory | C18: D1 | D18: 0
C19: D2 | D19: 2158.56084
C20: D3 | D20: 7195.202802
C21: D4 | D21: 12951.36504
B22: Physical / Medical | C22: E1 | D22: 0
C23: E2 | D23: 2518.320981
C24: E3 | D24: 7914.723082
C25: E4 | D25: 13670.88532
C26: Northfield | D26: 1007.052941
C27: Parkway | D27: 1007.052941
C28: Home Tuition-Home | D28: 688.1395708
C29: Home Tuition-Pathways | D29: 1075.372233
F31: Uplift
F32: 0
C33: School | D33: Transitional | E33: Residential | F33: Residential
C34: Specifc | D34: Protection | E34: Funding | F34: Funding | I34: 7006 | J34: HAMILTON | K34: Autistic Spectrum Condition | L34: Small | M34: Primary | O34: Spcl - Day | Q34: 120 | R34: 112 | W34: 131868.1319 | X34: 0 | Y34: 0 | AA34: 0 | AB34: 131868.1319 | AC34: 1177.394035
C35: Factor | D35: Factor | E35: 2021-22 | F35: 2022-23 | I35: 7009 | J35: VICTORIA | K35: Cognition & Learning - with Complex Health | L35: Large | M35: All through | N35: 53 | O35: Spcl - Day | Q35: 228 | R35: 210 | V35: 277050 | W35: 65934.06593 | X35: 108333.3333 | Y35: 265000 | AA35: 150000 | AB35: 866317.3993 | AC35: 4125.320949
A36: 7016 | B36: Baskerville School | C36: 2665.821358 | D36: 2552 | E36: 47952.28443 | F36: =E36*(1+$F$32) -> 47952.28443 | I36: 7012 | J36: LONGWILL | K36: Hearing Impairment | L36: Small | M36: Primary | O36: Spcl - Day | Q36: 58 | R36: 39 | W36: 164835.1648 | X36: 0 | Y36: 0 | Z36: 50000 | AA36: 0 | AB36: 214835.1648 | AC36: 5508.59397
A37: 7052 | B37: Beaufort School | C37: 3190.785118 | D37: 767 | F37: =E37*(1+$F$32) -> 0 | I37: 7013 | J37: CALTHORPE | K37: Cognition & Learning - with Complex Health | L37: Large | M37: All through | N37: 51 | O37: Spcl - Day | Q37: 428 | R37: 425 | T37: 50000 | W37: 0 | X37: 235000 | Y37: 255000 | AA37: 450000 | AB37: 990000 | AC37: 2329.411765
A38: 7030 | B38: Braidwood School | C38: 7639.714286 | D38: 0 | F38: 0 | I38: 7014 | J38: UFFCULME | K38: Autistic Spectrum Condition | L38: Medium | M38: All through | O38: Spcl - Day | Q38: 251 | R38: 242 | T38: 100000 | U38: 100000 | W38: 98901.0989 | X38: 110833.3333 | Y38: 80000 | AA38: 0 | AB38: 489734.4322 | AC38: 2023.696001
A39: 7038 | B39: Brays School | C39: 462 | D39: 748 | F39: 0 | I39: 7016 | J39: BASKERVILLE | K39: Autistic Spectrum Condition | L39: Medium | M39: Secondary | N39: 28 | O39: Spcl - Res | Q39: 162 | R39: 156 | W39: 131868.1319 | X39: 144000 | Y39: 140000 | AA39: 0 | AB39: 415868.1319 | AC39: 2665.821358
A40: 2207 | B40: Leycroft Academy | C40: 462 | D40: 748 | F40: 0 | I40: 7000 | J40: HALLMOOR | K40: Moderate Learning Difficulties | L40: Large | M40: All through | N40: 41 | O40: Spcl - Day | Q40: 263 | R40: 260 | W40: 65934.06593 | X40: 149166.6667 | Y40: 205000 | AA40: 0 | AB40: 420100.7326 | AC40: 1615.772048
A41: 7049 | B41: Bridge School (The) | C41: 2942.612943 | D41: 728 | F41: 0 | I41: 7030 | J41: BRAIDWOOD | K41: Hearing Impairment | L41: Small | M41: Secondary | N41: 3 | O41: Spcl - Day | Q41: 71 | R41: 33 | W41: 164835.1648 | X41: 64000 | Y41: 15000 | Z41: 50000 | AA41: 0 | AB41: 293835.1648 | AC41: 8904.095904
A42: 7013 | B42: Calthorpe Teaching Academy | C42: 2329.411765 | D42: 7 | F42: 0 | I42: 7031 | J42: WILSON STUART | K42: Cognition & Learning - with Complex Health | L42: Medium | M42: All through | N42: 35 | O42: Spcl - Day | Q42: 250 | R42: 232 | W42: 65934.06593 | X42: 103333.3333 | Y42: 175000 | AA42: 0 | AB42: 344267.3993 | AC42: 1483.911204
A43: 7051 | B43: Cherry Oak School | C43: 1198.801199 | D43: 0 | F43: 0 | I43: 7033 | J43: SELLY OAK | K43: Moderate Learning Difficulties | L43: Large | M43: Secondary | N43: 116 | O43: Spcl - Day | Q43: 382 | R43: 377 | W43: 0 | X43: 0 | Y43: 0 | AA43: 0 | AB43: 0 | AC43: 0
A44: 7035 | B44: Dame Ellen Pinsent School | C44: 686.8131868 | D44: 576 | F44: 0 | I44: 7034 | J44: PRIESTLEY SMITH | K44: Visually Impairment | L44: Small | M44: All through | N44: 13 | O44: Spcl - Day | Q44: 89 | R44: 66 | S44: 220000 | W44: 164835.1648 | X44: 38333.33333 | Y44: 65000 | Z44: 50000 | AA44: 0 | AB44: 538168.4982 | AC44: 8154.068154
A45: 7050 | B45: Fox Hollies School | C45: 3875.803442 | D45: 1577 | F45: 0 | I45: 7035 | J45: DAME ELLEN PINSENT | K45: Cognition & Learning | L45: Medium | M45: Primary | O45: Spcl - Day | Q45: 149 | R45: 144 | W45: 98901.0989 | X45: 0 | Y45: 0 | AA45: 0 | AB45: 98901.0989 | AC45: 686.8131868
A46: 7000 | B46: Hallmoor School | C46: 1609.581351 | D46: 67 | F46: 0 | I46: 7036 | J46: QUEENSBURY | K46: Moderate Learning Difficulties | L46: Large | M46: Secondary | N46: 61 | O46: Spcl - Day | Q46: 249 | R46: 241 | W46: 65934.06593 | X46: 0 | Y46: 0 | AA46: 0 | AB46: 65934.06593 | AC46: 273.5853358
A47: 7006 | B47: Hamilton School | C47: 1177.394035 | D47: 0 | F47: 0 | I47: 7005 | J47: Lea Hall | K47: Behaviour , Emotional & Social Difficulties | L47: Small | M47: Primary | O47: Spcl - Day | Q47: 72 | R47: 64 | W47: 164835.1648 | X47: 0 | Y47: 0 | AA47: 0 | AB47: 164835.1648 | AC47: 2575.549451
A48: 7063 | B48: James Brindley School - Dovedale | C48: 2293.148028 | D48: 2357 | F48: 0 | I48: 7038 | J48: BRAYS | K48: Cognition & Learning - with Complex Health | L48: Medium | M48: Primary | O48: Spcl - Day | Q48: 94 | R48: 84 | T48: 50000 | W48: 65934.06593 | X48: 0 | Y48: 0 | AA48: 0 | AB48: 115934.0659 | AC48: 1380.167452
A49: 7060 | B49: Langley School | C49: 1305.625068 | D49: 818 | F49: 0 | I49: 2207 | J49: Leycroft | K49: Autistic Spectrum Condition | L49: Medium | M49: Primary | O49: Spcl - Day | Q49: 169 | R49: 168 | T49: 50000 | W49: 65934.06593 | X49: 0 | Y49: 0 | AA49: 0 | AB49: 115934.0659 | AC49: 690.0837258
A50: 7062 | B50: Lindsworth School | C50: 2591.823431 | D50: 2801 | E50: 35723.86831 | F50: 35723.86831 | I50: 7004 | J50: MAYFIELD | K50: Cognition & Learning - with Complex Health | L50: Large | M50: All through | N50: 31 | O50: Spcl - Day | Q50: 301 | R50: 293 | T50: 50000 | W50: 32967.03297 | X50: 165000 | Y50: 155000 | AA50: 200000 | AB50: 602967.033 | AC50: 2057.907962
A51: 7012 | B51: Longwill School | C51: 5508.59397 | D51: 0 | F51: 0 | I51: 7045 | J51: PINES | K51: Autistic Spectrum Condition | L51: Medium | M51: Primary | O51: Spcl - Day | Q51: 242 | R51: 231 | W51: 131868.1319 | X51: 0 | Y51: 0 | AA51: 0 | AB51: 131868.1319 | AC51: 570.8577137
A52: 7004 | B52: Mayfield School | C52: 2057.907962 | D52: 134 | F52: 0 | I52: 7047 | J52: SPRINGFIELD HOUSE | K52: Behaviour , Emotional & Social Difficulties | L52: Medium | M52: Primary | O52: Spcl - Res | Q52: 82 | R52: 69 | U52: 50000 | W52: 131868.1319 | X52: 0 | Y52: 0 | AA52: 0 | AB52: 181868.1319 | AC52: 2635.770027
A53: 7053 | B53: Oscott Manor School | C53: 2315.97276 | D53: 0 | F53: 0 | I53: 7049 | J53: BRIDGE | K53: Cognition & Learning - with Complex Health | L53: Small | M53: Primary | O53: Spcl - Res | Q53: 92 | R53: 90 | W53: 164835.1648 | X53: 0 | Y53: 0 | AA53: 100000 | AB53: 264835.1648 | AC53: 2942.612943
A54: 7045 | B54: Pines School (The) | C54: 570.8577137 | D54: 82 | F54: 0 | I54: 7050 | J54: FOX HOLLIES | K54: Cognition & Learning | L54: Small | M54: Secondary | N54: 30 | O54: Spcl - Day | Q54: 108 | R54: 105 | W54: 164835.1648 | X54: 96000 | Y54: 150000 | AA54: 0 | AB54: 410835.1648 | AC54: 3912.715856
A55: 7034 | B55: Priestley Smith School | C55: 8154.068154 | D55: 0 | F55: 0 | I55: 7051 | J55: CHERRY OAK | K55: Cognition & Learning | L55: Small | M55: Primary | O55: Spcl - Day | Q55: 112 | R55: 110 | W55: 131868.1319 | X55: 0 | Y55: 0 | AA55: 0 | AB55: 131868.1319 | AC55: 1198.801199
A56: 7036 | B56: Queensbury School | C56: 273.5853358 | D56: 13 | F56: 0 | I56: 7052 | J56: BEAUFORT | K56: Cognition & Learning - with Complex Health | L56: Small | M56: Primary | O56: Spcl - Day | Q56: 85 | R56: 83 | W56: 164835.1648 | X56: 0 | Y56: 0 | AA56: 100000 | AB56: 264835.1648 | AC56: 3190.785118
A57: 7033 | B57: Selly Oak Trust School | C57: 0 | D57: 0 | F57: 0 | I57: 7053 | J57: OSCOTT MANOR | K57: Autistic Spectrum Condition | L57: Small | M57: Secondary | N57: 17 | O57: Spcl - Day | Q57: 147 | R57: 142 | W57: 131868.1319 | X57: 112000 | Y57: 85000 | AA57: 0 | AB57: 328868.1319 | AC57: 2315.97276
A58: 7005 | B58: Lea Hall Academy | C58: 2575.549451 | F58: 0 | I58: 7060 | J58: LANGLEY | K58: Cognition & Learning | L58: Medium | M58: Primary | O58: Spcl - Day | Q58: 104 | R58: 101 | W58: 131868.1319 | X58: 0 | Y58: 0 | AA58: 0 | AB58: 131868.1319 | AC58: 1305.625068
A59: 7047 | B59: Springfield House School | C59: 2635.770027 | D59: 0 | E59: 41867.43461 | F59: 41867.43461 | I59: 7062 | J59: LINDSWORTH | K59: Behaviour , Emotional & Social Difficulties | L59: Medium | M59: Secondary | O59: Spcl - Res | Q59: 129 | R59: 118 | W59: 164835.1648 | X59: 141000 | Y59: 0 | AA59: 0 | AB59: 305835.1648 | AC59: 2591.823431
A60: 7014 | B60: Uffculme School | C60: 2023.696001 | D60: 231 | F60: 0 | I60: 7063 | J60: JAMES BRINDLEY | K60: Autistic Spectrum Condition | L60: Small | M60: Secondary | N60: 0 | O60: Spcl - Hos | Q60: 68 | R60: 68 | W60: 65934.06593 | X60: 90000 | Y60: 0 | AA60: 0 | AB60: 155934.0659 | AC60: 2293.148028
A61: 7009 | B61: Victoria School | C61: 4125.320949 | D61: 147 | F61: 0
A62: 7031 | B62: Wilson Stuart School | C62: 1483.911204 | D62: 326 | F62: 0
A63: 7063 | B63: James Brindley School | F63: 0

Sheet SP Number per band (hidden)
A1: \\SVCEDCLR07\CYPF_Childrens_Finance$\Technical Office\Fair Funding & School Support\Fair Funding\A1 Formula\22_23 Actual\Formula\Special & RB\22-23 SourceFinal\Special Birmingham Pupils Bandings Pivot 7Jun.xlsx
A2: Source of file: Dan SENAR 07 th June 2022
Y4: Values | AA4: Values
AA5: Required
B6: Count of School / Provider | D6: Band
B7: School / Provider | C7: School DFE Number | D7: A1 | E7: A2 | F7: A3 | G7: A4 | H7: B1 | I7: B2 | J7: B3 | K7: B4 | L7: C1 | M7: C2 | N7: C3 | O7: C4 | P7: D1 | Q7: D2 | R7: D3 | S7: D4 | T7: E1 | U7: E2 | V7: E3 | W7: E4 | X7: Northfield | Y7: Home Tuition-Home | Z7: Parkway | AA7: TBC | AB7: Grand Total
A8: =MATCH(C8,'DATA SPECIAL'!A4:A31,0) -> 6 | B8: Baskerville School | C8: 7016 | F8: 65 | G8: 89 | N8: 2 | O8: 1 | AB8: =SUM(D8:AA8) -> 157
B9: Beaufort School | C9: 7052 | E9: 1 | F9: 23 | G9: 19 | J9: 18 | K9: 10 | M9: 1 | R9: 1 | V9: 2 | W9: 9 | AB9: =SUM(D9:AA9) -> 84
B10: Braidwood School | C10: 7030 | Q10: 1 | R10: 18 | S10: 14 | AB10: 33
B11: Brays School | C11: 7038 | F11: 3 | G11: 2 | J11: 18 | K11: 10 | O11: 1 | R11: 1 | S11: 4 | V11: 17 | W11: 27 | AB11: 83
B12: Bridge School (The) | C12: 7049 | F12: 13 | G12: 20 | J12: 26 | K12: 10 | N12: 1 | R12: 1 | S12: 2 | U12: 1 | V12: 9 | W12: 9 | AB12: 92
B13: Calthorpe Teaching Academy | C13: 7013 | F13: 88 | G13: 128 | J13: 74 | K13: 47 | N13: 3 | O13: 12 | R13: 1 | S13: 8 | V13: 7 | W13: 56 | AB13: 424 | AC13: 392 | AD13: =AB13-AC13 -> 32
B14: Cherry Oak School | C14: 7051 | E14: 1 | F14: 36 | G14: 32 | I14: 1 | J14: 19 | K14: 20 | N14: 1 | AB14: 110
B15: Dame Ellen Pinsent School | C15: 7035 | E15: 4 | F15: 59 | G15: 9 | I15: 1 | J15: 65 | K15: 2 | N15: 4 | AB15: 144
B16: Fox Hollies School | C16: 7050 | E16: 4 | F16: 16 | G16: 22 | I16: 9 | J16: 34 | K16: 17 | O16: 1 | V16: 1 | W16: 1 | AB16: 105
B17: Hallmoor School | C17: 7000 | E17: 18 | F17: 49 | G17: 27 | I17: 63 | J17: 84 | K17: 5 | M17: 1 | N17: 3 | O17: 2 | R17: 1 | S17: 1 | U17: 2 | V17: 3 | AB17: 259
B18: Hamilton School | C18: 7006 | F18: 25 | G18: 87 | AB18: 112
B19: James Brindley School | C19: 7063 | E19: 2 | F19: 2 | G19: 2 | N19: 24 | O19: 14 | X19: 39 | Y19: 20 | Z19: 50 | AB19: 153
B20: James Brindley School - Dovedale | C20: 7063 | E20: 16 | F20: 43 | G20: 9 | M20: 1 | N20: 1 | O20: 3 | AB20: 73
B21: Langley School | C21: 7060 | E21: 3 | F21: 51 | G21: 11 | I21: 1 | J21: 29 | K21: 3 | O21: 1 | R21: 1 | S21: 1 | V21: 1 | AB21: 102
B22: Lea Hall Academy | C22: 7005 | F22: 4 | G22: 1 | N22: 29 | O22: 29 | AB22: 63
B23: Leycroft Academy | C23: 2207 | F23: 79 | G23: 90 | AB23: 169
B24: Lindsworth School | C24: 7062 | N24: 77 | O24: 40 | AB24: 117
B25: Longwill School | C25: 7012 | R25: 35 | S25: 11 | W25: 1 | AB25: 47 | AC25: 36 | AD25: =AB25-AC25 -> 11
B26: Mayfield School (Academy) | C26: 7004 | E26: 6 | F26: 42 | G26: 96 | I26: 15 | J26: 55 | K26: 47 | O26: 1 | S26: 3 | V26: 2 | W26: 26 | AB26: 293
B27: Oscott Manor School | C27: 7053 | D27: 1 | E27: 14 | F27: 70 | G27: 41 | I27: 3 | J27: 5 | N27: 2 | O27: 7 | AB27: 143
B28: Pines School (The) | C28: 7045 | E28: 1 | F28: 179 | G28: 50 | I28: 1 | AB28: 231
B29: Priestley Smith School | C29: 7034 | E29: 2 | F29: 1 | G29: 1 | I29: 3 | J29: 1 | Q29: 16 | R29: 30 | S29: 9 | V29: 2 | W29: 1 | AB29: 66
B30: Queensbury School | C30: 7036 | E30: 21 | F30: 39 | G30: 3 | I30: 48 | J30: 83 | K30: 4 | M30: 3 | N30: 27 | O30: 13 | AB30: 241
B31: Selly Oak Trust School | C31: 7033 | E31: 62 | F31: 73 | G31: 5 | I31: 64 | J31: 108 | K31: 4 | M31: 9 | N31: 29 | O31: 19 | Q31: 2 | U31: 3 | V31: 1 | AB31: 379
B32: Springfield House School | C32: 7047 | F32: 3 | G32: 2 | N32: 9 | O32: 57 | AB32: 71
B33: Uffculme school | C33: 7014 | E33: 1 | F33: 119 | G33: 120 | J33: 1 | AB33: 241
B34: Victoria School | C34: 7009 | F34: 2 | G34: 1 | I34: 5 | J34: 43 | K34: 21 | O34: 1 | R34: 2 | S34: 6 | U34: 7 | V34: 56 | W34: 67 | AB34: 211
B35: Wilson Stuart School | C35: 7031 | F35: 1 | G35: 2 | I35: 6 | J35: 29 | K35: 11 | N35: 3 | Q35: 1 | R35: 2 | U35: 30 | V35: 42 | W35: 96 | AB35: 223
B36: Grand Total | D36: =SUM(D8:D35) -> 1 | E36: 156 | F36: 1085 | G36: 869 | H36: 0 | I36: 220 | J36: 692 | K36: 211 | L36: 0 | M36: 15 | N36: 215 | O36: 202 | P36: 0 | Q36: 20 | R36: 93 | S36: 59 | T36: 0 | U36: 43 | V36: 143 | W36: 293 | X36: 39 | Y36: 20 | Z36: 50 | AA36: 0 | AB36: =SUM(AB8:AB35) -> 4426

Sheet SP SENAR 4th May Place No (hidden)
A1: \\SVCEDCLR07\CYPF_Childrens_Finance$\Technical Office\Fair Funding & School Support\Fair Funding\A1 Formula\22_23 Actual\Formula\Special & RB\22-23 SourceFinal\Speical School Budget -Banding 22-23, TP and SSF-Dan4May2022.xlsx
A2: Source: Dan 4th May file 2022-23 SENAR
K5: 21/22 | Q5: 22/23 numbers
F6: Fixed as 17/18 | I6: No. of | K6: No. of | V6: Bham | X6: Use these total moving forward
A7: DfE No | D7: School | E7: Need | F7: Size | G7: Phase | H7: 6th form | I7: Type | K7: Pupils | L7: Bham Pupils | N7: 21/22 Tp rates | O7: 21/22 Total | P7: 22/23 | Q7: DfE No | T7: School | U7: Pupils | V7: Pupils | W7: 22/23 Rates | X7: 22/23 Rates
A8: 3307006 | B8: 7006 | C8: 7006 | D8: HAMILTON | E8: Autistic Spectrum Condition | F8: Small | G8: Primary | I8: Spcl - Day | K8: 121 | L8: 115 | N8: 0 | O8: 0 | Q8: 3307006 | R8: 7006 | S8: 7006 | T8: HAMILTON | U8: 120 | V8: 112 | W8: 0 | X8: 0
A9: 3307009 | B9: 7009 | C9: 7009 | D9: VICTORIA | E9: Cognition & Learning - with Complex Health | F9: Large | G9: All through | H9: 53 | I9: Spcl - Day | K9: 223 | L9: 207 | N9: 151 | O9: 33673 | Q9: 3307009 | R9: 7009 | S9: 7009 | T9: VICTORIA | U9: 228 | V9: 210 | W9: 147 | X9: 33516
A10: 3307012 | B10: 7012 | C10: 7012 | D10: LONGWILL | E10: Hearing Impairment | F10: Small | G10: Primary | I10: Spcl - Day | K10: 53 | L10: 36 | N10: 0 | O10: 0 | Q10: 3307012 | R10: 7012 | S10: 7012 | T10: LONGWILL | U10: 65 | V10: 39 | W10: 0 | X10: 0
A11: 3307013 | B11: 7013 | C11: 7013 | D11: CALTHORPE | E11: Cognition & Learning - with Complex Health | F11: Large | G11: All through | H11: 51 | I11: Spcl - Day | K11: 398 | L11: 392 | N11: 8 | O11: 3184 | Q11: 3307013 | R11: 7013 | S11: 7013 | T11: CALTHORPE | U11: 428 | V11: 425 | W11: 7 | X11: 2996
A12: 3307014 | B12: 7014 | C12: 7014 | D12: UFFCULME | E12: Autistic Spectrum Condition | F12: Medium | G12: All through | I12: Spcl - Day | K12: 234 | L12: 228 | N12: 248 | O12: 58032 | Q12: 3307014 | R12: 7014 | S12: 7014 | T12: UFFCULME | U12: 251 | V12: 242 | W12: 231 | X12: 57981
A13: 3307016 | B13: 7016 | C13: 7016 | D13: BASKERVILLE | E13: Autistic Spectrum Condition | F13: Medium | G13: Secondary | H13: 28 | I13: Spcl - Res | K13: 162 | L13: 156 | N13: 2552 | O13: 413424 | Q13: 3307016 | R13: 7016 | S13: 7016 | T13: BASKERVILLE | U13: 162 | V13: 156 | W13: 2552 | X13: 413424
A14: 3307000 | B14: 7000 | C14: 7000 | D14: HALLMOOR | E14: Moderate Learning Difficulties | F14: Large | G14: All through | H14: 41 | I14: Spcl - Day | K14: 262 | L14: 261 | N14: 68 | O14: 17816 | Q14: 3307000 | R14: 7000 | S14: 7000 | T14: HALLMOOR | U14: 263 | V14: 260 | W14: 67 | X14: 17621
A15: 3307030 | B15: 7030 | C15: 7030 | D15: BRAIDWOOD | E15: Hearing Impairment | F15: Small | G15: Secondary | H15: 3 | I15: Spcl - Day | K15: 72 | L15: 39 | N15: 0 | O15: 0 | Q15: 3307030 | R15: 7030 | S15: 7030 | T15: BRAIDWOOD | U15: 71 | V15: 33 | W15: 0 | X15: 0 | Z15: 0.01408450704
A16: 3307031 | B16: 7031 | C16: 7031 | D16: WILSON STUART | E16: Cognition & Learning - with Complex Health | F16: Medium | G16: All through | H16: 35 | I16: Spcl - Day | K16: 235 | L16: 219 | N16: 347 | O16: 81545 | Q16: 3307031 | R16: 7031 | S16: 7031 | T16: WILSON STUART | U16: 250 | V16: 232 | W16: 326 | X16: 81500
A17: 3307033 | B17: 7033 | C17: 7033 | D17: SELLY OAK | E17: Moderate Learning Difficulties | F17: Large | G17: Secondary | H17: 116 | I17: Spcl - Day | K17: 387 | L17: 382 | N17: 0 | O17: 0 | Q17: 3307033 | R17: 7033 | S17: 7033 | T17: SELLY OAK | U17: 382 | V17: 377 | W17: 0 | X17: 0
A18: 3307034 | B18: 7034 | C18: 7034 | D18: PRIESTLEY SMITH | E18: Visually Impairment | F18: Small | G18: All through | H18: 13 | I18: Spcl - Day | K18: 89 | L18: 65 | N18: 0 | O18: 0 | Q18: 3307034 | R18: 7034 | S18: 7034 | T18: PRIESTLEY SMITH | U18: 89 | V18: 66 | W18: 0 | X18: 0
A19: 3307035 | B19: 7035 | C19: 7035 | D19: DAME ELLEN PINSENT | E19: Cognition & Learning | F19: Medium | G19: Primary | I19: Spcl - Day | K19: 150 | L19: 146 | N19: 573 | O19: 85950 | Q19: 3307035 | R19: 7035 | S19: 7035 | T19: DAME ELLEN PINSENT | U19: 149 | V19: 144 | W19: 576 | X19: 85824
A20: 3307036 | B20: 7036 | C20: 7036 | D20: QUEENSBURY | E20: Moderate Learning Difficulties | F20: Large | G20: Secondary | H20: 61 | I20: Spcl - Day | K20: 243 | L20: 237 | N20: 14 | O20: 3402 | Q20: 3307036 | R20: 7036 | S20: 7036 | T20: QUEENSBURY | U20: 249 | V20: 241 | W20: 13 | X20: 3237
A21: 3307037 | B21: 7037 | C21: 7037 | D21: Lea Hall | E21: Behaviour , Emotional & Social Difficulties | F21: Small | G21: Primary | I21: Spcl - Res | K21: 68 | L21: 60 | N21: 0 | O21: 0 | Q21: 3307005 | R21: 7005 | S21: 7005 | T21: Lea Hall | U21: 72 | V21: 64 | W21: 0 | X21: 0
A22: 3307038 | B22: 7038 | C22: 7038 | D22: BRAYS | E22: Cognition & Learning - with Complex Health | F22: Medium | G22: Primary | I22: Spcl - Day | K22: 260 | L22: 251 | N22: 757 | O22: 196820 | Q22: 3307038 | R22: 7038 | S22: 7038 | T22: BRAYS | U22: 94 | V22: 84 | W22: 748 | X22: 70312 | Y22: this and below equals the brays amount
A23: 3307040 | C23: 2207 | D23: Leycroft | E23: 169 | F23: 168 | O23: 0 | Q23: 3302207 | R23: 2207 | S23: 2207 | T23: Leycroft | U23: 169 | V23: 168 | W23: 748 | X23: 126412
A24: 3307045 | B24: 7004 | C24: 7004 | D24: MAYFIELD | E24: Cognition & Learning - with Complex Health | F24: Large | G24: All through | H24: 31 | I24: Spcl - Day | K24: 298 | L24: 293 | N24: 136 | O24: 40528 | Q24: 3307004 | R24: 7004 | S24: 7004 | T24: MAYFIELD | U24: 301 | V24: 293 | W24: 134 | X24: 40334
A25: 3307047 | B25: 7045 | C25: 7045 | D25: PINES | E25: Autistic Spectrum Condition | F25: Medium | G25: Primary | I25: Spcl - Day | K25: 212 | L25: 207 | N25: 94 | O25: 19928 | Q25: 3307045 | R25: 7045 | S25: 7045 | T25: PINES | U25: 242 | V25: 231 | W25: 82 | X25: 19844
A26: 3307049 | B26: 7047 | C26: 7047 | D26: SPRINGFIELD HOUSE | E26: Behaviour , Emotional & Social Difficulties | F26: Medium | G26: Primary | I26: Spcl - Res | K26: 87 | L26: 74 | N26: 0 | O26: 0 | Q26: 3307047 | R26: 7047 | S26: 7047 | T26: SPRINGFIELD HOUSE | U26: 82 | V26: 69 | W26: 0 | X26: 0
A27: 3307050 | B27: 7049 | C27: 7049 | D27: BRIDGE | E27: Cognition & Learning - with Complex Health | F27: Small | G27: Primary | I27: Spcl - Res | K27: 88 | L27: 85 | N27: 762 | O27: 67056 | Q27: 3307049 | R27: 7049 | S27: 7049 | T27: BRIDGE | U27: 92 | V27: 90 | W27: 728 | X27: 66976
A28: 3307051 | B28: 7050 | C28: 7050 | D28: FOX HOLLIES | E28: Cognition & Learning | F28: Small | G28: Secondary | H28: 30 | I28: Spcl - Day | K28: 107 | L28: 106 | N28: 1592 | O28: 170344 | Q28: 3307050 | R28: 7050 | S28: 7050 | T28: FOX HOLLIES | U28: 108 | V28: 105 | W28: 1577 | X28: 170316
A29: 3307052 | B29: 7051 | C29: 7051 | D29: CHERRY OAK | E29: Cognition & Learning | F29: Small | G29: Primary | I29: Spcl - Day | K29: 111 | L29: 110 | N29: 0 | O29: 0 | Q29: 3307051 | R29: 7051 | S29: 7051 | T29: CHERRY OAK | U29: 112 | V29: 110 | W29: 0 | X29: 0
A30: 3307053 | B30: 7052 | C30: 7052 | D30: BEAUFORT | E30: Cognition & Learning - with Complex Health | F30: Small | G30: Primary | I30: Spcl - Day | K30: 82 | L30: 81 | N30: 796 | O30: 65272 | Q30: 3307052 | R30: 7052 | S30: 7052 | T30: BEAUFORT | U30: 85 | V30: 83 | W30: 767 | X30: 65195
A31: 3307060 | B31: 7053 | C31: 7053 | D31: OSCOTT MANOR | E31: Autistic Spectrum Condition | F31: Small | G31: Secondary | H31: 17 | I31: Spcl - Day | K31: 109 | L31: 107 | N31: 0 | O31: 0 | Q31: 3307053 | R31: 7053 | S31: 7053 | T31: OSCOTT MANOR | U31: 147 | V31: 142 | W31: 0 | X31: 0
A32: 3307062 | B32: 7060 | C32: 7060 | D32: LANGLEY | E32: Cognition & Learning | F32: Medium | G32: Primary | I32: Spcl - Day | K32: 106 | L32: 104 | N32: 803 | O32: 85118 | Q32: 3307060 | R32: 7060 | S32: 7060 | T32: LANGLEY | U32: 104 | V32: 101 | W32: 818 | X32: 85072
A33: 3307063 | B33: 7062 | C33: 7062 | D33: LINDSWORTH | E33: Behaviour , Emotional & Social Difficulties | F33: Medium | G33: Secondary | I33: Spcl - Res | K33: 121 | L33: 112 | N33: 2987 | O33: 361427 | Q33: 3307062 | R33: 7062 | S33: 7062 | T33: LINDSWORTH | U33: 129 | V33: 118 | W33: 2801 | X33: 361329
B34: 7063 | C34: 7063 | D34: JAMES BRINDLEY | E34: Autistic Spectrum Condition | F34: Small | G34: Secondary | H34: 0 | I34: Spcl - Hos | K34: 71 | L34: 71 | N34: 2258 | O34: 160318 | Q34: 3307063 | R34: 7063 | S34: 7063 | T34: JAMES BRINDLEY | U34: 70 | V34: 70 | W34: 2290 | X34: 160300
U36: =SUM(U8:U35) -> 4514

Sheet P6 Resource Base (hidden)
A1: Birmingham City Council | B1: Page 6 | E1: =+$H$15+$H$22+$H$25 -> 0
A2: S251 School Budget Share Notification 2022/23
A3: Memorandum Item
A5: ="School:"&" "&DFES!$F$1 -> School: Baskerville
A6: ="DfE No.:"&" "&DFES!$E$1 -> DfE No.: 7016
A9: 2022/23 Formula Budget Determination (calculations are up to 10 decimal places): Analysis of Resource Base Funding for 2022/23
A12: Section A - Total Funding
A13: Resource Base Budget Summary | D13: £ | E13: £
A15: Commissioned Place Numbers - | B15: See Table Below
A16: Total Delegated Funding (Based on total Commissioned Places) | E16: =IF(ISNA(VLOOKUP(DFES!$E$1,'RB DATA'!$A$3:$K$44,'RB DATA'!G1,0)),0,VLOOKUP(DFES!$E$1,'RB DATA'!$A$3:$K$44,'RB DATA'!G1,0)) -> 0
A18: Birmingham Pupils Indicative "Top Up" Funding (match to SENAR estimate) | D18: =IF(ISNA(VLOOKUP(DFES!$E$1,'RB DATA'!$A$3:$K$44,'RB DATA'!I1,0)),0,VLOOKUP(DFES!$E$1,'RB DATA'!$A$3:$K$44,'RB DATA'!I1,0)) -> 0
A20: *(a) £4000 less School Funding per pupil (excluding Lump sum) | C20: =IFERROR((VLOOKUP(DFES!$E$1,'RB DATA'!$A$3:$N$44,14,FALSE)),"N/A for Nursery") -> N/A for Nursery
A21: (b) Total Place numbers Oct 21 census | C21: =C44 -> 0
A22: *(c ) Academic Year adjustment 21/22 (Academies only Apr to Aug 22) | C22: =IF((VLOOKUP(DFES!$E$1,'RB DATA'!A3:C44,3,FALSE))="Academy",(((VLOOKUP(DFES!$E$1,'RB DATA'!$A$3:$O$44,15,FALSE))*-B44)/12*5),"") -> 
A23: (d ) Academic Year adjustment 22/23 (Academies only Sept22 to Mar23 (-a*b/12*7) | C23: =IF((VLOOKUP(DFES!$E$1,'RB DATA'!A3:C44,3,FALSE))="Academy",((-C21*C20)/12*7),"") -> 
A24: Adjustment of Minimum Funding Per Pupil (FPP) (c+d) | D24: =IF(ISNA(VLOOKUP(DFES!$E$1,'RB DATA'!$A$3:$M$44,'RB DATA'!L1,0)),0,VLOOKUP(DFES!$E$1,'RB DATA'!$A$3:$M$44,'RB DATA'!L1,0))+IF(ISNA(VLOOKUP(DFES!$E$1,'RB DATA'!$A$3:$M$44,'RB DATA'!M1,0)),0,VLOOKUP(DFES!$E$1,'RB DATA'!$A$3:$M$44,'RB DATA'!M1,0)) -> 0
A26: Total Birmingham Pupils Indicative "Top Up" Funding | E26: =D18+D24 -> 0
A28: Indicative Additional Places - Paid as Top Up | E28: =IF(ISNA(VLOOKUP(DFES!E1,'RB DATA'!A3:K44,'RB DATA'!H1,0)),0,VLOOKUP(DFES!E1,'RB DATA'!A3:K44,'RB DATA'!H1,0)) -> 0
A30: Indicative Other Local Authority Pupils "Top Up" Income | E30: 0
A36: Section B - Delegated Funding Analysis
A39: Commissioned Place Numbers
D41: Commissioned Place Numbers 2022/23
B42: Pupils | C42: Pupils | D42: Total Places | E42: Total Places
B43: 2020-10-01 | C43: 2021-10-01 | D43: 2022-04-01 | E43: 2022-09-01
A44: Note 1 | B44: =IF(ISNA(VLOOKUP(DFES!$E$1,'RB DATA'!$A$53:$D$94,4,0)),0,VLOOKUP(DFES!$E$1,'RB DATA'!$A$53:$D$94,4,0)) -> 0 | C44: =IF(ISNA(VLOOKUP(DFES!$E$1,'RB DATA'!$A$3:$J$44,'RB DATA'!D1,0)),0,VLOOKUP(DFES!$E$1,'RB DATA'!$A$3:$J$44,'RB DATA'!D1,0)) -> 0 | D44: =IF(ISNA(VLOOKUP(DFES!$E$1,'RB DATA'!$A$3:$J$44,'RB DATA'!E1,0)),0,VLOOKUP(DFES!$E$1,'RB DATA'!$A$3:$J$44,'RB DATA'!E1,0)) -> 0 | E44: =IF(ISNA(VLOOKUP(DFES!$E$1,'RB DATA'!$A$3:$J$44,'RB DATA'!F1,0)),0,VLOOKUP(DFES!$E$1,'RB DATA'!$A$3:$J$44,'RB DATA'!F1,0)) -> 0
B47: Actual April Aug | D47: Sept-Mar
B48: Occupied (place for Nursery) | C48: Unoccupied | D48: Occupied (place for Nursery) | E48: Unoccupied | F48: Total
A49: 2022/23 Delegated Funding (Maintained Schools only) | B49: =IF($D$44="N/A","",(IF((VLOOKUP(DFES!$E$1,'RB DATA'!A3:C44,3,FALSE))="Academy","",IF(C44<=D44,C44*6000,D44*6000)/12*5))) ->  | C49: =IF($C$44="N/A","",(IF((VLOOKUP(DFES!$E$1,'RB DATA'!A3:C44,3,FALSE))="Academy","",(IF(C44>D44,0,(D44-C44)*(10000/12*5)))))) ->  | D49: =IF($E$44="N/A","",(IF((VLOOKUP(DFES!$E$1,'RB DATA'!A3:C44,3,FALSE))="Academy","",IF(C44<=E44,C44*6000,E44*6000)/12*7))) ->  | E49: =IF($C$44="N/A","",(IF((VLOOKUP(DFES!$E$1,'RB DATA'!A3:C44,3,FALSE))="Academy","",(IF(C44>E44,0,(E44-C44)*(10000/12*7)))))) ->  | F49: =SUM(B49:E49) -> 
A50: N.B. not applicable for Nursery funded settings | F50: =IF(F49=0,"",(F49-E16)) -> 
A52: Notes:
A53: 1. Commisioned place numbers specified are those the LA have commissioned from schools for 2022/23
A55: 2. Commissioned places are funded at £6,000 per place. Vacant commissioned places will be funded at £10,000 per place.
A59: 3. The allocation specified here for "Top Up" funding has been determined by the LA using the CRISP resource allocation system.
A60: Pupils within your school living outside of Birmingham will be funded by the home Local Authority.
A61: A more detail schedule of funding allocations per pupil will be provided by SENAR to support this notification.
A62: Schools should also note that adjustments will be made to this indicative allocation as pupils move in and out of the school.
A66: 5. Academies receive place funding direct from the EFA as part of the Academies General Annual Grant
A68: 6. The LA will make payments to the Academy as specified below (adjusted for 22/23 final budget in the following Summer payment)
A69: Academy Payment Profile
B71: Period | C71: Paid | D71: Amount
B72: Summer Term 2022 | C72: May ½ Term | D72: =IF((VLOOKUP(DFES!$E$1,'RB DATA'!$A$3:$C$44,3,FALSE))="Academy",((+$E$26+$E$28)/12*5),"") -> 
B73: Autumn Term 2022 | C73: October ½ Term | D73: =IF((VLOOKUP(DFES!$E$1,'RB DATA'!$A$3:$C$44,3,FALSE))="Academy",((+$E$26+$E$28)/12*4),"") -> 
B74: Spring Term 2023 | C74: February ½ Term | D74: =IF((VLOOKUP(DFES!$E$1,'RB DATA'!$A$3:$C$44,3,FALSE))="Academy",((+$E$26+$E$28)/12*3),"") -> 
D75: =SUM(D72:D74) -> 

Sheet RB DATA (hidden)
A1: 1 | B1: 2 | C1: 3 | D1: 4 | E1: 5 | F1: 6 | G1: 7 | H1: 8 | I1: 9 | J1: 10 | K1: 11 | L1: 12 | M1: 13 | N1: 14 | O1: 15 | P1: 16 | Q1: 17 | R1: 18 | S1: 19 | T1: 20 | U1: 21 | V1: 22 | W1: 23 | X1: 24 | Y1: 25 | Z1: 26 | AA1: 27 | AB1: 28
A2: DfE | B2: School | D2: Oct 2021 Census on roll Pupil Nos | E2: 01/04/2022 Summer Comm Places | F2: 01/09/2022 Autumn Comm Places | G2: Total place funding | I2: TPPupil | J2: Academy April 20 to August 20 | K2: Academy Sept 20 to March 21 | L2: Total Academy MFPP Adj | M2: MFPP Maintained | N2: MFPP less lump sum 21/22 | O2: MFPP less lump sum 20/21 | R2: Latest DfE Number | S2: Fund Centre | T2: Latest URN | U2: Type of School Summary | V2: Latest School Name (DFE) | W2: Latest Status | X2: Index | Y2: Academy | Z2: Public/ Private | AA2: Date of Conversion | AB2: Phase Per DFE | AE2: DfE | AF2: School | AH2: Oct 2020 APT on role Pupil Nos | AI2: 01/04/2021 Summer | AJ2: 01/09/2021 Autumn | AK2: Total place funding | AM2: TPPupil
A3: 1006 | B3: Garretts Green Nursery school | C3: Nursery | D3: =SUMIF('22-23 RB Numbers'!$K$5:$K$46,'RB DATA'!A3,'22-23 RB Numbers'!$L$5:$L$46) -> 5 | E3: 6 | F3: 6 | G3: 60000 | I3: =SUMIF('22-23 RB TopUP-SENAR'!$B$7:$B$48,'RB DATA'!A3,'22-23 RB TopUP-SENAR'!$C$7:$C$48) -> 80500 | P3: Non Chq Bk | R3: 3318 | S3: REAAA | T3: 103422 | U3: EPA | V3: Abbey Catholic Primary School | W3: Voluntary Aided School | X3: 1 | AB3: Primary | AD3: =SUM(G3:I3) -> 140500 | AE3: 1006 | AF3: Garretts Green Nursery school | AG3: Nursery | AH3: N/A | AI3: 6 | AJ3: 6 | AK3: 60000 | AM3: 59424 | AN3: =SUM(AK3:AM3) -> 119424 | AO3: =_xlfn.XLOOKUP(AE3,$A$3:$A$44,$AD$3:$AD$44,FALSE) -> 140500 | AP3: =AO3-AN3 -> 21076 | AQ3: =AP3/AN3 -> 0.1764804394
A4: 1017 | B4: Allenscroft | C4: Nursery | D4: =SUMIF('22-23 RB Numbers'!$K$5:$K$46,'RB DATA'!A4,'22-23 RB Numbers'!$L$5:$L$46) -> 3 | E4: 6 | F4: 6 | G4: 60000 | I4: =SUMIF('22-23 RB TopUP-SENAR'!$B$7:$B$48,'RB DATA'!A4,'22-23 RB TopUP-SENAR'!$C$7:$C$48) -> 126000 | P4: Chq Bk | R4: 2020 | S4: REAAC | T4: 139443 | U4: Academy | V4: Acocks Green Primary School | W4: Academy Converter | X4: 2 | Y4: Academy | Z4: Public | AA4: 41365 | AB4: Primary | AD4: =SUM(G4:I4) -> 186000 | AE4: 1017 | AF4: Allenscroft | AG4: Nursery | AH4: N/A | AI4: 6 | AJ4: 6 | AK4: 60000 | AM4: 31888 | AN4: =SUM(AK4:AM4) -> 91888 | AO4: =_xlfn.XLOOKUP(AE4,$A$3:$A$44,$AD$3:$AD$44,FALSE) -> 186000 | AP4: =AO4-AN4 -> 94112 | AQ4: =AP4/AN4 -> 1.024203378
A5: 2005 | B5: Kings Heath Primary School | C5: Primary | D5: =SUMIF('22-23 RB Numbers'!$K$5:$K$46,'RB DATA'!A5,'22-23 RB Numbers'!$L$5:$L$46) -> 6 | E5: =_xlfn.XLOOKUP($A5,'22-23 RB Numbers'!$C$5:$C$47,'22-23 RB Numbers'!$H$5:$H$47,FALSE) -> 6 | F5: =_xlfn.XLOOKUP($A5,'22-23 RB Numbers'!$C$5:$C$47,'22-23 RB Numbers'!$G$5:$G$47,FALSE) -> 5 | G5: =IF(E5>D5,((E5-D5)*10000+(D5*6000))*5/12,IF(E5<=D5,E5*6000)*5/12)+IF(F5>D5,((F5-D5)*10000+(D5*6000))*7/12,IF(F5<=D5,F5*6000)*7/12) -> 32500 | I5: =SUMIF('22-23 RB TopUP-SENAR'!$B$7:$B$48,'RB DATA'!A5,'22-23 RB TopUP-SENAR'!$C$7:$C$48) -> 87468.38 | P5: Non Chq Bk | R5: 2010 | S5: REAAD | T5: 103159 | U5: Chq Bk | V5: Adderley Primary School | W5: Community School | X5: 3 | AB5: Primary | AD5: 119968.38 | AE5: 2005 | AF5: Kings Heath Primary School | AG5: Primary | AH5: 7 | AI5: 6 | AJ5: 6 | AK5: 36000 | AM5: 102367.325 | AN5: 138367.325 | AO5: 119968.38 | AP5: -18398.945 | AQ5: -0.1329717475
A6: 2040 | B6: Cherry Orchard | C6: Primary | D6: =SUMIF('22-23 RB Numbers'!$K$5:$K$46,'RB DATA'!A6,'22-23 RB Numbers'!$L$5:$L$46) -> 19 | E6: =_xlfn.XLOOKUP($A6,'22-23 RB Numbers'!$C$5:$C$47,'22-23 RB Numbers'!$H$5:$H$47,FALSE) -> 20 | F6: =_xlfn.XLOOKUP($A6,'22-23 RB Numbers'!$C$5:$C$47,'22-23 RB Numbers'!$G$5:$G$47,FALSE) -> 20 | G6: 124000 | I6: =SUMIF('22-23 RB TopUP-SENAR'!$B$7:$B$48,'RB DATA'!A6,'22-23 RB TopUP-SENAR'!$C$7:$C$48) -> 231000 | P6: EPA | R6: 3433 | S6: REAAG | T6: 140889 | U6: Academy | V6: Albert Bradbeer Primary Academy | W6: Academy Converter | X6: 5 | Y6: Academy | Z6: Public | AA6: 41883 | AB6: Primary | AD6: 355000 | AE6: 2021 | AF6: PAGANEL PRIMARY SCHOOL | AG6: Primary | AH6: 0 | AI6: 0 | AJ6: 0 | AK6: 0 | AM6: 0 | AN6: 0 | AP6: 0
A7: 2057 | B7: Percy Shurmer Primary School (NC) (SU) | C7: Academy | D7: =SUMIF('22-23 RB Numbers'!$K$5:$K$46,'RB DATA'!A7,'22-23 RB Numbers'!$L$5:$L$46) -> 13 | E7: =_xlfn.XLOOKUP($A7,'22-23 RB Numbers'!$C$5:$C$47,'22-23 RB Numbers'!$H$5:$H$47,FALSE) -> 14 | F7: =_xlfn.XLOOKUP($A7,'22-23 RB Numbers'!$C$5:$C$47,'22-23 RB Numbers'!$G$5:$G$47,FALSE) -> 16 | G7: 99666.66667 | I7: =SUMIF('22-23 RB TopUP-SENAR'!$B$7:$B$48,'RB DATA'!A7,'22-23 RB TopUP-SENAR'!$C$7:$C$48) -> 215705.487 | P7: Academy | Q7: TRUE | R7: 5949 | S7: REAAE | T7: 131465 | U7: Non Chq Bk | V7: Al-Furqan Primary School | W7: Voluntary Aided School | X7: 6 | Z7: Public | AB7: Primary | AD7: 315372.1537 | AE7: 2040 | AF7: Cherry Orchard | AG7: Primary | AH7: 21 | AI7: 20 | AJ7: 20 | AK7: 120000 | AM7: 217066.225 | AN7: 337066.225 | AO7: 355000 | AP7: 17933.775 | AQ7: 0.05320549396
A8: 2072 | B8: BILLESLEY | C8: Academy | D8: =SUMIF('22-23 RB Numbers'!$K$5:$K$46,'RB DATA'!A8,'22-23 RB Numbers'!$L$5:$L$46) -> 12 | E8: =_xlfn.XLOOKUP($A8,'22-23 RB Numbers'!$C$5:$C$47,'22-23 RB Numbers'!$H$5:$H$47,FALSE) -> 12 | F8: =_xlfn.XLOOKUP($A8,'22-23 RB Numbers'!$C$5:$C$47,'22-23 RB Numbers'!$G$5:$G$47,FALSE) -> 12 | G8: 72000 | I8: =SUMIF('22-23 RB TopUP-SENAR'!$B$7:$B$48,'RB DATA'!A8,'22-23 RB TopUP-SENAR'!$C$7:$C$48) -> 133500 | P8: Academy | Q8: TRUE | R8: 2205 | S8: REAZZ | T8: 147452 | U8: Academy | V8: The Olive School, Small Heath | W8: Academy Sponsor Led | X8: 7 | Y8: Academy | Z8: Public | AA8: 43709 | AB8: Primary | AD8: 205500 | AE8: 2057 | AF8: Percy Shurmer Primary School (NC) (SU) | AG8: Academy | AH8: 10 | AI8: 14 | AJ8: 14 | AK8: 0 | AL8: =IF(AK8=0,_xlfn.XLOOKUP(AE8,$A$3:$A$44,$G$3:$G$44,0)) -> 99666.66667 | AM8: 162127.981 | AN8: 261794.6477 | AO8: 315372.1537 | AP8: 53577.506 | AQ8: 0.2046547035
A9: 2099 | B9: Hawthorn Primary School | C9: Primary | D9: =SUMIF('22-23 RB Numbers'!$K$5:$K$46,'RB DATA'!A9,'22-23 RB Numbers'!$L$5:$L$46) -> 10 | E9: =_xlfn.XLOOKUP($A9,'22-23 RB Numbers'!$C$5:$C$47,'22-23 RB Numbers'!$H$5:$H$47,FALSE) -> 10 | F9: =_xlfn.XLOOKUP($A9,'22-23 RB Numbers'!$C$5:$C$47,'22-23 RB Numbers'!$G$5:$G$47,FALSE) -> 10 | G9: 60000 | I9: =SUMIF('22-23 RB TopUP-SENAR'!$B$7:$B$48,'RB DATA'!A9,'22-23 RB TopUP-SENAR'!$C$7:$C$48) -> 136405.185 | P9: EPA | R9: 2153 | S9: REAAH | T9: 103243 | U9: EPA | V9: Allens Croft Primary School | W9: Community School | X9: 8 | AB9: Primary | AD9: 196405.185 | AE9: 2072 | AF9: BILLESLEY | AG9: Academy | AH9: 12 | AI9: 12 | AJ9: 12 | AK9: 0 | AL9: =IF(AK9=0,_xlfn.XLOOKUP(AE9,$A$3:$A$44,$G$3:$G$44,0)) -> 72000 | AM9: 107488.3722 | AN9: 179488.3722 | AO9: 205500 | AP9: 26011.62785 | AQ9: 0.1449209636
A10: 2128 | B10: Lyndon Green Junior School | C10: Primary | D10: =SUMIF('22-23 RB Numbers'!$K$5:$K$46,'RB DATA'!A10,'22-23 RB Numbers'!$L$5:$L$46) -> 12 | E10: =_xlfn.XLOOKUP($A10,'22-23 RB Numbers'!$C$5:$C$47,'22-23 RB Numbers'!$H$5:$H$47,FALSE) -> 12 | F10: =_xlfn.XLOOKUP($A10,'22-23 RB Numbers'!$C$5:$C$47,'22-23 RB Numbers'!$G$5:$G$47,FALSE) -> 12 | G10: 72000 | I10: =SUMIF('22-23 RB TopUP-SENAR'!$B$7:$B$48,'RB DATA'!A10,'22-23 RB TopUP-SENAR'!$C$7:$C$48) -> 117000 | P10: Chq Bk | R10: 1017 | S10: REAYX | T10: 103130 | U10: Chq Bk | V10: Allens Croft Nursery School | W10: LA Nursery School | X10: 9 | AB10: Nursery | AD10: 189000 | AE10: 2099 | AF10: Hawthorn Primary School | AG10: Primary | AH10: 11 | AI10: 10 | AJ10: 10 | AK10: 60000 | AM10: 182882.087 | AN10: 242882.087 | AO10: 196405.185 | AP10: -46476.902 | AQ10: -0.1913558244
A11: 2129 | B11: Lyndon Green Infant School | C11: Primary | D11: =SUMIF('22-23 RB Numbers'!$K$5:$K$46,'RB DATA'!A11,'22-23 RB Numbers'!$L$5:$L$46) -> 13 | E11: =_xlfn.XLOOKUP($A11,'22-23 RB Numbers'!$C$5:$C$47,'22-23 RB Numbers'!$H$5:$H$47,FALSE) -> 12 | F11: =_xlfn.XLOOKUP($A11,'22-23 RB Numbers'!$C$5:$C$47,'22-23 RB Numbers'!$G$5:$G$47,FALSE) -> 12 | G11: 72000 | I11: =SUMIF('22-23 RB TopUP-SENAR'!$B$7:$B$48,'RB DATA'!A11,'22-23 RB TopUP-SENAR'!$C$7:$C$48) -> 144000 | P11: Chq Bk | R11: 2144 | S11: REAAJ | T11: 140656 | U11: Academy | V11: Alston Primary School | W11: Academy Sponsor Led | X11: 10 | Y11: Academy | Z11: Public | AA11: 41821 | AB11: Primary | AD11: 216000 | AE11: 2128 | AF11: Lyndon Green Junior School | AG11: Primary | AH11: 11 | AI11: 12 | AJ11: 12 | AK11: 76000 | AM11: 140285.128 | AN11: 216285.128 | AO11: 189000 | AP11: -27285.128 | AQ11: -0.1261535097
A12: 2136 | B12: Woodhouse Primary School | C12: Academy | D12: =SUMIF('22-23 RB Numbers'!$K$5:$K$46,'RB DATA'!A12,'22-23 RB Numbers'!$L$5:$L$46) -> 11 | E12: =_xlfn.XLOOKUP($A12,'22-23 RB Numbers'!$C$5:$C$47,'22-23 RB Numbers'!$H$5:$H$47,FALSE) -> 8 | F12: =_xlfn.XLOOKUP($A12,'22-23 RB Numbers'!$C$5:$C$47,'22-23 RB Numbers'!$G$5:$G$47,FALSE) -> 8 | G12: 48000 | I12: =SUMIF('22-23 RB TopUP-SENAR'!$B$7:$B$48,'RB DATA'!A12,'22-23 RB TopUP-SENAR'!$C$7:$C$48) -> 112500 | P12: Academy | Q12: TRUE | R12: 2062 | S12: REAAK | T12: 103192 | U12: Chq Bk | V12: Anderton Park Primary School | W12: Community School | X12: 11 | AB12: Primary | AD12: 160500 | AE12: 2129 | AF12: Lyndon Green Infant School | AG12: Primary | AH12: 9 | AI12: 12 | AJ12: 12 | AK12: 84000 | AM12: 75518.81 | AN12: 159518.81 | AO12: 216000 | AP12: 56481.19 | AQ12: 0.3540722878
A13: 2149 | B13: Paget | C13: Primary | D13: =SUMIF('22-23 RB Numbers'!$K$5:$K$46,'RB DATA'!A13,'22-23 RB Numbers'!$L$5:$L$46) -> 14 | E13: =_xlfn.XLOOKUP($A13,'22-23 RB Numbers'!$C$5:$C$47,'22-23 RB Numbers'!$H$5:$H$47,FALSE) -> 14 | F13: =_xlfn.XLOOKUP($A13,'22-23 RB Numbers'!$C$5:$C$47,'22-23 RB Numbers'!$G$5:$G$47,FALSE) -> 14 | G13: 84000 | I13: =SUMIF('22-23 RB TopUP-SENAR'!$B$7:$B$48,'RB DATA'!A13,'22-23 RB TopUP-SENAR'!$C$7:$C$48) -> 150000 | P13: Non Chq Bk | R13: 2479 | S13: REAAM | T13: 132074 | U13: EPA | V13: Anglesey Primary School | W13: Community School | X13: 12 | AB13: Primary | AD13: 234000 | AE13: 2136 | AF13: Woodhouse Primary School | AG13: Academy | AH13: 11 | AI13: 8 | AJ13: 8 | AK13: 0 | AL13: 48000 | AM13: 75624.744 | AN13: 123624.744 | AO13: 160500 | AP13: 36875.256 | AQ13: 0.2982837805
A14: 2153 | B14: Allenscroft | C14: Primary | D14: =SUMIF('22-23 RB Numbers'!$K$5:$K$46,'RB DATA'!A14,'22-23 RB Numbers'!$L$5:$L$46) -> 13 | E14: =_xlfn.XLOOKUP($A14,'22-23 RB Numbers'!$C$5:$C$47,'22-23 RB Numbers'!$H$5:$H$47,FALSE) -> 12 | F14: =_xlfn.XLOOKUP($A14,'22-23 RB Numbers'!$C$5:$C$47,'22-23 RB Numbers'!$G$5:$G$47,FALSE) -> 12 | G14: 72000 | I14: =SUMIF('22-23 RB TopUP-SENAR'!$B$7:$B$48,'RB DATA'!A14,'22-23 RB TopUP-SENAR'!$C$7:$C$48) -> 133500 | P14: EPA | R14: 4804 | S14: REARZ | T14: 146124 | U14: Academy | V14: Archbishop Ilsley Catholic School | W14: Academy Converter | X14: 13 | Y14: Academy | Z14: Public | AA14: 43586 | AB14: Secondary | AD14: 205500 | AE14: 2149 | AF14: Paget | AG14: Primary | AH14: 14 | AI14: 14 | AJ14: 14 | AK14: 84000 | AM14: 126459.2633 | AN14: 210459.2633 | AO14: 234000 | AP14: 23540.73673 | AQ14: 0.1118541249
A15: 2195 | B15: Timberley Primary School | C15: Academy | D15: =SUMIF('22-23 RB Numbers'!$K$5:$K$46,'RB DATA'!A15,'22-23 RB Numbers'!$L$5:$L$46) -> 17 | E15: =_xlfn.XLOOKUP($A15,'22-23 RB Numbers'!$C$5:$C$47,'22-23 RB Numbers'!$H$5:$H$47,FALSE) -> 17 | F15: =_xlfn.XLOOKUP($A15,'22-23 RB Numbers'!$C$5:$C$47,'22-23 RB Numbers'!$G$5:$G$47,FALSE) -> 14 | G15: 91500 | I15: =SUMIF('22-23 RB TopUP-SENAR'!$B$7:$B$48,'RB DATA'!A15,'22-23 RB TopUP-SENAR'!$C$7:$C$48) -> 241267.272 | P15: Academy | Q15: TRUE | R15: 2300 | S15: REAAN | T15: 103324 | U15: EPA | V15: Arden Primary School | W15: Community School | X15: 14 | AB15: Primary | AD15: 332767.272 | AE15: 2153 | AF15: Allenscroft | AG15: Primary | AH15: 20 | AI15: 30 | AJ15: 30 | AK15: 220000 | AM15: 169843.9692 | AN15: 389843.9692 | AO15: 205500 | AP15: -184343.9692 | AQ15: -0.4728660278
A16: 2225 | B16: Worlds End Junior - VI RB | C16: Primary | D16: =SUMIF('22-23 RB Numbers'!$K$5:$K$46,'RB DATA'!A16,'22-23 RB Numbers'!$L$5:$L$46) -> 8 | E16: =_xlfn.XLOOKUP($A16,'22-23 RB Numbers'!$C$5:$C$47,'22-23 RB Numbers'!$H$5:$H$47,FALSE) -> 8 | F16: =_xlfn.XLOOKUP($A16,'22-23 RB Numbers'!$C$5:$C$47,'22-23 RB Numbers'!$G$5:$G$47,FALSE) -> 8 | G16: 48000 | I16: =SUMIF('22-23 RB TopUP-SENAR'!$B$7:$B$48,'RB DATA'!A16,'22-23 RB TopUP-SENAR'!$C$7:$C$48) -> 154499.336 | P16: EPA | R16: 4307 | S16: REATA | T16: 138136 | U16: Academy | V16: The Arthur Terry School | W16: Academy Converter | X16: 15 | Y16: Academy | Z16: Public | AA16: 41030 | AB16: Secondary | AD16: 202499.336 | AE16: 2195 | AF16: Timberley Primary School | AG16: Academy | AH16: 22 | AI16: 17 | AJ16: 17 | AK16: 0 | AL16: 91500 | AM16: 324572.715 | AN16: 416072.715 | AO16: 332767.272 | AP16: -83305.443 | AQ16: -0.2002184714
A17: 2245 | B17: Welsh House Farm Community School | C17: Primary | D17: =SUMIF('22-23 RB Numbers'!$K$5:$K$46,'RB DATA'!A17,'22-23 RB Numbers'!$L$5:$L$46) -> 13 | E17: =_xlfn.XLOOKUP($A17,'22-23 RB Numbers'!$C$5:$C$47,'22-23 RB Numbers'!$H$5:$H$47,FALSE) -> 12 | F17: =_xlfn.XLOOKUP($A17,'22-23 RB Numbers'!$C$5:$C$47,'22-23 RB Numbers'!$G$5:$G$47,FALSE) -> 16 | G17: 93000 | I17: =SUMIF('22-23 RB TopUP-SENAR'!$B$7:$B$48,'RB DATA'!A17,'22-23 RB TopUP-SENAR'!$C$7:$C$48) -> 124500 | P17: EPA | R17: 4307 | S17: REATA | T17: 138136 | U17: Academy | V17: The Arthur Terry School | W17: Academy Converter | X17: 15 | Y17: Academy | Z17: Public | AA17: 41030 | AB17: Secondary | AD17: 217500 | AE17: 2245 | AF17: Welsh House Farm Community School | AG17: Primary | AH17: 12 | AI17: 12 | AJ17: 12 | AK17: 72000 | AM17: 85688.357 | AN17: 157688.357 | AO17: 217500 | AP17: 59811.643 | AQ17: 0.3793028486
A18: 2246 | B18: The Meadows Primary School | C18: Primary | D18: =SUMIF('22-23 RB Numbers'!$K$5:$K$46,'RB DATA'!A18,'22-23 RB Numbers'!$L$5:$L$46) -> 29 | E18: =_xlfn.XLOOKUP($A18,'22-23 RB Numbers'!$C$5:$C$47,'22-23 RB Numbers'!$H$5:$H$47,FALSE) -> 30 | F18: =_xlfn.XLOOKUP($A18,'22-23 RB Numbers'!$C$5:$C$47,'22-23 RB Numbers'!$G$5:$G$47,FALSE) -> 30 | G18: 184000 | I18: =SUMIF('22-23 RB TopUP-SENAR'!$B$7:$B$48,'RB DATA'!A18,'22-23 RB TopUP-SENAR'!$C$7:$C$48) -> 252000 | P18: Non Chq Bk | R18: 4220 | S18: REATB | T18: 136882 | U18: Academy | V18: Aston Manor Academy | W18: Academy Converter | X18: 16 | Y18: Academy | Z18: Public | AA18: 40725 | AB18: Secondary | AD18: 436000 | AE18: 2246 | AF18: The Meadows Primary School | AG18: Primary | AH18: 21 | AI18: 30 | AJ18: 30 | AK18: 216000 | AM18: 101702.275 | AN18: 317702.275 | AO18: 436000 | AP18: 118297.725 | AQ18: 0.3723540381
A19: 2273 | B19: Topcliffe Primary School | C19: Academy | D19: =SUMIF('22-23 RB Numbers'!$K$5:$K$46,'RB DATA'!A19,'22-23 RB Numbers'!$L$5:$L$46) -> 50 | E19: =_xlfn.XLOOKUP($A19,'22-23 RB Numbers'!$C$5:$C$47,'22-23 RB Numbers'!$H$5:$H$47,FALSE) -> 56 | F19: =_xlfn.XLOOKUP($A19,'22-23 RB Numbers'!$C$5:$C$47,'22-23 RB Numbers'!$G$5:$G$47,FALSE) -> 56 | G19: 360000 | I19: =SUMIF('22-23 RB TopUP-SENAR'!$B$7:$B$48,'RB DATA'!A19,'22-23 RB TopUP-SENAR'!$C$7:$C$48) -> 513000 | P19: Academy | Q19: TRUE | R19: 2443 | S19: REAAP | T19: 142686 | U19: Academy | V19: Aston Tower Community Primary School | W19: Academy Converter | X19: 17 | Y19: Academy | Z19: Public | AA19: 42461 | AB19: Primary | AD19: 873000 | AE19: 2273 | AF19: Topcliffe Primary School | AG19: Academy | AH19: 48 | AI19: 56 | AJ19: 56 | AK19: 0 | AL19: 360000 | AM19: 311783.457 | AN19: 671783.457 | AO19: 873000 | AP19: 201216.543 | AQ19: 0.2995258977
A20: 2288 | B20: Hollywood | C20: Primary | D20: =SUMIF('22-23 RB Numbers'!$K$5:$K$46,'RB DATA'!A20,'22-23 RB Numbers'!$L$5:$L$46) -> 13 | E20: =_xlfn.XLOOKUP($A20,'22-23 RB Numbers'!$C$5:$C$47,'22-23 RB Numbers'!$H$5:$H$47,FALSE) -> 13 | F20: =_xlfn.XLOOKUP($A20,'22-23 RB Numbers'!$C$5:$C$47,'22-23 RB Numbers'!$G$5:$G$47,FALSE) -> 13 | G20: 78000 | I20: =SUMIF('22-23 RB TopUP-SENAR'!$B$7:$B$48,'RB DATA'!A20,'22-23 RB TopUP-SENAR'!$C$7:$C$48) -> 142500 | P20: EPA | R20: 3412 | S20: REAAR | T20: 143437 | U20: Academy | V20: Audley Primary School | W20: Academy Converter | X20: 18 | Y20: Academy | Z20: Public | AA20: 42644 | AB20: Primary | AD20: 220500 | AE20: 2288 | AF20: Hollywood | AG20: Primary | AH20: 13 | AI20: 13 | AJ20: 13 | AK20: 78000 | AM20: 123276.434 | AN20: 201276.434 | AO20: 220500 | AP20: 19223.566 | AQ20: 0.09550827992
A21: 2146 | B21: Wyndcliffe Primary School | C21: Academy | D21: =SUMIF('22-23 RB Numbers'!$K$5:$K$46,'RB DATA'!A21,'22-23 RB Numbers'!$L$5:$L$46) -> 15 | E21: =_xlfn.XLOOKUP($A21,'22-23 RB Numbers'!$C$5:$C$47,'22-23 RB Numbers'!$H$5:$H$47,FALSE) -> 12 | F21: =_xlfn.XLOOKUP($A21,'22-23 RB Numbers'!$C$5:$C$47,'22-23 RB Numbers'!$G$5:$G$47,FALSE) -> 18 | G21: 100000 | I21: =SUMIF('22-23 RB TopUP-SENAR'!$B$7:$B$48,'RB DATA'!A21,'22-23 RB TopUP-SENAR'!$C$7:$C$48) -> 189000 | P21: Academy | Q21: TRUE | R21: 2204 | S21: REAAV | T21: 147111 | U21: Academy | V21: Sutton Park Primary | W21: Academy Sponsor Led | X21: 19 | Y21: Academy | Z21: Public | AA21: 43800 | AB21: Primary | AD21: 289000 | AE21: 2146 | AF21: Wyndcliffe Primary School | AG21: Academy | AH21: 8 | AI21: 12 | AJ21: 12 | AK21: 0 | AL21: 100000 | AM21: 96250.943 | AN21: 196250.943 | AO21: 289000 | AP21: 92749.057 | AQ21: 0.472604389
A22: 2308 | B22: Welford Primary School | C22: Primary | D22: =SUMIF('22-23 RB Numbers'!$K$5:$K$46,'RB DATA'!A22,'22-23 RB Numbers'!$L$5:$L$46) -> 3 | E22: =_xlfn.XLOOKUP($A22,'22-23 RB Numbers'!$C$5:$C$47,'22-23 RB Numbers'!$H$5:$H$47,FALSE) -> 3 | F22: =_xlfn.XLOOKUP($A22,'22-23 RB Numbers'!$C$5:$C$47,'22-23 RB Numbers'!$G$5:$G$47,FALSE) -> 2 | G22: 14500 | I22: =SUMIF('22-23 RB TopUP-SENAR'!$B$7:$B$48,'RB DATA'!A22,'22-23 RB TopUP-SENAR'!$C$7:$C$48) -> 55116.245 | P22: Chq Bk | R22: 2014 | S22: REAAW | T22: 103162 | U22: Non Chq Bk | V22: Barford Primary School | W22: Community School | X22: 20 | AB22: Primary | AD22: 69616.245 | AE22: 2308 | AF22: Welford Primary School | AG22: Primary | AH22: 3 | AI22: 3 | AJ22: 3 | AK22: 18000 | AM22: 55116.245 | AN22: 73116.245 | AO22: 69616.245 | AP22: -3500 | AQ22: -0.04786897905
A23: 2317 | B23: Worlds End Infant NC School | C23: Primary | D23: =SUMIF('22-23 RB Numbers'!$K$5:$K$46,'RB DATA'!A23,'22-23 RB Numbers'!$L$5:$L$46) -> 4 | E23: =_xlfn.XLOOKUP($A23,'22-23 RB Numbers'!$C$5:$C$47,'22-23 RB Numbers'!$H$5:$H$47,FALSE) -> 3 | F23: =_xlfn.XLOOKUP($A23,'22-23 RB Numbers'!$C$5:$C$47,'22-23 RB Numbers'!$G$5:$G$47,FALSE) -> 3 | G23: 18000 | I23: =SUMIF('22-23 RB TopUP-SENAR'!$B$7:$B$48,'RB DATA'!A23,'22-23 RB TopUP-SENAR'!$C$7:$C$48) -> 77851.666 | P23: EPA | R23: 4108 | S23: REATC | T23: 136589 | U23: Academy | V23: Bartley Green School | W23: Academy Converter | X23: 21 | Y23: Academy | Z23: Public | AA23: 40634 | AB23: Secondary | AD23: 95851.666 | AE23: 2317 | AF23: Worlds End Infant NC School | AG23: Primary | AH23: 11 | AI23: 11 | AJ23: 11 | AK23: 66000 | AM23: 232351.002 | AN23: 298351.002 | AO23: 95851.666 | AP23: -202499.336 | AQ23: -0.6787285266
A24: 2175 | B24: Turves Green Primary School | C24: Academy | D24: =SUMIF('22-23 RB Numbers'!$K$5:$K$46,'RB DATA'!A24,'22-23 RB Numbers'!$L$5:$L$46) -> 2 | E24: =_xlfn.XLOOKUP($A24,'22-23 RB Numbers'!$C$5:$C$47,'22-23 RB Numbers'!$H$5:$H$47,FALSE) -> 2 | F24: =_xlfn.XLOOKUP($A24,'22-23 RB Numbers'!$C$5:$C$47,'22-23 RB Numbers'!$G$5:$G$47,FALSE) -> 2 | G24: 12000 | I24: =SUMIF('22-23 RB TopUP-SENAR'!$B$7:$B$48,'RB DATA'!A24,'22-23 RB TopUP-SENAR'!$C$7:$C$48) -> 36720.597 | P24: Academy | Q24: TRUE | R24: 7016 | S24: REAXL | T24: 103606 | U24: Non Chq Bk | V24: Baskerville School | W24: Foundation School | X24: 22 | AB24: Special | AD24: 48720.597 | AE24: 2175 | AF24: Turves Green Primary School | AG24: Academy | AH24: 2 | AI24: 2 | AJ24: 2 | AK24: 0 | AL24: 12000 | AM24: 36720.597 | AN24: 48720.597 | AO24: 48720.597 | AP24: 0 | AQ24: 0
A25: 2402 | B25: Boldmere Infant School ASC RB | C25: Primary | D25: =SUMIF('22-23 RB Numbers'!$K$5:$K$46,'RB DATA'!A25,'22-23 RB Numbers'!$L$5:$L$46) -> 17 | E25: =_xlfn.XLOOKUP($A25,'22-23 RB Numbers'!$C$5:$C$47,'22-23 RB Numbers'!$H$5:$H$47,FALSE) -> 20 | F25: =_xlfn.XLOOKUP($A25,'22-23 RB Numbers'!$C$5:$C$47,'22-23 RB Numbers'!$G$5:$G$47,FALSE) -> 20 | G25: 132000 | I25: =SUMIF('22-23 RB TopUP-SENAR'!$B$7:$B$48,'RB DATA'!A25,'22-23 RB TopUP-SENAR'!$C$7:$C$48) -> 184500 | P25: Chq Bk | R25: 5400-CLOSED 01092017 | S25: REATD | U25: Closed | V25: BAVERSTOCK | X25: 23 | Y25: Closed | Z25: Public | AA25: 41426 | AD25: 316500 | AE25: 2402 | AF25: Boldmere Infant School ASC RB | AG25: Primary | AH25: 15 | AI25: 20 | AJ25: 20 | AK25: 140000 | AM25: 121088.937 | AN25: 261088.937 | AO25: 316500 | AP25: 55411.063 | AQ25: 0.2122306048
A26: 2450 | B26: Great Barr Primary & Nursery School | C26: Academy | D26: =SUMIF('22-23 RB Numbers'!$K$5:$K$46,'RB DATA'!A26,'22-23 RB Numbers'!$L$5:$L$46) -> 5 | E26: =_xlfn.XLOOKUP($A26,'22-23 RB Numbers'!$C$5:$C$47,'22-23 RB Numbers'!$H$5:$H$47,FALSE) -> 6 | F26: =_xlfn.XLOOKUP($A26,'22-23 RB Numbers'!$C$5:$C$47,'22-23 RB Numbers'!$G$5:$G$47,FALSE) -> 4 | G26: 30666.66667 | I26: =SUMIF('22-23 RB TopUP-SENAR'!$B$7:$B$48,'RB DATA'!A26,'22-23 RB TopUP-SENAR'!$C$7:$C$48) -> 52361.302 | P26: Academy | Q26: TRUE | R26: 7052 | S26: REAXM | T26: 103627 | U26: Non Chq Bk | V26: Beaufort School | W26: Community School | X26: 24 | AB26: Special | AD26: 83027.96867 | AE26: 2450 | AF26: Great Barr Primary & Nursery School | AG26: Academy | AH26: 5 | AI26: 6 | AJ26: 6 | AK26: 0 | AL26: 30666.66667 | AM26: 52361.302 | AN26: 83027.96867 | AO26: 83027.96867 | AP26: 0 | AQ26: 0
A27: 2457 | B27: NELSON MANDELA SCHOOL | C27: Primary | D27: =SUMIF('22-23 RB Numbers'!$K$5:$K$46,'RB DATA'!A27,'22-23 RB Numbers'!$L$5:$L$46) -> 5 | E27: =_xlfn.XLOOKUP($A27,'22-23 RB Numbers'!$C$5:$C$47,'22-23 RB Numbers'!$H$5:$H$47,FALSE) -> 5 | F27: =_xlfn.XLOOKUP($A27,'22-23 RB Numbers'!$C$5:$C$47,'22-23 RB Numbers'!$G$5:$G$47,FALSE) -> 4 | G27: 26500 | I27: =SUMIF('22-23 RB TopUP-SENAR'!$B$7:$B$48,'RB DATA'!A27,'22-23 RB TopUP-SENAR'!$C$7:$C$48) -> 89451.62 | P27: Non Chq Bk | R27: 2239 | S27: REAAY | T27: 103289 | U27: EPA | V27: Bellfield Infant School (NC) | W27: Community School | X27: 25 | AB27: Infants | AD27: 115951.62 | AE27: 2457 | AF27: NELSON MANDELA SCHOOL | AG27: Primary | AH27: 6 | AI27: 5 | AJ27: 5 | AK27: 30000 | AM27: 101621.12 | AN27: 131621.12 | AO27: 115951.62 | AP27: -15669.5 | AQ27: -0.119050043
A28: 2479 | B28: ANGLESEY | C28: Primary | D28: =SUMIF('22-23 RB Numbers'!$K$5:$K$46,'RB DATA'!A28,'22-23 RB Numbers'!$L$5:$L$46) -> 12 | E28: =_xlfn.XLOOKUP($A28,'22-23 RB Numbers'!$C$5:$C$47,'22-23 RB Numbers'!$H$5:$H$47,FALSE) -> 10 | F28: =_xlfn.XLOOKUP($A28,'22-23 RB Numbers'!$C$5:$C$47,'22-23 RB Numbers'!$G$5:$G$47,FALSE) -> 10 | G28: 60000 | I28: =SUMIF('22-23 RB TopUP-SENAR'!$B$7:$B$48,'RB DATA'!A28,'22-23 RB TopUP-SENAR'!$C$7:$C$48) -> 94500 | P28: EPA | R28: 2456 | S28: REABA | T28: 103383 | U28: Non Chq Bk | V28: Bells Farm Primary School | W28: Community School | X28: 27 | AB28: Primary | AD28: 154500 | AE28: 2463 | AF28: Mere Green Combined School | AG28: Academy | AH28: 2 | AI28: 0 | AJ28: 0 | AK28: 0 | AL28: 0 | AM28: 3334.443 | AN28: 3334.443 | AP28: -3334.443 | AQ28: -1
A29: 2481 | B29: Rookery School | C29: Academy | D29: =SUMIF('22-23 RB Numbers'!$K$5:$K$46,'RB DATA'!A29,'22-23 RB Numbers'!$L$5:$L$46) -> 14 | E29: =_xlfn.XLOOKUP($A29,'22-23 RB Numbers'!$C$5:$C$47,'22-23 RB Numbers'!$H$5:$H$47,FALSE) -> 14 | F29: =_xlfn.XLOOKUP($A29,'22-23 RB Numbers'!$C$5:$C$47,'22-23 RB Numbers'!$G$5:$G$47,FALSE) -> 14 | G29: 84000 | I29: =SUMIF('22-23 RB TopUP-SENAR'!$B$7:$B$48,'RB DATA'!A29,'22-23 RB TopUP-SENAR'!$C$7:$C$48) -> 145500 | P29: Academy | Q29: TRUE | R29: 2435 | S29: REABB | T29: 103362 | U29: EPA | V29: Benson Community School | W29: Community School | X29: 28 | AB29: Primary | AD29: 229500 | AE29: 2479 | AF29: ANGLESEY | AG29: Primary | AH29: 12 | AI29: 10 | AJ29: 10 | AK29: 60000 | AM29: 57175.313 | AN29: 117175.313 | AO29: 154500 | AP29: 37324.687 | AQ29: 0.3185371222
A30: 3319 | B30: Christ The King Catholic Primary School | C30: Primary | D30: =SUMIF('22-23 RB Numbers'!$K$5:$K$46,'RB DATA'!A30,'22-23 RB Numbers'!$L$5:$L$46) -> 1 | E30: =_xlfn.XLOOKUP($A30,'22-23 RB Numbers'!$C$5:$C$47,'22-23 RB Numbers'!$H$5:$H$47,FALSE) -> 1 | F30: =_xlfn.XLOOKUP($A30,'22-23 RB Numbers'!$C$5:$C$47,'22-23 RB Numbers'!$G$5:$G$47,FALSE) -> 1 | G30: 6000 | I30: =SUMIF('22-23 RB TopUP-SENAR'!$B$7:$B$48,'RB DATA'!A30,'22-23 RB TopUP-SENAR'!$C$7:$C$48) -> 24649.612 | P30: Chq Bk | R30: 2072 | S30: REABD | T30: 138888 | U30: Academy | V30: Billesley Primary School | W30: Academy Sponsor Led | X30: 29 | Y30: Academy | Z30: Public | AA30: 41214 | AB30: Primary | AD30: 30649.612 | AE30: 2481 | AF30: Rookery School | AG30: Academy | AH30: 14 | AI30: 14 | AJ30: 14 | AK30: 0 | AL30: 84000 | AM30: 152221.29 | AN30: 236221.29 | AO30: 229500 | AP30: -6721.29 | AQ30: -0.02845336252
A31: 4006 | B31: Greenwood Academy | C31: Academy | D31: =SUMIF('22-23 RB Numbers'!$K$5:$K$46,'RB DATA'!A31,'22-23 RB Numbers'!$L$5:$L$46) -> 25 | E31: =_xlfn.XLOOKUP($A31,'22-23 RB Numbers'!$C$5:$C$47,'22-23 RB Numbers'!$H$5:$H$47,FALSE) -> 27 | F31: =_xlfn.XLOOKUP($A31,'22-23 RB Numbers'!$C$5:$C$47,'22-23 RB Numbers'!$G$5:$G$47,FALSE) -> 23 | G31: 151333.3333 | I31: =SUMIF('22-23 RB TopUP-SENAR'!$B$7:$B$48,'RB DATA'!A31,'22-23 RB TopUP-SENAR'!$C$7:$C$48) -> 243000 | P31: Academy | Q31: TRUE | R31: 2025 | S31: REABE | T31: 103169 | U31: Non Chq Bk | V31: Birches Green Infant School | W31: Community School | X31: 30 | AB31: Infants | AD31: 394333.3333 | AE31: 3319 | AF31: Christ The King Catholic Primary School | AG31: Primary | AH31: 1 | AI31: 1 | AJ31: 1 | AK31: 6000 | AM31: 24649.612 | AN31: 30649.612 | AO31: 30649.612 | AP31: 0 | AQ31: 0
A32: 4009 | B32: WAVERLEY SCHOOL | C32: Academy | D32: =SUMIF('22-23 RB Numbers'!$K$5:$K$46,'RB DATA'!A32,'22-23 RB Numbers'!$L$5:$L$46) -> 46 | E32: =_xlfn.XLOOKUP($A32,'22-23 RB Numbers'!$C$5:$C$47,'22-23 RB Numbers'!$H$5:$H$47,FALSE) -> 45 | F32: =_xlfn.XLOOKUP($A32,'22-23 RB Numbers'!$C$5:$C$47,'22-23 RB Numbers'!$G$5:$G$47,FALSE) -> 50 | G32: 296833.3333 | I32: =SUMIF('22-23 RB TopUP-SENAR'!$B$7:$B$48,'RB DATA'!A32,'22-23 RB TopUP-SENAR'!$C$7:$C$48) -> 450000 | P32: Academy | Q32: TRUE | R32: 2024 | S32: REABF | T32: 103168 | U32: Non Chq Bk | V32: Birches Green Junior School | W32: Community School | X32: 31 | AB32: Juniors | AD32: 746833.3333 | AE32: 4006 | AF32: Greenwood Academy | AG32: Academy | AH32: 21 | AI32: 27 | AJ32: 27 | AK32: 0 | AL32: 151333.3333 | AM32: 139071.818 | AN32: 290405.1513 | AO32: 394333.3333 | AP32: 103928.182 | AQ32: 0.3578730664
A33: 4013 | B33: ARK BOULTON ACADEMY | C33: Academy | D33: =SUMIF('22-23 RB Numbers'!$K$5:$K$46,'RB DATA'!A33,'22-23 RB Numbers'!$L$5:$L$46) -> 5 | E33: =_xlfn.XLOOKUP($A33,'22-23 RB Numbers'!$C$5:$C$47,'22-23 RB Numbers'!$H$5:$H$47,FALSE) -> 6 | F33: =_xlfn.XLOOKUP($A33,'22-23 RB Numbers'!$C$5:$C$47,'22-23 RB Numbers'!$G$5:$G$47,FALSE) -> 4 | G33: 30666.66667 | I33: =SUMIF('22-23 RB TopUP-SENAR'!$B$7:$B$48,'RB DATA'!A33,'22-23 RB TopUP-SENAR'!$C$7:$C$48) -> 63892.193 | P33: Academy | Q33: TRUE | R33: 2186 | S33: REABG | T33: 146075 | U33: Academy | V33: Birchfield Primary School | W33: Academy Sponsor Led | X33: 32 | Y33: Academy | Z33: Public | AA33: 43282 | AB33: Primary | AD33: 94558.85967 | AE33: 4009 | AF33: WAVERLEY SCHOOL | AG33: Academy | AH33: 36 | AI33: 45 | AJ33: 45 | AK33: 0 | AL33: 296833.3333 | AM33: 292541.108 | AN33: 589374.4413 | AO33: 746833.3333 | AP33: 157458.892 | AQ33: 0.2671627423
A34: 4018 | B34: Saltley School and Specialist Science College ASC RB | C34: Academy | D34: =SUMIF('22-23 RB Numbers'!$K$5:$K$46,'RB DATA'!A34,'22-23 RB Numbers'!$L$5:$L$46) -> 18 | E34: =_xlfn.XLOOKUP($A34,'22-23 RB Numbers'!$C$5:$C$47,'22-23 RB Numbers'!$H$5:$H$47,FALSE) -> 15 | F34: =_xlfn.XLOOKUP($A34,'22-23 RB Numbers'!$C$5:$C$47,'22-23 RB Numbers'!$G$5:$G$47,FALSE) -> 21 | G34: 118000 | I34: =SUMIF('22-23 RB TopUP-SENAR'!$B$7:$B$48,'RB DATA'!A34,'22-23 RB TopUP-SENAR'!$C$7:$C$48) -> 153000 | P34: Academy | Q34: TRUE | R34: 5413 | S34: REATE | T34: 103560 | U34: Chq Bk | V34: Bishop Challoner Catholic College | W34: Voluntary Aided School | X34: 33 | Z34: Public | AB34: Secondary | AD34: 271000 | AE34: 4013 | AF34: ARK BOULTON ACADEMY | AG34: Academy | AH34: 6 | AI34: 6 | AJ34: 6 | AK34: 0 | AL34: 30666.66667 | AM34: 70462.564 | AN34: 101129.2307 | AO34: 94558.85967 | AP34: -6570.371 | AQ34: -0.06497004829
A35: 4108 | B35: BARTLEY GREEN SCHOOL | C35: Academy | D35: =SUMIF('22-23 RB Numbers'!$K$5:$K$46,'RB DATA'!A35,'22-23 RB Numbers'!$L$5:$L$46) -> 19 | E35: =_xlfn.XLOOKUP($A35,'22-23 RB Numbers'!$C$5:$C$47,'22-23 RB Numbers'!$H$5:$H$47,FALSE) -> 20 | F35: =_xlfn.XLOOKUP($A35,'22-23 RB Numbers'!$C$5:$C$47,'22-23 RB Numbers'!$G$5:$G$47,FALSE) -> 20 | G35: 124000 | I35: =SUMIF('22-23 RB TopUP-SENAR'!$B$7:$B$48,'RB DATA'!A35,'22-23 RB TopUP-SENAR'!$C$7:$C$48) -> 145500 | P35: Academy | Q35: TRUE | R35: 4660 | S35: REATF | T35: 137988 | U35: Academy | V35: Bishop Vesey's Grammar School | W35: Academy Converter | X35: 34 | Y35: Academy | Z35: Public | AA35: 41000 | AB35: Secondary | AD35: 269500 | AE35: 4018 | AF35: Saltley School and Specialist Science College ASC RB | AG35: Academy | AH35: 11 | AI35: 15 | AJ35: 15 | AK35: 0 | AL35: 118000 | AM35: 64050.486 | AN35: 182050.486 | AO35: 271000 | AP35: 88949.514 | AQ35: 0.4885980585
A36: 4115 | B36: Bordesley Green Girls | C36: Secondary | D36: =SUMIF('22-23 RB Numbers'!$K$5:$K$46,'RB DATA'!A36,'22-23 RB Numbers'!$L$5:$L$46) -> 13 | E36: =_xlfn.XLOOKUP($A36,'22-23 RB Numbers'!$C$5:$C$47,'22-23 RB Numbers'!$H$5:$H$47,FALSE) -> 10 | F36: =_xlfn.XLOOKUP($A36,'22-23 RB Numbers'!$C$5:$C$47,'22-23 RB Numbers'!$G$5:$G$47,FALSE) -> 12 | G36: 67000 | I36: =SUMIF('22-23 RB TopUP-SENAR'!$B$7:$B$48,'RB DATA'!A36,'22-23 RB TopUP-SENAR'!$C$7:$C$48) -> 202065.128 | P36: Chq Bk | R36: 4661 | S36: REATG | T36: 140524 | U36: Academy | V36: Bishop Walsh Catholic School | W36: Academy Converter | X36: 35 | Y36: Academy | Z36: Public | AA36: 41640 | AB36: Secondary | AD36: 269065.128 | AE36: 4108 | AF36: BARTLEY GREEN SCHOOL | AG36: Academy | AH36: 17 | AI36: 20 | AJ36: 20 | AK36: 0 | AL36: 124000 | AM36: 94072.553 | AN36: 218072.553 | AO36: 269500 | AP36: 51427.447 | AQ36: 0.2358272341
A37: 4206 | B37: Stockland Green School | C37: Academy | D37: =SUMIF('22-23 RB Numbers'!$K$5:$K$46,'RB DATA'!A37,'22-23 RB Numbers'!$L$5:$L$46) -> 14 | E37: =_xlfn.XLOOKUP($A37,'22-23 RB Numbers'!$C$5:$C$47,'22-23 RB Numbers'!$H$5:$H$47,FALSE) -> 14 | F37: =_xlfn.XLOOKUP($A37,'22-23 RB Numbers'!$C$5:$C$47,'22-23 RB Numbers'!$G$5:$G$47,FALSE) -> 14 | G37: 84000 | I37: =SUMIF('22-23 RB TopUP-SENAR'!$B$7:$B$48,'RB DATA'!A37,'22-23 RB TopUP-SENAR'!$C$7:$C$48) -> 138000 | P37: Academy | Q37: TRUE | R37: 2107 | S37: REABJ | T37: 139129 | U37: Academy | V37: Oasis Academy Blakenhale Junior | W37: Academy Sponsor Led | X37: 37 | Y37: Academy | Z37: Public | AA37: 41306 | AB37: Juniors | AD37: 222000 | AE37: 4115 | AF37: Bordesley Green Girls | AG37: Secondary | AH37: 12 | AI37: 10 | AJ37: 10 | AK37: 60000 | AM37: 183613.416 | AN37: 243613.416 | AO37: 269065.128 | AP37: 25451.712 | AQ37: 0.1044758225
A38: 4017 | B38: Bournville School and Sixth Form Centre | C38: Academy | D38: =SUMIF('22-23 RB Numbers'!$K$5:$K$46,'RB DATA'!A38,'22-23 RB Numbers'!$L$5:$L$46) -> 4 | E38: =_xlfn.XLOOKUP($A38,'22-23 RB Numbers'!$C$5:$C$47,'22-23 RB Numbers'!$H$5:$H$47,FALSE) -> 8 | F38: =_xlfn.XLOOKUP($A38,'22-23 RB Numbers'!$C$5:$C$47,'22-23 RB Numbers'!$G$5:$G$47,FALSE) -> 4 | G38: 40666.66667 | I38: =SUMIF('22-23 RB TopUP-SENAR'!$B$7:$B$48,'RB DATA'!A38,'22-23 RB TopUP-SENAR'!$C$7:$C$48) -> 67733.119 | P38: Academy | Q38: TRUE | R38: 2254 | S38: REABK | T38: 103300 | U38: Chq Bk | V38: Blakesley Hall Primary School | W38: Community School | X38: 38 | AB38: Primary | AD38: 108399.7857 | AE38: 4129 | AF38: Dame Elizabeth Cadbury | AG38: Academy | AH38: 0 | AI38: 0 | AJ38: 0 | AK38: 0 | AL38: 0 | AM38: 0 | AN38: 0 | AP38: 0
A39: 4240 | B39: Hamstead Hall Community Learning Centre | C39: Academy | D39: =SUMIF('22-23 RB Numbers'!$K$5:$K$46,'RB DATA'!A39,'22-23 RB Numbers'!$L$5:$L$46) -> 49 | E39: =_xlfn.XLOOKUP($A39,'22-23 RB Numbers'!$C$5:$C$47,'22-23 RB Numbers'!$H$5:$H$47,FALSE) -> 40 | F39: =_xlfn.XLOOKUP($A39,'22-23 RB Numbers'!$C$5:$C$47,'22-23 RB Numbers'!$G$5:$G$47,FALSE) -> 45 | G39: 257500 | I39: =SUMIF('22-23 RB TopUP-SENAR'!$B$7:$B$48,'RB DATA'!A39,'22-23 RB TopUP-SENAR'!$C$7:$C$48) -> 421500 | P39: Academy | Q39: TRUE | R39: 1025 | S39: REAYY | T39: 103138 | U39: Non Chq Bk | V39: Bloomsbury Nursery School | W39: LA Nursery School | X39: 39 | AB39: Nursery | AD39: 679000 | AE39: 4206 | AF39: Stockland Green School | AG39: Academy | AH39: 13 | AI39: 14 | AJ39: 14 | AK39: 0 | AL39: 84000 | AM39: 77007.303 | AN39: 161007.303 | AO39: 222000 | AP39: 60992.697 | AQ39: 0.378819444
A40: 4331 | B40: Plantsbrook School | C40: Academy | D40: =SUMIF('22-23 RB Numbers'!$K$5:$K$46,'RB DATA'!A40,'22-23 RB Numbers'!$L$5:$L$46) -> 10 | E40: =_xlfn.XLOOKUP($A40,'22-23 RB Numbers'!$C$5:$C$47,'22-23 RB Numbers'!$H$5:$H$47,FALSE) -> 15 | F40: =_xlfn.XLOOKUP($A40,'22-23 RB Numbers'!$C$5:$C$47,'22-23 RB Numbers'!$G$5:$G$47,FALSE) -> 13 | G40: 98333.33333 | I40: =SUMIF('22-23 RB TopUP-SENAR'!$B$7:$B$48,'RB DATA'!A40,'22-23 RB TopUP-SENAR'!$C$7:$C$48) -> 143098.6997 | P40: Academy | Q40: TRUE | R40: 2402 | S40: REABL | T40: 103342 | U40: Chq Bk | V40: Boldmere Infant School and Nursery | W40: Community School | X40: 40 | AB40: Infants | AD40: 241432.033 | AE40: 4017 | AF40: Bournville School and Sixth Form Centre | AG40: Academy | AH40: 8 | AI40: 10 | AJ40: 10 | AK40: 0 | AL40: 40666.66667 | AM40: 120341.288 | AN40: 161007.9547 | AO40: 108399.7857 | AP40: -52608.169 | AQ40: -0.32674267
A41: 4025 | B41: Small Heath School | C41: Academy | D41: =SUMIF('22-23 RB Numbers'!$K$5:$K$46,'RB DATA'!A41,'22-23 RB Numbers'!$L$5:$L$46) -> 8 | E41: =_xlfn.XLOOKUP($A41,'22-23 RB Numbers'!$C$5:$C$47,'22-23 RB Numbers'!$H$5:$H$47,FALSE) -> 9 | F41: =_xlfn.XLOOKUP($A41,'22-23 RB Numbers'!$C$5:$C$47,'22-23 RB Numbers'!$G$5:$G$47,FALSE) -> 8 | G41: 52166.66667 | I41: =SUMIF('22-23 RB TopUP-SENAR'!$B$7:$B$48,'RB DATA'!A41,'22-23 RB TopUP-SENAR'!$C$7:$C$48) -> 116714.7237 | P41: Academy | Q41: TRUE | R41: 2401 | S41: REABM | T41: 103341 | U41: Chq Bk | V41: Boldmere Junior School | W41: Community School | X41: 41 | AB41: Juniors | AD41: 168881.3903 | AE41: 4240 | AF41: Hamstead Hall Community Learning Centre | AG41: Academy | AH41: 40 | AI41: 40 | AJ41: 40 | AK41: 0 | AL41: 257500 | AM41: 261042.7727 | AN41: 518542.7727 | AO41: 679000 | AP41: 160457.2273 | AQ41: 0.3094387499
A42: 5409 | B42: Hall Green Secondary School | C42: Academy | D42: =SUMIF('22-23 RB Numbers'!$K$5:$K$46,'RB DATA'!A42,'22-23 RB Numbers'!$L$5:$L$46) -> 15 | E42: =_xlfn.XLOOKUP($A42,'22-23 RB Numbers'!$C$5:$C$47,'22-23 RB Numbers'!$H$5:$H$47,FALSE) -> 11 | F42: =_xlfn.XLOOKUP($A42,'22-23 RB Numbers'!$C$5:$C$47,'22-23 RB Numbers'!$G$5:$G$47,FALSE) -> 12 | G42: 69500 | I42: =SUMIF('22-23 RB TopUP-SENAR'!$B$7:$B$48,'RB DATA'!A42,'22-23 RB TopUP-SENAR'!$C$7:$C$48) -> 178352.108 | P42: Academy | Q42: TRUE | R42: 2030 | S42: REABN | T42: 103172 | U42: Chq Bk | V42: Bordesley Green Primary School | W42: Community School | X42: 42 | AB42: Primary | AD42: 247852.108 | AE42: 4331 | AF42: Plantsbrook School | AG42: Academy | AH42: 10 | AI42: 15 | AJ42: 15 | AK42: 0 | AL42: 98333.33333 | AM42: 167824.359 | AN42: 266157.6923 | AO42: 241432.033 | AP42: -24725.65933 | AQ42: -0.09289853363
A43: 5410 | B43: Fairfax School | C43: Academy | D43: =SUMIF('22-23 RB Numbers'!$K$5:$K$46,'RB DATA'!A43,'22-23 RB Numbers'!$L$5:$L$46) -> 16 | E43: =_xlfn.XLOOKUP($A43,'22-23 RB Numbers'!$C$5:$C$47,'22-23 RB Numbers'!$H$5:$H$47,FALSE) -> 12 | F43: =_xlfn.XLOOKUP($A43,'22-23 RB Numbers'!$C$5:$C$47,'22-23 RB Numbers'!$G$5:$G$47,FALSE) -> 11 | G43: 68500 | I43: =SUMIF('22-23 RB TopUP-SENAR'!$B$7:$B$48,'RB DATA'!A43,'22-23 RB TopUP-SENAR'!$C$7:$C$48) -> 155585.357 | P43: Academy | Q43: TRUE | R43: 1001 | S43: REAYZ | T43: 103120 | U43: EPA | V43: Bordesley Green East Nursery School | W43: LA Nursery School | X43: 43 | AB43: Nursery | AD43: 224085.357 | AE43: 4025 | AF43: Small Heath School | AG43: Academy | AH43: 8 | AI43: 9 | AJ43: 9 | AK43: 0 | AL43: 52166.66667 | AM43: 114282.0377 | AN43: 166448.7043 | AO43: 168881.3903 | AP43: 2432.686 | AQ43: 0.01461522942
A44: 5411 | B44: Ninestiles School, An Academy | C44: Academy | D44: =SUMIF('22-23 RB Numbers'!$K$5:$K$46,'RB DATA'!A44,'22-23 RB Numbers'!$L$5:$L$46) -> 42 | E44: =_xlfn.XLOOKUP($A44,'22-23 RB Numbers'!$C$5:$C$47,'22-23 RB Numbers'!$H$5:$H$47,FALSE) -> 45 | F44: =_xlfn.XLOOKUP($A44,'22-23 RB Numbers'!$C$5:$C$47,'22-23 RB Numbers'!$G$5:$G$47,FALSE) -> 45 | G44: 282000 | I44: =SUMIF('22-23 RB TopUP-SENAR'!$B$7:$B$48,'RB DATA'!A44,'22-23 RB TopUP-SENAR'!$C$7:$C$48) -> 342000 | P44: Academy | Q44: TRUE | R44: 4115 | S44: REATH | T44: 103493 | U44: Chq Bk | V44: Bordesley Green Girls' School & Sixth Form | W44: Community School | X44: 44 | AB44: Secondary | AD44: 624000 | AE44: 5409 | AF44: Hall Green Secondary School | AG44: Academy | AH44: 14 | AI44: 11 | AJ44: 11 | AK44: 0 | AL44: 69500 | AM44: 204345.941 | AN44: 273845.941 | AO44: 247852.108 | AP44: -25993.833 | AQ44: -0.09492137406
AE45: 5410 | AF45: Fairfax School | AG45: Academy | AH45: 12 | AI45: 12 | AJ45: 12 | AK45: 0 | AL45: 68500 | AM45: 106414.744 | AN45: 174914.744 | AO45: 224085.357 | AP45: 49170.613 | AQ45: 0.2811118827
D46: =SUM(D3:D45) -> 623 | E46: 621 | F46: 630 | G46: =SUM(G3:G45) -> 3934833.333 | H46: 0 | I46: =SUM(I3:I45) -> 6865438.03 | R46: 3354 | S46: REABQ | T46: 103446 | U46: Amalgamated | X46: 46 | AA46: 43585 | AE46: 5411 | AF46: Ninestiles School, An Academy | AG46: Academy | AH46: 40 | AI46: 45 | AJ46: 45 | AK46: 0 | AL46: 282000 | AM46: 178215.649 | AN46: 460215.649 | AO46: 624000 | AP46: 163784.351 | AQ46: 0.3558860968
C47: Check | D47: ='22-23 RB Numbers'!$X$48-D46 -> -7 | E47: 12 | F47: 12 | G47: 0 | I47: 0 | J47: 0 | K47: 0 | L47: 0 | M47: 0 | R47: 3353 | S47: REABR | T47: 103445 | U47: Non Chq Bk | V47: Bournville Village Primary | W47: Voluntary Aided School | X47: 47 | AB47: Primary | AE47: 5412 | AF47: George Dixon Academy ASC RB | AG47: Academy | AH47: 0 | AI47: 0 | AJ47: 0 | AK47: 0 | AL47: 0 | AM47: 0 | AN47: 0 | AO47: FALSE
B48: Nursery | C48: =COUNTIF($C$3:$C$44,B48) -> 2 | R48: 4017 | S48: REATJ | T48: 141318 | U48: Academy | V48: Bournville School | W48: Academy Sponsor Led | X48: 48 | Y48: Academy | Z48: Public | AA48: 41944 | AB48: All Through | AH48: 569 | AI48: 641 | AJ48: 641 | AK48: 1546000 | AL48: 0 | AM48: 5404175.986
B49: Primary | C49: =COUNTIF($C$3:$C$44,B49) -> 17 | R49: 7030 | S49: REAXN | T49: 103611 | U49: EPA | V49: Braidwood School for the Deaf | W49: Foundation School | X49: 49 | AB49: Special
B50: Academy | C50: 22 | R50: 7038 | S50: REAXP | T50: 144042 | U50: Academy | V50: Brays School | W50: Academy Special Converter | X50: 50 | Y50: Academy | Z50: Public | AA50: 42826 | AB50: Special
B51: Secondary | C51: 1 | R51: 1002 | S51: REAZA | T51: 103121 | U51: Non Chq Bk | V51: Brearley Nursery School | W51: LA Nursery School | X51: 51 | AB51: Nursery
R52: 7049 | S52: REAXQ | T52: 144043 | U52: Academy | V52: The Bridge School | W52: Academy Special Converter | X52: 52 | Y52: Academy | Z52: Public | AA52: 42826 | AB52: Special
A53: DfE | B53: School | D53: 2017-10-01 | R53: 2238 | S53: REABT | T53: 103288 | U53: Chq Bk | V53: Broadmeadow Infant School | W53: Community School | X53: 53 | AB53: Infants
A54: 1006 | B54: Garretts Green Nursery school | C54: Nursery | D54: N/A | R54: 2236 | S54: REABV | T54: 103286 | U54: Chq Bk | V54: Broadmeadow Junior School | W54: Community School | X54: 54 | AB54: Juniors
A55: 1017 | B55: Allenscroft | C55: Nursery | D55: N/A | R55: 4227 | S55: REATK | T55: 139841 | U55: Academy | V55: Broadway Academy | W55: Academy Converter | X55: 55 | Y55: Academy | Z55: Public | AA55: 41456 | AB55: Secondary
A56: 2005 | B56: Kings Heath Primary School | C56: Primary | R56: 2196 | S56: REABY | T56: 146437 | U56: Academy | V56: Brookfields Primary School | W56: Academy Sponsor Led | X56: 56 | Y56: Academy | Z56: Public | AA56: 43405 | AB56: Primary
A57: 2021 | B57: PAGANEL PRIMARY SCHOOL | C57: Primary | R57: 2295 | S57: REABZ | T57: 139465 | U57: Academy | V57: Brookvale Primary School | W57: Academy Converter | X57: 57 | Y57: Academy | Z57: Public | AA57: 41365 | AB57: Primary
A58: 2040 | B58: Cherry Orchard | C58: Primary | R58: 2152 | S58: REACA | T58: 141320 | U58: Academy | V58: Brownmead Primary Academy | W58: Academy Sponsor Led | X58: 58 | Y58: Academy | Z58: Public | AA58: 41944 | AB58: Primary
A59: 2057 | B59: Percy Shurmer Primary School (NC) (SU) | C59: Academy | R59: 2465 | S59: REACB | T59: 103391 | U59: EPA | V59: Calshot Primary School | W59: Community School | X59: 59 | AB59: Primary
A60: 2072 | B60: BILLESLEY | C60: Academy | R60: 7013 | S60: REAXR | T60: 141252 | U60: Academy | V60: Calthorpe Teaching Academy | W60: Academy Special Converter | X60: 60 | Y60: Academy | Z60: Public | AA60: 41883 | AB60: Special
A61: 2099 | B61: Hawthorn Primary School | C61: Primary | R61: 2039 | S61: REACC | T61: 143942 | U61: Academy | V61: Canterbury Cross Primary School | W61: Academy Converter | X61: 61 | Y61: Academy | Z61: Public | AA61: 42767 | AB61: Primary
A62: 2128 | B62: Lyndon Green Junior School | C62: Primary | R62: 4801 | S62: REATN | T62: 103539 | U62: Chq Bk | V62: Cardinal Wiseman Catholic School | W62: Voluntary Aided School | X62: 62 | AB62: Secondary
A63: 2129 | B63: Lyndon Green Infant School | C63: Primary | R63: 1048 | S63: REAZB | T63: 103144 | U63: Non Chq Bk | V63: Castle Vale Nursery School | W63: LA Nursery School | X63: 63 | AB63: Nursery
A64: 2136 | B64: Woodhouse Primary School | C64: Academy | R64: 4006 | S64: REATP | T64: 139048 | U64: Academy | V64: Greenwood Academy | W64: Academy Sponsor Led | X64: 64 | Y64: Academy | Z64: Public | AA64: 41275 | AB64: Secondary
A65: 2149 | B65: Paget | C65: Primary | R65: 2312 | S65: REACD | T65: 103332 | U65: EPA | V65: Chad Vale Primary School | W65: Community School | X65: 65 | AB65: Primary
A66: 2153 | B66: Allenscroft | C66: Primary | R66: 2170 | S66: REACE | T66: 143908 | U66: Academy | V66: Chandos Primary School | W66: Academy Sponsor Led | X66: 66 | Y66: Academy | Z66: Public | AA66: 42767 | AB66: Primary
A67: 2195 | B67: Timberley Primary School | C67: Academy | R67: 7051 | S67: REAXT | T67: 103626 | U67: Chq Bk | V67: Cherry Oak School | W67: Community School | X67: 67 | AB67: Special
A68: 2245 | B68: Welsh House Farm Community School | C68: Primary | R68: 2040 | S68: REACF | T68: 103178 | U68: EPA | V68: Cherry Orchard Primary School | W68: Community School | X68: 68 | AB68: Primary
A69: 2246 | B69: The Meadows Primary School | C69: Primary | R69: 2251 | S69: REACG | T69: 103298 | U69: Chq Bk | V69: Chilcote Primary School | W69: Community School | X69: 69 | AB69: Primary
A70: 2273 | B70: Topcliffe Primary School | C70: Academy | R70: 2047 | S70: REARB | T70: 138395 | U70: Academy | V70: Chilwell Croft Academy | W70: Academy Sponsor Led | X70: 70 | Y70: Academy | Z70: Public | AA70: 41153 | AB70: Primary
A71: 2288 | B71: Hollywood | C71: Primary | R71: 2140 | S71: REACH | T71: 140159 | U71: Academy | V71: Chivenor Primary School | W71: Academy Sponsor Led | X71: 71 | Y71: Academy | Z71: Public | AA71: 41671 | AB71: Primary
A72: 2308 | B72: Welford Primary School | C72: Primary | R72: 3319 | S72: REACJ | T72: 103423 | U72: Chq Bk | V72: Christ The King Catholic Primary School | W72: Voluntary Aided School | X72: 72 | AB72: Primary
A73: 2317 | B73: Worlds End Infant NC School | C73: Primary | R73: 3002 | S73: REACK | T73: 103397 | U73: Chq Bk | V73: Christ Church CofE Controlled Primary School and Nursery | W73: Voluntary Controlled School | X73: 73 | AB73: Primary
A74: 2175 | B74: Turves Green Primary School | C74: Academy | R74: 2194 | S74: REACL | T74: 146385 | U74: Academy | V74: City Road Primary School | W74: Academy Sponsor Led | X74: 74 | Y74: Academy | Z74: Public | AA74: 41456 | AB74: Primary
A75: 2450 | B75: Great Barr Primary & Nursery School | C75: Academy | R75: 3432 | S75: REACN | T75: 134840 | U75: EPA | V75: Clifton Primary School | W75: Community School | X75: 75 | AB75: Primary
A76: 2457 | B76: NELSON MANDELA SCHOOL | C76: Primary | R76: 4022 | S76: REATQ | T76: 142388 | U76: Academy | V76: Cockshut Hill School | W76: Academy Sponsor Led | X76: 76 | Y76: Academy | Z76: Public | AA76: 42644 | AB76: Secondary
A77: 2458 | B77: Parkfield Community School | C77: Academy | R77: 2289 | S77: REACP | T77: 103315 | U77: Non Chq Bk | V77: Cofton Primary School | W77: Foundation School | X77: 77 | AB77: Primary
A78: 2463 | B78: Mere Green Combined School | C78: Academy | R78: 2185 | S78: REACQ | T78: 103263 | U78: EPA | V78: Colebourne Primary School | W78: Community School | X78: 78 | AB78: Primary
A79: 2479 | B79: ANGLESEY | C79: Primary | R79: 2052 | S79: REACR | T79: 146696 | U79: Academy | V79: Colmers Farm Primary School | W79: Academy Converter | X79: 79 | Y79: Academy | Z79: Public | AA79: 43556 | AB79: Primary
A80: 2481 | B80: Rookery School | C80: Academy | R80: 5416 | S80: REATR | T80: 103563 | U80: Chq Bk | V80: Colmers School and Sixth Form College | W80: Foundation School | X80: 81 | AB80: Secondary
A81: 3319 | B81: Christ The King Catholic Primary School | C81: Primary | R81: 2054 | S81: REACV | T81: 103189 | U81: Chq Bk | V81: Colmore Infant and Nursery School | W81: Community School | X81: 82 | AB81: Infants
A82: 4006 | B82: Greenwood Academy | C82: Academy | R82: 2053 | S82: REACW | T82: 103188 | U82: Chq Bk | V82: Colmore Junior School | W82: Community School | X82: 83 | AB82: Juniors
A83: 4009 | B83: WAVERLEY SCHOOL | C83: Academy | R83: 2082 | S83: REACX | T83: 143086 | U83: Academy | V83: Conway Primary School | W83: Academy Converter | X83: 84 | Y83: Academy | Z83: Public | AA83: 42614 | AB83: Primary
A84: 4013 | B84: Golden Hillock School | C84: Academy | R84: 2464 | S84: REACY | T84: 103390 | U84: EPA | V84: Coppice Primary School | W84: Foundation School | X84: 85 | AB84: Primary
A85: 4108 | B85: BARTLEY GREEN SCHOOL | C85: Academy | R85: 3320 | S85: REACZ | T85: 103424 | U85: Non Chq Bk | V85: Corpus Christi Catholic Primary School | W85: Voluntary Aided School | X85: 86 | AB85: Primary
A86: 4115 | B86: Bordesley Green Girls | C86: Secondary | R86: 2055 | S86: READA | T86: 103190 | U86: Non Chq Bk | V86: Cotteridge Primary School | W86: Community School | X86: 87 | AB86: Primary
A87: 4129 | B87: Dame Elizabeth Cadbury | C87: Academy | R87: 2299 | S87: READB | T87: 140706 | U87: Academy | V87: Cottesbrooke Infant and Nursery School | W87: Academy Converter | X87: 88 | Y87: Academy | Z87: Public | AA87: 41730 | AB87: Infants
A88: 4206 | B88: Stockland Green School | C88: Academy | R88: 2226 | S88: READC | T88: 143088 | U88: Academy | V88: Cedars Academy | W88: Academy Sponsor Led | X88: 89 | Y88: Academy | Z88: Public | AA88: 42614 | AB88: Juniors
A89: 4017 | B89: Bournville School and Sixth Form Centre | C89: Academy | R89: 2191 | S89: READD | T89: 103267 | U89: Non Chq Bk | V89: Court Farm Primary School | W89: Community School | X89: 90 | Z89: Public | AB89: Primary
A90: 4240 | B90: Hamstead Hall Community Learning Centre | C90: Academy | R90: 2060 | S90: READE | T90: 143563 | U90: Academy | V90: Cromwell Junior and Infant School | W90: Academy Converter | X90: 91 | Y90: Academy | Z90: Public | AA90: 42736 | AB90: Primary
A91: 4331 | B91: Plantsbrook School | C91: Academy | R91: 4129 | S91: REATT | T91: 143438 | U91: Academy | V91: Dame Elizabeth Cadbury School | W91: Academy Converter | X91: 92 | Y91: Academy | Z91: Public | AA91: 42644 | AB91: Secondary
A92: 5401 | B92: Small Heath School | C92: Academy | R92: 7035 | S92: REAXV | T92: 103615 | U92: Non Chq Bk | V92: The Dame Ellen Pinsent School | W92: Foundation School | X92: 93 | AB92: Special
A93: 5409 | B93: Hall Green Secondary School | C93: Academy | R93: 5201 | S93: READF | T93: 137155 | U93: Academy | V93: The Deanery Church of England Primary School | W93: Academy Converter | X93: 94 | Y93: Academy | Z93: Public | AA93: 40756 | AB93: Primary
A94: 5410 | B94: Fairfax School | C94: Academy | R94: 2284 | S94: READG | T94: 103313 | U94: Non Chq Bk | V94: Deykin Avenue Junior and Infant School | W94: Community School | X94: 95 | AB94: Primary
A95: 5411 | B95: Ninestiles School, An Academy | C95: Academy | R95: 2065 | S95: READH | T95: 138218 | U95: Academy | V95: Dorrington Academy | W95: Academy Converter | X95: 96 | Y95: Academy | Z95: Public | AA95: 41061 | AB95: Primary
R96: 1802 | S96: REAYF | T96: 103150 | U96: Non Chq Bk | V96: Edith Cadbury Nursery School | W96: LA Nursery School | X96: 97 | AB96: Nursery
R97: 2454 | S97: READJ | T97: 103381 | U97: Non Chq Bk | V97: Elms Farm Community Primary School | W97: Community School | X97: 98 | AB97: Primary
R98: 3321 | S98: READK | T98: 103425 | U98: EPA | V98: English Martyrs' Catholic Primary School | W98: Voluntary Aided School | X98: 99 | AB98: Primary
R99: 2036 | S99: READL | T99: 138194 | U99: Academy | V99: Erdington Hall Primary School | W99: Academy Sponsor Led | X99: 100 | Y99: Academy | Z99: Public | AA99: 41061 | AB99: Primary
R100: 5410 | S100: REATV | T100: 136908 | U100: Academy | V100: Fairfax | W100: Academy Converter | X100: 101 | Y100: Academy | Z100: Public | AA100: 40756 | AB100: Secondary
R101: 2310 | S101: READM | T101: 139484 | U101: Academy | V101: Fairway Primary Academy | W101: Academy Converter | X101: 102 | Y101: Academy | Z101: Public | AA101: 41365 | AB101: Primary
R102: 2294 | S102: READN | T102: 103318 | U102: Non Chq Bk | V102: Featherstone Primary School | W102: Community School | X102: 103 | AB102: Primary
R103: 1026 | S103: REAZC | T103: 103139 | U103: Non Chq Bk | V103: Featherstone Nursery School | W103: LA Nursery School | X103: 104 | AB103: Nursery
R104: 2475 | S104: READQ | T104: 143089 | U104: Academy | V104: Firs Primary School | W104: Academy Converter | X104: 105 | Y104: Academy | Z104: Public | AA104: 42705 | AB104: Primary
R105: 2486 | S105: READY | T105: 133759 | U105: Non Chq Bk | V105: Forestdale Primary School | W105: Community School | X105: 106 | AB105: Primary
R106: 2141 | S106: READR | T106: 140161 | U106: Academy | V106: Oasis Academy Foundry | W106: Academy Sponsor Led | X106: 107 | Y106: Academy | Z106: Public | AA106: 41640 | AB106: Primary
R107: 2109 | S107: READV | T107: 139131 | U107: Academy | V107: Four Dwellings Primary Academy | W107: Academy Sponsor Led | X107: 108 | Y107: Academy | Z107: Public | AA107: 41275 | AB107: Primary
R108: 4005 | S108: REATW | T108: 139047 | U108: Academy | V108: Four Dwellings Academy | W108: Academy Sponsor Led | X108: 109 | Y108: Academy | Z108: Public | AA108: 41334 | AB108: Secondary
R109: 3435 | S109: READX | T109: 131920 | U109: EPA | V109: Four Oaks Primary School | W109: Foundation School | X109: 110 | AB109: Primary
R110: 7050 | S110: REAXW | T110: 103625 | U110: Non Chq Bk | V110: Fox Hollies School | W110: Foundation School | X110: 111 | AB110: Special
R111: 4036 | S111: REATX | T111: 147440 | U111: Academy | V111: King Edward VI Balaam Wood Academy | W111: Academy Sponsor Led | X111: 112 | Y111: Academy | Z111: Public | AA111: 43709 | AB111: Secondary
R112: 1006 | S112: REAZD | T112: 103122 | U112: Non Chq Bk | V112: Garretts Green Nursery School | W112: LA Nursery School | X112: 113 | AB112: Nursery
R113: 2079 | S113: READZ | T113: 103200 | U113: Non Chq Bk | V113: George Dixon Primary School | W113: Community School | X113: 114 | AB113: Primary
R114: 5412 | S114: REATY | T114: 138695 | U114: Academy | V114: George Dixon Academy | W114: Academy Converter | X114: 115 | Y114: Academy | Z114: Public | AA114: 41153 | AB114: Secondary
R115: 2081 | S115: REAEA | T115: 103201 | U115: EPA | V115: Gilbertstone Primary School | W115: Community School | X115: 116 | AB115: Primary
R116: 2296 | S116: REAEB | T116: 103320 | U116: Chq bk | V116: Glenmead Primary School | W116: Community School | X116: 117 | AB116: Primary
R117: 4013 | S117: REATZ | T117: 140014 | U117: Academy | V117: Ark Boulton Academy | W117: Academy Sponsor Led | X117: 118 | Y117: Academy | Z117: Public | AA117: 41548 | AB117: Secondary
R118: 1015 | S118: REAZE | T118: 103128 | U118: Non Chq Bk | V118: Goodway Nursery School | W118: LA Nursery School | X118: 119 | AB118: Nursery
R119: 2448 | S119: REAEC | T119: 142794 | U119: Academy | V119: Gossey Lane Academy | W119: Academy Converter | X119: 120 | Y119: Academy | Z119: Public | AA119: 42491 | AB119: Primary
R120: 1022 | S120: REAZF | T120: 103135 | U120: Non Chq Bk | V120: Gracelands Nursery School | W120: LA Nursery School | X120: 121 | AB120: Nursery
R121: 2450 | S121: REAED | T121: 138694 | U121: Academy | V121: Barr View Primary & Nursery Academy | W121: Academy Converter | X121: 122 | Y121: Academy | Z121: Public | AA121: 41153 | AB121: Primary
R122: 5403 | S122: REAVA | T122: 143435 | U122: Academy | V122: Great Barr Academy | W122: Academy Converter | X122: 123 | Y122: Academy | Z122: Public | AA122: 42705 | AB122: Secondary
R123: 2451 | S123: REAEE | T123: 141610 | U123: Academy | V123: Green Meadow Primary School | W123: Academy Converter | X123: 124 | Y123: Academy | Z123: Public | AA123: 42005 | AB123: Primary
R124: 2085 | S124: REAEF | T124: 138693 | U124: Academy | V124: Greenholm Primary School | W124: Academy Converter | X124: 125 | Y124: Academy | Z124: Public | AA124: 41153 | AB124: Primary
R125: 2086 | S125: REAEG | T125: 143090 | U125: Academy | V125: Greet Primary School | W125: Academy Converter | X125: 126 | Y125: Academy | Z125: Public | AA125: 42614 | AB125: Primary
R126: 2087 | S126: REAEH | T126: 103205 | U126: Non Chq Bk | V126: Grendon Primary School | W126: Community School | X126: 127 | AB126: Primary
R127: 2138 | S127: REAEJ | T127: 139904 | U127: Academy | V127: Grestone Academy | W127: Academy Sponsor Led | X127: 128 | Y127: Academy | Z127: Public | AA127: 41548 | AB127: Primary
R128: 2466 | S128: REAEK | T128: 103392 | U128: Non Chq Bk | V128: Grove School | W128: Community School | X128: 129 | AB128: Primary
R129: 3316 | S129: REAEL | T129: 103420 | U129: Non Chq Bk | V129: Guardian Angels Catholic Primary School | W129: Voluntary Aided School | X129: 130 | AB129: Primary
R130: 2091 | S130: REAEM | T130: 103208 | U130: Non Chq Bk | V130: Gunter Primary School | W130: Community School | X130: 131 | AB130: Primary
R131: 2093 | S131: REAEN | T131: 103210 | U131: EPA | V131: Hall Green Infant School | W131: Community School | X131: 132 | AB131: Infants
R132: 2092 | S132: REAEP | T132: 103209 | U132: Chq Bk | V132: Hall Green Junior School | W132: Community School | X132: 133 | AB132: Juniors
R133: 5409 | S133: REAVB | T133: 137858 | U133: Academy | V133: Hall Green School | W133: Academy Converter | X133: 134 | Y133: Academy | Z133: Public | AA133: 40940 | AB133: Secondary
R134: 7000 | S134: REAXY | T134: 144336 | U134: Academy | V134: Hallmoor School | W134: Academy Special Sponsor Led | X134: 135 | Y134: Academy | Z134: Public | AA134: 42826 | AB134: Special
R135: 7006 | S135: REAXZ | T135: 103600 | U135: Non Chq Bk | V135: Hamilton School | W135: Foundation School | X135: 136 | AB135: Special
R136: 4240 | S136: REAVC | T136: 139746 | U136: Academy | V136: Hamstead Hall Academy | W136: Academy Converter | X136: 137 | Y136: Academy | Z136: Public | AA136: 41426 | AB136: Secondary
R137: 5402 | S137: REAVD | T137: 143562 | U137: Academy | V137: King Edward VI Handsworth Grammar School for Boys | W137: Academy Converter | X137: 138 | Y137: Academy | Z137: Public | AA137: 42979 | AB137: Secondary
R138: 4207 | S138: REAVE | T138: 138937 | U138: Academy | V138: King Edward VI Handsworth Wood Girls' Academy | W138: Academy Converter | X138: 139 | Y138: Academy | Z138: Public | AA138: 41214 | AB138: Secondary
R139: 2477 | S139: REAER | T139: 132261 | U139: Non Chq Bk | V139: Harborne Primary School | W139: Community School | X139: 140 | AB139: Primary
R140: 6910 | S140: REAVF | T140: 136213 | U140: Academy | V140: Harborne Academy | W140: Academy Sponsor Led | X140: 141 | Y140: Academy | Z140: Public | AA140: 40422 | AB140: Secondary
R141: 3436 | S141: REAHP | T141: 136440 | U141: Non Chq Bk | V141: Harper Bell Seventh-Day Adventist School | W141: Voluntary Aided School | X141: 142 | Z141: Public | AB141: Primary
R142: 2121 | S142: REAEV | T142: 139269 | U142: Academy | V142: Hawkesley Church Primary Academy | W142: Academy Sponsor Led | X142: 143 | Y142: Academy | Z142: Public | AA142: 41426 | AB142: Primary
R143: 2099 | S143: REAEW | T143: 103214 | U143: EPA | V143: Hawthorn Primary School | W143: Community School | X143: 144 | AB143: Primary
R144: 6905 | S144: REAXD | T144: 135907 | U144: Academy | V144: Heartlands Academy | W144: Academy Sponsor Led | X144: 145 | Y144: Academy | Z144: Public | AA144: 40057 | AB144: Secondary
R145: 2313 | S145: REAEX | T145: 103333 | U145: EPA | V145: Heath Mount Primary School | W145: Community School | X145: 146 | AB145: Primary
R146: 2309 | S146: REAEY | T146: 142231 | U146: Academy | V146: Heathfield Primary School | W146: Academy Converter | X146: 147 | Y146: Academy | Z146: Public | AA146: 42248 | AB146: Primary
R147: 2455 | S147: REAEZ | T147: 140890 | U147: Academy | V147: Heathlands Primary Academy | W147: Academy Converter | X147: 148 | Y147: Academy | Z147: Public | AA147: 41791 | AB147: Primary
R148: 2165 | S148: REAFA | T148: 142570 | U148: Academy | V148: Highfield Junior and Infant School | W148: Academy Sponsor Led | X148: 149 | Y148: Academy | Z148: Public | AA148: 42461 | AB148: Primary
R149: 1010 | S149: REAZG | T149: 103125 | U149: Non Chq Bk | V149: Highfield Nursery School | W149: LA Nursery School | X149: 150 | AB149: Nursery
R150: 2438 | S150: REAFB | T150: 103365 | U150: EPA | V150: Highters Heath Community School | W150: Community School | X150: 151 | AB150: Primary
R151: 1021 | S151: REAZH | T151: 103134 | U151: Non Chq Bk | V151: Highters Heath Nursery School | W151: LA Nursery School | X151: 152 | AB151: Nursery
R152: 3429 | S152: REAFE | T152: 139520 | U152: Academy | V152: Hill West Primary School | W152: Academy Converter | X152: 153 | Y152: Academy | Z152: Public | AA152: 41365 | AB152: Primary
R153: 4012 | S153: REAVG | T153: 137346 | U153: Academy | V153: Hillcrest School and Sixth Form Centre | W153: Academy Converter | X153: 154 | Y153: Academy | Z153: Public | AA153: 40787 | AB153: Secondary
R154: 2434 | S154: REAFC | T154: 141270 | U154: Academy | V154: Hillstone Primary School | W154: Academy Converter | X154: 155 | Y154: Academy | Z154: Public | AA154: 41883 | AB154: Primary
R155: 2110 | S155: REAFF | T155: 139214 | U155: Academy | V155: Oasis Academy Hobmoor | W155: Academy Sponsor Led | X155: 156 | Y155: Academy | Z155: Public | AA155: 41518 | AB155: Primary
R156: 3430 | S156: REABX | T156: 143869 | U156: Academy | V156: Hodge Hill Primary School | W156: Academy Converter | X156: 157 | Y156: Academy | Z156: Public | AA156: 42736 | AB156: Primary
R157: 4201 | S157: REAVH | T157: 103503 | U157: Chq Bk | V157: Hodge Hill College | W157: Community School | X157: 158 | AB157: Secondary
R158: 4015 | S158: REAVJ | T158: 103483 | U158: Chq Bk | V158: Hodge Hill Girls' School | W158: Community School | X158: 159 | AB158: Secondary
R159: 2429 | S159: REAFG | T159: 103360 | U159: EPA | V159: Holland House Infant School and Nursery | W159: Community School | X159: 160 | AB159: Infants
R160: 3411 | S160: REAFH | T160: 103479 | U160: Non Chq Bk | V160: Holly Hill Methodist CofE Infant School | W160: Voluntary Aided School | X160: 161 | AB160: Infants
R161: 2474 | S161: REAFK | T161: 131672 | U161: Non Chq Bk | V161: Hollyfield Primary School | W161: Foundation School | X161: 162 | AB161: Primary
R162: 2288 | S162: REAFL | T162: 103314 | U162: EPA | V162: Hollywood Primary School | W162: Community School | X162: 163 | AB162: Primary
R163: 4223 | S163: REAVK | T163: 103509 | U163: Chq Bk | V163: Holte School | W163: Community School | X163: 164 | Z163: Public | AB163: Secondary
R164: 3402 | S164: REAFN | T164: 140525 | U164: Academy | V164: Holy Cross Catholic Primary School | W164: Academy Converter | X164: 165 | Y164: Academy | Z164: Public | AA164: 41640 | AB164: Primary
R165: 3317 | S165: REAFP | T165: 103421 | U165: Non Chq Bk | V165: Holy Family Catholic Primary School | W165: Voluntary Aided School | X165: 166 | AB165: Primary
R166: 2199 | S166: REAFQ | T166: 147009 | U166: Academy | V166: Holy Souls Catholic Primary School | W166: Academy Sponsor Led | X166: 167 | Y166: Academy | Z166: Public | AA166: 43586 | AB166: Primary
R167: 3303 | S167: REAFM | T167: 140463 | U167: Academy | V167: Holy Trinity CE Primary Academy (Handsworth) | W167: Academy Converter | X167: 168 | Y167: Academy | Z167: Public | AA167: 41609 | AB167: Primary
R168: 4026 | S168: REAVL | T168: 144719 | U168: Academy | V168: Holy Trinity Catholic School | W168: Academy Sponsor Led | X168: 169 | Y168: Academy | Z168: Public | AA168: 43586 | AB168: Secondary
R169: 4241 | S169: REAVM | T169: 137034 | U169: Academy | V169: Holyhead School | W169: Academy Converter | X169: 170 | Y169: Academy | Z169: Public | AA169: 40756 | AB169: Secondary
R170: 7026 | S170: REAYA | T170: 103609 | U170: EPA | V170: Hunters Hill College | W170: Community School | X170: 171 | AB170: Special
R171: 4024 | S171: REATL | T171: 144306 | U171: Academy | V171: Tile Cross Academy | W171: Academy Sponsor Led | X171: 172 | Y171: Academy | Z171: Public | AA171: 42856 | AB171: Secondary
R172: 1023 | S172: REAZJ | T172: 103136 | U172: Non Chq Bk | V172: Jakeman Nursery School | W172: LA Nursery School | X172: 173 | AB172: Nursery
R173: 7063 | S173: REAYB | T173: 139526 | U173: Academy | V173: James Brindley School | W173: Academy Special Converter | X173: 174 | Y173: Academy | Z173: Public | AA173: 41365 | AB173: Special
R174: 2015 | S174: REAFT | T174: 134102 | U174: Chq Bk | V174: James Watt Primary School | W174: Community School | X174: 175 | AB174: Primary
R175: 2111 | S175: REAFV | T175: 142353 | U175: Academy | V175: Jervoise School | W175: Academy Converter | X175: 176 | Y175: Academy | Z175: Public | AA175: 42278 | AB175: Primary
R176: 4027 | S176: REAVN | T176: 144721 | U176: Academy | V176: John Willmott School | W176: Academy Sponsor Led | X176: 177 | Y176: Academy | Z176: Public | AA176: 43647 | AB176: Secondary
R177: 6906 | S177: REAWM | T177: 136152 | U177: Academy | V177: King Edward VI Sheldon Heath Academy | W177: Academy Sponsor Led | X177: 178 | Y177: Academy | Z177: Public | AA177: 40422 | AB177: Secondary
R178: 3352 | S178: REAFW | T178: 103444 | U178: Non Chq Bk | V178: King David Junior and Infant School | W178: Voluntary Aided School | X178: 179 | AB178: Primary
R179: 5408 | S179: REAVR | T179: 137043 | U179: Academy | V179: King Edward VI Aston School | W179: Academy Converter | X179: 180 | Y179: Academy | Z179: Public | AA179: 40756 | AB179: Secondary
R180: 5407 | S180: REAVP | T180: 137045 | U180: Academy | V180: King Edward VI Camp Hill School for Boys | W180: Academy Converter | X180: 181 | Y180: Academy | Z180: Public | AA180: 40756 | AB180: Secondary
R181: 5406 | S181: REAVQ | T181: 137044 | U181: Academy | V181: King Edward VI Camp Hill School for Girls | W181: Academy Converter | X181: 182 | Y181: Academy | Z181: Public | AA181: 40756 | AB181: Secondary
R182: 5405 | S182: REAVT | T182: 137046 | U182: Academy | V182: King Edward VI Five Ways School | W182: Academy Converter | X182: 183 | Y182: Academy | Z182: Public | AA182: 40756 | AB182: Secondary
R183: 5404 | S183: REAVV | T183: 137047 | U183: Academy | V183: King Edward VI Handsworth School for Girls | W183: Academy Converter | X183: 184 | Y183: Academy | Z183: Public | AA183: 40756 | AB183: Secondary
R184: 2005 | S184: REAFY | T184: 134098 | U184: Non Chq Bk | V184: Kings Heath Primary School | W184: Community School | X184: 185 | AB184: Primary
R185: 4063 | S185: REAVW | T185: 103486 | U185: Non Chq Bk | V185: Kings Heath Boys | W185: Community School | X185: 186 | AB185: Secondary
R186: 2118 | S186: REAFZ | T186: 103222 | U186: EPA | V186: Kings Norton Primary | W186: Community School | X186: 187 | AB186: Primary
R187: 1016 | S187: REAZK | T187: 103129 | U187: Non Chq Bk | V187: Kings Norton Nursery School | W187: LA Nursery School | X187: 188 | AB187: Nursery
R188: 5415 | S188: REAVX | T188: 103562 | U188: EPA | V188: King's Norton Boys' School | W188: Foundation School | X188: 189 | AB188: Secondary
R189: 5414 | S189: REAVY | T189: 136590 | U189: Academy | V189: Kings Norton Girls' School | W189: Academy Converter | X189: 190 | Y189: Academy | Z189: Public | AA189: 40634 | AB189: Secondary
R190: 4001 | S190: REAVZ | T190: 137578 | U190: Academy | V190: Ark Kings Academy | W190: Academy Sponsor Led | X190: 191 | Y190: Academy | Z190: Public | AA190: 41153 | AB190: All Through
R191: 2073 | S191: REAGA | T191: 138889 | U191: Academy | V191: Kings Rise Academy | W191: Academy Sponsor Led | X191: 192 | Y191: Academy | Z191: Public | AA191: 41214 | AB191: Primary
R192: 2168 | S192: REAWA | T192: 143413 | U192: Academy | V192: Erdington Academy | W192: Academy Sponsor Led | X192: 193 | Y192: Academy | Z192: Public | AA192: 42614 | AB192: Secondary
R193: 2115 | S193: REAGB | T193: 103221 | U193: Non Chq Bk | V193: Kingsland Primary School (NC) | W193: Community School | X193: 194 | AB193: Primary
R194: 2441 | S194: REAGC | T194: 103368 | U194: Non Chq Bk | V194: Kingsthorne Primary School | W194: Community School | X194: 195 | AB194: Primary
R195: 2321 | S195: REAGD | T195: 103339 | U195: Non Chq Bk | V195: Kitwell Primary School and Nursery Class | W195: Community School | X195: 196 | AB195: Primary
R196: 2189 | S196: REAGE | T196: 103265 | U196: Non Chq Bk | V196: Ladypool Primary School | W196: Community School | X196: 197 | AB196: Primary
R197: 2119 | S197: REAGF | T197: 103223 | U197: EPA | V197: Lakey Lane Junior and Infant School | W197: Community School | X197: 198 | AB197: Primary
R198: 7060 | S198: REAYD | T198: 103630 | U198: EPA | V198: Langley School | W198: Foundation School | X198: 199 | AB198: Special
R199: 2453 | S199: REAGH | T199: 140502 | U199: Academy | V199: Leigh Primary School | W199: Academy Converter | X199: 200 | Y199: Academy | Z199: Public | AA199: 41640 | AB199: Primary
R200: 2249 | S200: REAGJ | T200: 139860 | U200: Academy | V200: The Orchards Primary Academy | W200: Academy Converter | X200: 201 | Y200: Academy | Z200: Public | AA200: 41456 | AB200: Primary
... 230 more rows

Sheet 22-23 RB TopUP-SENAR (hidden)
A1: \\SVCEDCLR07\CYPF_Childrens_Finance$\Technical Office\Fair Funding & School Support\Fair Funding\A1 Formula\22_23 Actual\Formula\Special & RB\22-23 SourceFinal\RB 22-23 Indicative Top up Budget-Dan27May-NoESN&AddiPlace.xlsx
A2: Source of file: Dan SENAR 07th June 2022
A5: Sum of £
A6: School / Provider | B6: School DFE Number | C6: Total
A7: Allens Croft Nursery - C&L RB | B7: 1017 | C7: 126000
A8: Allens Croft Primary - C&L RB | B8: 2153 | C8: 133500
A9: Anglesey - SLCN RB | B9: 2479 | C9: 94500
A10: Ark Boulton Academy - FAM RB | B10: 4013 | C10: 63892.193
A11: Barr View Primary & Nursery Academy FAM | B11: 2450 | C11: 52361.302
A12: Bartley Green - C&L RB | B12: 4108 | C12: 145500
A13: Billesley - ASC RB | B13: 2072 | C13: 133500
A14: Boldmere Infant School ASC RB | B14: 2402 | C14: 184500
A15: Bordesley Green - HI RB | B15: 4115 | C15: 202065.128
A16: Bournville - HI RB | B16: 4017 | C16: 67733.119
A17: Cherry Orchard - ASC RB | B17: 2040 | C17: 231000
A18: Christ The King - VI RB | B18: 3319 | C18: 24649.612
A19: fairfax - PD RB | B19: 5410 | C19: 155585.357
A20: Garretts Green Nursery - ASC RB | B20: 1006 | C20: 80500
A21: Greenwood Academy - ASC RB | B21: 4006 | C21: 243000
A22: Hall Green - FAM RB | B22: 5409 | C22: 178352.108
A23: Hamstead Hall - C&L RB | B23: 4240 | C23: 421500
A24: Hawthorn - HI RB | B24: 2099 | C24: 136405.185
A25: Hollywood - ASC RB | B25: 2288 | C25: 142500
A26: Kings Heath - FAM RB | B26: 2005 | C26: 87468.38
A27: Lyndon Green Infant - C&L RB | B27: 2129 | C27: 144000
A28: Lyndon Green Junior - C&L RB | B28: 2128 | C28: 117000
A29: Meadows Primary (The) - SLCN RB | B29: 2246 | C29: 252000
A30: Nelson Mandela - FAM RB | B30: 2457 | C30: 89451.62
A31: Ninestiles School - C&L RB | B31: 5411 | C31: 342000
A32: Paget - ASC RB | B32: 2149 | C32: 150000
A33: Percy Shurmer - HI RB | B33: 2057 | C33: 215705.487
A34: Plantsbrook - VI RB | B34: 4331 | C34: 143098.6997
A35: Rookery - ASC RB | B35: 2481 | C35: 145500
A36: Saltley School and Specialist Science College ASC RB | B36: 4018 | C36: 153000
A37: Small Heath - HI RB | B37: 4025 | C37: 116714.7237
A38: Stockland Green - ASC RB | B38: 4206 | C38: 138000
A39: Timberley - FAM RB | B39: 2195 | C39: 241267.272
A40: Topcliffe - ASC & SLCN RB | B40: 2273 | C40: 513000
A41: Turves Green - FAM RB | B41: 2175 | C41: 36720.597
A42: Waverley - C&L RB | B42: 4009 | C42: 450000
A43: Welford - FAM RB | B43: 2308 | C43: 55116.245
A44: Welsh House - C&L RB | B44: 2245 | C44: 124500
A45: Woodhouse - ASC RB | B45: 2136 | C45: 112500
A46: Worlds End Infant - VI RB | B46: 2317 | C46: 77851.666
A47: Worlds End Junior - VI RB | B47: 2225 | C47: 154499.336
A48: Wyndcliffe ASC RB | B48: 2146 | C48: 189000
A49: Grand Total | C49: 6865438.03

Sheet 22-23 RB Numbers (hidden)
A1: \\SVCEDCLR07\CYPF_Childrens_Finance$\Technical Office\Fair Funding & School Support\Fair Funding\A1 Formula\22_23 Actual\Formula\Special & RB\22-23 SourceFinal\RB Commissioned numbers-Apr&Sept 7Jun.xlsx
A2: Source of file: Dan SENAR 07th June 2022 | U2: Source: | AD2: Commissioned Numbers from Dan's Team | AH2: DfE High Needs Numbers from the APT
J3: Count of School / Provider | U3: Number of primary (excluding nursery class) current and main registered pupils in the school occupying high needs places in 2021-22 | V3: Number of KS3 current and main registered pupils in the school occupying high needs places in 2021-22 | W3: Number of KS4 current and main registered pupils in the school occupying high needs places in 2021-22 | X3: Total | AD3: Count of School / Provider | AH3: LAESTAB | AI3: UPIN | AJ3: Institution Name | AK3: Pre 16 SEN Places | AL3: Total Schools
A4: School / Provider | B4: School Type / Status | C4: School DFE Number | D4: Area | E4: Need | F4: Phase | G4: Sept 22 Commissioned Number | H4: April 22 Commissioned Number | J4: School / Provider | K4: School DFE Number | L4: Total | S4: LAESTAB | T4: UPIN | U4: 357 | V4: 155 | W4: 104 | X4: =SUM(U4:W4) -> 616 | AD4: School / Provider | AE4: School DFE Number | AF4: Total | AH4: 3301006 | AJ4: Garretts Green Nursery - ASC RB | AK4: 6 | AL4: 6
A5: Garretts Green Nursery - ASC RB | B5: LA Maintained | C5: 1006 | D5: East | E5: ASC | F5: Nursery | G5: 6 | H5: 6 | J5: Allens Croft Nursery - C&L RB | K5: 1017 | L5: 3 | S5: 3302005 | T5: Kings Heath Primary School | U5: 6 | X5: =SUM(U5:W5) -> 6 | Z5: =VLOOKUP(VALUE(RIGHT($S5,4)),'RB DATA'!A:B,2,FALSE) -> Kings Heath Primary School | AA5: =VLOOKUP(VALUE(RIGHT($S5,4)),'RB DATA'!A:D,4,FALSE) -> 6 | AD5: Allens Croft Nursery - C&L RB | AE5: 1017 | AF5: 3 | AH5: 3301017 | AJ5: Allens Croft Nursery - C&L RB | AK5: 6 | AL5: 6
A6: Wyndcliffe ASC RB | B6: Academy | C6: 2146 | D6: East | E6: ASC | F6: Primary | G6: 18 | H6: 12 | J6: Allens Croft Primary - C&L RB | K6: 2153 | L6: 13 | S6: 3302040 | T6: Cherry Orchard Primary School | U6: 20 | X6: 20 | Z6: =VLOOKUP(VALUE(RIGHT(S6,4)),'RB DATA'!A:B,2,FALSE) -> Cherry Orchard | AD6: Allens Croft Primary - C&L RB | AE6: 2153 | AF6: 13 | AH6: 3302005 | AJ6: Kings Heath - FAM RB | AK6: 10 | AL6: 10
A7: Boldmere Infant School ASC RB | B7: LA Maintained | C7: 2402 | D7: North | E7: ASC | F7: Primary | G7: 20 | H7: 20 | J7: Anglesey - SLCN RB | K7: 2479 | L7: 12 | S7: 3302099 | T7: Hawthorn Primary School | U7: 9 | X7: 9 | Z7: =VLOOKUP(VALUE(RIGHT(S7,4)),'RB DATA'!A:B,2,FALSE) -> Hawthorn Primary School | AD7: Anglesey - SLCN RB | AE7: 2479 | AF7: 12 | AH7: 3302040 | AJ7: Cherry Orchard - ASC RB | AK7: 20 | AL7: 20
A8: Paget - ASC RB | B8: LA Maintained | C8: 2149 | D8: North | E8: ASC | F8: Primary | G8: 14 | H8: 14 | J8: Ark Boulton Academy - FAM RB | K8: 4013 | L8: 5 | S8: 3302128 | T8: Lyndon Green Junior School | U8: 12 | X8: 12 | Z8: =VLOOKUP(VALUE(RIGHT(S8,4)),'RB DATA'!A:B,2,FALSE) -> Lyndon Green Junior School | AD8: Ark Boulton Academy - FAM RB | AE8: 4013 | AF8: 5 | AH8: 3302057 | AI8: 122090 | AJ8: PERCY SHURMER ACADEMY | AK8: 14 | AL8: 14
A9: Billesley - ASC RB | B9: Academy | C9: 2072 | D9: South | E9: ASC | F9: Primary | G9: 12 | H9: 12 | J9: Barr View Primary & Nursery Academy FAM | K9: 2450 | L9: 5 | S9: 3302129 | T9: Lyndon Green Infant School | U9: 13 | X9: 13 | Z9: =VLOOKUP(VALUE(RIGHT(S9,4)),'RB DATA'!A:B,2,FALSE) -> Lyndon Green Infant School | AD9: Barr View Primary & Nursery Academy FAM | AE9: 2450 | AF9: 5 | AH9: 3302072 | AI9: 122846 | AJ9: BILLESLEY PRIMARY SCHOOL | AK9: 12 | AL9: 12
A10: Hollywood - ASC RB | B10: LA Maintained | C10: 2288 | D10: South | E10: ASC | F10: Primary | G10: 13 | H10: 13 | J10: Bartley Green - C&L RB | K10: 4108 | L10: 19 | S10: 3302149 | T10: Paget Primary School | U10: 14 | X10: 14 | Z10: =VLOOKUP(VALUE(RIGHT(S10,4)),'RB DATA'!A:B,2,FALSE) -> Paget | AD10: Bartley Green - C&L RB | AE10: 4108 | AF10: 19 | AH10: 3302099 | AJ10: Hawthorn - HI RB | AK10: 15 | AL10: 15
A11: Woodhouse - ASC RB | B11: Academy | C11: 2136 | D11: South | E11: ASC | F11: Primary | G11: 8 | H11: 8 | J11: Billesley - ASC RB | K11: 2072 | L11: 12 | S11: 3302153 | T11: Allens Croft Primary School | U11: 12 | X11: 12 | Z11: =VLOOKUP(VALUE(RIGHT(S11,4)),'RB DATA'!A:B,2,FALSE) -> Allenscroft | AD11: Billesley - ASC RB | AE11: 2072 | AF11: 12 | AH11: 3302128 | AJ11: Lyndon Green Junior - C&L RB | AK11: 12 | AL11: 12
A12: Cherry Orchard - ASC RB | B12: LA Maintained | C12: 2040 | D12: West | E12: ASC | F12: Primary | G12: 20 | H12: 20 | J12: Boldmere Infant School ASC RB | K12: 2402 | L12: 17 | S12: 3302225 | T12: World's End Junior School | U12: 5 | X12: 5 | Z12: =VLOOKUP(VALUE(RIGHT(S12,4)),'RB DATA'!A:B,2,FALSE) -> Worlds End Junior - VI RB | AD12: Boldmere Infant School ASC RB | AE12: 2402 | AF12: 17 | AH12: 3302129 | AJ12: Lyndon Green Infant - C&L RB | AK12: 15 | AL12: 15
A13: Rookery - ASC RB | B13: Academy | C13: 2481 | D13: West | E13: ASC | F13: Primary | G13: 14 | H13: 14 | J13: Bordesley Green - HI RB | K13: 4115 | L13: 13 | S13: 3302245 | T13: Welsh House Farm Community School and Special Needs Resources Base | U13: 13 | X13: 13 | Z13: =VLOOKUP(VALUE(RIGHT(S13,4)),'RB DATA'!A:B,2,FALSE) -> Welsh House Farm Community School | AD13: Bordesley Green - HI RB | AE13: 4115 | AF13: 13 | AH13: 3302136 | AI13: 123256 | AJ13: WOODHOUSE PRIMARY ACADEMY | AK13: 8 | AL13: 8
A14: Saltley School and Specialist Science College ASC RB | B14: Academy | C14: 4018 | D14: East | E14: ASC | F14: Secondary | G14: 21 | H14: 15 | J14: Bournville - HI RB | K14: 4017 | L14: 4 | S14: 3302246 | T14: The Meadows Primary School | U14: 30 | X14: 30 | Z14: =VLOOKUP(VALUE(RIGHT(S14,4)),'RB DATA'!A:B,2,FALSE) -> The Meadows Primary School | AD14: Bournville - HI RB | AE14: 4017 | AF14: 4 | AH14: 3302146 | AI14: 131218 | AJ14: WYNDCLIFFE PRIMARY SCHOOL | AK14: 12 | AL14: 12
A15: Greenwood Academy - ASC RB | B15: Academy | C15: 4006 | D15: North | E15: ASC | F15: Secondary | G15: 23 | H15: 27 | J15: Cherry Orchard - ASC RB | K15: 2040 | L15: 19 | S15: 3302288 | T15: Hollywood Primary School | U15: 13 | X15: 13 | Z15: =VLOOKUP(VALUE(RIGHT(S15,4)),'RB DATA'!A:B,2,FALSE) -> Hollywood | AD15: Cherry Orchard - ASC RB | AE15: 2040 | AF15: 19 | AH15: 3302149 | AJ15: Paget - ASC RB | AK15: 8 | AL15: 8
A16: Stockland Green - ASC RB | B16: Academy | C16: 4206 | D16: North | E16: ASC | F16: Secondary | G16: 14 | H16: 14 | J16: Christ The King - VI RB | K16: 3319 | L16: 1 | S16: 3302308 | T16: Welford Primary School | U16: 3 | X16: 3 | Z16: =VLOOKUP(VALUE(RIGHT(S16,4)),'RB DATA'!A:B,2,FALSE) -> Welford Primary School | AD16: Christ The King - VI RB | AE16: 3319 | AF16: 1 | AH16: 3302153 | AJ16: Allens Croft Primary - C&L RB | AK16: 20 | AL16: 20
A17: Topcliffe - ASC & SLCN RB | B17: Academy | C17: 2273 | D17: North | E17: ASC/SLCN | F17: Primary | G17: 56 | H17: 56 | J17: fairfax - PD RB | K17: 5410 | L17: 16 | S17: 3302317 | T17: World's End Infant and Nursery School | U17: 6 | X17: 6 | Z17: =VLOOKUP(VALUE(RIGHT(S17,4)),'RB DATA'!A:B,2,FALSE) -> Worlds End Infant NC School | AD17: fairfax - PD RB | AE17: 5410 | AF17: 16 | AH17: 3302175 | AI17: 138488 | AJ17: TURVES GREEN PRIMARY SCHOOL | AK17: 2 | AL17: 2
A18: Waverley - C&L RB | B18: Academy | C18: 4009 | D18: East | E18: C&L | F18: All Through | G18: 50 | H18: 45 | J18: Garretts Green Nursery - ASC RB | K18: 1006 | L18: 5 | S18: 3302402 | T18: Boldmere Infant School and Nursery | U18: 17 | X18: 17 | Z18: =VLOOKUP(VALUE(RIGHT(S18,4)),'RB DATA'!A:B,2,FALSE) -> Boldmere Infant School ASC RB | AD18: Garretts Green Nursery - ASC RB | AE18: 1006 | AF18: 5 | AH18: 3302195 | AI18: 122095 | AJ18: TIMBERLEY ACADEMY | AK18: 17 | AL18: 17
A19: Allens Croft Nursery - C&L RB | B19: LA Maintained | C19: 1017 | D19: South | E19: C&L | F19: Nursery | G19: 6 | H19: 6 | J19: Greenwood Academy - ASC RB | K19: 4006 | L19: 25 | S19: 3302457 | T19: Nelson Mandela School | U19: 5 | X19: 5 | Z19: =VLOOKUP(VALUE(RIGHT(S19,4)),'RB DATA'!A:B,2,FALSE) -> NELSON MANDELA SCHOOL | AD19: Greenwood Academy - ASC RB | AE19: 4006 | AF19: 25 | AH19: 3302225 | AJ19: Worlds End Junior - VI RB | AK19: 5 | AL19: 5
A20: Lyndon Green Infant - C&L RB | B20: LA Maintained | C20: 2129 | D20: East | E20: C&L | F20: Primary | G20: 12 | H20: 12 | J20: Hall Green - FAM RB | K20: 5409 | L20: 15 | S20: 3302479 | T20: Anglesey Primary School | U20: 12 | X20: 12 | Z20: =VLOOKUP(VALUE(RIGHT(S20,4)),'RB DATA'!A:B,2,FALSE) -> ANGLESEY | AD20: Hall Green - FAM RB | AE20: 5409 | AF20: 15 | AH20: 3302245 | AJ20: Welsh House - C&L RB | AK20: 12 | AL20: 12
A21: Lyndon Green Junior - C&L RB | B21: LA Maintained | C21: 2128 | D21: East | E21: C&L | F21: Primary | G21: 12 | H21: 12 | J21: Hamstead Hall - C&L RB | K21: 4240 | L21: 49 | S21: 3303319 | T21: Christ The King Catholic Primary School | U21: 1 | X21: 1 | Z21: =VLOOKUP(VALUE(RIGHT(S21,4)),'RB DATA'!A:B,2,FALSE) -> Christ The King Catholic Primary School | AD21: Hamstead Hall - C&L RB | AE21: 4240 | AF21: 49 | AH21: 3302246 | AJ21: Meadows Primary (The) - SLCN RB | AK21: 30 | AL21: 30
A22: Allens Croft Primary - C&L RB | B22: LA Maintained | C22: 2153 | D22: South | E22: C&L | F22: KS2 ONLY | G22: 12 | H22: 12 | J22: Hawthorn - HI RB | K22: 2099 | L22: 10 | S22: 3304115 | T22: Bordesley Green Girls' School & Sixth Form | V22: 8 | W22: 5 | X22: 13 | Z22: =VLOOKUP(VALUE(RIGHT(S22,4)),'RB DATA'!A:B,2,FALSE) -> Bordesley Green Girls | AD22: Hawthorn - HI RB | AE22: 2099 | AF22: 10 | AH22: 3302273 | AI22: 123253 | AJ22: TOPCLIFFE PRIMARY SCHOOL | AK22: 56 | AL22: 56
A23: Welsh House - C&L RB | B23: LA Maintained | C23: 2245 | D23: South | E23: C&L | F23: Primary | G23: 16 | H23: 12 | J23: Hollywood - ASC RB | K23: 2288 | L23: 13 | S23: 3302057 | T23: Percy Shurmer Academy | U23: 13 | X23: 13 | Z23: =VLOOKUP(VALUE(RIGHT(S23,4)),'RB DATA'!A:B,2,FALSE) -> Percy Shurmer Primary School (NC) (SU) | AD23: Hollywood - ASC RB | AE23: 2288 | AF23: 13 | AH23: 3302288 | AJ23: Hollywood - ASC RB | AK23: 13 | AL23: 13
A24: Ninestiles School - C&L RB | B24: Academy | C24: 5411 | D24: East | E24: C&L | F24: Secondary | G24: 45 | H24: 45 | J24: Kings Heath - FAM RB | K24: 2005 | L24: 6 | S24: 3302072 | T24: Billesley Primary School | U24: 12 | X24: 12 | Z24: =VLOOKUP(VALUE(RIGHT(S24,4)),'RB DATA'!A:B,2,FALSE) -> BILLESLEY | AD24: Kings Heath - FAM RB | AE24: 2005 | AF24: 6 | AH24: 3302308 | AJ24: Welford - FAM RB | AK24: 5 | AL24: 5
A25: Bartley Green - C&L RB | B25: Academy | C25: 4108 | D25: South | E25: C&L | F25: Secondary | G25: 20 | H25: 20 | J25: Lyndon Green Infant - C&L RB | K25: 2129 | L25: 13 | S25: 3302136 | T25: Woodhouse Primary Academy | U25: 11 | X25: 11 | Z25: =VLOOKUP(VALUE(RIGHT(S25,4)),'RB DATA'!A:B,2,FALSE) -> Woodhouse Primary School | AD25: Lyndon Green Infant - C&L RB | AE25: 2129 | AF25: 13 | AH25: 3302317 | AJ25: Worlds End Infant - VI RB | AK25: 6 | AL25: 6
A26: Hamstead Hall - C&L RB | B26: Academy | C26: 4240 | D26: West | E26: C&L | F26: Secondary | G26: 45 | H26: 40 | J26: Lyndon Green Junior - C&L RB | K26: 2128 | L26: 12 | S26: 3302146 | T26: Wyndcliffe Primary School | U26: 14 | X26: 14 | Z26: =VLOOKUP(VALUE(RIGHT(S26,4)),'RB DATA'!A:B,2,FALSE) -> Wyndcliffe Primary School | AD26: Lyndon Green Junior - C&L RB | AE26: 2128 | AF26: 12 | AH26: 3302402 | AJ26: Boldmere Infant School ASC RB | AK26: 8 | AL26: 8
A27: Nelson Mandela - FAM RB | B27: LA Maintained | C27: 2457 | D27: East | E27: FAM | F27: Primary | G27: 4 | H27: 5 | J27: Meadows Primary (The) - SLCN RB | K27: 2246 | L27: 29 | S27: 3302175 | T27: Turves Green Primary School | U27: 2 | X27: 2 | Z27: =VLOOKUP(VALUE(RIGHT(S27,4)),'RB DATA'!A:B,2,FALSE) -> Turves Green Primary School | AD27: Meadows Primary (The) - SLCN RB | AE27: 2246 | AF27: 29 | AH27: 3302450 | AI27: 122125 | AJ27: BARR VIEW PRIMARY & NURSERY ACADEMY | AK27: 6 | AL27: 6
A28: Timberley - FAM RB | B28: Academy | C28: 2195 | D28: East | E28: FAM | F28: Primary | G28: 14 | H28: 17 | J28: Nelson Mandela - FAM RB | K28: 2457 | L28: 5 | S28: 3302195 | T28: Timberley Academy | U28: 17 | X28: 17 | Z28: =VLOOKUP(VALUE(RIGHT(S28,4)),'RB DATA'!A:B,2,FALSE) -> Timberley Primary School | AD28: Nelson Mandela - FAM RB | AE28: 2457 | AF28: 5 | AH28: 3302457 | AJ28: Nelson Mandela - FAM RB | AK28: 6 | AL28: 6
A29: Barr View Primary & Nursery Academy FAM | B29: Academy | C29: 2450 | D29: North | E29: FAM | F29: Primary | G29: 4 | H29: 6 | J29: Ninestiles School - C&L RB | K29: 5411 | L29: 42 | S29: 3302273 | T29: Topcliffe Primary School | U29: 51 | X29: 51 | Z29: =VLOOKUP(VALUE(RIGHT(S29,4)),'RB DATA'!A:B,2,FALSE) -> Topcliffe Primary School | AD29: Ninestiles School - C&L RB | AE29: 5411 | AF29: 42 | AH29: 3302479 | AJ29: Anglesey - SLCN RB | AK29: 10 | AL29: 10
A30: Kings Heath - FAM RB | B30: LA Maintained | C30: 2005 | D30: South | E30: FAM | F30: Primary | G30: 5 | H30: 6 | J30: Paget - ASC RB | K30: 2149 | L30: 14 | S30: 3302450 | T30: Barr View Primary & Nursery Academy | U30: 5 | X30: 5 | Z30: =VLOOKUP(VALUE(RIGHT(S30,4)),'RB DATA'!A:B,2,FALSE) -> Great Barr Primary & Nursery School | AD30: Paget - ASC RB | AE30: 2149 | AF30: 14 | AH30: 3302481 | AI30: 120168 | AJ30: ROOKERY SCHOOL | AK30: 14 | AL30: 14
A31: Turves Green - FAM RB | B31: Academy | C31: 2175 | D31: South | E31: FAM | F31: Primary | G31: 2 | H31: 2 | J31: Percy Shurmer - HI RB | K31: 2057 | L31: 13 | S31: 3302481 | T31: Rookery School | U31: 14 | X31: 14 | Z31: =VLOOKUP(VALUE(RIGHT(S31,4)),'RB DATA'!A:B,2,FALSE) -> Rookery School | AD31: Percy Shurmer - HI RB | AE31: 2057 | AF31: 13 | AH31: 3303319 | AJ31: Christ The King - VI RB | AK31: 2 | AL31: 2
A32: Welford - FAM RB | B32: LA Maintained | C32: 2308 | D32: West | E32: FAM | F32: Primary | G32: 2 | H32: 3 | J32: Plantsbrook - VI RB | K32: 4331 | L32: 10 | S32: 3304006 | T32: Greenwood Academy | V32: 14 | W32: 10 | X32: 24 | Z32: =VLOOKUP(VALUE(RIGHT(S32,4)),'RB DATA'!A:B,2,FALSE) -> Greenwood Academy | AD32: Plantsbrook - VI RB | AE32: 4331 | AF32: 10 | AH32: 3304006 | AI32: 122297 | AJ32: GREENWOOD ACADEMY | AK32: 27 | AL32: 27
A33: Ark Boulton Academy - FAM RB | B33: Academy | C33: 4013 | D33: East | E33: FAM | F33: Secondary | G33: 4 | H33: 6 | J33: Rookery - ASC RB | K33: 2481 | L33: 14 | S33: 3304013 | T33: Ark Boulton Academy | V33: 3 | W33: 2 | X33: 5 | Z33: =VLOOKUP(VALUE(RIGHT(S33,4)),'RB DATA'!A:B,2,FALSE) -> ARK BOULTON ACADEMY | AD33: Rookery - ASC RB | AE33: 2481 | AF33: 14 | AH33: 3304009 | AI33: 131409 | AJ33: WAVERLEY SCHOOL | AK33: 45 | AL33: 45
A34: fairfax - PD RB | B34: Academy | C34: 5410 | D34: North | E34: FAM | F34: Secondary | G34: 11 | H34: 12 | J34: Saltley School and Specialist Science College ASC RB | K34: 4018 | L34: 18 | S34: 3304018 | T34: Saltley Academy | V34: 10 | W34: 7 | X34: 17 | Z34: =VLOOKUP(VALUE(RIGHT(S34,4)),'RB DATA'!A:B,2,FALSE) -> Saltley School and Specialist Science College ASC RB | AD34: Saltley School and Specialist Science College ASC RB | AE34: 4018 | AF34: 18 | AH34: 3304013 | AI34: 125180 | AJ34: ARK BOULTON ACADEMY | AK34: 6 | AL34: 6
A35: Hall Green - FAM RB | B35: Academy | C35: 5409 | D35: South | E35: FAM | F35: Secondary | G35: 12 | H35: 11 | J35: Small Heath - HI RB | K35: 4025 | L35: 8 | S35: 3304025 | T35: Small Heath Leadership Academy | V35: 5 | W35: 3 | X35: 8 | Z35: =VLOOKUP(VALUE(RIGHT(S35,4)),'RB DATA'!A:B,2,FALSE) -> Small Heath School | AD35: Small Heath - HI RB | AE35: 4025 | AF35: 8 | AH35: 3304017 | AI35: 120748 | AJ35: BOURNVILLE SCHOOL | AK35: 8 | AL35: 8
A36: Percy Shurmer - HI RB | B36: Academy | C36: 2057 | D36: East | E36: HI | F36: Primary | G36: 16 | H36: 14 | J36: Stockland Green - ASC RB | K36: 4206 | L36: 14 | S36: 3304108 | T36: Bartley Green School | V36: 13 | W36: 8 | X36: 21 | Z36: =VLOOKUP(VALUE(RIGHT(S36,4)),'RB DATA'!A:B,2,FALSE) -> BARTLEY GREEN SCHOOL | AD36: Stockland Green - ASC RB | AE36: 4206 | AF36: 14 | AH36: 3304018 | AI36: 131781 | AJ36: SALTLEY ACADEMY | AK36: 15 | AL36: 15
A37: Hawthorn - HI RB | B37: LA Maintained | C37: 2099 | D37: North | E37: HI | F37: Primary | G37: 10 | H37: 10 | J37: Timberley - FAM RB | K37: 2195 | L37: 17 | S37: 3304206 | T37: Stockland Green School | V37: 10 | W37: 6 | X37: 16 | Z37: =VLOOKUP(VALUE(RIGHT(S37,4)),'RB DATA'!A:B,2,FALSE) -> Stockland Green School | AD37: Timberley - FAM RB | AE37: 2195 | AF37: 17 | AH37: 3304025 | AI37: 138951 | AJ37: SMALL HEATH LEADERSHIP ACADEMY | AK37: 9 | AL37: 9
A38: Bordesley Green - HI RB | B38: LA Maintained | C38: 4115 | D38: East | E38: HI | F38: Secondary | G38: 12 | H38: 10 | J38: Topcliffe - ASC & SLCN RB | K38: 2273 | L38: 50 | S38: 3304240 | T38: Hamstead Hall Academy | V38: 29 | W38: 20 | X38: 49 | Z38: =VLOOKUP(VALUE(RIGHT(S38,4)),'RB DATA'!A:B,2,FALSE) -> Hamstead Hall Community Learning Centre | AD38: Topcliffe - ASC & SLCN RB | AE38: 2273 | AF38: 50 | AH38: 3304108 | AI38: 119552 | AJ38: BARTLEY GREEN SCHOOL | AK38: 20 | AL38: 20
A39: Small Heath - HI RB | B39: Academy | C39: 4025 | D39: East | E39: HI | F39: Secondary | G39: 8 | H39: 9 | J39: Turves Green - FAM RB | K39: 2175 | L39: 2 | S39: 3304331 | T39: Plantsbrook School | V39: 6 | W39: 4 | X39: 10 | Z39: =VLOOKUP(VALUE(RIGHT(S39,4)),'RB DATA'!A:B,2,FALSE) -> Plantsbrook School | AD39: Turves Green - FAM RB | AE39: 2175 | AF39: 2 | AH39: 3304115 | AJ39: Bordesley Green - HI RB | AK39: 12 | AL39: 12
A40: Bournville - HI RB | B40: Academy | C40: 4017 | D40: South | E40: HI | F40: Secondary | G40: 4 | H40: 8 | J40: Waverley - C&L RB | K40: 4009 | L40: 46 | S40: 3305409 | T40: Hall Green School | V40: 9 | W40: 6 | X40: 15 | Z40: =VLOOKUP(VALUE(RIGHT(S40,4)),'RB DATA'!A:B,2,FALSE) -> Hall Green Secondary School | AD40: Waverley - C&L RB | AE40: 4009 | AF40: 46 | AH40: 3304206 | AI40: 119993 | AJ40: STOCKLAND GREEN SCHOOL | AK40: 14 | AL40: 14
A41: Mere Green - SLCN RB | B41: Academy | C41: 2463 | D41: North | E41: SLCN | F41: Primary | G41: 0 | H41: 0 | J41: Welford - FAM RB | K41: 2308 | L41: 3 | S41: 3305410 | T41: Fairfax | V41: 10 | W41: 6 | X41: 16 | Z41: =VLOOKUP(VALUE(RIGHT(S41,4)),'RB DATA'!A:B,2,FALSE) -> Fairfax School | AD41: Welford - FAM RB | AE41: 2308 | AF41: 3 | AH41: 3304240 | AI41: 124640 | AJ41: HAMSTEAD HALL ACADEMY | AK41: 40 | AL41: 40
A42: Meadows Primary (The) - SLCN RB | B42: LA Maintained | C42: 2246 | D42: South | E42: SLCN | F42: Primary | G42: 30 | H42: 30 | J42: Welsh House - C&L RB | K42: 2245 | L42: 13 | S42: 3305411 | T42: Ninestiles, an Academy | V42: 25 | W42: 17 | X42: 42 | Z42: =VLOOKUP(VALUE(RIGHT(S42,4)),'RB DATA'!A:B,2,FALSE) -> Ninestiles School, An Academy | AD42: Welsh House - C&L RB | AE42: 2245 | AF42: 13 | AH42: 3304331 | AI42: 120053 | AJ42: PLANTSBROOK SCHOOL | AK42: 13 | AL42: 13
A43: Anglesey - SLCN RB | B43: LA Maintained | C43: 2479 | D43: West | E43: SLCN | F43: Primary | G43: 10 | H43: 10 | J43: Woodhouse - ASC RB | K43: 2136 | L43: 11 | S43: 3304009 | T43: Waverley School | U43: 27 | V43: 11 | W43: 8 | X43: 46 | Z43: =VLOOKUP(VALUE(RIGHT(S43,4)),'RB DATA'!A:B,2,FALSE) -> WAVERLEY SCHOOL | AD43: Woodhouse - ASC RB | AE43: 2136 | AF43: 11 | AH43: 3305409 | AI43: 120887 | AJ43: HALL GREEN SCHOOL | AK43: 11 | AL43: 11
A44: Christ The King - VI RB | B44: LA Maintained | C44: 3319 | D44: North | E44: VI | F44: Primary | G44: 1 | H44: 1 | J44: Worlds End Infant - VI RB | K44: 2317 | L44: 4 | S44: 3304017 | T44: Bournville School | V44: 2 | W44: 2 | X44: 4 | Z44: =VLOOKUP(VALUE(RIGHT(S44,4)),'RB DATA'!A:B,2,FALSE) -> Bournville School and Sixth Form Centre | AD44: Worlds End Infant - VI RB | AE44: 2317 | AF44: 4 | AH44: 3305410 | AI44: 119908 | AJ44: FAIRFAX | AK44: 12 | AL44: 12
A45: Worlds End Infant - VI RB | B45: LA Maintained | C45: 2317 | D45: South | E45: VI | F45: Primary | G45: 3 | H45: 3 | J45: Worlds End Junior - VI RB | K45: 2225 | L45: 8 | X45: 0 | Z45: =VLOOKUP(VALUE(RIGHT(S45,4)),'RB DATA'!A:B,2,FALSE) ->  | AD45: Worlds End Junior - VI RB | AE45: 2225 | AF45: 8 | AH45: 3305411 | AI45: 119291 | AJ45: NINESTILES, AN ACADEMY | AK45: 45 | AL45: 45
A46: Worlds End Junior - VI RB | B46: LA Maintained | C46: 2225 | D46: South | E46: VI | F46: Primary | G46: 8 | H46: 8 | J46: Wyndcliffe ASC RB | K46: 2146 | L46: 15 | X46: 0 | Z46: =VLOOKUP(VALUE(RIGHT(S46,4)),'RB DATA'!A:B,2,FALSE) ->  | AD46: Wyndcliffe ASC RB | AE46: 2146 | AF46: 15
A47: Plantsbrook - VI RB | B47: Academy | C47: 4331 | D47: North | E47: VI | F47: Secondary | G47: 13 | H47: 15 | J47: Grand Total | L47: 623 | AD47: Grand Total | AF47: 623
V48: =SUM(V5:V47) -> 155 | W48: =SUM(W5:W47) -> 104 | X48: =SUM(X5:X47) -> 616

Sheet DATA BUD STAT (hidden)
A1: 3300000 | B1: 2 | C1: 3 | D1: 4 | E1: 5 | F1: 6 | G1: 7 | H1: 8 | I1: 9 | J1: 10 | K1: 11 | L1: 12 | M1: 13 | N1: 14 | O1: 15 | P1: 16 | Q1: 17 | R1: 18 | S1: 19 | T1: 20 | U1: 21 | V1: 22 | W1: 23 | X1: 24 | Y1: 25 | Z1: 26 | AA1: 27 | AB1: 28 | AC1: 29 | AD1: 30 | AE1: 31 | AF1: 32 | AG1: 33 | AH1: 34 | AI1: 35 | AJ1: 36 | AK1: 37 | AL1: 38 | AM1: 39 | AN1: 40 | AO1: 41 | AP1: 42 | AQ1: 43
A2: Current | B2: Former | C2: schoolName | D2: Type | E2: schoolType | F2: PrimaryPE | G2: SecondaryPE KS3 | H2: SecondaryPE KS4 | I2: PrimNOR | J2: SecNORKS3 | K2: SecNORKS4 | L2: GrowthP | M2: GrowthS KS3 | N2: GrowthS KS4 | O2: PrimPEFunding | P2: SecPEFundingKS3 | Q2: SecPEFundingKS4 | R2: PEFunding | S2: FSME6Funding | T2: FSMFunding | U2: IDACIFunding | V2: LPAFunding | W2: EALFunding | X2: LACFunding | Y2: MobilityFunding | Z2: MFPP | AA2: Lumpsum | AB2: SplitSiteFunding | AC2: PFITopUpFunding | AD2: Rates | AE2: MFGFunding | AF2: FundingCAP | AG2: TotalPrim&Sec | AH2: DeDelegatedFunding | AI2: SBSPrim&SecPupils | AJ2: Funding for EY | AK2: Funding for Post 16 | AL2: Place funding for RB | AM2: Total Delegated Funding | AN2: Indicative Pupil Premium | AO2: Indicative Top Up pupils In RB | AP2: Devolved Formula Capital | AQ2: TotalFunding18-19
A3: 2171 | B3: 2002 | C3: BORDESLEY VILLAGE | E3: Academy | F3: 2866.507686 | G3: 4031.059042 | H3: 4576.812053 | I3: 363 | J3: 0 | K3: 0 | L3: 0 | M3: 0 | N3: 0 | O3: 1040542.29 | P3: 0 | Q3: 0 | R3: 1040542.29 | S3: 96078.75403 | T3: 52827.84 | U3: 129308.59 | V3: 134088.1371 | W3: 87981.52 | X3: 0 | Y3: 20385.999 | Z3: 0 | AA3: 142636.8997 | AB3: 0 | AC3: 0 | AD3: 7872.376182 | AE3: 81851.09657 | AG3: 1793573.502 | AH3: 0 | AI3: 1793573.502 | AK3: 0 | AL3: 0 | AM3: 1793573.502 | AQ3: 1793573.502 | AU3: 330 | AV3: 2171
A4: 2003 | B4: 2003 | C4: PA C0MMUNITY TRUST (Formerly Prince Albert) | E4: Academy | F4: 2866.507686 | G4: 4031.059042 | H4: 4576.812053 | I4: 645 | J4: 0 | K4: 0 | L4: 0 | M4: 0 | N4: 0 | O4: 1848897.457 | P4: 0 | Q4: 0 | R4: 1848897.457 | S4: 111001.2404 | T4: 65921.92 | U4: 249569.2271 | V4: 304457.4911 | W4: 143744.1877 | X4: 0 | Y4: 0 | Z4: 0 | AA4: 142636.8997 | AB4: 0 | AC4: 0 | AD4: 7836.89256 | AE4: 13241.49984 | AG4: 2887306.816 | AH4: 0 | AI4: 2887306.816 | AK4: 0 | AL4: 0 | AM4: 2887306.816 | AQ4: 2887306.816 | AU4: 330 | AV4: 2003
A5: 2004 | B5: 2004 | C5: MAPLEDENE | E5: Community | F5: 2866.507686 | G5: 4031.059042 | H5: 4576.812053 | I5: 332 | J5: 0 | K5: 0 | L5: 0 | M5: 0 | N5: 0 | O5: 951680.5516 | P5: 0 | Q5: 0 | R5: 951680.5516 | S5: 57268.37532 | T5: 39733.76 | U5: 87804.36 | V5: 103527.6452 | W5: 8754.548772 | X5: 0 | Y5: 0 | Z5: 0 | AA5: 142636.8997 | AB5: 0 | AC5: 0 | AD5: 31881.99792 | AE5: 55146.90677 | AG5: 1478435.045 | AH5: -7699.227471 | AI5: 1470735.818 | AK5: 0 | AL5: 0 | AM5: 1470735.818 | AQ5: 1470735.818 | AU5: 330 | AV5: 2004
A6: 2005 | B6: 2005 | C6: KINGS HEATH | E6: Community | F6: 2866.507686 | G6: 4031.059042 | H6: 4576.812053 | I6: 647 | J6: 0 | K6: 0 | L6: 0 | M6: 0 | N6: 0 | O6: 1854630.473 | P6: 0 | Q6: 0 | R6: 1854630.473 | S6: 65794.56126 | T6: 38830.72 | U6: 39768.33 | V6: 176685.2628 | W6: 48461.80465 | X6: 0 | Y6: 0 | Z6: 59441.94897 | AA6: 142636.8997 | AB6: 0 | AC6: 0 | AD6: 55396.07388 | AE6: 92848.38615 | AG6: 2574494.46 | AH6: -15004.21739 | AI6: 2559490.243 | AK6: 0 | AL6: 0 | AM6: 2559490.243 | AQ6: 2559490.243 | AU6: 330 | AV6: 2005
A7: 2008 | B7: 2008 | C7: SHAW HILL | E7: Community | F7: 2866.507686 | G7: 4031.059042 | H7: 4576.812053 | I7: 421 | J7: 0 | K7: 0 | L7: 0 | M7: 0 | N7: 0 | O7: 1206799.736 | P7: 0 | Q7: 0 | R7: 1206799.736 | S7: 81419.16772 | T7: 51021.76 | U7: 164757.82 | V7: 98248.77944 | W7: 103580.0333 | X7: 0 | Y7: 0 | Z7: 0 | AA7: 142636.8997 | AB7: 0 | AC7: 0 | AD7: 28800.66585 | AE7: 153155.1409 | AG7: 2030420.003 | AH7: -9763.177004 | AI7: 2020656.826 | AK7: 0 | AL7: 0 | AM7: 2020656.826 | AQ7: 2020656.826 | AU7: 330 | AV7: 2008
A8: 2010 | B8: 2010 | C8: ADDERLEY | E8: Community | F8: 2866.507686 | G8: 4031.059042 | H8: 4576.812053 | I8: 571 | J8: 0 | K8: 0 | L8: 0 | M8: 0 | N8: 0 | O8: 1636775.888 | P8: 0 | Q8: 0 | R8: 1636775.888 | S8: 150783.0822 | T8: 94819.2 | U8: 212463.57 | V8: 158016.9208 | W8: 152367.0979 | X8: 0 | Y8: 31377.933 | Z8: 0 | AA8: 142636.8997 | AB8: 0 | AC8: 0 | AD8: 47032.28002 | AE8: 62561.96785 | AG8: 2688834.84 | AH8: -13241.74363 | AI8: 2675593.096 | AK8: 0 | AL8: 0 | AM8: 2675593.096 | AQ8: 2675593.096 | AU8: 330 | AV8: 2010
A9: 2011 | B9: 2011 | C9: WHEELERS LANE | E9: Community | F9: 2866.507686 | G9: 4031.059042 | H9: 4576.812053 | I9: 613 | J9: 0 | K9: 0 | L9: 0 | M9: 0 | N9: 0 | O9: 1757169.211 | P9: 0 | Q9: 0 | R9: 1757169.211 | S9: 94583.92478 | T9: 59600.64 | U9: 123012.76 | V9: 203847.0481 | W9: 31251.35642 | X9: 0 | Y9: 0 | Z9: 0 | AA9: 142636.8997 | AB9: 0 | AC9: 0 | AD9: 81703.65477 | AE9: 112572.3027 | AG9: 2606377.798 | AH9: -14215.74229 | AI9: 2592162.056 | AK9: 0 | AL9: 0 | AM9: 2592162.056 | AQ9: 2592162.056 | AU9: 330 | AV9: 2011
A10: 2014 | B10: 2014 | C10: BARFORD | E10: Community | F10: 2866.507686 | G10: 4031.059042 | H10: 4576.812053 | I10: 406 | J10: 0 | K10: 0 | L10: 0 | M10: 0 | N10: 0 | O10: 1163802.12 | P10: 0 | Q10: 0 | R10: 1163802.12 | S10: 98321.22644 | T10: 62761.28 | U10: 139434.0987 | V10: 168115.7723 | W10: 42430.95221 | X10: 0 | Y10: 561.888 | Z10: 0 | AA10: 142636.8997 | AB10: 0 | AC10: 0 | AD10: 34085.1917 | AE10: 60865.14677 | AG10: 1913014.576 | AH10: -9415.320341 | AI10: 1903599.256 | AK10: 0 | AL10: 0 | AM10: 1903599.256 | AQ10: 1903599.256 | AU10: 330 | AV10: 2014
A11: 2015 | B11: 2015 | C11: JAMES WATT | E11: Community | F11: 2866.507686 | G11: 4031.059042 | H11: 4576.812053 | I11: 419 | J11: 0 | K11: 0 | L11: 0 | M11: 0 | N11: 0 | O11: 1201066.72 | P11: 0 | Q11: 0 | R11: 1201066.72 | S11: 95644.21344 | T11: 65921.92 | U11: 165435.23 | V11: 202114.0719 | W11: 113399.3738 | X11: 0 | Y11: 1632.987 | Z11: 0 | AA11: 142636.8997 | AB11: 0 | AC11: 0 | AD11: 55063.56844 | AE11: 0 | AG11: 2042914.985 | AH11: -9716.796116 | AI11: 2033198.188 | AK11: 0 | AL11: 0 | AM11: 2033198.188 | AQ11: 2033198.188 | AU11: 330 | AV11: 2015
A12: 2016 | B12: 2016 | C12: BEECHES JUNIOR SCHOOL | E12: Community | F12: 2866.507686 | G12: 4031.059042 | H12: 4576.812053 | I12: 363 | J12: 0 | K12: 0 | L12: 0 | M12: 0 | N12: 0 | O12: 1040542.29 | P12: 0 | Q12: 0 | R12: 1040542.29 | S12: 61585.32307 | T12: 34767.04 | U12: 18060.27282 | V12: 153611.9592 | W12: 14493.6 | X12: 0 | Y12: 0 | Z12: 0 | AA12: 142636.8997 | AB12: 0 | AC12: 185076.9024 | AD12: 41218.53237 | AE12: 63140.91136 | AG12: 1755133.731 | AH12: -8418.131241 | AI12: 1746715.6 | AK12: 0 | AL12: 0 | AM12: 1746715.6 | AQ12: 1746715.6 | AU12: 330 | AV12: 2016
A13: 2017 | B13: 2017 | C13: Beeches Infant (Formerly PERRY BEECHES) | E13: Community | F13: 2866.507686 | G13: 4031.059042 | H13: 4576.812053 | I13: 270 | J13: 0 | K13: 0 | L13: 0 | M13: 0 | N13: 0 | O13: 773957.0751 | P13: 0 | Q13: 0 | R13: 773957.0751 | S13: 37084.74 | T13: 24833.6 | U13: 11232.8 | V13: 92912.91231 | W13: 27529.74302 | X13: 0 | Y13: 0 | Z13: 0 | AA13: 142636.8997 | AB13: 0 | AC13: 185308.3648 | AD13: 27480.30361 | AE13: 80402.46935 | AG13: 1403378.908 | AH13: -6261.419931 | AI13: 1397117.488 | AK13: 0 | AL13: 0 | AM13: 1397117.488 | AQ13: 1397117.488 | AU13: 330 | AV13: 2017
A14: 2018 | B14: 2018 | C14: OAKS, THE | E14: Community | F14: 2866.507686 | G14: 4031.059042 | H14: 4576.812053 | I14: 357 | J14: 0 | K14: 0 | L14: 0 | M14: 0 | N14: 0 | O14: 1023343.244 | P14: 0 | Q14: 0 | R14: 1023343.244 | S14: 153613.3327 | T14: 116040.64 | U14: 181880.4 | V14: 183582.14 | W14: 30928.85316 | X14: 0 | Y14: 8410.761 | Z14: 0 | AA14: 142636.8997 | AB14: 0 | AC14: 0 | AD14: 20804.35458 | AE14: 25668.48597 | AG14: 1886909.111 | AH14: -8278.988576 | AI14: 1878630.122 | AK14: 0 | AL14: 0 | AM14: 1878630.122 | AQ14: 1878630.122 | AU14: 330 | AV14: 2018
A15: 2019 | B15: 2019 | C15: WEST HEATH | E15: Community | F15: 2866.507686 | G15: 4031.059042 | H15: 4576.812053 | I15: 403 | J15: 0 | K15: 0 | L15: 0 | M15: 0 | N15: 0 | O15: 1155202.597 | P15: 0 | Q15: 0 | R15: 1155202.597 | S15: 119355.9541 | T15: 75855.36 | U15: 126592.9765 | V15: 138875.4769 | W15: 6897.491014 | X15: 0 | Y15: 4231.719 | Z15: 0 | AA15: 142636.8997 | AB15: 0 | AC15: 0 | AD15: 61663.63331 | AE15: 76540.18755 | AG15: 1907852.295 | AH15: -9345.749009 | AI15: 1898506.546 | AK15: 0 | AL15: 0 | AM15: 1898506.546 | AQ15: 1898506.546 | AU15: 330 | AV15: 2019
A16: 2020 | B16: 2020 | C16: ACOCKS GREEN | E16: Academy | F16: 2866.507686 | G16: 4031.059042 | H16: 4576.812053 | I16: 429 | J16: 0 | K16: 0 | L16: 0 | M16: 0 | N16: 0 | O16: 1229731.797 | P16: 0 | Q16: 0 | R16: 1229731.797 | S16: 80159.41425 | T16: 49667.2 | U16: 115417.57 | V16: 131525.7503 | W16: 76345.21304 | X16: 0 | Y16: 0 | Z16: 0 | AA16: 142636.8997 | AB16: 0 | AC16: 0 | AD16: 5992.91784 | AE16: 7749.769896 | AG16: 1839226.532 | AH16: 0 | AI16: 1839226.532 | AK16: 0 | AL16: 0 | AM16: 1839226.532 | AQ16: 1839226.532 | AU16: 330 | AV16: 2020
A17: 2021 | B17: 2021 | C17: PAGANEL | E17: Community | F17: 2866.507686 | G17: 4031.059042 | H17: 4576.812053 | I17: 350 | J17: 0 | K17: 0 | L17: 0 | M17: 0 | N17: 0 | O17: 1003277.69 | P17: 0 | Q17: 0 | R17: 1003277.69 | S17: 103060.5835 | T17: 70437.12 | U17: 133211.5143 | V17: 148460.4634 | W17: 40656 | X17: 0 | Y17: 13169.25 | Z17: 0 | AA17: 142636.8997 | AB17: 0 | AC17: 0 | AD17: 21885.10027 | AE17: 43491.17927 | AG17: 1720285.801 | AH17: -8116.655467 | AI17: 1712169.145 | AK17: 0 | AL17: 0 | AM17: 1712169.145 | AQ17: 1712169.145 | AU17: 330 | AV17: 2021
A18: 2024 | B18: 2024 | C18: BIRCHES GREEN | E18: Community | F18: 2866.507686 | G18: 4031.059042 | H18: 4576.812053 | I18: 224 | J18: 0 | K18: 0 | L18: 0 | M18: 0 | N18: 0 | O18: 642097.7216 | P18: 0 | Q18: 0 | R18: 642097.7216 | S18: 71140.16 | T18: 48764.16 | U18: 76396.28973 | V18: 84612.37203 | W18: 12940.9722 | X18: 0 | Y18: 4003.452 | Z18: 0 | AA18: 142636.8997 | AB18: 0 | AC18: 0 | AD18: 21543.34041 | AE18: 0 | AG18: 1104135.368 | AH18: -5194.659499 | AI18: 1098940.708 | AK18: 0 | AL18: 0 | AM18: 1098940.708 | AQ18: 1098940.708 | AU18: 330 | AV18: 2024
A19: 2025 | B19: 2025 | C19: BIRCHES GREEN | E19: Community | F19: 2866.507686 | G19: 4031.059042 | H19: 4576.812053 | I19: 167 | J19: 0 | K19: 0 | L19: 0 | M19: 0 | N19: 0 | O19: 478706.7835 | P19: 0 | Q19: 0 | R19: 478706.7835 | S19: 46378.52977 | T19: 27091.2 | U19: 58541.54 | V19: 66094.21161 | W19: 28062.97043 | X19: 0 | Y19: 0 | Z19: 0 | AA19: 142636.8997 | AB19: 0 | AC19: 146707.1424 | AD19: 18354.82971 | AE19: 0 | AG19: 1012574.107 | AH19: -3872.80418 | AI19: 1008701.303 | AK19: 0 | AL19: 0 | AM19: 1008701.303 | AQ19: 1008701.303 | AU19: 330 | AV19: 2025
A20: 2204 | B20: 2026 | C20: SUTTON PARK PRIMARY (formerly BANNERS GATE) | E20: Academy | F20: 2866.507686 | G20: 4031.059042 | H20: 4576.812053 | I20: 321 | J20: 0 | K20: 0 | L20: 0 | M20: 0 | N20: 0 | O20: 920148.9671 | P20: 0 | Q20: 0 | R20: 920148.9671 | S20: 79661.95475 | T20: 45603.52 | U20: 70988.72 | V20: 121433.0557 | W20: 4819.938462 | X20: 0 | Y20: 7673.283 | Z20: 0 | AA20: 142636.8997 | AB20: 0 | AC20: 0 | AD20: 7492.58963 | AE20: 67937.66936 | AG20: 1468396.598 | AH20: 0 | AI20: 1468396.598 | AK20: 0 | AL20: 0 | AM20: 1468396.598 | AQ20: 1468396.598 | AU20: 330 | AV20: 2204
A21: 2030 | B21: 2030 | C21: BORDESLEY GREEN | E21: Community | F21: 2866.507686 | G21: 4031.059042 | H21: 4576.812053 | I21: 650 | J21: 0 | K21: 0 | L21: 0 | M21: 0 | N21: 0 | O21: 1863229.996 | P21: 0 | Q21: 0 | R21: 1863229.996 | S21: 121035.0262 | T21: 76306.88 | U21: 209020.79 | V21: 271733.0239 | W21: 172298.5487 | X21: 0 | Y21: 6207.877581 | Z21: 0 | AA21: 142636.8997 | AB21: 0 | AC21: 0 | AD21: 33292.51282 | AE21: 0 | AG21: 2895761.554 | AH21: -15073.78872 | AI21: 2880687.766 | AK21: 0 | AL21: 0 | AM21: 2880687.766 | AQ21: 2880687.766 | AU21: 330 | AV21: 2030
A22: 2196 | B22: 2034 | C22: BROOKFIELDS | E22: Academy | F22: 2866.507686 | G22: 4031.059042 | H22: 4576.812053 | I22: 350 | J22: 0 | K22: 0 | L22: 0 | M22: 0 | N22: 0 | O22: 1003277.69 | P22: 0 | Q22: 0 | R22: 1003277.69 | S22: 95932.43902 | T22: 60052.16 | U22: 148324.9986 | V22: 137183.7294 | W22: 63646.64495 | X22: 0 | Y22: 5472.639337 | Z22: 0 | AA22: 142636.8997 | AB22: 0 | AC22: 0 | AD22: 5972.545947 | AE22: 177355.9396 | AG22: 1839855.686 | AH22: 0 | AI22: 1839855.686 | AK22: 0 | AL22: 0 | AM22: 1839855.686 | AQ22: 1839855.686 | AU22: 330 | AV22: 2196
A23: 2036 | B23: 2166 | C23: ERDINGTON HALL | E23: Academy | F23: 2866.507686 | G23: 4031.059042 | H23: 4576.812053 | I23: 381 | J23: 0 | K23: 0 | L23: 0 | M23: 0 | N23: 0 | O23: 1092139.428 | P23: 0 | Q23: 0 | R23: 1092139.428 | S23: 107040.045 | T23: 60052.16 | U23: 141858.6146 | V23: 156178.6691 | W23: 52205.00901 | X23: 0 | Y23: 5457.614447 | Z23: 0 | AA23: 142636.8997 | AB23: 0 | AC23: 0 | AD23: 4814.82288 | AE23: 19445.90025 | AG23: 1781829.163 | AH23: 0 | AI23: 1781829.163 | AK23: 0 | AL23: 0 | AM23: 1781829.163 | AQ23: 1781829.163 | AU23: 330 | AV23: 2036
A24: 2037 | B24: 2173 | C24: SLADE | E24: Academy | F24: 2866.507686 | G24: 4031.059042 | H24: 4576.812053 | I24: 415 | J24: 0 | K24: 0 | L24: 0 | M24: 0 | N24: 0 | O24: 1189600.69 | P24: 0 | Q24: 0 | R24: 1189600.69 | S24: 83562.43051 | T24: 59149.12 | U24: 138587.4156 | V24: 155212.5595 | W24: 61042.0452 | X24: 0 | Y24: 19402.695 | Z24: 0 | AA24: 142636.8997 | AB24: 0 | AC24: 0 | AD24: 4251.38616 | AE24: 31910.25966 | AG24: 1885355.501 | AH24: 0 | AI24: 1885355.501 | AK24: 0 | AL24: 0 | AM24: 1885355.501 | AQ24: 1885355.501 | AU24: 330 | AV24: 2037
A25: 2038 | B25: 2139 | C25: NANSEN | E25: Academy | F25: 2866.507686 | G25: 4031.059042 | H25: 4576.812053 | I25: 773 | J25: 0 | K25: 0 | L25: 0 | M25: 0 | N25: 0 | O25: 2215810.441 | P25: 0 | Q25: 0 | R25: 2215810.441 | S25: 190686.2795 | T25: 96625.28 | U25: 302940.7385 | V25: 248767.8864 | W25: 218736.0309 | X25: 0 | Y25: 8509.564492 | Z25: 0 | AA25: 142636.8997 | AB25: 0 | AC25: 0 | AD25: 13420.03824 | AE25: 92368.52938 | AG25: 3530501.688 | AH25: 0 | AI25: 3530501.688 | AK25: 0 | AL25: 0 | AM25: 3530501.688 | AQ25: 3530501.688 | AU25: 330 | AV25: 2038
A26: 2039 | B26: 2039 | C26: CANTERBURY CROSS | E26: Academy | F26: 2866.507686 | G26: 4031.059042 | H26: 4576.812053 | I26: 426 | J26: 0 | K26: 0 | L26: 0 | M26: 0 | N26: 0 | O26: 1221132.274 | P26: 0 | Q26: 0 | R26: 1221132.274 | S26: 82597.83 | T26: 50570.24 | U26: 134379.8958 | V26: 119865.341 | W26: 91845.6 | X26: 0 | Y26: 0 | Z26: 0 | AA26: 142636.8997 | AB26: 0 | AC26: 0 | AD26: 5224.59504 | AE26: 0 | AG26: 1848252.676 | AH26: 0 | AI26: 1848252.676 | AK26: 0 | AL26: 0 | AM26: 1848252.676 | AQ26: 1848252.676 | AU26: 330 | AV26: 2039
A27: 2040 | B27: 2040 | C27: CHERRY ORCHARD | E27: Community | F27: 2866.507686 | G27: 4031.059042 | H27: 4576.812053 | I27: 431 | J27: 0 | K27: 0 | L27: 0 | M27: 0 | N27: 0 | O27: 1235464.812 | P27: 0 | Q27: 0 | R27: 1235464.812 | S27: 46550.72211 | T27: 29348.8 | U27: 41173.01 | V27: 189643.1273 | W27: 32962.69462 | X27: 0 | Y27: 0 | Z27: 0 | AA27: 142636.8997 | AB27: 0 | AC27: 0 | AD27: 43514.78292 | AE27: 14680.76977 | AG27: 1775975.619 | AH27: -9995.081446 | AI27: 1765980.537 | AK27: 0 | AL27: 0 | AM27: 1765980.537 | AQ27: 1765980.537 | AU27: 330 | AV27: 2040
A28: 2041 | B28: 2277 | C28: ARK ROSE Academy (formerly Primrose Hill) | E28: Amalgamated | M28: 0 | N28: 0 | AU28: 330 | AV28: 2041
A29: 2047 | B29: 2298 | C29: CHILWELL CROFT PRIMARY | E29: Academy | F29: 2866.507686 | G29: 4031.059042 | H29: 4576.812053 | I29: 407 | J29: 0 | K29: 0 | L29: 0 | M29: 0 | N29: 0 | O29: 1166668.628 | P29: 0 | Q29: 0 | R29: 1166668.628 | S29: 153036.9847 | T29: 94367.68 | U29: 203498.28 | V29: 139173.0379 | W29: 88776.20058 | X29: 0 | Y29: 5911.313222 | Z29: 0 | AA29: 142636.8997 | AB29: 0 | AC29: 0 | AD29: 4901.726693 | AE29: 56685.48067 | AG29: 2055656.232 | AH29: 0 | AI29: 2055656.232 | AK29: 0 | AL29: 0 | AM29: 2055656.232 | AQ29: 2055656.232 | AU29: 330 | AV29: 2047
A30: 2048 | B30: 2320 | C30: NECHELLS EACT | E30: Academy | F30: 2866.507686 | G30: 4031.059042 | H30: 4576.812053 | I30: 169 | J30: 0 | K30: 0 | L30: 0 | M30: 0 | N30: 0 | O30: 484439.7989 | P30: 0 | Q30: 0 | R30: 484439.7989 | S30: 55665.86103 | T30: 35218.56 | U30: 72433.8 | V30: 88815.51612 | W30: 35682.88533 | X30: 0 | Y30: 12168.387 | Z30: 0 | AA30: 142636.8997 | AB30: 0 | AC30: 0 | AD30: 3142.783761 | AE30: 2025.941742 | AG30: 932230.4336 | AH30: 0 | AI30: 932230.4336 | AK30: 0 | AL30: 0 | AM30: 932230.4336 | AQ30: 932230.4336 | AU30: 330 | AV30: 2048
A31: 2052 | B31: 2052 | C31: Colmers Farm Primary (now Amalgamated) | E31: Academy | F31: 2866.507686 | G31: 4031.059042 | H31: 4576.812053 | I31: 404 | J31: 0 | K31: 0 | L31: 0 | M31: 0 | N31: 0 | O31: 1158069.105 | P31: 0 | Q31: 0 | R31: 1158069.105 | S31: 125802.4655 | T31: 88046.4 | U31: 141397.6349 | V31: 187470.3872 | W31: 10086.84651 | X31: 0 | Y31: 5056.992 | Z31: 0 | AA31: 142636.8997 | AB31: 0 | AC31: 0 | AD31: 7187.483487 | AE31: 120555.4149 | AG31: 1986309.629 | AH31: 0 | AI31: 1986309.629 | AK31: 0 | AL31: 0 | AM31: 1986309.629 | AQ31: 1986309.629 | AU31: 330 | AV31: 2052
A32: 2053 | B32: 2053 | C32: COLMORE J | E32: Community | F32: 2866.507686 | G32: 4031.059042 | H32: 4576.812053 | I32: 480 | J32: 0 | K32: 0 | L32: 0 | M32: 0 | N32: 0 | O32: 1375923.689 | P32: 0 | Q32: 0 | R32: 1375923.689 | S32: 48884.43 | T32: 28445.76 | U32: 71653.82881 | V32: 143706.8033 | W32: 20935.2 | X32: 0 | Y32: 0 | Z32: 0 | AA32: 142636.8997 | AB32: 0 | AC32: 0 | AD32: 20523.46544 | AE32: 22330.04364 | AG32: 1875040.12 | AH32: -11131.41321 | AI32: 1863908.707 | AK32: 0 | AL32: 0 | AM32: 1863908.707 | AQ32: 1863908.707 | AU32: 330 | AV32: 2053
A33: 2054 | B33: 2054 | C33: COLMORE I | E33: Community | F33: 2866.507686 | G33: 4031.059042 | H33: 4576.812053 | I33: 360 | J33: 0 | K33: 0 | L33: 0 | M33: 0 | N33: 0 | O33: 1031942.767 | P33: 0 | Q33: 0 | R33: 1031942.767 | S33: 34275.29 | T33: 27542.72 | U33: 53263.46 | V33: 96981.19109 | W33: 42675.6 | X33: 0 | Y33: 0 | Z33: 0 | AA33: 142636.8997 | AB33: 0 | AC33: 0 | AD33: 14090.17884 | AE33: 31810.88976 | AG33: 1475218.996 | AH33: -8348.559909 | AI33: 1466870.436 | AK33: 0 | AL33: 0 | AM33: 1466870.436 | AQ33: 1466870.436 | AU33: 330 | AV33: 2054
A34: 2055 | B34: 2055 | C34: COTTERIDGE J | E34: Community | F34: 2866.507686 | G34: 4031.059042 | H34: 4576.812053 | I34: 404 | J34: 0 | K34: 0 | L34: 0 | M34: 0 | N34: 0 | O34: 1158069.105 | P34: 0 | Q34: 0 | R34: 1158069.105 | S34: 87782.16483 | T34: 56891.52 | U34: 81684.07 | V34: 145669.0104 | W34: 15086.41391 | X34: 0 | Y34: 0 | Z34: 0 | AA34: 142636.8997 | AB34: 0 | AC34: 0 | AD34: 37555.90834 | AE34: 32620.54457 | AG34: 1757995.637 | AH34: -9368.939453 | AI34: 1748626.697 | AK34: 0 | AL34: 0 | AM34: 1748626.697 | AQ34: 1748626.697 | AU34: 330 | AV34: 2055
A35: 2056 | B35: 2197 | C35: ARK TINDAL (formerly Tindal) | E35: Academy | F35: 2866.507686 | G35: 4031.059042 | H35: 4576.812053 | I35: 402 | J35: 0 | K35: 0 | L35: 0 | M35: 0 | N35: 0 | O35: 1152336.09 | P35: 0 | Q35: 0 | R35: 1152336.09 | S35: 100065.9129 | T35: 63664.32 | U35: 144565.09 | V35: 123640.8792 | W35: 102283.6717 | X35: 0 | Y35: 14819.796 | Z35: 0 | AA35: 142636.8997 | AB35: 0 | AC35: 0 | AD35: 5378.2596 | AE35: 102339.7719 | AG35: 1951730.691 | AH35: 0 | AI35: 1951730.691 | AK35: 0 | AL35: 0 | AM35: 1951730.691 | AQ35: 1951730.691 | AU35: 330 | AV35: 2056
A36: 2057 | B36: 2440 | C36: PERCEY SHURMER | E36: Academy | F36: 2866.507686 | G36: 4031.059042 | H36: 4576.812053 | I36: 420 | J36: 0 | K36: 0 | L36: 0 | M36: 0 | N36: 0 | O36: 1203933.228 | P36: 0 | Q36: 0 | R36: 1203933.228 | S36: 105887.4329 | T36: 73146.24 | U36: 173601.2828 | V36: 157689.0868 | W36: 90808.66667 | X36: 0 | Y36: 0 | Z36: 0 | AA36: 142636.8997 | AB36: 0 | AC36: 0 | AD36: 5736.81024 | AE36: 196799.6412 | AG36: 2150239.288 | AH36: 0 | AI36: 2150239.288 | AK36: 0 | AL36: 0 | AM36: 2150239.288 | AQ36: 2150239.288 | AU36: 330 | AV36: 2057
A37: 2058 | B37: 2172 | C37: SHIRESTONE | E37: Academy | F37: 2866.507686 | G37: 4031.059042 | H37: 4576.812053 | I37: 213 | J37: 0 | K37: 0 | L37: 0 | M37: 0 | N37: 0 | O37: 610566.137 | P37: 0 | Q37: 0 | R37: 610566.137 | S37: 65632.3771 | T37: 39282.24 | U37: 88024.45066 | V37: 100723.7299 | W37: 9372 | X37: 0 | Y37: 0 | Z37: 0 | AA37: 142636.8997 | AB37: 0 | AC37: 0 | AD37: 3380.62032 | AE37: 36179.30482 | AG37: 1095797.76 | AH37: 0 | AI37: 1095797.76 | AK37: 0 | AL37: 0 | AM37: 1095797.76 | AQ37: 1095797.76 | AU37: 330 | AV37: 2058
A38: 2059 | B38: 3008 | C38: ST CLEMENT'S CE | E38: Academy | F38: 2866.507686 | G38: 4031.059042 | H38: 4576.812053 | I38: 201 | J38: 0 | K38: 0 | L38: 0 | M38: 0 | N38: 0 | O38: 576168.0448 | P38: 0 | Q38: 0 | R38: 576168.0448 | S38: 65241.97529 | T38: 46055.04 | U38: 85768.78 | V38: 67542.89278 | W38: 43284.1814 | X38: 0 | Y38: 0 | Z38: 0 | AA38: 142636.8997 | AB38: 0 | AC38: 0 | AD38: 4293.225968 | AE38: 70780.45194 | AG38: 1101771.492 | AH38: 0 | AI38: 1101771.492 | AK38: 0 | AL38: 0 | AM38: 1101771.492 | AQ38: 1101771.492 | AU38: 330 | AV38: 2059
A39: 2060 | B39: 2060 | C39: CROMWELL | E39: Academy | F39: 2866.507686 | G39: 4031.059042 | H39: 4576.812053 | I39: 210 | J39: 0 | K39: 0 | L39: 0 | M39: 0 | N39: 0 | O39: 601966.614 | P39: 0 | Q39: 0 | R39: 601966.614 | S39: 73180.76971 | T39: 41539.84 | U39: 92218.15407 | V39: 72434.10586 | W39: 44464.93333 | X39: 0 | Y39: 8252.73 | Z39: 0 | AA39: 142636.8997 | AB39: 0 | AC39: 0 | AD39: 4444.345118 | AE39: 110144.0641 | AG39: 1191282.456 | AH39: 0 | AI39: 1191282.456 | AK39: 0 | AL39: 0 | AM39: 1191282.456 | AQ39: 1191282.456 | AU39: 330 | AV39: 2060
A40: 2061 | B40: 3018 | C40: ST MICHAEL'S CE (B21) | E40: Academy | F40: 2866.507686 | G40: 4031.059042 | H40: 4576.812053 | I40: 183 | J40: 0 | K40: 0 | L40: 0 | M40: 0 | N40: 0 | O40: 524570.9065 | P40: 0 | Q40: 0 | R40: 524570.9065 | S40: 49064.12071 | T40: 32057.92 | U40: 71048.02 | V40: 69104.77007 | W40: 37736.38537 | X40: 0 | Y40: 9781.134824 | Z40: 0 | AA40: 142636.8997 | AB40: 0 | AC40: 0 | AD40: 3639.278152 | AE40: 109060.4086 | AG40: 1048699.844 | AH40: 0 | AI40: 1048699.844 | AK40: 0 | AL40: 0 | AM40: 1048699.844 | AQ40: 1048699.844 | AU40: 330 | AV40: 2061
A41: 2062 | B41: 2062 | C41: ANDERTON PARK | E41: Community | F41: 2866.507686 | G41: 4031.059042 | H41: 4576.812053 | I41: 504 | J41: 0 | K41: 0 | L41: 0 | M41: 0 | N41: 0 | O41: 1444719.874 | P41: 0 | Q41: 0 | R41: 1444719.874 | S41: 104851.4602 | T41: 73146.24 | U41: 158053.0273 | V41: 201785.7022 | W41: 104432.4406 | X41: 0 | Y41: 11202.642 | Z41: 0 | AA41: 142636.8997 | AB41: 0 | AC41: 0 | AD41: 48474.62755 | AE41: 0 | AG41: 2289302.913 | AH41: -11687.98387 | AI41: 2277614.929 | AK41: 0 | AL41: 0 | AM41: 2277614.929 | AQ41: 2277614.929 | AU41: 330 | AV41: 2062
A42: 2063 | B42: 2063 | C42: REGENTS PARK | E42: Community | F42: 2866.507686 | G42: 4031.059042 | H42: 4576.812053 | I42: 573 | J42: 0 | K42: 0 | L42: 0 | M42: 0 | N42: 0 | O42: 1642508.904 | P42: 0 | Q42: 0 | R42: 1642508.904 | S42: 143773.1194 | T42: 98882.88 | U42: 224795.6435 | V42: 245460.083 | W42: 131294.3952 | X42: 0 | Y42: 0 | Z42: 0 | AA42: 142636.8997 | AB42: 0 | AC42: 0 | AD42: 56544.42654 | AE42: 0 | AG42: 2685896.351 | AH42: -13288.12452 | AI42: 2672608.227 | AK42: 0 | AL42: 0 | AM42: 2672608.227 | AQ42: 2672608.227 | AU42: 330 | AV42: 2063
A43: 2064 | B43: 2064 | C43: OAKLANDS | E43: Academy | F43: 2866.507686 | G43: 4031.059042 | H43: 4576.812053 | I43: 398 | J43: 0 | K43: 0 | L43: 0 | M43: 0 | N43: 0 | O43: 1140870.059 | P43: 0 | Q43: 0 | R43: 1140870.059 | S43: 114252.7807 | T43: 68631.04 | U43: 138819.5586 | V43: 164855.0964 | W43: 35404.26057 | X43: 0 | Y43: 158.429063 | Z43: 0 | AA43: 142636.8997 | AB43: 0 | AC43: 0 | AD43: 5122.152 | AE43: 82128.47695 | AG43: 1892878.753 | AH43: 0 | AI43: 1892878.753 | AK43: 0 | AL43: 0 | AM43: 1892878.753 | AQ43: 1892878.753 | AU43: 330 | AV43: 2064
A44: 2065 | B44: 2065 | C44: DORRINGTON | E44: Academy | F44: 2866.507686 | G44: 4031.059042 | H44: 4576.812053 | I44: 598 | J44: 0 | K44: 0 | L44: 0 | M44: 0 | N44: 0 | O44: 1714171.596 | P44: 0 | Q44: 0 | R44: 1714171.596 | S44: 117548.1298 | T44: 68179.52 | U44: 95525.09095 | V44: 143182.0647 | W44: 78613.81224 | X44: 0 | Y44: 11518.704 | Z44: 0 | AA44: 142636.8997 | AB44: 0 | AC44: 0 | AD44: 9014.98752 | AE44: 83345.56274 | AG44: 2463736.368 | AH44: 0 | AI44: 2463736.368 | AK44: 0 | AL44: 0 | AM44: 2463736.368 | AQ44: 2463736.368 | AU44: 330 | AV44: 2065
A45: 2067 | B45: 2067 | C45: SUMMERFIELD | E45: Community | F45: 2866.507686 | G45: 4031.059042 | H45: 4576.812053 | I45: 372 | J45: 0 | K45: 0 | L45: 0 | M45: 0 | N45: 0 | O45: 1066340.859 | P45: 0 | Q45: 0 | R45: 1066340.859 | S45: 95583.41849 | T45: 68631.04 | U45: 144008.43 | V45: 176975.9125 | W45: 94365.5122 | X45: 0 | Y45: 21008.15708 | Z45: 0 | AA45: 142636.8997 | AB45: 0 | AC45: 0 | AD45: 48316.08467 | AE45: 123425.2674 | AG45: 1981291.581 | AH45: -8626.845239 | AI45: 1972664.736 | AK45: 0 | AL45: 0 | AM45: 1972664.736 | AQ45: 1972664.736 | AU45: 330 | AV45: 2067
A46: 2068 | B46: 2068 | C46: WARREN FARM | E46: Academy | F46: 2866.507686 | G46: 4031.059042 | H46: 4576.812053 | I46: 289 | J46: 0 | K46: 0 | L46: 0 | M46: 0 | N46: 0 | O46: 828420.7211 | P46: 0 | Q46: 0 | R46: 828420.7211 | S46: 73859.53423 | T46: 39282.24 | U46: 109769.2 | V46: 124566.9521 | W46: 17169.11304 | X46: 0 | Y46: 0 | Z46: 0 | AA46: 142636.8997 | AB46: 0 | AC46: 0 | AD46: 4200.16464 | AE46: 47441.04519 | AG46: 1387345.87 | AH46: 0 | AI46: 1387345.87 | AK46: 0 | AL46: 0 | AM46: 1387345.87 | AQ46: 1387345.87 | AU46: 330 | AV46: 2068
A47: 2070 | B47: 2135 | C47: MONTGOMERY | E47: Academy | F47: 2866.507686 | G47: 4031.059042 | H47: 4576.812053 | I47: 530 | J47: 0 | K47: 0 | L47: 0 | M47: 0 | N47: 0 | O47: 1519249.073 | P47: 0 | Q47: 0 | R47: 1519249.073 | S47: 135074.3425 | T47: 75855.36 | U47: 204380.01 | V47: 189247.9084 | W47: 129097.514 | X47: 0 | Y47: 11588.94 | Z47: 0 | AA47: 142636.8997 | AB47: 0 | AC47: 0 | AD47: 6413.25952 | AE47: 74397.36202 | AG47: 2487940.67 | AH47: 0 | AI47: 2487940.67 | AK47: 0 | AL47: 0 | AM47: 2487940.67 | AQ47: 2487940.67 | AU47: 330 | AV47: 2070
A48: 2071 | B48: 3011 | C48: ST JOHN's & ST PETER's CE (formerly St Johns CE b16) | E48: Academy | F48: 2866.507686 | G48: 4031.059042 | H48: 4576.812053 | I48: 201 | J48: 0 | K48: 0 | L48: 0 | M48: 0 | N48: 0 | O48: 576168.0448 | P48: 0 | Q48: 0 | R48: 576168.0448 | S48: 71175.65984 | T48: 48764.16 | U48: 94102.5921 | V48: 105922.0598 | W48: 38489.50175 | X48: 0 | Y48: 16628.373 | Z48: 0 | AA48: 142636.8997 | AB48: 0 | AC48: 0 | AD48: 4237.278696 | AE48: 74536.40204 | AG48: 1172660.972 | AH48: 0 | AI48: 1172660.972 | AK48: 0 | AL48: 0 | AM48: 1172660.972 | AQ48: 1172660.972 | AU48: 330 | AV48: 2071
A49: 2072 | B49: 2476 | C49: BILLESLEY | E49: Academy | F49: 2866.507686 | G49: 4031.059042 | H49: 4576.812053 | I49: 600 | J49: 0 | K49: 0 | L49: 0 | M49: 0 | N49: 0 | O49: 1719904.611 | P49: 0 | Q49: 0 | R49: 1719904.611 | S49: 161310.8046 | T49: 94367.68 | U49: 202049.9398 | V49: 221987.9493 | W49: 63802.51429 | X49: 0 | Y49: 17559 | Z49: 0 | AA49: 142636.8997 | AB49: 0 | AC49: 0 | AD49: 5788.03176 | AE49: 161715.6222 | AG49: 2791123.053 | AH49: 0 | AI49: 2791123.053 | AK49: 0 | AL49: 0 | AM49: 2791123.053 | AQ49: 2791123.053 | AU49: 330 | AV49: 2072
A50: 2073 | B50: 2151 | C50: KINGS RISE | E50: Academy | F50: 2866.507686 | G50: 4031.059042 | H50: 4576.812053 | I50: 401 | J50: 0 | K50: 0 | L50: 8.75 | M50: 0 | N50: 0 | O50: 1174551.524 | P50: 0 | Q50: 0 | R50: 1174551.524 | S50: 133076.6768 | T50: 91351.72908 | U50: 153511.8541 | V50: 188635.3703 | W50: 31154.92918 | X50: 0 | Y50: 35216.65386 | Z50: 0 | AA50: 142636.8997 | AB50: 0 | AC50: 0 | AD50: 3329.3988 | AE50: 78446.6062 | AG50: 2031911.642 | AH50: 0 | AI50: 2031911.642 | AK50: 0 | AL50: 0 | AM50: 2031911.642 | AQ50: 2031911.642 | AU50: 330 | AV50: 2073
A51: 2075 | B51: 2461 | C51: MANSFIELD GREEN | E51: Academy | F51: 2866.507686 | G51: 4031.059042 | H51: 4576.812053 | I51: 397 | J51: 0 | K51: 0 | L51: 0 | M51: 0 | N51: 0 | O51: 1138003.551 | P51: 0 | Q51: 0 | R51: 1138003.551 | S51: 113482.1629 | T51: 66824.96 | U51: 146957.84 | V51: 168176.8345 | W51: 102837.7721 | X51: 0 | Y51: 25618.581 | Z51: 0 | AA51: 142636.8997 | AB51: 0 | AC51: 0 | AD51: 8400.32928 | AE51: 78134.27631 | AG51: 1991073.207 | AH51: 0 | AI51: 1991073.207 | AK51: 0 | AL51: 0 | AM51: 1991073.207 | AQ51: 1991073.207 | AU51: 330 | AV51: 2075
A52: 2078 | B52: 3434 | C52: MOOR GREEN | E52: Academy | F52: 2866.507686 | G52: 4031.059042 | H52: 4576.812053 | I52: 389 | J52: 0 | K52: 0 | L52: 0 | M52: 0 | N52: 0 | O52: 1115071.49 | P52: 0 | Q52: 0 | R52: 1115071.49 | S52: 73497.51213 | T52: 55085.44 | U52: 74562.03235 | V52: 141572.5623 | W52: 57393.65146 | X52: 0 | Y52: 37602.68901 | Z52: 0 | AA52: 142636.8997 | AB52: 0 | AC52: 0 | AD52: 3875.405975 | AE52: 82052.75307 | AG52: 1783350.436 | AH52: 0 | AI52: 1783350.436 | AK52: 0 | AL52: 0 | AM52: 1783350.436 | AQ52: 1783350.436 | AU52: 330 | AV52: 2078
A53: 2079 | B53: 2079 | C53: GEORGE DIXON | E53: Community | F53: 2866.507686 | G53: 4031.059042 | H53: 4576.812053 | I53: 386 | J53: 0 | K53: 0 | L53: 0 | M53: 0 | N53: 0 | O53: 1106471.967 | P53: 0 | Q53: 0 | R53: 1106471.967 | S53: 103201.8931 | T53: 70888.64 | U53: 73566.77 | V53: 177223.2593 | W53: 70737.59033 | X53: 0 | Y53: 15756.12397 | Z53: 0 | AA53: 142636.8997 | AB53: 0 | AC53: 0 | AD53: 27559.01188 | AE53: 37423.13458 | AG53: 1825465.289 | AH53: -8951.511458 | AI53: 1816513.778 | AK53: 0 | AL53: 0 | AM53: 1816513.778 | AQ53: 1816513.778 | AU53: 330 | AV53: 2079
A54: 2080 | B54: 2468 | C54: REASIDE | E54: Academy | F54: 2866.507686 | G54: 4031.059042 | H54: 4576.812053 | I54: 193 | J54: 0 | K54: 0 | L54: 0 | M54: 0 | N54: 0 | O54: 553235.9833 | P54: 0 | Q54: 0 | R54: 553235.9833 | S54: 79526.16467 | T54: 46055.04 | U54: 89603.88885 | V54: 101482.0363 | W54: 3220.8 | X54: 0 | Y54: 0 | Z54: 0 | AA54: 142636.8997 | AB54: 0 | AC54: 0 | AD54: 4463.627425 | AE54: 61373.63908 | AG54: 1081598.079 | AH54: 0 | AI54: 1081598.079 | AK54: 0 | AL54: 0 | AM54: 1081598.079 | AQ54: 1081598.079 | AU54: 330 | AV54: 2080
A55: 2081 | B55: 2081 | C55: GILBERTSTONE | E55: Community | F55: 2866.507686 | G55: 4031.059042 | H55: 4576.812053 | I55: 416 | J55: 0 | K55: 0 | L55: 0 | M55: 0 | N55: 0 | O55: 1192467.197 | P55: 0 | Q55: 0 | R55: 1192467.197 | S55: 60830.3468 | T55: 37024.64 | U55: 26308.31 | V55: 106023.686 | W55: 22581.78876 | X55: 0 | Y55: 0 | Z55: 0 | AA55: 142636.8997 | AB55: 0 | AC55: 0 | AD55: 41219.30159 | AE55: 49032.14817 | AG55: 1678124.318 | AH55: -9647.224783 | AI55: 1668477.093 | AK55: 0 | AL55: 0 | AM55: 1668477.093 | AQ55: 1668477.093 | AU55: 330 | AV55: 2081
A56: 2082 | B56: 2082 | C56: CONWAY | E56: Academy | F56: 2866.507686 | G56: 4031.059042 | H56: 4576.812053 | I56: 400 | J56: 0 | K56: 0 | L56: 0 | M56: 0 | N56: 0 | O56: 1146603.074 | P56: 0 | Q56: 0 | R56: 1146603.074 | S56: 99285.41748 | T56: 75403.84 | U56: 159585.48 | V56: 173356.2422 | W56: 87364.58453 | X56: 0 | Y56: 0 | Z56: 0 | AA56: 142636.8997 | AB56: 0 | AC56: 0 | AD56: 6567.177748 | AE56: 29465.82778 | AG56: 1920268.544 | AH56: 0 | AI56: 1920268.544 | AK56: 0 | AL56: 0 | AM56: 1920268.544 | AQ56: 1920268.544 | AU56: 330 | AV56: 2082
A57: 2085 | B57: 2085 | C57: GREENHOLM | E57: Academy | F57: 2866.507686 | G57: 4031.059042 | H57: 4576.812053 | I57: 629 | J57: 0 | K57: 0 | L57: 17.5 | M57: 0 | N57: 0 | O57: 1853197.219 | P57: 0 | Q57: 0 | R57: 1853197.219 | S57: 106596.5204 | T57: 58938.43459 | U57: 102522.6837 | V57: 145090.3034 | W57: 32776.11333 | X57: 0 | Y57: 1193.033393 | Z57: 0 | AA57: 142636.8997 | AB57: 0 | AC57: 0 | AD57: 6977.626358 | AE57: 120703.6259 | AG57: 2570632.46 | AH57: 0 | AI57: 2570632.46 | AK57: 0 | AL57: 0 | AM57: 2570632.46 | AQ57: 2570632.46 | AU57: 330 | AV57: 2085
A58: 2086 | B58: 2086 | C58: GREET | E58: Academy | F58: 2866.507686 | G58: 4031.059042 | H58: 4576.812053 | I58: 835 | J58: 0 | K58: 0 | L58: 0 | M58: 0 | N58: 0 | O58: 2393533.917 | P58: 0 | Q58: 0 | R58: 2393533.917 | S58: 142429.0812 | T58: 97979.84 | U58: 259374.43 | V58: 370884.085 | W58: 159008.257 | X58: 0 | Y58: 0 | Z58: 0 | AA58: 142636.8997 | AB58: 0 | AC58: 0 | AD58: 13750.02841 | AE58: 0 | AG58: 3579596.539 | AH58: 0 | AI58: 3579596.539 | AK58: 0 | AL58: 0 | AM58: 3579596.539 | AQ58: 3579596.539 | AU58: 330 | AV58: 2086
A59: 2087 | B59: 2087 | C59: GRENDON | E59: Community | F59: 2866.507686 | G59: 4031.059042 | H59: 4576.812053 | I59: 345 | J59: 0 | K59: 0 | L59: 0 | M59: 0 | N59: 0 | O59: 988945.1515 | P59: 0 | Q59: 0 | R59: 988945.1515 | S59: 102464.655 | T59: 66824.96 | U59: 107295.17 | V59: 182431.2852 | W59: 29655.56863 | X59: 0 | Y59: 2897.235 | Z59: 0 | AA59: 142636.8997 | AB59: 0 | AC59: 0 | AD59: 25725.88646 | AE59: 23976.0922 | AG59: 1672852.904 | AH59: -8000.703246 | AI59: 1664852.201 | AK59: 0 | AL59: 0 | AM59: 1664852.201 | AQ59: 1664852.201 | AU59: 330 | AV59: 2087
A60: 2091 | B60: 2091 | C60: GUNTER | E60: Community | F60: 2866.507686 | G60: 4031.059042 | H60: 4576.812053 | I60: 196 | J60: 0 | K60: 0 | L60: 0 | M60: 0 | N60: 0 | O60: 561835.5064 | P60: 0 | Q60: 0 | R60: 561835.5064 | S60: 47882.8 | T60: 35670.08 | U60: 44454.28 | V60: 74614.23042 | W60: 7515.2 | X60: 0 | Y60: 0 | Z60: 0 | AA60: 142636.8997 | AB60: 0 | AC60: 0 | AD60: 25430.02145 | AE60: 9151.254814 | AG60: 949190.2728 | AH60: -4545.327061 | AI60: 944644.9457 | AK60: 0 | AL60: 0 | AM60: 944644.9457 | AQ60: 944644.9457 | AU60: 330 | AV60: 2091
A61: 2092 | B61: 2092 | C61: HALL GREEN J | E61: Community | F61: 2866.507686 | G61: 4031.059042 | H61: 4576.812053 | I61: 480 | J61: 0 | K61: 0 | L61: 0 | M61: 0 | N61: 0 | O61: 1375923.689 | P61: 0 | Q61: 0 | R61: 1375923.689 | S61: 53379.55 | T61: 33412.48 | U61: 33938.77 | V61: 138567.3644 | W61: 33281.6 | X61: 0 | Y61: 0 | Z61: 0 | AA61: 142636.8997 | AB61: 0 | AC61: 0 | AD61: 24538.55912 | AE61: 95280.46248 | AG61: 1930959.375 | AH61: -11131.41321 | AI61: 1919827.962 | AK61: 0 | AL61: 0 | AM61: 1919827.962 | AQ61: 1919827.962 | AU61: 330 | AV61: 2092
A62: 2093 | B62: 2093 | C62: HALL GREEN I | E62: Community | F62: 2866.507686 | G62: 4031.059042 | H62: 4576.812053 | I62: 359 | J62: 0 | K62: 0 | L62: 0 | M62: 0 | N62: 0 | O62: 1029076.259 | P62: 0 | Q62: 0 | R62: 1029076.259 | S62: 33151.51 | T62: 25285.12 | U62: 31721.31 | V62: 102843.7385 | W62: 122853.39 | X62: 0 | Y62: 0 | Z62: 0 | AA62: 142636.8997 | AB62: 0 | AC62: 0 | AD62: 19808.93258 | AE62: 0 | AG62: 1507377.16 | AH62: -8325.369464 | AI62: 1499051.79 | AK62: 0 | AL62: 0 | AM62: 1499051.79 | AQ62: 1499051.79 | AU62: 330 | AV62: 2093
A63: 2096 | B63: 2446 | C63: LEA FOREST (formerly Ridpool) | E63: Academy | F63: 2866.507686 | G63: 4031.059042 | H63: 4576.812053 | I63: 460 | J63: 0 | K63: 0 | L63: 0 | M63: 0 | N63: 0 | O63: 1318593.535 | P63: 0 | Q63: 0 | R63: 1318593.535 | S63: 160901.4808 | T63: 108816.32 | U63: 206383.67 | V63: 182491.9743 | W63: 45177.30326 | X63: 0 | Y63: 18001.99176 | Z63: 0 | AA63: 142636.8997 | AB63: 0 | AC63: 0 | AD63: 5275.81656 | AE63: 106104.9861 | AG63: 2294383.978 | AH63: 0 | AI63: 2294383.978 | AK63: 0 | AL63: 0 | AM63: 2294383.978 | AQ63: 2294383.978 | AU63: 330 | AV63: 2096
A64: 2097 | B64: 2097 | C64: STORY WOOD | E64: Community | F64: 2866.507686 | G64: 4031.059042 | H64: 4576.812053 | I64: 209 | J64: 0 | K64: 0 | L64: 0 | M64: 0 | N64: 0 | O64: 599100.1063 | P64: 0 | Q64: 0 | R64: 599100.1063 | S64: 55329.95663 | T64: 37476.16 | U64: 77484.28822 | V64: 90095.41428 | W64: 17451.96444 | X64: 0 | Y64: 3037.707 | Z64: 0 | AA64: 142636.8997 | AB64: 0 | AC64: 0 | AD64: 20534.16815 | AE64: 205847.0702 | AG64: 1248993.735 | AH64: -4846.802836 | AI64: 1244146.932 | AK64: 0 | AL64: 0 | AM64: 1244146.932 | AQ64: 1244146.932 | AU64: 330 | AV64: 2097
A65: 2098 | B65: 2439 | C65: TAME VALLEY | E65: Academy | F65: 2866.507686 | G65: 4031.059042 | H65: 4576.812053 | I65: 203 | J65: 0 | K65: 0 | L65: 0 | M65: 0 | N65: 0 | O65: 581901.0602 | P65: 0 | Q65: 0 | R65: 581901.0602 | S65: 76773.62404 | T65: 50118.72 | U65: 91898.36 | V65: 60336.35921 | W65: 20273.56279 | X65: 0 | Y65: 14010.86504 | Z65: 0 | AA65: 142636.8997 | AB65: 0 | AC65: 0 | AD65: 3195.739089 | AE65: 8760.757442 | AG65: 1049905.948 | AH65: 0 | AI65: 1049905.948 | AK65: 0 | AL65: 0 | AM65: 1049905.948 | AQ65: 1049905.948 | AU65: 330 | AV65: 2098
A66: 2099 | B66: 2099 | C66: HAWTHORN | E66: Community | F66: 2866.507686 | G66: 4031.059042 | H66: 4576.812053 | I66: 206 | J66: 0 | K66: 0 | L66: 0 | M66: 0 | N66: 0 | O66: 590500.5832 | P66: 0 | Q66: 0 | R66: 590500.5832 | S66: 75293.26 | T66: 47861.12 | U66: 87674.23 | V66: 64204.39209 | W66: 19477.3 | X66: 0 | Y66: 3195.738 | Z66: 0 | AA66: 142636.8997 | AB66: 0 | AC66: 0 | AD66: 15821.42018 | AE66: 87331.20883 | AG66: 1133996.152 | AH66: -4777.231503 | AI66: 1129218.921 | AK66: 0 | AL66: 0 | AM66: 1129218.921 | AQ66: 1129218.921 | AU66: 330 | AV66: 2099
A67: 2100 | B67: 2444 | C67: MERRITTS BROOK E-ACT (formerly Trescott) | E67: Academy | F67: 2866.507686 | G67: 4031.059042 | H67: 4576.812053 | I67: 201 | J67: 0 | K67: 0 | L67: 0 | M67: 0 | N67: 0 | O67: 576168.0448 | P67: 0 | Q67: 0 | R67: 576168.0448 | S67: 71870.83909 | T67: 45603.52 | U67: 86615.9049 | V67: 72032.02407 | W67: 5678.778947 | X67: 0 | Y67: 0 | Z67: 0 | AA67: 142636.8997 | AB67: 0 | AC67: 0 | AD67: 3022.06968 | AE67: 68482.02251 | AG67: 1072110.104 | AH67: 0 | AI67: 1072110.104 | AK67: 0 | AL67: 0 | AM67: 1072110.104 | AQ67: 1072110.104 | AU67: 330 | AV67: 2100
A68: 2102 | B68: 2028 | C68: OASIS ACADEMY BLAKENHALE (formerly Blakenhale I) | E68: Academy | F68: 2866.507686 | G68: 4031.059042 | H68: 4576.812053 | I68: 247 | J68: 0 | K68: 0 | L68: 0 | M68: 0 | N68: 0 | O68: 708027.3983 | P68: 0 | Q68: 0 | R68: 708027.3983 | S68: 72483.81 | T68: 46958.08 | U68: 98520.53 | V68: 80963.64888 | W68: 25737.98118 | X68: 0 | Y68: 0 | Z68: 0 | AA68: 142636.8997 | AB68: 0 | AC68: 0 | AD68: 3739.17096 | AE68: 76132.87952 | AG68: 1255200.399 | AH68: 0 | AI68: 1255200.399 | AK68: 0 | AL68: 0 | AM68: 1255200.399 | AQ68: 1255200.399 | AU68: 330 | AV68: 2102
A69: 2103 | B69: 2203 | C69: OASIS ACADEMY SHORT HEATH (formerly Short Heath) | E69: Academy | F69: 2866.507686 | G69: 4031.059042 | H69: 4576.812053 | I69: 411 | J69: 0 | K69: 0 | L69: 0 | M69: 0 | N69: 0 | O69: 1178134.659 | P69: 0 | Q69: 0 | R69: 1178134.659 | S69: 109597.1207 | T69: 72243.2 | U69: 137154.95 | V69: 142404.0626 | W69: 36665.43954 | X69: 0 | Y69: 0 | Z69: 0 | AA69: 142636.8997 | AB69: 0 | AC69: 0 | AD69: 6607.57608 | AE69: 20914.99743 | AG69: 1846358.905 | AH69: 0 | AI69: 1846358.905 | AK69: 0 | AL69: 0 | AM69: 1846358.905 | AQ69: 1846358.905 | AU69: 330 | AV69: 2103
A70: 2104 | B70: 3026 | C70: ST GEORGE'S CE (B19) | E70: Academy | F70: 2866.507686 | G70: 4031.059042 | H70: 4576.812053 | I70: 330 | J70: 0 | K70: 0 | L70: 0 | M70: 0 | N70: 0 | O70: 945947.5362 | P70: 0 | Q70: 0 | R70: 945947.5362 | S70: 106572.4256 | T70: 76758.4 | U70: 164824.1341 | V70: 128762.7635 | W70: 81355.02222 | X70: 0 | Y70: 7349.083902 | Z70: 0 | AA70: 142636.8997 | AB70: 0 | AC70: 0 | AD70: 2713.577913 | AE70: 59915.93211 | AG70: 1716835.775 | AH70: 0 | AI70: 1716835.775 | AK70: 0 | AL70: 0 | AM70: 1716835.775 | AQ70: 1716835.775 | AU70: 330 | AV70: 2104
A71: 2105 | B71: 2483 | C71: OASIS ACADEMY WOODVIEW (formerly Woodview) | E71: Academy | F71: 2866.507686 | G71: 4031.059042 | H71: 4576.812053 | I71: 381 | J71: 0 | K71: 0 | L71: 0 | M71: 0 | N71: 0 | O71: 1092139.428 | P71: 0 | Q71: 0 | R71: 1092139.428 | S71: 121687.6301 | T71: 67728 | U71: 140787.81 | V71: 146223.6185 | W71: 52245.18879 | X71: 0 | Y71: 22949.613 | Z71: 0 | AA71: 142636.8997 | AB71: 0 | AC71: 0 | AD71: 2433.514833 | AE71: 292692.1303 | AG71: 2081523.833 | AH71: 0 | AI71: 2081523.833 | AK71: 0 | AL71: 0 | AM71: 2081523.833 | AQ71: 2081523.833 | AU71: 330 | AV71: 2105
A72: 2107 | B72: 2027 | C72: OASIS ACADEMY BLAKENHALE (formerly Blakenhale j) | E72: Academy | F72: 2866.507686 | G72: 4031.059042 | H72: 4576.812053 | I72: 321 | J72: 0 | K72: 0 | L72: 0 | M72: 0 | N72: 0 | O72: 920148.9671 | P72: 0 | Q72: 0 | R72: 920148.9671 | S72: 117654.5793 | T72: 80822.08 | U72: 130482.91 | V72: 144183.4527 | W72: 11272.8 | X72: 0 | Y72: 0 | Z72: 0 | AA72: 142636.8997 | AB72: 0 | AC72: 0 | AD72: 4302.60768 | AE72: 0 | AG72: 1551504.297 | AH72: 0 | AI72: 1551504.297 | AK72: 0 | AL72: 0 | AM72: 1551504.297 | AQ72: 1551504.297 | AU72: 330 | AV72: 2107
A73: 2108 | B73: 2108 | C73: WARD END | E73: Community | F73: 2866.507686 | G73: 4031.059042 | H73: 4576.812053 | I73: 844 | J73: 0 | K73: 0 | L73: 0 | M73: 0 | N73: 0 | O73: 2419332.487 | P73: 0 | Q73: 0 | R73: 2419332.487 | S73: 178190.619 | T73: 115137.6 | U73: 318599.69 | V73: 329303.791 | W73: 148718.8787 | X73: 0 | Y73: 0 | Z73: 0 | AA73: 142636.8997 | AB73: 0 | AC73: 0 | AD73: 69205.47636 | AE73: 0 | AG73: 3721125.441 | AH73: -19572.7349 | AI73: 3701552.706 | AK73: 0 | AL73: 0 | AM73: 3701552.706 | AQ73: 3701552.706 | AU73: 330 | AV73: 2108
A74: 2109 | B74: 3420 | C74: FOUR DWELLINGS | E74: Academy | F74: 2866.507686 | G74: 4031.059042 | H74: 4576.812053 | I74: 365 | J74: 0 | K74: 0 | L74: 0 | M74: 0 | N74: 0 | O74: 1046275.305 | P74: 0 | Q74: 0 | R74: 1046275.305 | S74: 121755.188 | T74: 82176.64 | U74: 120710.61 | V74: 157644.8097 | W74: 29389.8 | X74: 0 | Y74: 15987.37302 | Z74: 0 | AA74: 142636.8997 | AB74: 0 | AC74: 0 | AD74: 9637.0324 | AE74: 36411.67887 | AG74: 1762625.337 | AH74: 0 | AI74: 1762625.337 | AK74: 0 | AL74: 0 | AM74: 1762625.337 | AQ74: 1762625.337 | AU74: 330 | AV74: 2109
A75: 2110 | B75: 2106 | C75: OASIS ACADEMY HOBMOOR | E75: Academy | F75: 2866.507686 | G75: 4031.059042 | H75: 4576.812053 | I75: 420 | J75: 0 | K75: 0 | L75: 0 | M75: 0 | N75: 0 | O75: 1203933.228 | P75: 0 | Q75: 0 | R75: 1203933.228 | S75: 123425.3288 | T75: 86691.84 | U75: 159048.56 | V75: 133951.7474 | W75: 77657.06667 | X75: 0 | Y75: 5157.065728 | Z75: 0 | AA75: 142636.8997 | AB75: 0 | AC75: 0 | AD75: 12730.29199 | AE75: 48093.51827 | AG75: 1993325.547 | AH75: 0 | AI75: 1993325.547 | AK75: 0 | AL75: 0 | AM75: 1993325.547 | AQ75: 1993325.547 | AU75: 330 | AV75: 2110
A76: 2111 | B76: 2111 | C76: JERVOISE | E76: Academy | F76: 2866.507686 | G76: 4031.059042 | H76: 4576.812053 | I76: 209 | J76: 0 | K76: 0 | L76: 0 | M76: 0 | N76: 0 | O76: 599100.1063 | P76: 0 | Q76: 0 | R76: 599100.1063 | S76: 66057.19313 | T76: 46958.08 | U76: 81538.93 | V76: 80975.30357 | W76: 4387.365363 | X76: 0 | Y76: 0 | Z76: 0 | AA76: 142636.8997 | AB76: 0 | AC76: 0 | AD76: 4740.805582 | AE76: 30093.95529 | AG76: 1056488.639 | AH76: 0 | AI76: 1056488.639 | AK76: 0 | AL76: 0 | AM76: 1056488.639 | AQ76: 1056488.639 | AU76: 330 | AV76: 2111
A77: 2115 | B77: 2115 | C77: KINGSLAND | E77: Community | F77: 2866.507686 | G77: 4031.059042 | H77: 4576.812053 | I77: 299 | J77: 0 | K77: 0 | L77: 0 | M77: 0 | N77: 0 | O77: 857085.798 | P77: 0 | Q77: 0 | R77: 857085.798 | S77: 91690.92444 | T77: 61406.72 | U77: 94678.09 | V77: 94484.89328 | W77: 7351.291603 | X77: 0 | Y77: 52.677 | Z77: 0 | AA77: 142636.8997 | AB77: 0 | AC77: 0 | AD77: 41747.75417 | AE77: 45651.40722 | AG77: 1436786.455 | AH77: -6933.942813 | AI77: 1429852.513 | AK77: 0 | AL77: 0 | AM77: 1429852.513 | AQ77: 1429852.513 | AU77: 330 | AV77: 2115
A78: 2117 | B78: 2031 | C78: OASIS ACADEMY BOULTON (formerly Matthew Boulton) | E78: Academy | F78: 2866.507686 | G78: 4031.059042 | H78: 4576.812053 | I78: 206 | J78: 0 | K78: 0 | L78: 0 | M78: 0 | N78: 0 | O78: 590500.5832 | P78: 0 | Q78: 0 | R78: 590500.5832 | S78: 55065.22 | T78: 26188.16 | U78: 81956.2961 | V78: 62210.46687 | W78: 49635.7 | X78: 0 | Y78: 2446.898294 | Z78: 0 | AA78: 142636.8997 | AB78: 0 | AC78: 0 | AD78: 2868.40512 | AE78: 118581.0957 | AG78: 1132089.725 | AH78: 0 | AI78: 1132089.725 | AK78: 0 | AL78: 0 | AM78: 1132089.725 | AQ78: 1132089.725 | AU78: 330 | AV78: 2117
A79: 2118 | B79: 2118 | C79: KINGS NORTON | E79: Community | F79: 2866.507686 | G79: 4031.059042 | H79: 4576.812053 | I79: 414 | J79: 0 | K79: 0 | L79: 0 | M79: 0 | N79: 0 | O79: 1186734.182 | P79: 0 | Q79: 0 | R79: 1186734.182 | S79: 56750.89 | T79: 38379.2 | U79: 95891.73 | V79: 166699.8918 | W79: 11300.09492 | X79: 0 | Y79: 0 | Z79: 0 | AA79: 142636.8997 | AB79: 0 | AC79: 0 | AD79: 26951.08181 | AE79: 18618.52742 | AG79: 1743962.498 | AH79: -9600.843895 | AI79: 1734361.654 | AK79: 0 | AL79: 0 | AM79: 1734361.654 | AQ79: 1734361.654 | AU79: 330 | AV79: 2118
A80: 2119 | B80: 2119 | C80: LAKEY LANE | E80: Community | F80: 2866.507686 | G80: 4031.059042 | H80: 4576.812053 | I80: 408 | J80: 0 | K80: 0 | L80: 0 | M80: 0 | N80: 0 | O80: 1169535.136 | P80: 0 | Q80: 0 | R80: 1169535.136 | S80: 83775.71793 | T80: 46958.08 | U80: 94632.5 | V80: 148337.8646 | W80: 52907.97303 | X80: 0 | Y80: 8358.084 | Z80: 0 | AA80: 142636.8997 | AB80: 0 | AC80: 0 | AD80: 22510.15066 | AE80: 43544.6083 | AG80: 1813197.014 | AH80: -9461.70123 | AI80: 1803735.313 | AK80: 0 | AL80: 0 | AM80: 1803735.313 | AQ80: 1803735.313 | AU80: 330 | AV80: 2119
A81: 2120 | B81: 3305 | C81: ST GEORGE'S CE (B16) | E81: Academy | F81: 2866.507686 | G81: 4031.059042 | H81: 4576.812053 | I81: 209 | J81: 0 | K81: 0 | L81: 0 | M81: 0 | N81: 0 | O81: 599100.1063 | P81: 0 | Q81: 0 | R81: 599100.1063 | S81: 61837.75889 | T81: 36121.6 | U81: 74916.54 | V81: 94327.87316 | W81: 28831.2581 | X81: 0 | Y81: 403.857 | Z81: 0 | AA81: 142636.8997 | AB81: 0 | AC81: 0 | AD81: 3899.261788 | AE81: 37497.11653 | AG81: 1079572.271 | AH81: 0 | AI81: 1079572.271 | AK81: 0 | AL81: 0 | AM81: 1079572.271 | AQ81: 1079572.271 | AU81: 330 | AV81: 2120
A82: 2121 | B82: 3419 | C82: HAWKESLEY CE | E82: Academy | F82: 2866.507686 | G82: 4031.059042 | H82: 4576.812053 | I82: 204 | J82: 0 | K82: 0 | L82: 0 | M82: 0 | N82: 0 | O82: 584767.5679 | P82: 0 | Q82: 0 | R82: 584767.5679 | S82: 83615.74667 | T82: 51924.8 | U82: 95047.88198 | V82: 85412.13529 | W82: 3128.777143 | X82: 0 | Y82: 1545.192 | Z82: 0 | AA82: 142636.8997 | AB82: 0 | AC82: 0 | AD82: 3509.759109 | AE82: 99546.32245 | AG82: 1151135.082 | AH82: 0 | AI82: 1151135.082 | AK82: 0 | AL82: 0 | AM82: 1151135.082 | AQ82: 1151135.082 | AU82: 330 | AV82: 2121
A83: 2122 | B83: 2229 | C83: YARNFIELD | E83: Academy | F83: 2866.507686 | G83: 4031.059042 | H83: 4576.812053 | I83: 584 | J83: 0 | K83: 0 | L83: 0 | M83: 0 | N83: 0 | O83: 1674040.488 | P83: 0 | Q83: 0 | R83: 1674040.488 | S83: 148176.5747 | T83: 96173.76 | U83: 183541.4065 | V83: 238251.3165 | W83: 103494.2157 | X83: 0 | Y83: 6110.532 | Z83: 0 | AA83: 142636.8997 | AB83: 0 | AC83: 0 | AD83: 13688.36414 | AE83: 0 | AG83: 2606113.558 | AH83: 0 | AI83: 2606113.558 | AK83: 0 | AL83: 0 | AM83: 2606113.558 | AQ83: 2606113.558 | AU83: 330 | AV83: 2122
A84: 2126 | B84: 2200 | C84: TIVERTON | E84: Academy | F84: 2866.507686 | G84: 4031.059042 | H84: 4576.812053 | I84: 202 | J84: 0 | K84: 0 | L84: 0 | M84: 0 | N84: 0 | O84: 579034.5525 | P84: 0 | Q84: 0 | R84: 579034.5525 | S84: 55097.95146 | T84: 36121.6 | U84: 46505.89 | V84: 90058.70364 | W84: 23325.83256 | X84: 0 | Y84: 3406.446 | Z84: 0 | AA84: 142636.8997 | AB84: 0 | AC84: 0 | AD84: 3073.2912 | AE84: 39212.16989 | AG84: 1018473.337 | AH84: 0 | AI84: 1018473.337 | AK84: 0 | AL84: 0 | AM84: 1018473.337 | AQ84: 1018473.337 | AU84: 330 | AV84: 2126
A85: 2127 | B85: 2127 | C85: LOZELLS | E85: Community | F85: 2866.507686 | G85: 4031.059042 | H85: 4576.812053 | I85: 419 | J85: 0 | K85: 0 | L85: 0 | M85: 0 | N85: 0 | O85: 1201066.72 | P85: 0 | Q85: 0 | R85: 1201066.72 | S85: 99217.7335 | T85: 59600.64 | U85: 169041.92 | V85: 116128.2221 | W85: 84423.45322 | X85: 0 | Y85: 0 | Z85: 0 | AA85: 142636.8997 | AB85: 0 | AC85: 0 | AD85: 55948.29122 | AE85: 108478.4723 | AG85: 2036542.352 | AH85: -9716.796116 | AI85: 2026825.556 | AK85: 0 | AL85: 0 | AM85: 2026825.556 | AQ85: 2026825.556 | AU85: 330 | AV85: 2127
A86: 2128 | B86: 2128 | C86: LYNDON GREEN J | E86: Community | F86: 2866.507686 | G86: 4031.059042 | H86: 4576.812053 | I86: 367 | J86: 0 | K86: 0 | L86: 0 | M86: 0 | N86: 0 | O86: 1052008.321 | P86: 0 | Q86: 0 | R86: 1052008.321 | S86: 68179.03214 | T86: 36573.12 | U86: 55727.03 | V86: 133316.3223 | W86: 11272.8 | X86: 0 | Y86: 0 | Z86: 0 | AA86: 142636.8997 | AB86: 0 | AC86: 0 | AD86: 19105.77627 | AE86: 14501.42601 | AG86: 1533320.727 | AH86: -8510.893018 | AI86: 1524809.834 | AK86: 0 | AL86: 0 | AM86: 1524809.834 | AQ86: 1524809.834 | AU86: 330 | AV86: 2128
A87: 2129 | B87: 2129 | C87: LYNDON GREEN I | E87: Community | F87: 2866.507686 | G87: 4031.059042 | H87: 4576.812053 | I87: 281 | J87: 0 | K87: 0 | L87: 0 | M87: 0 | N87: 0 | O87: 805488.6597 | P87: 0 | Q87: 0 | R87: 805488.6597 | S87: 31805.39942 | T87: 18512.32 | U87: 39562.81 | V87: 81596.06605 | W87: 17745.97647 | X87: 0 | Y87: 0 | Z87: 0 | AA87: 142636.8997 | AB87: 0 | AC87: 0 | AD87: 17357.45205 | AE87: 82200.10405 | AG87: 1236905.687 | AH87: -6516.514818 | AI87: 1230389.173 | AK87: 0 | AL87: 0 | AM87: 1230389.173 | AQ87: 1230389.173 | AU87: 330 | AV87: 2129
A88: 2132 | B88: 2132 | C88: MARLBOROUGH PRIMARY | E88: Academy | F88: 2866.507686 | G88: 4031.059042 | H88: 4576.812053 | I88: 611 | J88: 0 | K88: 0 | L88: 0 | M88: 0 | N88: 0 | O88: 1751436.196 | P88: 0 | Q88: 0 | R88: 1751436.196 | S88: 104034.7848 | T88: 65921.92 | U88: 181477.8 | V88: 295526.738 | W88: 157286.3911 | X88: 0 | Y88: 0 | Z88: 0 | AA88: 142636.8997 | AB88: 0 | AC88: 0 | AD88: 6761.24064 | AE88: 98909.30886 | AG88: 2803991.279 | AH88: 0 | AI88: 2803991.279 | AK88: 0 | AL88: 0 | AM88: 2803991.279 | AQ88: 2803991.279 | AU88: 330 | AV88: 2132
A89: 2133 | B89: 2133 | C89: MARSH HILL | E89: Community | F89: 2866.507686 | G89: 4031.059042 | H89: 4576.812053 | I89: 415 | J89: 0 | K89: 0 | L89: 0 | M89: 0 | N89: 0 | O89: 1189600.69 | P89: 0 | Q89: 0 | R89: 1189600.69 | S89: 98182.88421 | T89: 68631.04 | U89: 139302.0777 | V89: 149976.3174 | W89: 30835.67232 | X89: 0 | Y89: 0 | Z89: 0 | AA89: 142636.8997 | AB89: 0 | AC89: 203728.0128 | AD89: 46239.60114 | AE89: 0 | AG89: 2069133.195 | AH89: -9624.034339 | AI89: 2059509.16 | AK89: 0 | AL89: 0 | AM89: 2059509.16 | AQ89: 2059509.16 | AU89: 330 | AV89: 2133
A90: 2194 | B90: 2134 | C90: CITY ROAD | E90: Academy | F90: 2866.507686 | G90: 4031.059042 | H90: 4576.812053 | I90: 389 | J90: 0 | K90: 0 | L90: 0 | M90: 0 | N90: 0 | O90: 1115071.49 | P90: 0 | Q90: 0 | R90: 1115071.49 | S90: 59230.21278 | T90: 32960.96 | U90: 107531.2298 | V90: 193686.5529 | W90: 102876.6968 | X90: 0 | Y90: 11992.797 | Z90: 0 | AA90: 142636.8997 | AB90: 0 | AC90: 0 | AD90: 4968.48744 | AE90: 77208.20557 | AG90: 1848163.532 | AH90: 0 | AI90: 1848163.532 | AK90: 0 | AL90: 0 | AM90: 1848163.532 | AQ90: 1848163.532 | AU90: 330 | AV90: 2194
